Workbook

Sheet Cover Sheet
B1: Registered User: | G1: Free Trial Version - Not For Commercial Use | AF1: © 2017 CivilWeb
B2: Your Logo / Company Details Here | G2: Project: | AF2: By:
G3: Calculation: | M3: Continuous Beam Analysis
AF4: Approved:
G5: Sheet Number: | M5: Cover Sheet | T5: Date:
H7: Although all care and attention has been taken to ensure that this program is accurate, CivilWeb gives no guarentee that it is error free. In no event will Civil Web accept any responsibility for any errors or omissions from the program or from the user of the program, or for any special, incedental or consequential damages whatsoever arising from use of this program.
H14: This program should only be used by a suitably qualified Civil or Structural Engineer, and suitable efforts should be taken to verify the results.
H18: Reverse-engineering or decompiling of this program is not allowed.
H20: This program is registered to a single user, and should not be used by any other.
H23: Registered User;
H24: Free Trial Version
H26: By using this program you confirm your understanding and agreement with the above terms and conditions.
H29: This program remains the property of CivilWeb.
H30: www.civilweb-spreadsheets.com
H32: Revision Schedule
H34: Rev | J34: Changes | Z34: Date
H35: 0 | J35: Original | Z35: 2017-06-01

Sheet Continuous Beam Analysis
B1: Registered User: | G1: Free Trial Version - Not For Commercial Use | AF1: © 2017 CivilWeb | CN1: ="Summary of Results for Entire "&$BZ$10&"-Span Beam:" -> Summary of Results for Entire 5-Span Beam: | HK1: Version 1.1
B2: Your Logo / Company Details Here | G2: Project: | AF2: By: | BP2: 2 | BQ2: =SUM(N16:S16) -> 10 | CN2: Support Moments: | CQ2: Support Reactions:
G3: Calculation: | M3: Continuous Beam Analysis | BP3: 3 | BQ3: =SUM(N16:V16) -> 14 | CN3: M1 = | CO3: =$DW$55 -> -5.537959761e-18 | CP3: kN-m | CQ3: R1 = | CR3: =$DZ$55 -> 97.07591952 | CS3: kN | CW3: For Full Uniform Load, w | DE3: For Distributed Load #1 | DM3: For Distributed Load #2 | DU3: For Distributed Load #3 | EC3: For Distributed Load #4 | EK3: For Distributed Load #5 | ES3: For Distributed Load #6 | FQ3: For All 15 Point Loads | FY3: For All 6 Applied Moments | GG3: Summations of Loading Functions for All Loads | GO3: Initial Beam Parameters at Left End | GS3: Fixed End | GT3: Dist. from | HE3: Information for Input Data: | HL3: Steel Beam: | HN3: Caution: User should make sure to
AF4: Approved: | BM4: Max Load | BN4: =MAX(P64:AD66,L71:N76,V71:X76,AF71:AH76,Q81:S86,AA81:AC86,L91:N96,V91:X96,AF91:AH96,Q101:S106,AA101:AC106,L115:N120,Q115:S120,Z115:AB120,AE115:AG120,AE125:AG130,Z125:AB130,Q125:S130,L125:N130,O135:Q140,T135:V140) -> 100 | BP4: 4 | BQ4: =SUM(N16:Y16) -> 21 | CD4: 2 | CE4: Pinned | CF4: Dead | CN4: M2 = | CO4: =$DW$56 -> -459.6963219 | CP4: kN-m | CQ4: R2 = | CR4: =$DZ$56 -> 803.1214241 | CS4: kN | CW4: Loading Functions Evaluated at x = L | DA4: Loading Functions Evaluated at x | DE4: Loading Functions Evaluated at x = L | DI4: Loading Functions Evaluated at x | DM4: Loading Functions Evaluated at x = L | DQ4: Loading Functions Evaluated at x | DU4: Loading Functions Evaluated at x = L | DY4: Loading Functions Evaluated at x | EC4: Loading Functions Evaluated at x = L | EG4: Loading Functions Evaluated at x | EK4: Loading Functions Evaluated at x = L | EO4: Loading Functions Evaluated at x | ES4: Loading Functions Evaluated at x = L | EW4: Loading Functions Evaluated at x | FQ4: Loading Functions Evaluated at x = L | FU4: Loading Functions Evaluated at x | FY4: Loading Functions Evaluated at x = L | GC4: Loading Functions Evaluated at x | GG4: For Loading Functions Evaluated at x = L | GK4: For Loading Functions Evaluated at x | GO4: with Loading Functions Evaluated at x = L | GS4: Moments | GT4: Left End of Span | HE4: No. of Spans: | HF4: 2 | HK4: Size: | HL4: W12x50 | HN4: Clear Contents of all input
G5: Sheet Number: | M5: 1 | T5: Date: | BN5: 1111 | BP5: 5 | BQ5: =SUM(N16:AB16) -> 26 | CD5: 3 | CE5: Fixed | CF5: Imposed | CN5: M3 = | CO5: =$DW$57 -> -242.5122603 | CP5: kN-m | CQ5: R3 = | CR5: =$DZ$57 -> 484.7177135 | CS5: kN | CV5: Points: | CW5: FvL | CX5: FmL | CY5: FqL | CZ5: FDL | DA5: Fvx | DB5: Fmx | DC5: Fqx | DD5: FDx | DE5: FvL | DF5: FmL | DG5: FqL | DH5: FDL | DI5: Fvx | DJ5: Fmx | DK5: Fqx | DL5: FDx | DM5: FvL | DN5: FmL | DO5: FqL | DP5: FDL | DQ5: Fvx | DR5: Fmx | DS5: Fqx | DT5: FDx | DU5: FvL | DV5: FmL | DW5: FqL | DX5: FDL | DY5: Fvx | DZ5: Fmx | EA5: Fqx | EB5: FDx | EC5: FvL | ED5: FmL | EE5: FqL | EF5: FDL | EG5: Fvx | EH5: Fmx | EI5: Fqx | EJ5: FDx | EK5: FvL | EL5: FmL | EM5: FqL | EN5: FDL | EO5: Fvx | EP5: Fmx | EQ5: Fqx | ER5: FDx | ES5: FvL | ET5: FmL | EU5: FqL | EV5: FDL | EW5: Fvx | EX5: Fmx | EY5: Fqx | EZ5: FDx | FQ5: FvL | FR5: FmL | FS5: FqL | FT5: FDL | FU5: Fvx | FV5: Fmx | FW5: Fqx | FX5: FDx | FY5: FvL | FZ5: FmL | GA5: FqL | GB5: FDL | GC5: Fvx | GD5: Fmx | GE5: Fqx | GF5: FDx | GG5: SFvL | GH5: SFmL | GI5: SFqL | GJ5: SFDL | GK5: SFvx | GL5: SFmx | GM5: SFqx | GN5: SFDx | GO5: Vo | GP5: Mo | GQ5: qo | GR5: Do | GS5: (kN-m) | GT5: x (m) | HF5: 3 | HK5: Ix = | HL5: =VLOOKUP($HL$4,$HE$12:$HI$805,4,FALSE) -> 16274.65 | HM5: cm^4 | HN5: cells not being used.
CD6: 4 | CN6: M4 = | CO6: =$DW$58 -> -286.8520317 | CP6: kN-m | CQ6: R4 = | CR6: =$DZ$58 -> 498.626706 | CS6: kN | CV6: Span #1 FEM(L): | CW6: =IF($BZ$21=0,"---",-$BZ$21*$BZ$18) -> -264 | CX6: =IF($BZ$21=0,"---",-$BZ$21*$BZ$18^2/2) -> -528 | CY6: =IF($BZ$21=0,"---",-$BZ$21*$BZ$18^3/(6*$BZ$13*$BZ$19)) -> -2.2e-07 | CZ6: =IF($BZ$21=0,"---",$BZ$21*$BZ$18^4/(24*$BZ$13*$BZ$19)) -> 2.2e-07 | DA6: =IF($BZ$21=0,"---",IF($GT6=$BZ$18,-$BZ$21*($GT6-($GT6-$BZ$18)),IF($GT6>=0,-$BZ$21*$GT6,0))) -> 0 | DB6: =IF($BZ$21=0,"---",IF($GT6=$BZ$18,-$BZ$21*($GT6^2-($GT6-$BZ$18)^2)/2,IF($GT6>=0,-$BZ$21*$GT6^2/2,0))) -> 0 | DC6: =IF($BZ$21=0,"---",IF($GT6=$BZ$18,-$BZ$21*($GT6^3-($GT6-$BZ$18)^3)/(6*$BZ$13*$BZ$19),IF($GT6>=0,-$BZ$21*$GT6^3/(6*$BZ$13*$BZ$19),0))) -> 0 | DD6: =IF($BZ$21=0,"---",IF($GT6=$BZ$18,$BZ$21*($GT6^4-($GT6-$BZ$18)^4)/(24*$BZ$13*$BZ$19),IF($GT6>=0,$BZ$21*$GT6^4/(24*$BZ$13*$BZ$19),0))) -> 0 | DE6: =IF($BZ$25=$CB$25,"---",IF(AND($BZ$25="",$CA$25="",$CB$25="",$CC$25=""),"---",(-$CA$25*($BZ$18-$BZ$25-($BZ$18-$CB$25)))+(-1/2*($CC$25-$CA$25)/($CB$25-$BZ$25)*(($BZ$18-$BZ$25)^2-($BZ$18-$CB$25)^2)+($CC$25-$CA$25)*($BZ$18-$CB$25)))) -> --- | DF6: =IF($BZ$25=$CB$25,"---",IF(AND($BZ$25="",$CA$25="",$CB$25="",$CC$25=""),"---",(-$CA$25/2*(($BZ$18-$BZ$25)^2-($BZ$18-$CB$25)^2))+(-1/6*($CC$25-$CA$25)/($CB$25-$BZ$25)*(($BZ$18-$BZ$25)^3-($BZ$18-$CB$25)^3)+($CC$25-$CA$25)/2*($BZ$18-$CB$25)^2))) -> --- | DG6: =IF($BZ$25=$CB$25,"---",IF(AND($BZ$25="",$CA$25="",$CB$25="",$CC$25=""),"---",(-$CA$25/(6*$BZ$13*$BZ$19)*(($BZ$18-$BZ$25)^3-($BZ$18-$CB$25)^3))+(-1/(24*$BZ$13*$BZ$19)*($CC$25-$CA$25)/($CB$25-$BZ$25)*(($BZ$18-$BZ$25)^4-($BZ$18-$CB$25)^4)+($CC$25-$CA$25)/(6*$BZ$13*$BZ$19)*($BZ$18-$CB$25)^3))) -> --- | DH6: =IF($BZ$25=$CB$25,"---",IF(AND($BZ$25="",$CA$25="",$CB$25="",$CC$25=""),"---",($CA$25/(24*$BZ$13*$BZ$19)*(($BZ$18-$BZ$25)^4-($BZ$18-$CB$25)^4))+(1/(120*$BZ$13*$BZ$19)*($CC$25-$CA$25)/($CB$25-$BZ$25)*(($BZ$18-$BZ$25)^5-($BZ$18-$CB$25)^5)-($CC$25-$CA$25)/(24*$BZ$13*$BZ$19)*($BZ$18-$CB$25)^4))) -> --- | DI6: =IF($BZ$25=$CB$25,"---",IF(AND($BZ$25="",$CA$25="",$CB$25="",$CC$25=""),"---",(IF($GT6>=$CB$25,-$CA$25*($GT6-$BZ$25-($GT6-$CB$25)),IF($GT6>=$BZ$25,-$CA$25*($GT6-$BZ$25),0)))+(IF($GT6>=$CB$25,-1/2*($CC$25-$CA$25)/($CB$25-$BZ$25)*(($GT6-$BZ$25)^2-($GT6-$CB$25)^2)+($CC$25-$CA$25)*($GT6-$CB$25),IF($GT6>=$BZ$25,-1/2*($CC$25-$CA$25)/($CB$25-$BZ$25)*($GT6-$BZ$25)^2,0))))) -> --- | DJ6: =IF($BZ$25=$CB$25,"---",IF(AND($BZ$25="",$CA$25="",$CB$25="",$CC$25=""),"---",(IF($GT6>=$CB$25,-$CA$25/2*(($GT6-$BZ$25)^2-($GT6-$CB$25)^2),IF($GT6>=$BZ$25,-$CA$25/2*($GT6-$BZ$25)^2,0)))+(IF($GT6>=$CB$25,-1/6*($CC$25-$CA$25)/($CB$25-$BZ$25)*(($GT6-$BZ$25)^3-($GT6-$CB$25)^3)+($CC$25-$CA$25)/2*($GT6-$CB$25)^2,IF($GT6>=$BZ$25,-1/6*($CC$25-$CA$25)/($CB$25-$BZ$25)*($GT6-$BZ$25)^3,0))))) -> --- | DK6: =IF($BZ$25=$CB$25,"---",IF(AND($BZ$25="",$CA$25="",$CB$25="",$CC$25=""),"---",(IF($GT6>=$CB$25,-$CA$25/(6*$BZ$13*$BZ$19)*(($GT6-$BZ$25)^3-($GT6-$CB$25)^3),IF($GT6>=$BZ$25,-$CA$25/(6*$BZ$13*$BZ$19)*($GT6-$BZ$25)^3,0)))+(IF($GT6>=$CB$25,-1/(24*$BZ$13*$BZ$19)*($CC$25-$CA$25)/($CB$25-$BZ$25)*(($GT6-$BZ$25)^4-($GT6-$CB$25)^4)+($CC$25-$CA$25)/(6*$BZ$13*$BZ$19)*($GT6-$CB$25)^3,IF($GT6>=$BZ$25,-1/(24*$BZ$13*$BZ$19)*($CC$25-$CA$25)/($CB$25-$BZ$25)*($GT6-$BZ$25)^4,0))))) -> --- | DL6: =IF($BZ$25=$CB$25,"---",IF(AND($BZ$25="",$CA$25="",$CB$25="",$CC$25=""),"---",(IF($GT6>=$CB$25,$CA$25/(24*$BZ$13*$BZ$19)*(($GT6-$BZ$25)^4-($GT6-$CB$25)^4),IF($GT6>=$BZ$25,$CA$25/(24*$BZ$13*$BZ$19)*($GT6-$BZ$25)^4,0)))+(IF($GT6>=$CB$25,1/(120*$BZ$13*$BZ$19)*($CC$25-$CA$25)/($CB$25-$BZ$25)*(($GT6-$BZ$25)^5-($GT6-$CB$25)^5)-($CC$25-$CA$25)/(24*$BZ$13*$BZ$19)*($GT6-$CB$25)^4,IF($GT6>=$BZ$25,1/(120*$BZ$13*$BZ$19)*($CC$25-$CA$25)/($CB$25-$BZ$25)*($GT6-$BZ$25)^5,0))))) -> --- | DM6: =IF($BZ$26=$CB$26,"---",IF(AND($BZ$26="",$CA$26="",$CB$26="",$CC$26=""),"---",(-$CA$26*($BZ$18-$BZ$26-($BZ$18-$CB$26)))+(-1/2*($CC$26-$CA$26)/($CB$26-$BZ$26)*(($BZ$18-$BZ$26)^2-($BZ$18-$CB$26)^2)+($CC$26-$CA$26)*($BZ$18-$CB$26)))) -> --- | DN6: =IF($BZ$26=$CB$26,"---",IF(AND($BZ$26="",$CA$26="",$CB$26="",$CC$26=""),"---",(-$CA$26/2*(($BZ$18-$BZ$26)^2-($BZ$18-$CB$26)^2))+(-1/6*($CC$26-$CA$26)/($CB$26-$BZ$26)*(($BZ$18-$BZ$26)^3-($BZ$18-$CB$26)^3)+($CC$26-$CA$26)/2*($BZ$18-$CB$26)^2))) -> --- | DO6: =IF($BZ$26=$CB$26,"---",IF(AND($BZ$26="",$CA$26="",$CB$26="",$CC$26=""),"---",(-$CA$26/(6*$BZ$13*$BZ$19)*(($BZ$18-$BZ$26)^3-($BZ$18-$CB$26)^3))+(-1/(24*$BZ$13*$BZ$19)*($CC$26-$CA$26)/($CB$26-$BZ$26)*(($BZ$18-$BZ$26)^4-($BZ$18-$CB$26)^4)+($CC$26-$CA$26)/(6*$BZ$13*$BZ$19)*($BZ$18-$CB$26)^3))) -> --- | DP6: =IF($BZ$26=$CB$26,"---",IF(AND($BZ$26="",$CA$26="",$CB$26="",$CC$26=""),"---",($CA$26/(24*$BZ$13*$BZ$19)*(($BZ$18-$BZ$26)^4-($BZ$18-$CB$26)^4))+(1/(120*$BZ$13*$BZ$19)*($CC$26-$CA$26)/($CB$26-$BZ$26)*(($BZ$18-$BZ$26)^5-($BZ$18-$CB$26)^5)-($CC$26-$CA$26)/(24*$BZ$13*$BZ$19)*($BZ$18-$CB$26)^4))) -> --- | DQ6: =IF($BZ$26=$CB$26,"---",IF(AND($BZ$26="",$CA$26="",$CB$26="",$CC$26=""),"---",(IF($GT6>=$CB$26,-$CA$26*($GT6-$BZ$26-($GT6-$CB$26)),IF($GT6>=$BZ$26,-$CA$26*($GT6-$BZ$26),0)))+(IF($GT6>=$CB$26,-1/2*($CC$26-$CA$26)/($CB$26-$BZ$26)*(($GT6-$BZ$26)^2-($GT6-$CB$26)^2)+($CC$26-$CA$26)*($GT6-$CB$26),IF($GT6>=$BZ$26,-1/2*($CC$26-$CA$26)/($CB$26-$BZ$26)*($GT6-$BZ$26)^2,0))))) -> --- | DR6: =IF($BZ$26=$CB$26,"---",IF(AND($BZ$26="",$CA$26="",$CB$26="",$CC$26=""),"---",(IF($GT6>=$CB$26,-$CA$26/2*(($GT6-$BZ$26)^2-($GT6-$CB$26)^2),IF($GT6>=$BZ$26,-$CA$26/2*($GT6-$BZ$26)^2,0)))+(IF($GT6>=$CB$26,-1/6*($CC$26-$CA$26)/($CB$26-$BZ$26)*(($GT6-$BZ$26)^3-($GT6-$CB$26)^3)+($CC$26-$CA$26)/2*($GT6-$CB$26)^2,IF($GT6>=$BZ$26,-1/6*($CC$26-$CA$26)/($CB$26-$BZ$26)*($GT6-$BZ$26)^3,0))))) -> --- | DS6: =IF($BZ$26=$CB$26,"---",IF(AND($BZ$26="",$CA$26="",$CB$26="",$CC$26=""),"---",(IF($GT6>=$CB$26,-$CA$26/(6*$BZ$13*$BZ$19)*(($GT6-$BZ$26)^3-($GT6-$CB$26)^3),IF($GT6>=$BZ$26,-$CA$26/(6*$BZ$13*$BZ$19)*($GT6-$BZ$26)^3,0)))+(IF($GT6>=$CB$26,-1/(24*$BZ$13*$BZ$19)*($CC$26-$CA$26)/($CB$26-$BZ$26)*(($GT6-$BZ$26)^4-($GT6-$CB$26)^4)+($CC$26-$CA$26)/(6*$BZ$13*$BZ$19)*($GT6-$CB$26)^3,IF($GT6>=$BZ$26,-1/(24*$BZ$13*$BZ$19)*($CC$26-$CA$26)/($CB$26-$BZ$26)*($GT6-$BZ$26)^4,0))))) -> --- | DT6: =IF($BZ$26=$CB$26,"---",IF(AND($BZ$26="",$CA$26="",$CB$26="",$CC$26=""),"---",(IF($GT6>=$CB$26,$CA$26/(24*$BZ$13*$BZ$19)*(($GT6-$BZ$26)^4-($GT6-$CB$26)^4),IF($GT6>=$BZ$26,$CA$26/(24*$BZ$13*$BZ$19)*($GT6-$BZ$26)^4,0)))+(IF($GT6>=$CB$26,1/(120*$BZ$13*$BZ$19)*($CC$26-$CA$26)/($CB$26-$BZ$26)*(($GT6-$BZ$26)^5-($GT6-$CB$26)^5)-($CC$26-$CA$26)/(24*$BZ$13*$BZ$19)*($GT6-$CB$26)^4,IF($GT6>=$BZ$26,1/(120*$BZ$13*$BZ$19)*($CC$26-$CA$26)/($CB$26-$BZ$26)*($GT6-$BZ$26)^5,0))))) -> --- | DU6: =IF($BZ$27=$CB$27,"---",IF(AND($BZ$27="",$CA$27="",$CB$27="",$CC$27=""),"---",(-$CA$27*($BZ$18-$BZ$27-($BZ$18-$CB$27)))+(-1/2*($CC$27-$CA$27)/($CB$27-$BZ$27)*(($BZ$18-$BZ$27)^2-($BZ$18-$CB$27)^2)+($CC$27-$CA$27)*($BZ$18-$CB$27)))) -> --- | DV6: =IF($BZ$27=$CB$27,"---",IF(AND($BZ$27="",$CA$27="",$CB$27="",$CC$27=""),"---",(-$CA$27/2*(($BZ$18-$BZ$27)^2-($BZ$18-$CB$27)^2))+(-1/6*($CC$27-$CA$27)/($CB$27-$BZ$27)*(($BZ$18-$BZ$27)^3-($BZ$18-$CB$27)^3)+($CC$27-$CA$27)/2*($BZ$18-$CB$27)^2))) -> --- | DW6: =IF($BZ$27=$CB$27,"---",IF(AND($BZ$27="",$CA$27="",$CB$27="",$CC$27=""),"---",(-$CA$27/(6*$BZ$13*$BZ$19)*(($BZ$18-$BZ$27)^3-($BZ$18-$CB$27)^3))+(-1/(24*$BZ$13*$BZ$19)*($CC$27-$CA$27)/($CB$27-$BZ$27)*(($BZ$18-$BZ$27)^4-($BZ$18-$CB$27)^4)+($CC$27-$CA$27)/(6*$BZ$13*$BZ$19)*($BZ$18-$CB$27)^3))) -> --- | DX6: =IF($BZ$27=$CB$27,"---",IF(AND($BZ$27="",$CA$27="",$CB$27="",$CC$27=""),"---",($CA$27/(24*$BZ$13*$BZ$19)*(($BZ$18-$BZ$27)^4-($BZ$18-$CB$27)^4))+(1/(120*$BZ$13*$BZ$19)*($CC$27-$CA$27)/($CB$27-$BZ$27)*(($BZ$18-$BZ$27)^5-($BZ$18-$CB$27)^5)-($CC$27-$CA$27)/(24*$BZ$13*$BZ$19)*($BZ$18-$CB$27)^4))) -> --- | DY6: =IF($BZ$27=$CB$27,"---",IF(AND($BZ$27="",$CA$27="",$CB$27="",$CC$27=""),"---",(IF($GT6>=$CB$27,-$CA$27*($GT6-$BZ$27-($GT6-$CB$27)),IF($GT6>=$BZ$27,-$CA$27*($GT6-$BZ$27),0)))+(IF($GT6>=$CB$27,-1/2*($CC$27-$CA$27)/($CB$27-$BZ$27)*(($GT6-$BZ$27)^2-($GT6-$CB$27)^2)+($CC$27-$CA$27)*($GT6-$CB$27),IF($GT6>=$BZ$27,-1/2*($CC$27-$CA$27)/($CB$27-$BZ$27)*($GT6-$BZ$27)^2,0))))) -> --- | DZ6: =IF($BZ$27=$CB$27,"---",IF(AND($BZ$27="",$CA$27="",$CB$27="",$CC$27=""),"---",(IF($GT6>=$CB$27,-$CA$27/2*(($GT6-$BZ$27)^2-($GT6-$CB$27)^2),IF($GT6>=$BZ$27,-$CA$27/2*($GT6-$BZ$27)^2,0)))+(IF($GT6>=$CB$27,-1/6*($CC$27-$CA$27)/($CB$27-$BZ$27)*(($GT6-$BZ$27)^3-($GT6-$CB$27)^3)+($CC$27-$CA$27)/2*($GT6-$CB$27)^2,IF($GT6>=$BZ$27,-1/6*($CC$27-$CA$27)/($CB$27-$BZ$27)*($GT6-$BZ$27)^3,0))))) -> --- | EA6: =IF($BZ$27=$CB$27,"---",IF(AND($BZ$27="",$CA$27="",$CB$27="",$CC$27=""),"---",(IF($GT6>=$CB$27,-$CA$27/(6*$BZ$13*$BZ$19)*(($GT6-$BZ$27)^3-($GT6-$CB$27)^3),IF($GT6>=$BZ$27,-$CA$27/(6*$BZ$13*$BZ$19)*($GT6-$BZ$27)^3,0)))+(IF($GT6>=$CB$27,-1/(24*$BZ$13*$BZ$19)*($CC$27-$CA$27)/($CB$27-$BZ$27)*(($GT6-$BZ$27)^4-($GT6-$CB$27)^4)+($CC$27-$CA$27)/(6*$BZ$13*$BZ$19)*($GT6-$CB$27)^3,IF($GT6>=$BZ$27,-1/(24*$BZ$13*$BZ$19)*($CC$27-$CA$27)/($CB$27-$BZ$27)*($GT6-$BZ$27)^4,0))))) -> --- | EB6: =IF($BZ$27=$CB$27,"---",IF(AND($BZ$27="",$CA$27="",$CB$27="",$CC$27=""),"---",(IF($GT6>=$CB$27,$CA$27/(24*$BZ$13*$BZ$19)*(($GT6-$BZ$27)^4-($GT6-$CB$27)^4),IF($GT6>=$BZ$27,$CA$27/(24*$BZ$13*$BZ$19)*($GT6-$BZ$27)^4,0)))+(IF($GT6>=$CB$27,1/(120*$BZ$13*$BZ$19)*($CC$27-$CA$27)/($CB$27-$BZ$27)*(($GT6-$BZ$27)^5-($GT6-$CB$27)^5)-($CC$27-$CA$27)/(24*$BZ$13*$BZ$19)*($GT6-$CB$27)^4,IF($GT6>=$BZ$27,1/(120*$BZ$13*$BZ$19)*($CC$27-$CA$27)/($CB$27-$BZ$27)*($GT6-$BZ$27)^5,0))))) -> --- | EC6: =IF($BZ$28=$CB$28,"---",IF(AND($BZ$28="",$CA$28="",$CB$28="",$CC$28=""),"---",(-$CA$28*($BZ$18-$BZ$28-($BZ$18-$CB$28)))+(-1/2*($CC$28-$CA$28)/($CB$28-$BZ$28)*(($BZ$18-$BZ$28)^2-($BZ$18-$CB$28)^2)+($CC$28-$CA$28)*($BZ$18-$CB$28)))) -> --- | ED6: =IF($BZ$28=$CB$28,"---",IF(AND($BZ$28="",$CA$28="",$CB$28="",$CC$28=""),"---",(-$CA$28/2*(($BZ$18-$BZ$28)^2-($BZ$18-$CB$28)^2))+(-1/6*($CC$28-$CA$28)/($CB$28-$BZ$28)*(($BZ$18-$BZ$28)^3-($BZ$18-$CB$28)^3)+($CC$28-$CA$28)/2*($BZ$18-$CB$28)^2))) -> --- | EE6: =IF($BZ$28=$CB$28,"---",IF(AND($BZ$28="",$CA$28="",$CB$28="",$CC$28=""),"---",(-$CA$28/(6*$BZ$13*$BZ$19)*(($BZ$18-$BZ$28)^3-($BZ$18-$CB$28)^3))+(-1/(24*$BZ$13*$BZ$19)*($CC$28-$CA$28)/($CB$28-$BZ$28)*(($BZ$18-$BZ$28)^4-($BZ$18-$CB$28)^4)+($CC$28-$CA$28)/(6*$BZ$13*$BZ$19)*($BZ$18-$CB$28)^3))) -> --- | EF6: =IF($BZ$28=$CB$28,"---",IF(AND($BZ$28="",$CA$28="",$CB$28="",$CC$28=""),"---",($CA$28/(24*$BZ$13*$BZ$19)*(($BZ$18-$BZ$28)^4-($BZ$18-$CB$28)^4))+(1/(120*$BZ$13*$BZ$19)*($CC$28-$CA$28)/($CB$28-$BZ$28)*(($BZ$18-$BZ$28)^5-($BZ$18-$CB$28)^5)-($CC$28-$CA$28)/(24*$BZ$13*$BZ$19)*($BZ$18-$CB$28)^4))) -> --- | EG6: =IF($BZ$28=$CB$28,"---",IF(AND($BZ$28="",$CA$28="",$CB$28="",$CC$28=""),"---",(IF($GT6>=$CB$28,-$CA$28*($GT6-$BZ$28-($GT6-$CB$28)),IF($GT6>=$BZ$28,-$CA$28*($GT6-$BZ$28),0)))+(IF($GT6>=$CB$28,-1/2*($CC$28-$CA$28)/($CB$28-$BZ$28)*(($GT6-$BZ$28)^2-($GT6-$CB$28)^2)+($CC$28-$CA$28)*($GT6-$CB$28),IF($GT6>=$BZ$28,-1/2*($CC$28-$CA$28)/($CB$28-$BZ$28)*($GT6-$BZ$28)^2,0))))) -> --- | EH6: =IF($BZ$28=$CB$28,"---",IF(AND($BZ$28="",$CA$28="",$CB$28="",$CC$28=""),"---",(IF($GT6>=$CB$28,-$CA$28/2*(($GT6-$BZ$28)^2-($GT6-$CB$28)^2),IF($GT6>=$BZ$28,-$CA$28/2*($GT6-$BZ$28)^2,0)))+(IF($GT6>=$CB$28,-1/6*($CC$28-$CA$28)/($CB$28-$BZ$28)*(($GT6-$BZ$28)^3-($GT6-$CB$28)^3)+($CC$28-$CA$28)/2*($GT6-$CB$28)^2,IF($GT6>=$BZ$28,-1/6*($CC$28-$CA$28)/($CB$28-$BZ$28)*($GT6-$BZ$28)^3,0))))) -> --- | EI6: =IF($BZ$28=$CB$28,"---",IF(AND($BZ$28="",$CA$28="",$CB$28="",$CC$28=""),"---",(IF($GT6>=$CB$28,-$CA$28/(6*$BZ$13*$BZ$19)*(($GT6-$BZ$28)^3-($GT6-$CB$28)^3),IF($GT6>=$BZ$28,-$CA$28/(6*$BZ$13*$BZ$19)*($GT6-$BZ$28)^3,0)))+(IF($GT6>=$CB$28,-1/(24*$BZ$13*$BZ$19)*($CC$28-$CA$28)/($CB$28-$BZ$28)*(($GT6-$BZ$28)^4-($GT6-$CB$28)^4)+($CC$28-$CA$28)/(6*$BZ$13*$BZ$19)*($GT6-$CB$28)^3,IF($GT6>=$BZ$28,-1/(24*$BZ$13*$BZ$19)*($CC$28-$CA$28)/($CB$28-$BZ$28)*($GT6-$BZ$28)^4,0))))) -> --- | EJ6: =IF($BZ$28=$CB$28,"---",IF(AND($BZ$28="",$CA$28="",$CB$28="",$CC$28=""),"---",(IF($GT6>=$CB$28,$CA$28/(24*$BZ$13*$BZ$19)*(($GT6-$BZ$28)^4-($GT6-$CB$28)^4),IF($GT6>=$BZ$28,$CA$28/(24*$BZ$13*$BZ$19)*($GT6-$BZ$28)^4,0)))+(IF($GT6>=$CB$28,1/(120*$BZ$13*$BZ$19)*($CC$28-$CA$28)/($CB$28-$BZ$28)*(($GT6-$BZ$28)^5-($GT6-$CB$28)^5)-($CC$28-$CA$28)/(24*$BZ$13*$BZ$19)*($GT6-$CB$28)^4,IF($GT6>=$BZ$28,1/(120*$BZ$13*$BZ$19)*($CC$28-$CA$28)/($CB$28-$BZ$28)*($GT6-$BZ$28)^5,0))))) -> --- | EK6: =IF($BZ$29=$CB$29,"---",IF(AND($BZ$29="",$CA$29="",$CB$29="",$CC$29=""),"---",(-$CA$29*($BZ$18-$BZ$29-($BZ$18-$CB$29)))+(-1/2*($CC$29-$CA$29)/($CB$29-$BZ$29)*(($BZ$18-$BZ$29)^2-($BZ$18-$CB$29)^2)+($CC$29-$CA$29)*($BZ$18-$CB$29)))) -> --- | EL6: =IF($BZ$29=$CB$29,"---",IF(AND($BZ$29="",$CA$29="",$CB$29="",$CC$29=""),"---",(-$CA$29/2*(($BZ$18-$BZ$29)^2-($BZ$18-$CB$29)^2))+(-1/6*($CC$29-$CA$29)/($CB$29-$BZ$29)*(($BZ$18-$BZ$29)^3-($BZ$18-$CB$29)^3)+($CC$29-$CA$29)/2*($BZ$18-$CB$29)^2))) -> --- | EM6: =IF($BZ$29=$CB$29,"---",IF(AND($BZ$29="",$CA$29="",$CB$29="",$CC$29=""),"---",(-$CA$29/(6*$BZ$13*$BZ$19)*(($BZ$18-$BZ$29)^3-($BZ$18-$CB$29)^3))+(-1/(24*$BZ$13*$BZ$19)*($CC$29-$CA$29)/($CB$29-$BZ$29)*(($BZ$18-$BZ$29)^4-($BZ$18-$CB$29)^4)+($CC$29-$CA$29)/(6*$BZ$13*$BZ$19)*($BZ$18-$CB$29)^3))) -> --- | EN6: =IF($BZ$29=$CB$29,"---",IF(AND($BZ$29="",$CA$29="",$CB$29="",$CC$29=""),"---",($CA$29/(24*$BZ$13*$BZ$19)*(($BZ$18-$BZ$29)^4-($BZ$18-$CB$29)^4))+(1/(120*$BZ$13*$BZ$19)*($CC$29-$CA$29)/($CB$29-$BZ$29)*(($BZ$18-$BZ$29)^5-($BZ$18-$CB$29)^5)-($CC$29-$CA$29)/(24*$BZ$13*$BZ$19)*($BZ$18-$CB$29)^4))) -> --- | EO6: =IF($BZ$29=$CB$29,"---",IF(AND($BZ$29="",$CA$29="",$CB$29="",$CC$29=""),"---",(IF($GT6>=$CB$29,-$CA$29*($GT6-$BZ$29-($GT6-$CB$29)),IF($GT6>=$BZ$29,-$CA$29*($GT6-$BZ$29),0)))+(IF($GT6>=$CB$29,-1/2*($CC$29-$CA$29)/($CB$29-$BZ$29)*(($GT6-$BZ$29)^2-($GT6-$CB$29)^2)+($CC$29-$CA$29)*($GT6-$CB$29),IF($GT6>=$BZ$29,-1/2*($CC$29-$CA$29)/($CB$29-$BZ$29)*($GT6-$BZ$29)^2,0))))) -> --- | EP6: =IF($BZ$29=$CB$29,"---",IF(AND($BZ$29="",$CA$29="",$CB$29="",$CC$29=""),"---",(IF($GT6>=$CB$29,-$CA$29/2*(($GT6-$BZ$29)^2-($GT6-$CB$29)^2),IF($GT6>=$BZ$29,-$CA$29/2*($GT6-$BZ$29)^2,0)))+(IF($GT6>=$CB$29,-1/6*($CC$29-$CA$29)/($CB$29-$BZ$29)*(($GT6-$BZ$29)^3-($GT6-$CB$29)^3)+($CC$29-$CA$29)/2*($GT6-$CB$29)^2,IF($GT6>=$BZ$29,-1/6*($CC$29-$CA$29)/($CB$29-$BZ$29)*($GT6-$BZ$29)^3,0))))) -> --- | EQ6: =IF($BZ$29=$CB$29,"---",IF(AND($BZ$29="",$CA$29="",$CB$29="",$CC$29=""),"---",(IF($GT6>=$CB$29,-$CA$29/(6*$BZ$13*$BZ$19)*(($GT6-$BZ$29)^3-($GT6-$CB$29)^3),IF($GT6>=$BZ$29,-$CA$29/(6*$BZ$13*$BZ$19)*($GT6-$BZ$29)^3,0)))+(IF($GT6>=$CB$29,-1/(24*$BZ$13*$BZ$19)*($CC$29-$CA$29)/($CB$29-$BZ$29)*(($GT6-$BZ$29)^4-($GT6-$CB$29)^4)+($CC$29-$CA$29)/(6*$BZ$13*$BZ$19)*($GT6-$CB$29)^3,IF($GT6>=$BZ$29,-1/(24*$BZ$13*$BZ$19)*($CC$29-$CA$29)/($CB$29-$BZ$29)*($GT6-$BZ$29)^4,0))))) -> --- | ER6: =IF($BZ$29=$CB$29,"---",IF(AND($BZ$29="",$CA$29="",$CB$29="",$CC$29=""),"---",(IF($GT6>=$CB$29,$CA$29/(24*$BZ$13*$BZ$19)*(($GT6-$BZ$29)^4-($GT6-$CB$29)^4),IF($GT6>=$BZ$29,$CA$29/(24*$BZ$13*$BZ$19)*($GT6-$BZ$29)^4,0)))+(IF($GT6>=$CB$29,1/(120*$BZ$13*$BZ$19)*($CC$29-$CA$29)/($CB$29-$BZ$29)*(($GT6-$BZ$29)^5-($GT6-$CB$29)^5)-($CC$29-$CA$29)/(24*$BZ$13*$BZ$19)*($GT6-$CB$29)^4,IF($GT6>=$BZ$29,1/(120*$BZ$13*$BZ$19)*($CC$29-$CA$29)/($CB$29-$BZ$29)*($GT6-$BZ$29)^5,0))))) -> --- | ES6: =IF($BZ$30=$CB$30,"---",IF(AND($BZ$30="",$CA$30="",$CB$30="",$CC$30=""),"---",(-$CA$30*($BZ$18-$BZ$30-($BZ$18-$CB$30)))+(-1/2*($CC$30-$CA$30)/($CB$30-$BZ$30)*(($BZ$18-$BZ$30)^2-($BZ$18-$CB$30)^2)+($CC$30-$CA$30)*($BZ$18-$CB$30)))) -> --- | ET6: =IF($BZ$30=$CB$30,"---",IF(AND($BZ$30="",$CA$30="",$CB$30="",$CC$30=""),"---",(-$CA$30/2*(($BZ$18-$BZ$30)^2-($BZ$18-$CB$30)^2))+(-1/6*($CC$30-$CA$30)/($CB$30-$BZ$30)*(($BZ$18-$BZ$30)^3-($BZ$18-$CB$30)^3)+($CC$30-$CA$30)/2*($BZ$18-$CB$30)^2))) -> --- | EU6: =IF($BZ$30=$CB$30,"---",IF(AND($BZ$30="",$CA$30="",$CB$30="",$CC$30=""),"---",(-$CA$30/(6*$BZ$13*$BZ$19)*(($BZ$18-$BZ$30)^3-($BZ$18-$CB$30)^3))+(-1/(24*$BZ$13*$BZ$19)*($CC$30-$CA$30)/($CB$30-$BZ$30)*(($BZ$18-$BZ$30)^4-($BZ$18-$CB$30)^4)+($CC$30-$CA$30)/(6*$BZ$13*$BZ$19)*($BZ$18-$CB$30)^3))) -> --- | EV6: =IF($BZ$30=$CB$30,"---",IF(AND($BZ$30="",$CA$30="",$CB$30="",$CC$30=""),"---",($CA$30/(24*$BZ$13*$BZ$19)*(($BZ$18-$BZ$30)^4-($BZ$18-$CB$30)^4))+(1/(120*$BZ$13*$BZ$19)*($CC$30-$CA$30)/($CB$30-$BZ$30)*(($BZ$18-$BZ$30)^5-($BZ$18-$CB$30)^5)-($CC$30-$CA$30)/(24*$BZ$13*$BZ$19)*($BZ$18-$CB$30)^4))) -> --- | EW6: =IF($BZ$30=$CB$30,"---",IF(AND($BZ$30="",$CA$30="",$CB$30="",$CC$30=""),"---",(IF($GT6>=$CB$30,-$CA$30*($GT6-$BZ$30-($GT6-$CB$30)),IF($GT6>=$BZ$30,-$CA$30*($GT6-$BZ$30),0)))+(IF($GT6>=$CB$30,-1/2*($CC$30-$CA$30)/($CB$30-$BZ$30)*(($GT6-$BZ$30)^2-($GT6-$CB$30)^2)+($CC$30-$CA$30)*($GT6-$CB$30),IF($GT6>=$BZ$30,-1/2*($CC$30-$CA$30)/($CB$30-$BZ$30)*($GT6-$BZ$30)^2,0))))) -> --- | EX6: =IF($BZ$30=$CB$30,"---",IF(AND($BZ$30="",$CA$30="",$CB$30="",$CC$30=""),"---",(IF($GT6>=$CB$30,-$CA$30/2*(($GT6-$BZ$30)^2-($GT6-$CB$30)^2),IF($GT6>=$BZ$30,-$CA$30/2*($GT6-$BZ$30)^2,0)))+(IF($GT6>=$CB$30,-1/6*($CC$30-$CA$30)/($CB$30-$BZ$30)*(($GT6-$BZ$30)^3-($GT6-$CB$30)^3)+($CC$30-$CA$30)/2*($GT6-$CB$30)^2,IF($GT6>=$BZ$30,-1/6*($CC$30-$CA$30)/($CB$30-$BZ$30)*($GT6-$BZ$30)^3,0))))) -> --- | EY6: =IF($BZ$30=$CB$30,"---",IF(AND($BZ$30="",$CA$30="",$CB$30="",$CC$30=""),"---",(IF($GT6>=$CB$30,-$CA$30/(6*$BZ$13*$BZ$19)*(($GT6-$BZ$30)^3-($GT6-$CB$30)^3),IF($GT6>=$BZ$30,-$CA$30/(6*$BZ$13*$BZ$19)*($GT6-$BZ$30)^3,0)))+(IF($GT6>=$CB$30,-1/(24*$BZ$13*$BZ$19)*($CC$30-$CA$30)/($CB$30-$BZ$30)*(($GT6-$BZ$30)^4-($GT6-$CB$30)^4)+($CC$30-$CA$30)/(6*$BZ$13*$BZ$19)*($GT6-$CB$30)^3,IF($GT6>=$BZ$30,-1/(24*$BZ$13*$BZ$19)*($CC$30-$CA$30)/($CB$30-$BZ$30)*($GT6-$BZ$30)^4,0))))) -> --- | EZ6: =IF($BZ$30=$CB$30,"---",IF(AND($BZ$30="",$CA$30="",$CB$30="",$CC$30=""),"---",(IF($GT6>=$CB$30,$CA$30/(24*$BZ$13*$BZ$19)*(($GT6-$BZ$30)^4-($GT6-$CB$30)^4),IF($GT6>=$BZ$30,$CA$30/(24*$BZ$13*$BZ$19)*($GT6-$BZ$30)^4,0)))+(IF($GT6>=$CB$30,1/(120*$BZ$13*$BZ$19)*($CC$30-$CA$30)/($CB$30-$BZ$30)*(($GT6-$BZ$30)^5-($GT6-$CB$30)^5)-($CC$30-$CA$30)/(24*$BZ$13*$BZ$19)*($GT6-$CB$30)^4,IF($GT6>=$BZ$30,1/(120*$BZ$13*$BZ$19)*($CC$30-$CA$30)/($CB$30-$BZ$30)*($GT6-$BZ$30)^5,0))))) -> --- | FQ6: =-$CB$35+-$CB$36+-$CB$37+-$CB$38+-$CB$39+-$CB$40 -> -160 | FR6: =-$CB$35*($BZ$18-$BZ$35)+-$CB$36*($BZ$18-$BZ$36)+-$CB$37*($BZ$18-$BZ$37)+-$CB$38*($BZ$18-$BZ$38)+-$CB$39*($BZ$18-$BZ$39)+-$CB$40*($BZ$18-$BZ$40) -> -320 | FS6: =-$CB$35*($BZ$18-$BZ$35)^2/(2*$BZ$13*$BZ$19)+-$CB$36*($BZ$18-$BZ$36)^2/(2*$BZ$13*$BZ$19)+-$CB$37*($BZ$18-$BZ$37)^2/(2*$BZ$13*$BZ$19)+-$CB$38*($BZ$18-$BZ$38)^2/(2*$BZ$13*$BZ$19)+-$CB$39*($BZ$18-$BZ$39)^2/(2*$BZ$13*$BZ$19)+-$CB$40*($BZ$18-$BZ$40)^2/(2*$BZ$13*$BZ$19) -> -1e-07 | FT6: =$CB$35*($BZ$18-$BZ$35)^3/(6*$BZ$13*$BZ$19)+$CB$36*($BZ$18-$BZ$36)^3/(6*$BZ$13*$BZ$19)+$CB$37*($BZ$18-$BZ$37)^3/(6*$BZ$13*$BZ$19)+$CB$38*($BZ$18-$BZ$38)^3/(6*$BZ$13*$BZ$19)+$CB$39*($BZ$18-$BZ$39)^3/(6*$BZ$13*$BZ$19)+$CB$40*($BZ$18-$BZ$40)^3/(6*$BZ$13*$BZ$19) -> 6.666666667e-08 | FU6: =IF($GT6>$BZ$35,-$CB$35,0)+IF($GT6>$BZ$36,-$CB$36,0)+IF($GT6>$BZ$37,-$CB$37,0)+IF($GT6>$BZ$38,-$CB$38,0)+IF($GT6>$BZ$39,-$CB$39,0)+IF($GT6>$BZ$40,-$CB$40,0) -> 0 | FV6: =IF($GT6>$BZ$35,-$CB$35*($GT6-$BZ$35),0)+IF($GT6>$BZ$36,-$CB$36*($GT6-$BZ$36),0)+IF($GT6>$BZ$37,-$CB$37*($GT6-$BZ$37),0)+IF($GT6>$BZ$38,-$CB$38*($GT6-$BZ$38),0)+IF($GT6>$BZ$39,-$CB$39*($GT6-$BZ$39),0)+IF($GT6>$BZ$40,-$CB$40*($GT6-$BZ$40),0) -> 0 | FW6: =IF($GT6>$BZ$35,-$CB$35*($GT6-$BZ$35)^2/(2*$BZ$13*$BZ$19),0)+IF($GT6>$BZ$36,-$CB$36*($GT6-$BZ$36)^2/(2*$BZ$13*$BZ$19),0)+IF($GT6>$BZ$37,-$CB$37*($GT6-$BZ$37)^2/(2*$BZ$13*$BZ$19),0)+IF($GT6>$BZ$38,-$CB$38*($GT6-$BZ$38)^2/(2*$BZ$13*$BZ$19),0)+IF($GT6>$BZ$39,-$CB$39*($GT6-$BZ$39)^2/(2*$BZ$13*$BZ$19),0)+IF($GT6>$BZ$40,-$CB$40*($GT6-$BZ$40)^2/(2*$BZ$13*$BZ$19),0) -> 0 | FX6: =IF($GT6>$BZ$35,$CB$35*($GT6-$BZ$35)^3/(6*$BZ$13*$BZ$19),0)+IF($GT6>$BZ$36,$CB$36*($GT6-$BZ$36)^3/(6*$BZ$13*$BZ$19),0)+IF($GT6>$BZ$37,$CB$37*($GT6-$BZ$37)^3/(6*$BZ$13*$BZ$19),0)+IF($GT6>$BZ$38,$CB$38*($GT6-$BZ$38)^3/(6*$BZ$13*$BZ$19),0)+IF($GT6>$BZ$39,$CB$39*($GT6-$BZ$39)^3/(6*$BZ$13*$BZ$19),0)+IF($GT6>$BZ$40,$CB$40*($GT6-$BZ$40)^3/(6*$BZ$13*$BZ$19),0) -> 0 | FY6: =0+0+0+0 -> 0 | FZ6: =-$CB$52+-$CB$53+-$CB$54+-$CB$55+-CB56+-CB57 -> 0 | GA6: =-$CB$52*($BZ$18-$FZ$19)/($BZ$13*$BZ$19)+-$CB$53*($BZ$18-$FZ$20)/($BZ$13*$BZ$19)+-$CB$54*($BZ$18-$FZ$21)/($BZ$13*$BZ$19)+-$CB$55*($BZ$18-$FZ$22)/($BZ$13*$BZ$19)+-$CB$56*($BZ$18-$FZ$23)/($BZ$13*$BZ$19)+-$CB$57*($BZ$18-$FZ$24)/($BZ$13*$BZ$19) -> 0 | GB6: =$CB$52*($BZ$18-$FZ$19)^2/(2*$BZ$13*$BZ$19)+$CB$53*($BZ$18-$FZ$20)^2/(2*$BZ$13*$BZ$19)+$CB$54*($BZ$18-$FZ$21)^2/(2*$BZ$13*$BZ$19)+$CB$55*($BZ$18-$FZ$22)^2/(2*$BZ$13*$BZ$19)+$CB$56*($BZ$18-$FZ$23)^2/(2*$BZ$13*$BZ$19)+$CB$57*($BZ$18-$FZ$24)^2/(2*$BZ$13*$BZ$19) -> 0 | GC6: =IF($GT6>=IF($FZ$19=$BZ$18,$FZ$19+0.000000001,$FZ$19),0,0)+IF($GT6>=IF($FZ$20=$BZ$18,$FZ$20+0.000000001,$FZ$20),0,0)+IF($GT6>=IF($FZ$21=$BZ$18,$FZ$21+0.000000001,$FZ$21),0,0)+IF($GT6>=IF($FZ$22=$BZ$18,$FZ$22+0.000000001,$FZ$22),0,0)+IF($GT6>=IF($FZ$23=$BZ$18,$FZ$23+0.000000001,$FZ$23),0,0)+IF($GT6>=IF($FZ$24=$BZ$18,$FZ$24+0.000000001,$FZ$24),0,0) -> 0 | GD6: =IF($GT6>=IF($FZ$19=$BZ$18,$FZ$19+0.000000001,$FZ$19),-$CB$52,0)+IF($GT6>=IF($FZ$20=$BZ$18,$FZ$20+0.000000001,$FZ$20),-$CB$53,0)+IF($GT6>=IF($FZ$21=$BZ$18,$FZ$21+0.000000001,$FZ$21),-$CB$54,0)+IF($GT6>=IF($FZ$22=$BZ$18,$FZ$22+0.000000001,$FZ$22),-$CB$55,0)+IF($GT6>=IF($FZ$23=$BZ$18,$FZ$23+0.000000001,$FZ$23),-$CB$56,0)+IF($GT6>=IF($FZ$24=$BZ$18,$FZ$24+0.000000001,$FZ$24),-$CB$57,0) -> 0 | GE6: =IF($GT6>=IF($FZ$19=$BZ$18,$FZ$19+0.000000001,$FZ$19),-$CB$52*($GT6-$FZ$19)/($BZ$13*$BZ$19),0)+IF($GT6>=IF($FZ$20=$BZ$18,$FZ$20+0.000000001,$FZ$20),-$CB$53*($GT6-$FZ$20)/($BZ$13*$BZ$19),0)+IF($GT6>=IF($FZ$21=$BZ$18,$FZ$21+0.000000001,$FZ$21),-$CB$54*($GT6-$FZ$21)/($BZ$13*$BZ$19),0)+IF($GT6>=IF($FZ$22=$BZ$18,$FZ$22+0.000000001,$FZ$22),-$CB$55*($GT6-$FZ$22)/($BZ$13*$BZ$19),0)+IF($GT6>=IF($FZ$23=$BZ$18,$FZ$23+0.000000001,$FZ$23),-$CB$56*($GT6-$FZ$23)/($BZ$13*$BZ$19),0)+IF($GT6>=IF($FZ$24=$BZ$18,$FZ$24+0.000000001,$FZ$24),-$CB$57*($GT6-$FZ$24)/($BZ$13*$BZ$19),0) -> 0 | GF6: =IF($GT6>=IF($FZ$19=$BZ$18,$FZ$19+0.000000001,$FZ$19),$CB$52*($GT6-$FZ$19)^2/(2*$BZ$13*$BZ$19),0)+IF($GT6>=IF($FZ$20=$BZ$18,$FZ$20+0.000000001,$FZ$20),$CB$53*($GT6-$FZ$20)^2/(2*$BZ$13*$BZ$19),0)+IF($GT6>=IF($FZ$21=$BZ$18,$FZ$21+0.000000001,$FZ$21),$CB$54*($GT6-$FZ$21)^2/(2*$BZ$13*$BZ$19),0)+IF($GT6>=IF($FZ$22=$BZ$18,$FZ$22+0.000000001,$FZ$22),$CB$55*($GT6-$FZ$22)^2/(2*$BZ$13*$BZ$19),0)+IF($GT6>=IF($FZ$23=$BZ$18,$FZ$23+0.000000001,$FZ$23),$CB$56*($GT6-$FZ$23)^2/(2*$BZ$13*$BZ$19),0)+IF($GT6>=IF($FZ$24=$BZ$18,$FZ$24+0.000000001,$FZ$24),$CB$57*($GT6-$FZ$24)^2/(2*$BZ$13*$BZ$19),0) -> 0 | GG6: =SUM(CW6,DE6,DM6,DU6,EC6,EK6,ES6,FA6,FI6,FQ6,FY6) -> -424 | GH6: -848 | GI6: -3.2e-07 | GJ6: 2.866666667e-07 | GK6: 0 | GL6: 0 | GM6: 0 | GN6: 0 | GO6: =-12*$BZ$13*$BZ$19/$BZ$18^3*$GJ6-6*$BZ$13*$BZ$19/$BZ$18^2*$GI6 -> 212 | GP6: =6*$BZ$13*$BZ$19/$BZ$18^2*$GJ6+2*$BZ$13*$BZ$19/$BZ$18*$GI6 -> -168 | GQ6: =0 -> 0 | GR6: =0 -> 0 | GS6: =$GP6+$GO6*$GT6+$GL6 -> -168 | GT6: =0 -> 0 | HF6: 4 | HK6: Iy = | HL6: =VLOOKUP($HL$4,$HE$12:$HI$805,5,FALSE) -> 2343.38 | HM6: cm^4
H7: Beam Details | BY7: Input Data: | CD7: 5 | CN7: M5 = | CO7: =$DW$59 -> -423.0596899 | CP7: kN-m | CQ7: R5 = | CR7: =$DZ$59 -> 663.1260461 | CS7: kN | CV7: Span #1 FEM(R): | CW7: =$CW$6 -> -264 | CX7: =$CX$6 -> -528 | CY7: =$CY$6 -> -2.2e-07 | CZ7: =$CZ$6 -> 2.2e-07 | DA7: =IF($BZ$21=0,"---",IF($GT7=$BZ$18,-$BZ$21*($GT7-($GT7-$BZ$18)),IF($GT7>=0,-$BZ$21*$GT7,0))) -> -264 | DB7: =IF($BZ$21=0,"---",IF($GT7=$BZ$18,-$BZ$21*($GT7^2-($GT7-$BZ$18)^2)/2,IF($GT7>=0,-$BZ$21*$GT7^2/2,0))) -> -528 | DC7: =IF($BZ$21=0,"---",IF($GT7=$BZ$18,-$BZ$21*($GT7^3-($GT7-$BZ$18)^3)/(6*$BZ$13*$BZ$19),IF($GT7>=0,-$BZ$21*$GT7^3/(6*$BZ$13*$BZ$19),0))) -> -2.2e-07 | DD7: =IF($BZ$21=0,"---",IF($GT7=$BZ$18,$BZ$21*($GT7^4-($GT7-$BZ$18)^4)/(24*$BZ$13*$BZ$19),IF($GT7>=0,$BZ$21*$GT7^4/(24*$BZ$13*$BZ$19),0))) -> 2.2e-07 | DE7: =$DE$6 -> --- | DF7: =$DF$6 -> --- | DG7: =$DG$6 -> --- | DH7: =$DH$6 -> --- | DI7: =IF($BZ$25=$CB$25,"---",IF(AND($BZ$25="",$CA$25="",$CB$25="",$CC$25=""),"---",(IF($GT7>=$CB$25,-$CA$25*($GT7-$BZ$25-($GT7-$CB$25)),IF($GT7>=$BZ$25,-$CA$25*($GT7-$BZ$25),0)))+(IF($GT7>=$CB$25,-1/2*($CC$25-$CA$25)/($CB$25-$BZ$25)*(($GT7-$BZ$25)^2-($GT7-$CB$25)^2)+($CC$25-$CA$25)*($GT7-$CB$25),IF($GT7>=$BZ$25,-1/2*($CC$25-$CA$25)/($CB$25-$BZ$25)*($GT7-$BZ$25)^2,0))))) -> --- | DJ7: =IF($BZ$25=$CB$25,"---",IF(AND($BZ$25="",$CA$25="",$CB$25="",$CC$25=""),"---",(IF($GT7>=$CB$25,-$CA$25/2*(($GT7-$BZ$25)^2-($GT7-$CB$25)^2),IF($GT7>=$BZ$25,-$CA$25/2*($GT7-$BZ$25)^2,0)))+(IF($GT7>=$CB$25,-1/6*($CC$25-$CA$25)/($CB$25-$BZ$25)*(($GT7-$BZ$25)^3-($GT7-$CB$25)^3)+($CC$25-$CA$25)/2*($GT7-$CB$25)^2,IF($GT7>=$BZ$25,-1/6*($CC$25-$CA$25)/($CB$25-$BZ$25)*($GT7-$BZ$25)^3,0))))) -> --- | DK7: =IF($BZ$25=$CB$25,"---",IF(AND($BZ$25="",$CA$25="",$CB$25="",$CC$25=""),"---",(IF($GT7>=$CB$25,-$CA$25/(6*$BZ$13*$BZ$19)*(($GT7-$BZ$25)^3-($GT7-$CB$25)^3),IF($GT7>=$BZ$25,-$CA$25/(6*$BZ$13*$BZ$19)*($GT7-$BZ$25)^3,0)))+(IF($GT7>=$CB$25,-1/(24*$BZ$13*$BZ$19)*($CC$25-$CA$25)/($CB$25-$BZ$25)*(($GT7-$BZ$25)^4-($GT7-$CB$25)^4)+($CC$25-$CA$25)/(6*$BZ$13*$BZ$19)*($GT7-$CB$25)^3,IF($GT7>=$BZ$25,-1/(24*$BZ$13*$BZ$19)*($CC$25-$CA$25)/($CB$25-$BZ$25)*($GT7-$BZ$25)^4,0))))) -> --- | DL7: =IF($BZ$25=$CB$25,"---",IF(AND($BZ$25="",$CA$25="",$CB$25="",$CC$25=""),"---",(IF($GT7>=$CB$25,$CA$25/(24*$BZ$13*$BZ$19)*(($GT7-$BZ$25)^4-($GT7-$CB$25)^4),IF($GT7>=$BZ$25,$CA$25/(24*$BZ$13*$BZ$19)*($GT7-$BZ$25)^4,0)))+(IF($GT7>=$CB$25,1/(120*$BZ$13*$BZ$19)*($CC$25-$CA$25)/($CB$25-$BZ$25)*(($GT7-$BZ$25)^5-($GT7-$CB$25)^5)-($CC$25-$CA$25)/(24*$BZ$13*$BZ$19)*($GT7-$CB$25)^4,IF($GT7>=$BZ$25,1/(120*$BZ$13*$BZ$19)*($CC$25-$CA$25)/($CB$25-$BZ$25)*($GT7-$BZ$25)^5,0))))) -> --- | DM7: =$DM$6 -> --- | DN7: =$DN$6 -> --- | DO7: =$DO$6 -> --- | DP7: =$DP$6 -> --- | DQ7: =IF($BZ$26=$CB$26,"---",IF(AND($BZ$26="",$CA$26="",$CB$26="",$CC$26=""),"---",(IF($GT7>=$CB$26,-$CA$26*($GT7-$BZ$26-($GT7-$CB$26)),IF($GT7>=$BZ$26,-$CA$26*($GT7-$BZ$26),0)))+(IF($GT7>=$CB$26,-1/2*($CC$26-$CA$26)/($CB$26-$BZ$26)*(($GT7-$BZ$26)^2-($GT7-$CB$26)^2)+($CC$26-$CA$26)*($GT7-$CB$26),IF($GT7>=$BZ$26,-1/2*($CC$26-$CA$26)/($CB$26-$BZ$26)*($GT7-$BZ$26)^2,0))))) -> --- | DR7: =IF($BZ$26=$CB$26,"---",IF(AND($BZ$26="",$CA$26="",$CB$26="",$CC$26=""),"---",(IF($GT7>=$CB$26,-$CA$26/2*(($GT7-$BZ$26)^2-($GT7-$CB$26)^2),IF($GT7>=$BZ$26,-$CA$26/2*($GT7-$BZ$26)^2,0)))+(IF($GT7>=$CB$26,-1/6*($CC$26-$CA$26)/($CB$26-$BZ$26)*(($GT7-$BZ$26)^3-($GT7-$CB$26)^3)+($CC$26-$CA$26)/2*($GT7-$CB$26)^2,IF($GT7>=$BZ$26,-1/6*($CC$26-$CA$26)/($CB$26-$BZ$26)*($GT7-$BZ$26)^3,0))))) -> --- | DS7: =IF($BZ$26=$CB$26,"---",IF(AND($BZ$26="",$CA$26="",$CB$26="",$CC$26=""),"---",(IF($GT7>=$CB$26,-$CA$26/(6*$BZ$13*$BZ$19)*(($GT7-$BZ$26)^3-($GT7-$CB$26)^3),IF($GT7>=$BZ$26,-$CA$26/(6*$BZ$13*$BZ$19)*($GT7-$BZ$26)^3,0)))+(IF($GT7>=$CB$26,-1/(24*$BZ$13*$BZ$19)*($CC$26-$CA$26)/($CB$26-$BZ$26)*(($GT7-$BZ$26)^4-($GT7-$CB$26)^4)+($CC$26-$CA$26)/(6*$BZ$13*$BZ$19)*($GT7-$CB$26)^3,IF($GT7>=$BZ$26,-1/(24*$BZ$13*$BZ$19)*($CC$26-$CA$26)/($CB$26-$BZ$26)*($GT7-$BZ$26)^4,0))))) -> --- | DT7: =IF($BZ$26=$CB$26,"---",IF(AND($BZ$26="",$CA$26="",$CB$26="",$CC$26=""),"---",(IF($GT7>=$CB$26,$CA$26/(24*$BZ$13*$BZ$19)*(($GT7-$BZ$26)^4-($GT7-$CB$26)^4),IF($GT7>=$BZ$26,$CA$26/(24*$BZ$13*$BZ$19)*($GT7-$BZ$26)^4,0)))+(IF($GT7>=$CB$26,1/(120*$BZ$13*$BZ$19)*($CC$26-$CA$26)/($CB$26-$BZ$26)*(($GT7-$BZ$26)^5-($GT7-$CB$26)^5)-($CC$26-$CA$26)/(24*$BZ$13*$BZ$19)*($GT7-$CB$26)^4,IF($GT7>=$BZ$26,1/(120*$BZ$13*$BZ$19)*($CC$26-$CA$26)/($CB$26-$BZ$26)*($GT7-$BZ$26)^5,0))))) -> --- | DU7: =$DU$6 -> --- | DV7: =$DV$6 -> --- | DW7: =$DW$6 -> --- | DX7: =$DX$6 -> --- | DY7: =IF($BZ$27=$CB$27,"---",IF(AND($BZ$27="",$CA$27="",$CB$27="",$CC$27=""),"---",(IF($GT7>=$CB$27,-$CA$27*($GT7-$BZ$27-($GT7-$CB$27)),IF($GT7>=$BZ$27,-$CA$27*($GT7-$BZ$27),0)))+(IF($GT7>=$CB$27,-1/2*($CC$27-$CA$27)/($CB$27-$BZ$27)*(($GT7-$BZ$27)^2-($GT7-$CB$27)^2)+($CC$27-$CA$27)*($GT7-$CB$27),IF($GT7>=$BZ$27,-1/2*($CC$27-$CA$27)/($CB$27-$BZ$27)*($GT7-$BZ$27)^2,0))))) -> --- | DZ7: =IF($BZ$27=$CB$27,"---",IF(AND($BZ$27="",$CA$27="",$CB$27="",$CC$27=""),"---",(IF($GT7>=$CB$27,-$CA$27/2*(($GT7-$BZ$27)^2-($GT7-$CB$27)^2),IF($GT7>=$BZ$27,-$CA$27/2*($GT7-$BZ$27)^2,0)))+(IF($GT7>=$CB$27,-1/6*($CC$27-$CA$27)/($CB$27-$BZ$27)*(($GT7-$BZ$27)^3-($GT7-$CB$27)^3)+($CC$27-$CA$27)/2*($GT7-$CB$27)^2,IF($GT7>=$BZ$27,-1/6*($CC$27-$CA$27)/($CB$27-$BZ$27)*($GT7-$BZ$27)^3,0))))) -> --- | EA7: =IF($BZ$27=$CB$27,"---",IF(AND($BZ$27="",$CA$27="",$CB$27="",$CC$27=""),"---",(IF($GT7>=$CB$27,-$CA$27/(6*$BZ$13*$BZ$19)*(($GT7-$BZ$27)^3-($GT7-$CB$27)^3),IF($GT7>=$BZ$27,-$CA$27/(6*$BZ$13*$BZ$19)*($GT7-$BZ$27)^3,0)))+(IF($GT7>=$CB$27,-1/(24*$BZ$13*$BZ$19)*($CC$27-$CA$27)/($CB$27-$BZ$27)*(($GT7-$BZ$27)^4-($GT7-$CB$27)^4)+($CC$27-$CA$27)/(6*$BZ$13*$BZ$19)*($GT7-$CB$27)^3,IF($GT7>=$BZ$27,-1/(24*$BZ$13*$BZ$19)*($CC$27-$CA$27)/($CB$27-$BZ$27)*($GT7-$BZ$27)^4,0))))) -> --- | EB7: =IF($BZ$27=$CB$27,"---",IF(AND($BZ$27="",$CA$27="",$CB$27="",$CC$27=""),"---",(IF($GT7>=$CB$27,$CA$27/(24*$BZ$13*$BZ$19)*(($GT7-$BZ$27)^4-($GT7-$CB$27)^4),IF($GT7>=$BZ$27,$CA$27/(24*$BZ$13*$BZ$19)*($GT7-$BZ$27)^4,0)))+(IF($GT7>=$CB$27,1/(120*$BZ$13*$BZ$19)*($CC$27-$CA$27)/($CB$27-$BZ$27)*(($GT7-$BZ$27)^5-($GT7-$CB$27)^5)-($CC$27-$CA$27)/(24*$BZ$13*$BZ$19)*($GT7-$CB$27)^4,IF($GT7>=$BZ$27,1/(120*$BZ$13*$BZ$19)*($CC$27-$CA$27)/($CB$27-$BZ$27)*($GT7-$BZ$27)^5,0))))) -> --- | EC7: =$EC$6 -> --- | ED7: =$ED$6 -> --- | EE7: =$EE$6 -> --- | EF7: =$EF$6 -> --- | EG7: =IF($BZ$28=$CB$28,"---",IF(AND($BZ$28="",$CA$28="",$CB$28="",$CC$28=""),"---",(IF($GT7>=$CB$28,-$CA$28*($GT7-$BZ$28-($GT7-$CB$28)),IF($GT7>=$BZ$28,-$CA$28*($GT7-$BZ$28),0)))+(IF($GT7>=$CB$28,-1/2*($CC$28-$CA$28)/($CB$28-$BZ$28)*(($GT7-$BZ$28)^2-($GT7-$CB$28)^2)+($CC$28-$CA$28)*($GT7-$CB$28),IF($GT7>=$BZ$28,-1/2*($CC$28-$CA$28)/($CB$28-$BZ$28)*($GT7-$BZ$28)^2,0))))) -> --- | EH7: =IF($BZ$28=$CB$28,"---",IF(AND($BZ$28="",$CA$28="",$CB$28="",$CC$28=""),"---",(IF($GT7>=$CB$28,-$CA$28/2*(($GT7-$BZ$28)^2-($GT7-$CB$28)^2),IF($GT7>=$BZ$28,-$CA$28/2*($GT7-$BZ$28)^2,0)))+(IF($GT7>=$CB$28,-1/6*($CC$28-$CA$28)/($CB$28-$BZ$28)*(($GT7-$BZ$28)^3-($GT7-$CB$28)^3)+($CC$28-$CA$28)/2*($GT7-$CB$28)^2,IF($GT7>=$BZ$28,-1/6*($CC$28-$CA$28)/($CB$28-$BZ$28)*($GT7-$BZ$28)^3,0))))) -> --- | EI7: =IF($BZ$28=$CB$28,"---",IF(AND($BZ$28="",$CA$28="",$CB$28="",$CC$28=""),"---",(IF($GT7>=$CB$28,-$CA$28/(6*$BZ$13*$BZ$19)*(($GT7-$BZ$28)^3-($GT7-$CB$28)^3),IF($GT7>=$BZ$28,-$CA$28/(6*$BZ$13*$BZ$19)*($GT7-$BZ$28)^3,0)))+(IF($GT7>=$CB$28,-1/(24*$BZ$13*$BZ$19)*($CC$28-$CA$28)/($CB$28-$BZ$28)*(($GT7-$BZ$28)^4-($GT7-$CB$28)^4)+($CC$28-$CA$28)/(6*$BZ$13*$BZ$19)*($GT7-$CB$28)^3,IF($GT7>=$BZ$28,-1/(24*$BZ$13*$BZ$19)*($CC$28-$CA$28)/($CB$28-$BZ$28)*($GT7-$BZ$28)^4,0))))) -> --- | EJ7: =IF($BZ$28=$CB$28,"---",IF(AND($BZ$28="",$CA$28="",$CB$28="",$CC$28=""),"---",(IF($GT7>=$CB$28,$CA$28/(24*$BZ$13*$BZ$19)*(($GT7-$BZ$28)^4-($GT7-$CB$28)^4),IF($GT7>=$BZ$28,$CA$28/(24*$BZ$13*$BZ$19)*($GT7-$BZ$28)^4,0)))+(IF($GT7>=$CB$28,1/(120*$BZ$13*$BZ$19)*($CC$28-$CA$28)/($CB$28-$BZ$28)*(($GT7-$BZ$28)^5-($GT7-$CB$28)^5)-($CC$28-$CA$28)/(24*$BZ$13*$BZ$19)*($GT7-$CB$28)^4,IF($GT7>=$BZ$28,1/(120*$BZ$13*$BZ$19)*($CC$28-$CA$28)/($CB$28-$BZ$28)*($GT7-$BZ$28)^5,0))))) -> --- | EK7: =$EK$6 -> --- | EL7: =$EL$6 -> --- | EM7: =$EM$6 -> --- | EN7: =$EN$6 -> --- | EO7: =IF($BZ$29=$CB$29,"---",IF(AND($BZ$29="",$CA$29="",$CB$29="",$CC$29=""),"---",(IF($GT7>=$CB$29,-$CA$29*($GT7-$BZ$29-($GT7-$CB$29)),IF($GT7>=$BZ$29,-$CA$29*($GT7-$BZ$29),0)))+(IF($GT7>=$CB$29,-1/2*($CC$29-$CA$29)/($CB$29-$BZ$29)*(($GT7-$BZ$29)^2-($GT7-$CB$29)^2)+($CC$29-$CA$29)*($GT7-$CB$29),IF($GT7>=$BZ$29,-1/2*($CC$29-$CA$29)/($CB$29-$BZ$29)*($GT7-$BZ$29)^2,0))))) -> --- | EP7: =IF($BZ$29=$CB$29,"---",IF(AND($BZ$29="",$CA$29="",$CB$29="",$CC$29=""),"---",(IF($GT7>=$CB$29,-$CA$29/2*(($GT7-$BZ$29)^2-($GT7-$CB$29)^2),IF($GT7>=$BZ$29,-$CA$29/2*($GT7-$BZ$29)^2,0)))+(IF($GT7>=$CB$29,-1/6*($CC$29-$CA$29)/($CB$29-$BZ$29)*(($GT7-$BZ$29)^3-($GT7-$CB$29)^3)+($CC$29-$CA$29)/2*($GT7-$CB$29)^2,IF($GT7>=$BZ$29,-1/6*($CC$29-$CA$29)/($CB$29-$BZ$29)*($GT7-$BZ$29)^3,0))))) -> --- | EQ7: =IF($BZ$29=$CB$29,"---",IF(AND($BZ$29="",$CA$29="",$CB$29="",$CC$29=""),"---",(IF($GT7>=$CB$29,-$CA$29/(6*$BZ$13*$BZ$19)*(($GT7-$BZ$29)^3-($GT7-$CB$29)^3),IF($GT7>=$BZ$29,-$CA$29/(6*$BZ$13*$BZ$19)*($GT7-$BZ$29)^3,0)))+(IF($GT7>=$CB$29,-1/(24*$BZ$13*$BZ$19)*($CC$29-$CA$29)/($CB$29-$BZ$29)*(($GT7-$BZ$29)^4-($GT7-$CB$29)^4)+($CC$29-$CA$29)/(6*$BZ$13*$BZ$19)*($GT7-$CB$29)^3,IF($GT7>=$BZ$29,-1/(24*$BZ$13*$BZ$19)*($CC$29-$CA$29)/($CB$29-$BZ$29)*($GT7-$BZ$29)^4,0))))) -> --- | ER7: =IF($BZ$29=$CB$29,"---",IF(AND($BZ$29="",$CA$29="",$CB$29="",$CC$29=""),"---",(IF($GT7>=$CB$29,$CA$29/(24*$BZ$13*$BZ$19)*(($GT7-$BZ$29)^4-($GT7-$CB$29)^4),IF($GT7>=$BZ$29,$CA$29/(24*$BZ$13*$BZ$19)*($GT7-$BZ$29)^4,0)))+(IF($GT7>=$CB$29,1/(120*$BZ$13*$BZ$19)*($CC$29-$CA$29)/($CB$29-$BZ$29)*(($GT7-$BZ$29)^5-($GT7-$CB$29)^5)-($CC$29-$CA$29)/(24*$BZ$13*$BZ$19)*($GT7-$CB$29)^4,IF($GT7>=$BZ$29,1/(120*$BZ$13*$BZ$19)*($CC$29-$CA$29)/($CB$29-$BZ$29)*($GT7-$BZ$29)^5,0))))) -> --- | ES7: =$ES$6 -> --- | ET7: =$ET$6 -> --- | EU7: =$EU$6 -> --- | EV7: =$EV$6 -> --- | EW7: =IF($BZ$30=$CB$30,"---",IF(AND($BZ$30="",$CA$30="",$CB$30="",$CC$30=""),"---",(IF($GT7>=$CB$30,-$CA$30*($GT7-$BZ$30-($GT7-$CB$30)),IF($GT7>=$BZ$30,-$CA$30*($GT7-$BZ$30),0)))+(IF($GT7>=$CB$30,-1/2*($CC$30-$CA$30)/($CB$30-$BZ$30)*(($GT7-$BZ$30)^2-($GT7-$CB$30)^2)+($CC$30-$CA$30)*($GT7-$CB$30),IF($GT7>=$BZ$30,-1/2*($CC$30-$CA$30)/($CB$30-$BZ$30)*($GT7-$BZ$30)^2,0))))) -> --- | EX7: =IF($BZ$30=$CB$30,"---",IF(AND($BZ$30="",$CA$30="",$CB$30="",$CC$30=""),"---",(IF($GT7>=$CB$30,-$CA$30/2*(($GT7-$BZ$30)^2-($GT7-$CB$30)^2),IF($GT7>=$BZ$30,-$CA$30/2*($GT7-$BZ$30)^2,0)))+(IF($GT7>=$CB$30,-1/6*($CC$30-$CA$30)/($CB$30-$BZ$30)*(($GT7-$BZ$30)^3-($GT7-$CB$30)^3)+($CC$30-$CA$30)/2*($GT7-$CB$30)^2,IF($GT7>=$BZ$30,-1/6*($CC$30-$CA$30)/($CB$30-$BZ$30)*($GT7-$BZ$30)^3,0))))) -> --- | EY7: =IF($BZ$30=$CB$30,"---",IF(AND($BZ$30="",$CA$30="",$CB$30="",$CC$30=""),"---",(IF($GT7>=$CB$30,-$CA$30/(6*$BZ$13*$BZ$19)*(($GT7-$BZ$30)^3-($GT7-$CB$30)^3),IF($GT7>=$BZ$30,-$CA$30/(6*$BZ$13*$BZ$19)*($GT7-$BZ$30)^3,0)))+(IF($GT7>=$CB$30,-1/(24*$BZ$13*$BZ$19)*($CC$30-$CA$30)/($CB$30-$BZ$30)*(($GT7-$BZ$30)^4-($GT7-$CB$30)^4)+($CC$30-$CA$30)/(6*$BZ$13*$BZ$19)*($GT7-$CB$30)^3,IF($GT7>=$BZ$30,-1/(24*$BZ$13*$BZ$19)*($CC$30-$CA$30)/($CB$30-$BZ$30)*($GT7-$BZ$30)^4,0))))) -> --- | EZ7: =IF($BZ$30=$CB$30,"---",IF(AND($BZ$30="",$CA$30="",$CB$30="",$CC$30=""),"---",(IF($GT7>=$CB$30,$CA$30/(24*$BZ$13*$BZ$19)*(($GT7-$BZ$30)^4-($GT7-$CB$30)^4),IF($GT7>=$BZ$30,$CA$30/(24*$BZ$13*$BZ$19)*($GT7-$BZ$30)^4,0)))+(IF($GT7>=$CB$30,1/(120*$BZ$13*$BZ$19)*($CC$30-$CA$30)/($CB$30-$BZ$30)*(($GT7-$BZ$30)^5-($GT7-$CB$30)^5)-($CC$30-$CA$30)/(24*$BZ$13*$BZ$19)*($GT7-$CB$30)^4,IF($GT7>=$BZ$30,1/(120*$BZ$13*$BZ$19)*($CC$30-$CA$30)/($CB$30-$BZ$30)*($GT7-$BZ$30)^5,0))))) -> --- | FQ7: =$FQ$6 -> -160 | FR7: =$FR$6 -> -320 | FS7: =$FS$6 -> -1e-07 | FT7: =$FT$6 -> 6.666666667e-08 | FU7: =IF($GT7>$BZ$35,-$CB$35,0)+IF($GT7>$BZ$36,-$CB$36,0)+IF($GT7>$BZ$37,-$CB$37,0)+IF($GT7>$BZ$38,-$CB$38,0)+IF($GT7>$BZ$39,-$CB$39,0)+IF($GT7>$BZ$40,-$CB$40,0) -> -160 | FV7: =IF($GT7>$BZ$35,-$CB$35*($GT7-$BZ$35),0)+IF($GT7>$BZ$36,-$CB$36*($GT7-$BZ$36),0)+IF($GT7>$BZ$37,-$CB$37*($GT7-$BZ$37),0)+IF($GT7>$BZ$38,-$CB$38*($GT7-$BZ$38),0)+IF($GT7>$BZ$39,-$CB$39*($GT7-$BZ$39),0)+IF($GT7>$BZ$40,-$CB$40*($GT7-$BZ$40),0) -> -320 | FW7: =IF($GT7>$BZ$35,-$CB$35*($GT7-$BZ$35)^2/(2*$BZ$13*$BZ$19),0)+IF($GT7>$BZ$36,-$CB$36*($GT7-$BZ$36)^2/(2*$BZ$13*$BZ$19),0)+IF($GT7>$BZ$37,-$CB$37*($GT7-$BZ$37)^2/(2*$BZ$13*$BZ$19),0)+IF($GT7>$BZ$38,-$CB$38*($GT7-$BZ$38)^2/(2*$BZ$13*$BZ$19),0)+IF($GT7>$BZ$39,-$CB$39*($GT7-$BZ$39)^2/(2*$BZ$13*$BZ$19),0)+IF($GT7>$BZ$40,-$CB$40*($GT7-$BZ$40)^2/(2*$BZ$13*$BZ$19),0) -> -1e-07 | FX7: =IF($GT7>$BZ$35,$CB$35*($GT7-$BZ$35)^3/(6*$BZ$13*$BZ$19),0)+IF($GT7>$BZ$36,$CB$36*($GT7-$BZ$36)^3/(6*$BZ$13*$BZ$19),0)+IF($GT7>$BZ$37,$CB$37*($GT7-$BZ$37)^3/(6*$BZ$13*$BZ$19),0)+IF($GT7>$BZ$38,$CB$38*($GT7-$BZ$38)^3/(6*$BZ$13*$BZ$19),0)+IF($GT7>$BZ$39,$CB$39*($GT7-$BZ$39)^3/(6*$BZ$13*$BZ$19),0)+IF($GT7>$BZ$40,$CB$40*($GT7-$BZ$40)^3/(6*$BZ$13*$BZ$19),0) -> 6.666666668e-08 | FY7: =$FY$6 -> 0 | FZ7: =$FZ$6 -> 0 | GA7: =$GA$6 -> 0 | GB7: =$GB$6 -> 0 | GC7: =IF($GT7>=IF($FZ$19=$BZ$18,$FZ$19+0.000000001,$FZ$19),0,0)+IF($GT7>=IF($FZ$20=$BZ$18,$FZ$20+0.000000001,$FZ$20),0,0)+IF($GT7>=IF($FZ$21=$BZ$18,$FZ$21+0.000000001,$FZ$21),0,0)+IF($GT7>=IF($FZ$22=$BZ$18,$FZ$22+0.000000001,$FZ$22),0,0)+IF($GT7>=IF($FZ$23=$BZ$18,$FZ$23+0.000000001,$FZ$23),0,0)+IF($GT7>=IF($FZ$24=$BZ$18,$FZ$24+0.000000001,$FZ$24),0,0) -> 0 | GD7: =IF($GT7>=IF($FZ$19=$BZ$18,$FZ$19+0.000000001,$FZ$19),-$CB$52,0)+IF($GT7>=IF($FZ$20=$BZ$18,$FZ$20+0.000000001,$FZ$20),-$CB$53,0)+IF($GT7>=IF($FZ$21=$BZ$18,$FZ$21+0.000000001,$FZ$21),-$CB$54,0)+IF($GT7>=IF($FZ$22=$BZ$18,$FZ$22+0.000000001,$FZ$22),-$CB$55,0)+IF($GT7>=IF($FZ$23=$BZ$18,$FZ$23+0.000000001,$FZ$23),-$CB$56,0)+IF($GT7>=IF($FZ$24=$BZ$18,$FZ$24+0.000000001,$FZ$24),-$CB$57,0) -> 0 | GE7: =IF($GT7>=IF($FZ$19=$BZ$18,$FZ$19+0.000000001,$FZ$19),-$CB$52*($GT7-$FZ$19)/($BZ$13*$BZ$19),0)+IF($GT7>=IF($FZ$20=$BZ$18,$FZ$20+0.000000001,$FZ$20),-$CB$53*($GT7-$FZ$20)/($BZ$13*$BZ$19),0)+IF($GT7>=IF($FZ$21=$BZ$18,$FZ$21+0.000000001,$FZ$21),-$CB$54*($GT7-$FZ$21)/($BZ$13*$BZ$19),0)+IF($GT7>=IF($FZ$22=$BZ$18,$FZ$22+0.000000001,$FZ$22),-$CB$55*($GT7-$FZ$22)/($BZ$13*$BZ$19),0)+IF($GT7>=IF($FZ$23=$BZ$18,$FZ$23+0.000000001,$FZ$23),-$CB$56*($GT7-$FZ$23)/($BZ$13*$BZ$19),0)+IF($GT7>=IF($FZ$24=$BZ$18,$FZ$24+0.000000001,$FZ$24),-$CB$57*($GT7-$FZ$24)/($BZ$13*$BZ$19),0) -> 0 | GF7: =IF($GT7>=IF($FZ$19=$BZ$18,$FZ$19+0.000000001,$FZ$19),$CB$52*($GT7-$FZ$19)^2/(2*$BZ$13*$BZ$19),0)+IF($GT7>=IF($FZ$20=$BZ$18,$FZ$20+0.000000001,$FZ$20),$CB$53*($GT7-$FZ$20)^2/(2*$BZ$13*$BZ$19),0)+IF($GT7>=IF($FZ$21=$BZ$18,$FZ$21+0.000000001,$FZ$21),$CB$54*($GT7-$FZ$21)^2/(2*$BZ$13*$BZ$19),0)+IF($GT7>=IF($FZ$22=$BZ$18,$FZ$22+0.000000001,$FZ$22),$CB$55*($GT7-$FZ$22)^2/(2*$BZ$13*$BZ$19),0)+IF($GT7>=IF($FZ$23=$BZ$18,$FZ$23+0.000000001,$FZ$23),$CB$56*($GT7-$FZ$23)^2/(2*$BZ$13*$BZ$19),0)+IF($GT7>=IF($FZ$24=$BZ$18,$FZ$24+0.000000001,$FZ$24),$CB$57*($GT7-$FZ$24)^2/(2*$BZ$13*$BZ$19),0) -> 0 | GG7: =$GG$6 -> -424 | GH7: =$GH$6 -> -848 | GI7: =$GI$6 -> -3.2e-07 | GJ7: =$GJ$6 -> 2.866666667e-07 | GK7: =SUM(DA7,DI7,DQ7,DY7,EG7,EO7,EW7,FE7,FM7,FU7,GC7) -> -424 | GL7: =SUM(DB7,DJ7,DR7,DZ7,EH7,EP7,EX7,FF7,FN7,FV7,GD7) -> -848 | GM7: =SUM(DC7,DK7,DS7,EA7,EI7,EQ7,EY7,FG7,FO7,FW7,GE7) -> -3.2e-07 | GN7: =SUM(DD7,DL7,DT7,EB7,EJ7,ER7,EZ7,FH7,FP7,FX7,GF7) -> 2.866666667e-07 | GO7: =$GO$6 -> 212 | GP7: =$GP$6 -> -168 | GQ7: =$GQ$6 -> 0 | GR7: =$GR$6 -> 0 | GS7: =$GP7+$GO7*$GT7+$GL7 -> -168 | GT7: =$BZ$18+0.0000000001 -> 4 | HF7: 5
CN8: M6 = | CO8: =$DW$60 -> 15.27935602 | CP8: kN-m | CQ8: R6 = | CR8: =$DZ$60 -> 61.33219082 | CS8: kN | CV8: Span #2 FEM(L): | CW8: =IF($CD$21=0,"---",-$CD$21*$CD$18) -> -540 | CX8: =IF($CD$21=0,"---",-$CD$21*$CD$18^2/2) -> -1620 | CY8: =IF($CD$21=0,"---",-$CD$21*$CD$18^3/(6*$BZ$13*$CD$19)) -> -1.0125e-06 | CZ8: =IF($CD$21=0,"---",$CD$21*$CD$18^4/(24*$BZ$13*$CD$19)) -> 1.51875e-06 | DA8: =IF($CD$21=0,"---",IF($GT8=$CD$18,-$CD$21*($GT8-($GT8-$CD$18)),IF($GT8>=0,-$CD$21*$GT8,0))) -> 0 | DB8: =IF($CD$21=0,"---",IF($GT8=$CD$18,-$CD$21*($GT8^2-($GT8-$CD$18)^2)/2,IF($GT8>=0,-$CD$21*$GT8^2/2,0))) -> 0 | DC8: =IF($CD$21=0,"---",IF($GT8=$CD$18,-$CD$21*($GT8^3-($GT8-$CD$18)^3)/(6*$BZ$13*$CD$19),IF($GT8>=0,-$CD$21*$GT8^3/(6*$BZ$13*$CD$19),0))) -> 0 | DD8: =IF($CD$21=0,"---",IF($GT8=$CD$18,$CD$21*($GT8^4-($GT8-$CD$18)^4)/(24*$BZ$13*$CD$19),IF($GT8>=0,$CD$21*$GT8^4/(24*$BZ$13*$CD$19),0))) -> 0 | DE8: =IF($CD$25=$CF$25,"---",IF(AND($CD$25="",$CE$25="",$CF$25="",$CG$25=""),"---",(-$CE$25*($CD$18-$CD$25-($CD$18-$CF$25)))+(-1/2*($CG$25-$CE$25)/($CF$25-$CD$25)*(($CD$18-$CD$25)^2-($CD$18-$CF$25)^2)+($CG$25-$CE$25)*($CD$18-$CF$25)))) -> -300 | DF8: =IF($CD$25=$CF$25,"---",IF(AND($CD$25="",$CE$25="",$CF$25="",$CG$25=""),"---",(-$CE$25/2*(($CD$18-$CD$25)^2-($CD$18-$CF$25)^2))+(-1/6*($CG$25-$CE$25)/($CF$25-$CD$25)*(($CD$18-$CD$25)^3-($CD$18-$CF$25)^3)+($CG$25-$CE$25)/2*($CD$18-$CF$25)^2))) -> -1020 | DG8: =IF($CD$25=$CF$25,"---",IF(AND($CD$25="",$CE$25="",$CF$25="",$CG$25=""),"---",(-$CE$25/(6*$BZ$13*$CD$19)*(($CD$18-$CD$25)^3-($CD$18-$CF$25)^3))+(-1/(24*$BZ$13*$CD$19)*($CG$25-$CE$25)/($CF$25-$CD$25)*(($CD$18-$CD$25)^4-($CD$18-$CF$25)^4)+($CG$25-$CE$25)/(6*$BZ$13*$CD$19)*($CD$18-$CF$25)^3))) -> -5.765625e-07 | DH8: =IF($CD$25=$CF$25,"---",IF(AND($CD$25="",$CE$25="",$CF$25="",$CG$25=""),"---",($CE$25/(24*$BZ$13*$CD$19)*(($CD$18-$CD$25)^4-($CD$18-$CF$25)^4))+(1/(120*$BZ$13*$CD$19)*($CG$25-$CE$25)/($CF$25-$CD$25)*(($CD$18-$CD$25)^5-($CD$18-$CF$25)^5)-($CG$25-$CE$25)/(24*$BZ$13*$CD$19)*($CD$18-$CF$25)^4))) -> 7.334375e-07 | DI8: =IF($CD$25=$CF$25,"---",IF(AND($CD$25="",$CE$25="",$CF$25="",$CG$25=""),"---",(IF($GT8>=$CF$25,-$CE$25*($GT8-$CD$25-($GT8-$CF$25)),IF($GT8>=$CD$25,-$CE$25*($GT8-$CD$25),0)))+(IF($GT8>=$CF$25,-1/2*($CG$25-$CE$25)/($CF$25-$CD$25)*(($GT8-$CD$25)^2-($GT8-$CF$25)^2)+($CG$25-$CE$25)*($GT8-$CF$25),IF($GT8>=$CD$25,-1/2*($CG$25-$CE$25)/($CF$25-$CD$25)*($GT8-$CD$25)^2,0))))) -> 0 | DJ8: =IF($CD$25=$CF$25,"---",IF(AND($CD$25="",$CE$25="",$CF$25="",$CG$25=""),"---",(IF($GT8>=$CF$25,-$CE$25/2*(($GT8-$CD$25)^2-($GT8-$CF$25)^2),IF($GT8>=$CD$25,-$CE$25/2*($GT8-$CD$25)^2,0)))+(IF($GT8>=$CF$25,-1/6*($CG$25-$CE$25)/($CF$25-$CD$25)*(($GT8-$CD$25)^3-($GT8-$CF$25)^3)+($CG$25-$CE$25)/2*($GT8-$CF$25)^2,IF($GT8>=$CD$25,-1/6*($CG$25-$CE$25)/($CF$25-$CD$25)*($GT8-$CD$25)^3,0))))) -> 0 | DK8: =IF($CD$25=$CF$25,"---",IF(AND($CD$25="",$CE$25="",$CF$25="",$CG$25=""),"---",(IF($GT8>=$CF$25,-$CE$25/(6*$BZ$13*$CD$19)*(($GT8-$CD$25)^3-($GT8-$CF$25)^3),IF($GT8>=$CD$25,-$CE$25/(6*$BZ$13*$CD$19)*($GT8-$CD$25)^3,0)))+(IF($GT8>=$CF$25,-1/(24*$BZ$13*$CD$19)*($CG$25-$CE$25)/($CF$25-$CD$25)*(($GT8-$CD$25)^4-($GT8-$CF$25)^4)+($CG$25-$CE$25)/(6*$BZ$13*$CD$19)*($GT8-$CF$25)^3,IF($GT8>=$CD$25,-1/(24*$BZ$13*$CD$19)*($CG$25-$CE$25)/($CF$25-$CD$25)*($GT8-$CD$25)^4,0))))) -> 0 | DL8: =IF($CD$25=$CF$25,"---",IF(AND($CD$25="",$CE$25="",$CF$25="",$CG$25=""),"---",(IF($GT8>=$CF$25,$CE$25/(24*$BZ$13*$CD$19)*(($GT8-$CD$25)^4-($GT8-$CF$25)^4),IF($GT8>=$CD$25,$CE$25/(24*$BZ$13*$CD$19)*($GT8-$CD$25)^4,0)))+(IF($GT8>=$CF$25,1/(120*$BZ$13*$CD$19)*($CG$25-$CE$25)/($CF$25-$CD$25)*(($GT8-$CD$25)^5-($GT8-$CF$25)^5)-($CG$25-$CE$25)/(24*$BZ$13*$CD$19)*($GT8-$CF$25)^4,IF($GT8>=$CD$25,1/(120*$BZ$13*$CD$19)*($CG$25-$CE$25)/($CF$25-$CD$25)*($GT8-$CD$25)^5,0))))) -> 0 | DM8: =IF($CD$26=$CF$26,"---",IF(AND($CD$26="",$CE$26="",$CF$26="",$CG$26=""),"---",(-$CE$26*($CD$18-$CD$26-($CD$18-$CF$26)))+(-1/2*($CG$26-$CE$26)/($CF$26-$CD$26)*(($CD$18-$CD$26)^2-($CD$18-$CF$26)^2)+($CG$26-$CE$26)*($CD$18-$CF$26)))) -> --- | DN8: =IF($CD$26=$CF$26,"---",IF(AND($CD$26="",$CE$26="",$CF$26="",$CG$26=""),"---",(-$CE$26/2*(($CD$18-$CD$26)^2-($CD$18-$CF$26)^2))+(-1/6*($CG$26-$CE$26)/($CF$26-$CD$26)*(($CD$18-$CD$26)^3-($CD$18-$CF$26)^3)+($CG$26-$CE$26)/2*($CD$18-$CF$26)^2))) -> --- | DO8: =IF($CD$26=$CF$26,"---",IF(AND($CD$26="",$CE$26="",$CF$26="",$CG$26=""),"---",(-$CE$26/(6*$BZ$13*$CD$19)*(($CD$18-$CD$26)^3-($CD$18-$CF$26)^3))+(-1/(24*$BZ$13*$CD$19)*($CG$26-$CE$26)/($CF$26-$CD$26)*(($CD$18-$CD$26)^4-($CD$18-$CF$26)^4)+($CG$26-$CE$26)/(6*$BZ$13*$CD$19)*($CD$18-$CF$26)^3))) -> --- | DP8: =IF($CD$26=$CF$26,"---",IF(AND($CD$26="",$CE$26="",$CF$26="",$CG$26=""),"---",($CE$26/(24*$BZ$13*$CD$19)*(($CD$18-$CD$26)^4-($CD$18-$CF$26)^4))+(1/(120*$BZ$13*$CD$19)*($CG$26-$CE$26)/($CF$26-$CD$26)*(($CD$18-$CD$26)^5-($CD$18-$CF$26)^5)-($CG$26-$CE$26)/(24*$BZ$13*$CD$19)*($CD$18-$CF$26)^4))) -> --- | DQ8: =IF($CD$26=$CF$26,"---",IF(AND($CD$26="",$CE$26="",$CF$26="",$CG$26=""),"---",(IF($GT8>=$CF$26,-$CE$26*($GT8-$CD$26-($GT8-$CF$26)),IF($GT8>=$CD$26,-$CE$26*($GT8-$CD$26),0)))+(IF($GT8>=$CF$26,-1/2*($CG$26-$CE$26)/($CF$26-$CD$26)*(($GT8-$CD$26)^2-($GT8-$CF$26)^2)+($CG$26-$CE$26)*($GT8-$CF$26),IF($GT8>=$CD$26,-1/2*($CG$26-$CE$26)/($CF$26-$CD$26)*($GT8-$CD$26)^2,0))))) -> --- | DR8: =IF($CD$26=$CF$26,"---",IF(AND($CD$26="",$CE$26="",$CF$26="",$CG$26=""),"---",(IF($GT8>=$CF$26,-$CE$26/2*(($GT8-$CD$26)^2-($GT8-$CF$26)^2),IF($GT8>=$CD$26,-$CE$26/2*($GT8-$CD$26)^2,0)))+(IF($GT8>=$CF$26,-1/6*($CG$26-$CE$26)/($CF$26-$CD$26)*(($GT8-$CD$26)^3-($GT8-$CF$26)^3)+($CG$26-$CE$26)/2*($GT8-$CF$26)^2,IF($GT8>=$CD$26,-1/6*($CG$26-$CE$26)/($CF$26-$CD$26)*($GT8-$CD$26)^3,0))))) -> --- | DS8: =IF($CD$26=$CF$26,"---",IF(AND($CD$26="",$CE$26="",$CF$26="",$CG$26=""),"---",(IF($GT8>=$CF$26,-$CE$26/(6*$BZ$13*$CD$19)*(($GT8-$CD$26)^3-($GT8-$CF$26)^3),IF($GT8>=$CD$26,-$CE$26/(6*$BZ$13*$CD$19)*($GT8-$CD$26)^3,0)))+(IF($GT8>=$CF$26,-1/(24*$BZ$13*$CD$19)*($CG$26-$CE$26)/($CF$26-$CD$26)*(($GT8-$CD$26)^4-($GT8-$CF$26)^4)+($CG$26-$CE$26)/(6*$BZ$13*$CD$19)*($GT8-$CF$26)^3,IF($GT8>=$CD$26,-1/(24*$BZ$13*$CD$19)*($CG$26-$CE$26)/($CF$26-$CD$26)*($GT8-$CD$26)^4,0))))) -> --- | DT8: =IF($CD$26=$CF$26,"---",IF(AND($CD$26="",$CE$26="",$CF$26="",$CG$26=""),"---",(IF($GT8>=$CF$26,$CE$26/(24*$BZ$13*$CD$19)*(($GT8-$CD$26)^4-($GT8-$CF$26)^4),IF($GT8>=$CD$26,$CE$26/(24*$BZ$13*$CD$19)*($GT8-$CD$26)^4,0)))+(IF($GT8>=$CF$26,1/(120*$BZ$13*$CD$19)*($CG$26-$CE$26)/($CF$26-$CD$26)*(($GT8-$CD$26)^5-($GT8-$CF$26)^5)-($CG$26-$CE$26)/(24*$BZ$13*$CD$19)*($GT8-$CF$26)^4,IF($GT8>=$CD$26,1/(120*$BZ$13*$CD$19)*($CG$26-$CE$26)/($CF$26-$CD$26)*($GT8-$CD$26)^5,0))))) -> --- | DU8: =IF($CD$27=$CF$27,"---",IF(AND($CD$27="",$CE$27="",$CF$27="",$CG$27=""),"---",(-$CE$27*($CD$18-$CD$27-($CD$18-$CF$27)))+(-1/2*($CG$27-$CE$27)/($CF$27-$CD$27)*(($CD$18-$CD$27)^2-($CD$18-$CF$27)^2)+($CG$27-$CE$27)*($CD$18-$CF$27)))) -> --- | DV8: =IF($CD$27=$CF$27,"---",IF(AND($CD$27="",$CE$27="",$CF$27="",$CG$27=""),"---",(-$CE$27/2*(($CD$18-$CD$27)^2-($CD$18-$CF$27)^2))+(-1/6*($CG$27-$CE$27)/($CF$27-$CD$27)*(($CD$18-$CD$27)^3-($CD$18-$CF$27)^3)+($CG$27-$CE$27)/2*($CD$18-$CF$27)^2))) -> --- | DW8: =IF($CD$27=$CF$27,"---",IF(AND($CD$27="",$CE$27="",$CF$27="",$CG$27=""),"---",(-$CE$27/(6*$BZ$13*$CD$19)*(($CD$18-$CD$27)^3-($CD$18-$CF$27)^3))+(-1/(24*$BZ$13*$CD$19)*($CG$27-$CE$27)/($CF$27-$CD$27)*(($CD$18-$CD$27)^4-($CD$18-$CF$27)^4)+($CG$27-$CE$27)/(6*$BZ$13*$CD$19)*($CD$18-$CF$27)^3))) -> --- | DX8: =IF($CD$27=$CF$27,"---",IF(AND($CD$27="",$CE$27="",$CF$27="",$CG$27=""),"---",($CE$27/(24*$BZ$13*$CD$19)*(($CD$18-$CD$27)^4-($CD$18-$CF$27)^4))+(1/(120*$BZ$13*$CD$19)*($CG$27-$CE$27)/($CF$27-$CD$27)*(($CD$18-$CD$27)^5-($CD$18-$CF$27)^5)-($CG$27-$CE$27)/(24*$BZ$13*$CD$19)*($CD$18-$CF$27)^4))) -> --- | DY8: =IF($CD$27=$CF$27,"---",IF(AND($CD$27="",$CE$27="",$CF$27="",$CG$27=""),"---",(IF($GT8>=$CF$27,-$CE$27*($GT8-$CD$27-($GT8-$CF$27)),IF($GT8>=$CD$27,-$CE$27*($GT8-$CD$27),0)))+(IF($GT8>=$CF$27,-1/2*($CG$27-$CE$27)/($CF$27-$CD$27)*(($GT8-$CD$27)^2-($GT8-$CF$27)^2)+($CG$27-$CE$27)*($GT8-$CF$27),IF($GT8>=$CD$27,-1/2*($CG$27-$CE$27)/($CF$27-$CD$27)*($GT8-$CD$27)^2,0))))) -> --- | DZ8: =IF($CD$27=$CF$27,"---",IF(AND($CD$27="",$CE$27="",$CF$27="",$CG$27=""),"---",(IF($GT8>=$CF$27,-$CE$27/2*(($GT8-$CD$27)^2-($GT8-$CF$27)^2),IF($GT8>=$CD$27,-$CE$27/2*($GT8-$CD$27)^2,0)))+(IF($GT8>=$CF$27,-1/6*($CG$27-$CE$27)/($CF$27-$CD$27)*(($GT8-$CD$27)^3-($GT8-$CF$27)^3)+($CG$27-$CE$27)/2*($GT8-$CF$27)^2,IF($GT8>=$CD$27,-1/6*($CG$27-$CE$27)/($CF$27-$CD$27)*($GT8-$CD$27)^3,0))))) -> --- | EA8: =IF($CD$27=$CF$27,"---",IF(AND($CD$27="",$CE$27="",$CF$27="",$CG$27=""),"---",(IF($GT8>=$CF$27,-$CE$27/(6*$BZ$13*$CD$19)*(($GT8-$CD$27)^3-($GT8-$CF$27)^3),IF($GT8>=$CD$27,-$CE$27/(6*$BZ$13*$CD$19)*($GT8-$CD$27)^3,0)))+(IF($GT8>=$CF$27,-1/(24*$BZ$13*$CD$19)*($CG$27-$CE$27)/($CF$27-$CD$27)*(($GT8-$CD$27)^4-($GT8-$CF$27)^4)+($CG$27-$CE$27)/(6*$BZ$13*$CD$19)*($GT8-$CF$27)^3,IF($GT8>=$CD$27,-1/(24*$BZ$13*$CD$19)*($CG$27-$CE$27)/($CF$27-$CD$27)*($GT8-$CD$27)^4,0))))) -> --- | EB8: =IF($CD$27=$CF$27,"---",IF(AND($CD$27="",$CE$27="",$CF$27="",$CG$27=""),"---",(IF($GT8>=$CF$27,$CE$27/(24*$BZ$13*$CD$19)*(($GT8-$CD$27)^4-($GT8-$CF$27)^4),IF($GT8>=$CD$27,$CE$27/(24*$BZ$13*$CD$19)*($GT8-$CD$27)^4,0)))+(IF($GT8>=$CF$27,1/(120*$BZ$13*$CD$19)*($CG$27-$CE$27)/($CF$27-$CD$27)*(($GT8-$CD$27)^5-($GT8-$CF$27)^5)-($CG$27-$CE$27)/(24*$BZ$13*$CD$19)*($GT8-$CF$27)^4,IF($GT8>=$CD$27,1/(120*$BZ$13*$CD$19)*($CG$27-$CE$27)/($CF$27-$CD$27)*($GT8-$CD$27)^5,0))))) -> --- | EC8: =IF($CD$28=$CF$28,"---",IF(AND($CD$28="",$CE$28="",$CF$28="",$CG$28=""),"---",(-$CE$28*($CD$18-$CD$28-($CD$18-$CF$28)))+(-1/2*($CG$28-$CE$28)/($CF$28-$CD$28)*(($CD$18-$CD$28)^2-($CD$18-$CF$28)^2)+($CG$28-$CE$28)*($CD$18-$CF$28)))) -> --- | ED8: =IF($CD$28=$CF$28,"---",IF(AND($CD$28="",$CE$28="",$CF$28="",$CG$28=""),"---",(-$CE$28/2*(($CD$18-$CD$28)^2-($CD$18-$CF$28)^2))+(-1/6*($CG$28-$CE$28)/($CF$28-$CD$28)*(($CD$18-$CD$28)^3-($CD$18-$CF$28)^3)+($CG$28-$CE$28)/2*($CD$18-$CF$28)^2))) -> --- | EE8: =IF($CD$28=$CF$28,"---",IF(AND($CD$28="",$CE$28="",$CF$28="",$CG$28=""),"---",(-$CE$28/(6*$BZ$13*$CD$19)*(($CD$18-$CD$28)^3-($CD$18-$CF$28)^3))+(-1/(24*$BZ$13*$CD$19)*($CG$28-$CE$28)/($CF$28-$CD$28)*(($CD$18-$CD$28)^4-($CD$18-$CF$28)^4)+($CG$28-$CE$28)/(6*$BZ$13*$CD$19)*($CD$18-$CF$28)^3))) -> --- | EF8: =IF($CD$28=$CF$28,"---",IF(AND($CD$28="",$CE$28="",$CF$28="",$CG$28=""),"---",($CE$28/(24*$BZ$13*$CD$19)*(($CD$18-$CD$28)^4-($CD$18-$CF$28)^4))+(1/(120*$BZ$13*$CD$19)*($CG$28-$CE$28)/($CF$28-$CD$28)*(($CD$18-$CD$28)^5-($CD$18-$CF$28)^5)-($CG$28-$CE$28)/(24*$BZ$13*$CD$19)*($CD$18-$CF$28)^4))) -> --- | EG8: =IF($CD$28=$CF$28,"---",IF(AND($CD$28="",$CE$28="",$CF$28="",$CG$28=""),"---",(IF($GT8>=$CF$28,-$CE$28*($GT8-$CD$28-($GT8-$CF$28)),IF($GT8>=$CD$28,-$CE$28*($GT8-$CD$28),0)))+(IF($GT8>=$CF$28,-1/2*($CG$28-$CE$28)/($CF$28-$CD$28)*(($GT8-$CD$28)^2-($GT8-$CF$28)^2)+($CG$28-$CE$28)*($GT8-$CF$28),IF($GT8>=$CD$28,-1/2*($CG$28-$CE$28)/($CF$28-$CD$28)*($GT8-$CD$28)^2,0))))) -> --- | EH8: =IF($CD$28=$CF$28,"---",IF(AND($CD$28="",$CE$28="",$CF$28="",$CG$28=""),"---",(IF($GT8>=$CF$28,-$CE$28/2*(($GT8-$CD$28)^2-($GT8-$CF$28)^2),IF($GT8>=$CD$28,-$CE$28/2*($GT8-$CD$28)^2,0)))+(IF($GT8>=$CF$28,-1/6*($CG$28-$CE$28)/($CF$28-$CD$28)*(($GT8-$CD$28)^3-($GT8-$CF$28)^3)+($CG$28-$CE$28)/2*($GT8-$CF$28)^2,IF($GT8>=$CD$28,-1/6*($CG$28-$CE$28)/($CF$28-$CD$28)*($GT8-$CD$28)^3,0))))) -> --- | EI8: =IF($CD$28=$CF$28,"---",IF(AND($CD$28="",$CE$28="",$CF$28="",$CG$28=""),"---",(IF($GT8>=$CF$28,-$CE$28/(6*$BZ$13*$CD$19)*(($GT8-$CD$28)^3-($GT8-$CF$28)^3),IF($GT8>=$CD$28,-$CE$28/(6*$BZ$13*$CD$19)*($GT8-$CD$28)^3,0)))+(IF($GT8>=$CF$28,-1/(24*$BZ$13*$CD$19)*($CG$28-$CE$28)/($CF$28-$CD$28)*(($GT8-$CD$28)^4-($GT8-$CF$28)^4)+($CG$28-$CE$28)/(6*$BZ$13*$CD$19)*($GT8-$CF$28)^3,IF($GT8>=$CD$28,-1/(24*$BZ$13*$CD$19)*($CG$28-$CE$28)/($CF$28-$CD$28)*($GT8-$CD$28)^4,0))))) -> --- | EJ8: =IF($CD$28=$CF$28,"---",IF(AND($CD$28="",$CE$28="",$CF$28="",$CG$28=""),"---",(IF($GT8>=$CF$28,$CE$28/(24*$BZ$13*$CD$19)*(($GT8-$CD$28)^4-($GT8-$CF$28)^4),IF($GT8>=$CD$28,$CE$28/(24*$BZ$13*$CD$19)*($GT8-$CD$28)^4,0)))+(IF($GT8>=$CF$28,1/(120*$BZ$13*$CD$19)*($CG$28-$CE$28)/($CF$28-$CD$28)*(($GT8-$CD$28)^5-($GT8-$CF$28)^5)-($CG$28-$CE$28)/(24*$BZ$13*$CD$19)*($GT8-$CF$28)^4,IF($GT8>=$CD$28,1/(120*$BZ$13*$CD$19)*($CG$28-$CE$28)/($CF$28-$CD$28)*($GT8-$CD$28)^5,0))))) -> --- | EK8: =IF($CD$29=$CF$29,"---",IF(AND($CD$29="",$CE$29="",$CF$29="",$CG$29=""),"---",(-$CE$29*($CD$18-$CD$29-($CD$18-$CF$29)))+(-1/2*($CG$29-$CE$29)/($CF$29-$CD$29)*(($CD$18-$CD$29)^2-($CD$18-$CF$29)^2)+($CG$29-$CE$29)*($CD$18-$CF$29)))) -> --- | EL8: =IF($CD$29=$CF$29,"---",IF(AND($CD$29="",$CE$29="",$CF$29="",$CG$29=""),"---",(-$CE$29/2*(($CD$18-$CD$29)^2-($CD$18-$CF$29)^2))+(-1/6*($CG$29-$CE$29)/($CF$29-$CD$29)*(($CD$18-$CD$29)^3-($CD$18-$CF$29)^3)+($CG$29-$CE$29)/2*($CD$18-$CF$29)^2))) -> --- | EM8: =IF($CD$29=$CF$29,"---",IF(AND($CD$29="",$CE$29="",$CF$29="",$CG$29=""),"---",(-$CE$29/(6*$BZ$13*$CD$19)*(($CD$18-$CD$29)^3-($CD$18-$CF$29)^3))+(-1/(24*$BZ$13*$CD$19)*($CG$29-$CE$29)/($CF$29-$CD$29)*(($CD$18-$CD$29)^4-($CD$18-$CF$29)^4)+($CG$29-$CE$29)/(6*$BZ$13*$CD$19)*($CD$18-$CF$29)^3))) -> --- | EN8: =IF($CD$29=$CF$29,"---",IF(AND($CD$29="",$CE$29="",$CF$29="",$CG$29=""),"---",($CE$29/(24*$BZ$13*$CD$19)*(($CD$18-$CD$29)^4-($CD$18-$CF$29)^4))+(1/(120*$BZ$13*$CD$19)*($CG$29-$CE$29)/($CF$29-$CD$29)*(($CD$18-$CD$29)^5-($CD$18-$CF$29)^5)-($CG$29-$CE$29)/(24*$BZ$13*$CD$19)*($CD$18-$CF$29)^4))) -> --- | EO8: =IF($CD$29=$CF$29,"---",IF(AND($CD$29="",$CE$29="",$CF$29="",$CG$29=""),"---",(IF($GT8>=$CF$29,-$CE$29*($GT8-$CD$29-($GT8-$CF$29)),IF($GT8>=$CD$29,-$CE$29*($GT8-$CD$29),0)))+(IF($GT8>=$CF$29,-1/2*($CG$29-$CE$29)/($CF$29-$CD$29)*(($GT8-$CD$29)^2-($GT8-$CF$29)^2)+($CG$29-$CE$29)*($GT8-$CF$29),IF($GT8>=$CD$29,-1/2*($CG$29-$CE$29)/($CF$29-$CD$29)*($GT8-$CD$29)^2,0))))) -> --- | EP8: =IF($CD$29=$CF$29,"---",IF(AND($CD$29="",$CE$29="",$CF$29="",$CG$29=""),"---",(IF($GT8>=$CF$29,-$CE$29/2*(($GT8-$CD$29)^2-($GT8-$CF$29)^2),IF($GT8>=$CD$29,-$CE$29/2*($GT8-$CD$29)^2,0)))+(IF($GT8>=$CF$29,-1/6*($CG$29-$CE$29)/($CF$29-$CD$29)*(($GT8-$CD$29)^3-($GT8-$CF$29)^3)+($CG$29-$CE$29)/2*($GT8-$CF$29)^2,IF($GT8>=$CD$29,-1/6*($CG$29-$CE$29)/($CF$29-$CD$29)*($GT8-$CD$29)^3,0))))) -> --- | EQ8: =IF($CD$29=$CF$29,"---",IF(AND($CD$29="",$CE$29="",$CF$29="",$CG$29=""),"---",(IF($GT8>=$CF$29,-$CE$29/(6*$BZ$13*$CD$19)*(($GT8-$CD$29)^3-($GT8-$CF$29)^3),IF($GT8>=$CD$29,-$CE$29/(6*$BZ$13*$CD$19)*($GT8-$CD$29)^3,0)))+(IF($GT8>=$CF$29,-1/(24*$BZ$13*$CD$19)*($CG$29-$CE$29)/($CF$29-$CD$29)*(($GT8-$CD$29)^4-($GT8-$CF$29)^4)+($CG$29-$CE$29)/(6*$BZ$13*$CD$19)*($GT8-$CF$29)^3,IF($GT8>=$CD$29,-1/(24*$BZ$13*$CD$19)*($CG$29-$CE$29)/($CF$29-$CD$29)*($GT8-$CD$29)^4,0))))) -> --- | ER8: =IF($CD$29=$CF$29,"---",IF(AND($CD$29="",$CE$29="",$CF$29="",$CG$29=""),"---",(IF($GT8>=$CF$29,$CE$29/(24*$BZ$13*$CD$19)*(($GT8-$CD$29)^4-($GT8-$CF$29)^4),IF($GT8>=$CD$29,$CE$29/(24*$BZ$13*$CD$19)*($GT8-$CD$29)^4,0)))+(IF($GT8>=$CF$29,1/(120*$BZ$13*$CD$19)*($CG$29-$CE$29)/($CF$29-$CD$29)*(($GT8-$CD$29)^5-($GT8-$CF$29)^5)-($CG$29-$CE$29)/(24*$BZ$13*$CD$19)*($GT8-$CF$29)^4,IF($GT8>=$CD$29,1/(120*$BZ$13*$CD$19)*($CG$29-$CE$29)/($CF$29-$CD$29)*($GT8-$CD$29)^5,0))))) -> --- | ES8: =IF($CD$30=$CF$30,"---",IF(AND($CD$30="",$CE$30="",$CF$30="",$CG$30=""),"---",(-$CE$30*($CD$18-$CD$30-($CD$18-$CF$30)))+(-1/2*($CG$30-$CE$30)/($CF$30-$CD$30)*(($CD$18-$CD$30)^2-($CD$18-$CF$30)^2)+($CG$30-$CE$30)*($CD$18-$CF$30)))) -> --- | ET8: =IF($CD$30=$CF$30,"---",IF(AND($CD$30="",$CE$30="",$CF$30="",$CG$30=""),"---",(-$CE$30/2*(($CD$18-$CD$30)^2-($CD$18-$CF$30)^2))+(-1/6*($CG$30-$CE$30)/($CF$30-$CD$30)*(($CD$18-$CD$30)^3-($CD$18-$CF$30)^3)+($CG$30-$CE$30)/2*($CD$18-$CF$30)^2))) -> --- | EU8: =IF($CD$30=$CF$30,"---",IF(AND($CD$30="",$CE$30="",$CF$30="",$CG$30=""),"---",(-$CE$30/(6*$BZ$13*$CD$19)*(($CD$18-$CD$30)^3-($CD$18-$CF$30)^3))+(-1/(24*$BZ$13*$CD$19)*($CG$30-$CE$30)/($CF$30-$CD$30)*(($CD$18-$CD$30)^4-($CD$18-$CF$30)^4)+($CG$30-$CE$30)/(6*$BZ$13*$CD$19)*($CD$18-$CF$30)^3))) -> --- | EV8: =IF($CD$30=$CF$30,"---",IF(AND($CD$30="",$CE$30="",$CF$30="",$CG$30=""),"---",($CE$30/(24*$BZ$13*$CD$19)*(($CD$18-$CD$30)^4-($CD$18-$CF$30)^4))+(1/(120*$BZ$13*$CD$19)*($CG$30-$CE$30)/($CF$30-$CD$30)*(($CD$18-$CD$30)^5-($CD$18-$CF$30)^5)-($CG$30-$CE$30)/(24*$BZ$13*$CD$19)*($CD$18-$CF$30)^4))) -> --- | EW8: =IF($CD$30=$CF$30,"---",IF(AND($CD$30="",$CE$30="",$CF$30="",$CG$30=""),"---",(IF($GT8>=$CF$30,-$CE$30*($GT8-$CD$30-($GT8-$CF$30)),IF($GT8>=$CD$30,-$CE$30*($GT8-$CD$30),0)))+(IF($GT8>=$CF$30,-1/2*($CG$30-$CE$30)/($CF$30-$CD$30)*(($GT8-$CD$30)^2-($GT8-$CF$30)^2)+($CG$30-$CE$30)*($GT8-$CF$30),IF($GT8>=$CD$30,-1/2*($CG$30-$CE$30)/($CF$30-$CD$30)*($GT8-$CD$30)^2,0))))) -> --- | EX8: =IF($CD$30=$CF$30,"---",IF(AND($CD$30="",$CE$30="",$CF$30="",$CG$30=""),"---",(IF($GT8>=$CF$30,-$CE$30/2*(($GT8-$CD$30)^2-($GT8-$CF$30)^2),IF($GT8>=$CD$30,-$CE$30/2*($GT8-$CD$30)^2,0)))+(IF($GT8>=$CF$30,-1/6*($CG$30-$CE$30)/($CF$30-$CD$30)*(($GT8-$CD$30)^3-($GT8-$CF$30)^3)+($CG$30-$CE$30)/2*($GT8-$CF$30)^2,IF($GT8>=$CD$30,-1/6*($CG$30-$CE$30)/($CF$30-$CD$30)*($GT8-$CD$30)^3,0))))) -> --- | EY8: =IF($CD$30=$CF$30,"---",IF(AND($CD$30="",$CE$30="",$CF$30="",$CG$30=""),"---",(IF($GT8>=$CF$30,-$CE$30/(6*$BZ$13*$CD$19)*(($GT8-$CD$30)^3-($GT8-$CF$30)^3),IF($GT8>=$CD$30,-$CE$30/(6*$BZ$13*$CD$19)*($GT8-$CD$30)^3,0)))+(IF($GT8>=$CF$30,-1/(24*$BZ$13*$CD$19)*($CG$30-$CE$30)/($CF$30-$CD$30)*(($GT8-$CD$30)^4-($GT8-$CF$30)^4)+($CG$30-$CE$30)/(6*$BZ$13*$CD$19)*($GT8-$CF$30)^3,IF($GT8>=$CD$30,-1/(24*$BZ$13*$CD$19)*($CG$30-$CE$30)/($CF$30-$CD$30)*($GT8-$CD$30)^4,0))))) -> --- | EZ8: =IF($CD$30=$CF$30,"---",IF(AND($CD$30="",$CE$30="",$CF$30="",$CG$30=""),"---",(IF($GT8>=$CF$30,$CE$30/(24*$BZ$13*$CD$19)*(($GT8-$CD$30)^4-($GT8-$CF$30)^4),IF($GT8>=$CD$30,$CE$30/(24*$BZ$13*$CD$19)*($GT8-$CD$30)^4,0)))+(IF($GT8>=$CF$30,1/(120*$BZ$13*$CD$19)*($CG$30-$CE$30)/($CF$30-$CD$30)*(($GT8-$CD$30)^5-($GT8-$CF$30)^5)-($CG$30-$CE$30)/(24*$BZ$13*$CD$19)*($GT8-$CF$30)^4,IF($GT8>=$CD$30,1/(120*$BZ$13*$CD$19)*($CG$30-$CE$30)/($CF$30-$CD$30)*($GT8-$CD$30)^5,0))))) -> --- | FQ8: =-$CF$35+-$CF$36+-$CF$37+-$CF$38+-$CF$39+-$CF$40 -> 0 | FR8: =-$CF$35*($CD$18-$CD$35)+-$CF$36*($CD$18-$CD$36)+-$CF$37*($CD$18-$CD$37)+-$CF$38*($CD$18-$CD$38)+-$CF$39*($CD$18-$CD$39)+-$CF$40*($CD$18-$CD$40) -> 0 | FS8: =-$CF$35*($CD$18-$CD$35)^2/(2*$BZ$13*$CD$19)+-$CF$36*($CD$18-$CD$36)^2/(2*$BZ$13*$CD$19)+-$CF$37*($CD$18-$CD$37)^2/(2*$BZ$13*$CD$19)+-$CF$38*($CD$18-$CD$38)^2/(2*$BZ$13*$CD$19)+-$CF$39*($CD$18-$CD$39)^2/(2*$BZ$13*$CD$19)+-$CF$40*($CD$18-$CD$40)^2/(2*$BZ$13*$CD$19) -> 0 | FT8: =$CF$35*($CD$18-$CD$35)^3/(6*$BZ$13*$CD$19)+$CF$36*($CD$18-$CD$36)^3/(6*$BZ$13*$CD$19)+$CF$37*($CD$18-$CD$37)^3/(6*$BZ$13*$CD$19)+$CF$38*($CD$18-$CD$38)^3/(6*$BZ$13*$CD$19)+$CF$39*($CD$18-$CD$39)^3/(6*$BZ$13*$CD$19)+$CF$40*($CD$18-$CD$40)^3/(6*$BZ$13*$CD$19) -> 0 | FU8: =IF($GT8>$CD$35,-$CF$35,0)+IF($GT8>$CD$36,-$CF$36,0)+IF($GT8>$CD$37,-$CF$37,0)+IF($GT8>$CD$38,-$CF$38,0)+IF($GT8>$CD$39,-$CF$39,0)+IF($GT8>$CD$40,-$CF$40,0) -> 0 | FV8: =IF($GT8>$CD$35,-$CF$35*($GT8-$CD$35),0)+IF($GT8>$CD$36,-$CF$36*($GT8-$CD$36),0)+IF($GT8>$CD$37,-$CF$37*($GT8-$CD$37),0)+IF($GT8>$CD$38,-$CF$38*($GT8-$CD$38),0)+IF($GT8>$CD$39,-$CF$39*($GT8-$CD$39),0)+IF($GT8>$CD$40,-$CF$40*($GT8-$CD$40),0) -> 0 | FW8: =IF($GT8>$CD$35,-$CF$35*($GT8-$CD$35)^2/(2*$BZ$13*$CD$19),0)+IF($GT8>$CD$36,-$CF$36*($GT8-$CD$36)^2/(2*$BZ$13*$CD$19),0)+IF($GT8>$CD$37,-$CF$37*($GT8-$CD$37)^2/(2*$BZ$13*$CD$19),0)+IF($GT8>$CD$38,-$CF$38*($GT8-$CD$38)^2/(2*$BZ$13*$CD$19),0)+IF($GT8>$CD$39,-$CF$39*($GT8-$CD$39)^2/(2*$BZ$13*$CD$19),0)+IF($GT8>$CD$40,-$CF$40*($GT8-$CD$40)^2/(2*$BZ$13*$CD$19),0) -> 0 | FX8: =IF($GT8>$CD$35,$CF$35*($GT8-$CD$35)^3/(6*$BZ$13*$CD$19),0)+IF($GT8>$CD$36,$CF$36*($GT8-$CD$36)^3/(6*$BZ$13*$CD$19),0)+IF($GT8>$CD$37,$CF$37*($GT8-$CD$37)^3/(6*$BZ$13*$CD$19),0)+IF($GT8>$CD$38,$CF$38*($GT8-$CD$38)^3/(6*$BZ$13*$CD$19),0)+IF($GT8>$CD$39,$CF$39*($GT8-$CD$39)^3/(6*$BZ$13*$CD$19),0)+IF($GT8>$CD$40,$CF$40*($GT8-$CD$40)^3/(6*$BZ$13*$CD$19),0) -> 0 | FY8: =0+0+0+0 -> 0 | FZ8: =-$CF$52+-$CF$53+-$CF$54+-$CF$55+-CF56+-CF57 -> 0 | GA8: =-$CF$52*($CD$18-$GA$19)/($BZ$13*$CD$19)+-$CF$53*($CD$18-$GA$20)/($BZ$13*$CD$19)+-$CF$54*($CD$18-$GA$21)/($BZ$13*$CD$19)+-$CF$55*($CD$18-$GA$22)/($BZ$13*$CD$19)+-$CF$56*($CD$18-$GA$23)/($BZ$13*$CD$19)+-$CF$57*($CD$18-$GA$24)/($BZ$13*$CD$19) -> 0 | GB8: =$CF$52*($CD$18-$GA$19)^2/(2*$BZ$13*$CD$19)+$CF$53*($CD$18-$GA$20)^2/(2*$BZ$13*$CD$19)+$CF$54*($CD$18-$GA$21)^2/(2*$BZ$13*$CD$19)+$CF$55*($CD$18-$GA$22)^2/(2*$BZ$13*$CD$19)+$CF$56*($CD$18-$GA$23)^2/(2*$BZ$13*$CD$19)+$CF$57*($CD$18-$GA$24)^2/(2*$BZ$13*$CD$19) -> 0 | GC8: =IF($GT8>=IF($GA$19=$CD$18,$GA$19+0.000000001,$GA$19),0,0)+IF($GT8>=IF($GA$20=$CD$18,$GA$20+0.000000001,$GA$20),0,0)+IF($GT8>=IF($GA$21=$CD$18,$GA$21+0.000000001,$GA$21),0,0)+IF($GT8>=IF($GA$22=$CD$18,$GA$22+0.000000001,$GA$22),0,0)+IF($GT8>=IF($GA$23=$CD$18,$GA$23+0.000000001,$GA$23),0,0)+IF($GT8>=IF($GA$24=$CD$18,$GA$24+0.000000001,$GA$24),0,0) -> 0 | GD8: =IF($GT8>=IF($GA$19=$CD$18,$GA$19+0.000000001,$GA$19),-$CF$52,0)+IF($GT8>=IF($GA$20=$CD$18,$GA$20+0.000000001,$GA$20),-$CF$53,0)+IF($GT8>=IF($GA$21=$CD$18,$GA$21+0.000000001,$GA$21),-$CF$54,0)+IF($GT8>=IF($GA$22=$CD$18,$GA$22+0.000000001,$GA$22),-$CF$55,0)+IF($GT8>=IF($GA$23=$CD$18,$GA$23+0.000000001,$GA$23),-$CF$56,0)+IF($GT8>=IF($GA$24=$CD$18,$GA$24+0.000000001,$GA$24),-$CF$57,0) -> 0 | GE8: =IF($GT8>=IF($GA$19=$CD$18,$GA$19+0.000000001,$GA$19),-$CF$52*($GT8-$GA$19)/($BZ$13*$CD$19),0)+IF($GT8>=IF($GA$20=$CD$18,$GA$20+0.000000001,$GA$20),-$CF$53*($GT8-$GA$20)/($BZ$13*$CD$19),0)+IF($GT8>=IF($GA$21=$CD$18,$GA$21+0.000000001,$GA$21),-$CF$54*($GT8-$GA$21)/($BZ$13*$CD$19),0)+IF($GT8>=IF($GA$22=$CD$18,$GA$22+0.000000001,$GA$22),-$CF$55*($GT8-$GA$22)/($BZ$13*$CD$19),0)+IF($GT8>=IF($GA$23=$CD$18,$GA$23+0.000000001,$GA$23),-$CF$56*($GT8-$GA$23)/($BZ$13*$CD$19),0)+IF($GT8>=IF($GA$24=$CD$18,$GA$24+0.000000001,$GA$24),-$CF$57*($GT8-$GA$24)/($BZ$13*$CD$19),0) -> 0 | GF8: =IF($GT8>=IF($GA$19=$CD$18,$GA$19+0.000000001,$GA$19),$CF$52*($GT8-$GA$19)^2/(2*$BZ$13*$CD$19),0)+IF($GT8>=IF($GA$20=$CD$18,$GA$20+0.000000001,$GA$20),$CF$53*($GT8-$GA$20)^2/(2*$BZ$13*$CD$19),0)+IF($GT8>=IF($GA$21=$CD$18,$GA$21+0.000000001,$GA$21),$CF$54*($GT8-$GA$21)^2/(2*$BZ$13*$CD$19),0)+IF($GT8>=IF($GA$22=$CD$18,$GA$22+0.000000001,$GA$22),$CF$55*($GT8-$GA$22)^2/(2*$BZ$13*$CD$19),0)+IF($GT8>=IF($GA$23=$CD$18,$GA$23+0.000000001,$GA$23),$CF$56*($GT8-$GA$23)^2/(2*$BZ$13*$CD$19),0)+IF($GT8>=IF($GA$24=$CD$18,$GA$24+0.000000001,$GA$24),$CF$57*($GT8-$GA$24)^2/(2*$BZ$13*$CD$19),0) -> 0 | GG8: =SUM(CW8,DE8,DM8,DU8,EC8,EK8,ES8,FA8,FI8,FQ8,FY8) -> -840 | GH8: =SUM(CX8,DF8,DN8,DV8,ED8,EL8,ET8,FB8,FJ8,FR8,FZ8) -> -2640 | GI8: =SUM(CY8,DG8,DO8,DW8,EE8,EM8,EU8,FC8,FK8,FS8,GA8) -> -1.5890625e-06 | GJ8: =SUM(CZ8,DH8,DP8,DX8,EF8,EN8,EV8,FD8,FL8,FT8,GB8) -> 2.2521875e-06 | GK8: 0 | GL8: 0 | GM8: 0 | GN8: 0 | GO8: =-12*$BZ$13*$CD$19/$CD$18^3*$GJ8-6*$BZ$13*$CD$19/$CD$18^2*$GI8 -> 447.1111111 | GP8: =6*$BZ$13*$CD$19/$CD$18^2*$GJ8+2*$BZ$13*$CD$19/$CD$18*$GI8 -> -493.8333333 | GQ8: =0 -> 0 | GR8: =0 -> 0 | GS8: =$GP8+$GO8*$GT8+$GL8 -> -493.8333333 | GT8: =0 -> 0 | HE8: Beam Types: | HF8: Pinned | HL8: User Designated Points:
H9: Number of Spans | P9: 5 | BY9: Beam Data: | CN9: Maximum Moments in Beam: | CV9: Span #2 FEM(R): | CW9: =$CW$8 -> -540 | CX9: =$CX$8 -> -1620 | CY9: =$CY$8 -> -1.0125e-06 | CZ9: =$CZ$8 -> 1.51875e-06 | DA9: =IF($CD$21=0,"---",IF($GT9=$CD$18,-$CD$21*($GT9-($GT9-$CD$18)),IF($GT9>=0,-$CD$21*$GT9,0))) -> -540 | DB9: =IF($CD$21=0,"---",IF($GT9=$CD$18,-$CD$21*($GT9^2-($GT9-$CD$18)^2)/2,IF($GT9>=0,-$CD$21*$GT9^2/2,0))) -> -1620 | DC9: =IF($CD$21=0,"---",IF($GT9=$CD$18,-$CD$21*($GT9^3-($GT9-$CD$18)^3)/(6*$BZ$13*$CD$19),IF($GT9>=0,-$CD$21*$GT9^3/(6*$BZ$13*$CD$19),0))) -> -1.0125e-06 | DD9: =IF($CD$21=0,"---",IF($GT9=$CD$18,$CD$21*($GT9^4-($GT9-$CD$18)^4)/(24*$BZ$13*$CD$19),IF($GT9>=0,$CD$21*$GT9^4/(24*$BZ$13*$CD$19),0))) -> 1.51875e-06 | DE9: =$DE$8 -> -300 | DF9: =$DF$8 -> -1020 | DG9: =$DG$8 -> -5.765625e-07 | DH9: =$DH$8 -> 7.334375e-07 | DI9: =IF($CD$25=$CF$25,"---",IF(AND($CD$25="",$CE$25="",$CF$25="",$CG$25=""),"---",(IF($GT9>=$CF$25,-$CE$25*($GT9-$CD$25-($GT9-$CF$25)),IF($GT9>=$CD$25,-$CE$25*($GT9-$CD$25),0)))+(IF($GT9>=$CF$25,-1/2*($CG$25-$CE$25)/($CF$25-$CD$25)*(($GT9-$CD$25)^2-($GT9-$CF$25)^2)+($CG$25-$CE$25)*($GT9-$CF$25),IF($GT9>=$CD$25,-1/2*($CG$25-$CE$25)/($CF$25-$CD$25)*($GT9-$CD$25)^2,0))))) -> -300 | DJ9: =IF($CD$25=$CF$25,"---",IF(AND($CD$25="",$CE$25="",$CF$25="",$CG$25=""),"---",(IF($GT9>=$CF$25,-$CE$25/2*(($GT9-$CD$25)^2-($GT9-$CF$25)^2),IF($GT9>=$CD$25,-$CE$25/2*($GT9-$CD$25)^2,0)))+(IF($GT9>=$CF$25,-1/6*($CG$25-$CE$25)/($CF$25-$CD$25)*(($GT9-$CD$25)^3-($GT9-$CF$25)^3)+($CG$25-$CE$25)/2*($GT9-$CF$25)^2,IF($GT9>=$CD$25,-1/6*($CG$25-$CE$25)/($CF$25-$CD$25)*($GT9-$CD$25)^3,0))))) -> -1020 | DK9: =IF($CD$25=$CF$25,"---",IF(AND($CD$25="",$CE$25="",$CF$25="",$CG$25=""),"---",(IF($GT9>=$CF$25,-$CE$25/(6*$BZ$13*$CD$19)*(($GT9-$CD$25)^3-($GT9-$CF$25)^3),IF($GT9>=$CD$25,-$CE$25/(6*$BZ$13*$CD$19)*($GT9-$CD$25)^3,0)))+(IF($GT9>=$CF$25,-1/(24*$BZ$13*$CD$19)*($CG$25-$CE$25)/($CF$25-$CD$25)*(($GT9-$CD$25)^4-($GT9-$CF$25)^4)+($CG$25-$CE$25)/(6*$BZ$13*$CD$19)*($GT9-$CF$25)^3,IF($GT9>=$CD$25,-1/(24*$BZ$13*$CD$19)*($CG$25-$CE$25)/($CF$25-$CD$25)*($GT9-$CD$25)^4,0))))) -> -5.765625e-07 | DL9: =IF($CD$25=$CF$25,"---",IF(AND($CD$25="",$CE$25="",$CF$25="",$CG$25=""),"---",(IF($GT9>=$CF$25,$CE$25/(24*$BZ$13*$CD$19)*(($GT9-$CD$25)^4-($GT9-$CF$25)^4),IF($GT9>=$CD$25,$CE$25/(24*$BZ$13*$CD$19)*($GT9-$CD$25)^4,0)))+(IF($GT9>=$CF$25,1/(120*$BZ$13*$CD$19)*($CG$25-$CE$25)/($CF$25-$CD$25)*(($GT9-$CD$25)^5-($GT9-$CF$25)^5)-($CG$25-$CE$25)/(24*$BZ$13*$CD$19)*($GT9-$CF$25)^4,IF($GT9>=$CD$25,1/(120*$BZ$13*$CD$19)*($CG$25-$CE$25)/($CF$25-$CD$25)*($GT9-$CD$25)^5,0))))) -> 7.334375001e-07 | DM9: =$DM$8 -> --- | DN9: =$DN$8 -> --- | DO9: =$DO$8 -> --- | DP9: =$DP$8 -> --- | DQ9: =IF($CD$26=$CF$26,"---",IF(AND($CD$26="",$CE$26="",$CF$26="",$CG$26=""),"---",(IF($GT9>=$CF$26,-$CE$26*($GT9-$CD$26-($GT9-$CF$26)),IF($GT9>=$CD$26,-$CE$26*($GT9-$CD$26),0)))+(IF($GT9>=$CF$26,-1/2*($CG$26-$CE$26)/($CF$26-$CD$26)*(($GT9-$CD$26)^2-($GT9-$CF$26)^2)+($CG$26-$CE$26)*($GT9-$CF$26),IF($GT9>=$CD$26,-1/2*($CG$26-$CE$26)/($CF$26-$CD$26)*($GT9-$CD$26)^2,0))))) -> --- | DR9: =IF($CD$26=$CF$26,"---",IF(AND($CD$26="",$CE$26="",$CF$26="",$CG$26=""),"---",(IF($GT9>=$CF$26,-$CE$26/2*(($GT9-$CD$26)^2-($GT9-$CF$26)^2),IF($GT9>=$CD$26,-$CE$26/2*($GT9-$CD$26)^2,0)))+(IF($GT9>=$CF$26,-1/6*($CG$26-$CE$26)/($CF$26-$CD$26)*(($GT9-$CD$26)^3-($GT9-$CF$26)^3)+($CG$26-$CE$26)/2*($GT9-$CF$26)^2,IF($GT9>=$CD$26,-1/6*($CG$26-$CE$26)/($CF$26-$CD$26)*($GT9-$CD$26)^3,0))))) -> --- | DS9: =IF($CD$26=$CF$26,"---",IF(AND($CD$26="",$CE$26="",$CF$26="",$CG$26=""),"---",(IF($GT9>=$CF$26,-$CE$26/(6*$BZ$13*$CD$19)*(($GT9-$CD$26)^3-($GT9-$CF$26)^3),IF($GT9>=$CD$26,-$CE$26/(6*$BZ$13*$CD$19)*($GT9-$CD$26)^3,0)))+(IF($GT9>=$CF$26,-1/(24*$BZ$13*$CD$19)*($CG$26-$CE$26)/($CF$26-$CD$26)*(($GT9-$CD$26)^4-($GT9-$CF$26)^4)+($CG$26-$CE$26)/(6*$BZ$13*$CD$19)*($GT9-$CF$26)^3,IF($GT9>=$CD$26,-1/(24*$BZ$13*$CD$19)*($CG$26-$CE$26)/($CF$26-$CD$26)*($GT9-$CD$26)^4,0))))) -> --- | DT9: =IF($CD$26=$CF$26,"---",IF(AND($CD$26="",$CE$26="",$CF$26="",$CG$26=""),"---",(IF($GT9>=$CF$26,$CE$26/(24*$BZ$13*$CD$19)*(($GT9-$CD$26)^4-($GT9-$CF$26)^4),IF($GT9>=$CD$26,$CE$26/(24*$BZ$13*$CD$19)*($GT9-$CD$26)^4,0)))+(IF($GT9>=$CF$26,1/(120*$BZ$13*$CD$19)*($CG$26-$CE$26)/($CF$26-$CD$26)*(($GT9-$CD$26)^5-($GT9-$CF$26)^5)-($CG$26-$CE$26)/(24*$BZ$13*$CD$19)*($GT9-$CF$26)^4,IF($GT9>=$CD$26,1/(120*$BZ$13*$CD$19)*($CG$26-$CE$26)/($CF$26-$CD$26)*($GT9-$CD$26)^5,0))))) -> --- | DU9: =$DU$8 -> --- | DV9: =$DV$8 -> --- | DW9: =$DW$8 -> --- | DX9: =$DX$8 -> --- | DY9: =IF($CD$27=$CF$27,"---",IF(AND($CD$27="",$CE$27="",$CF$27="",$CG$27=""),"---",(IF($GT9>=$CF$27,-$CE$27*($GT9-$CD$27-($GT9-$CF$27)),IF($GT9>=$CD$27,-$CE$27*($GT9-$CD$27),0)))+(IF($GT9>=$CF$27,-1/2*($CG$27-$CE$27)/($CF$27-$CD$27)*(($GT9-$CD$27)^2-($GT9-$CF$27)^2)+($CG$27-$CE$27)*($GT9-$CF$27),IF($GT9>=$CD$27,-1/2*($CG$27-$CE$27)/($CF$27-$CD$27)*($GT9-$CD$27)^2,0))))) -> --- | DZ9: =IF($CD$27=$CF$27,"---",IF(AND($CD$27="",$CE$27="",$CF$27="",$CG$27=""),"---",(IF($GT9>=$CF$27,-$CE$27/2*(($GT9-$CD$27)^2-($GT9-$CF$27)^2),IF($GT9>=$CD$27,-$CE$27/2*($GT9-$CD$27)^2,0)))+(IF($GT9>=$CF$27,-1/6*($CG$27-$CE$27)/($CF$27-$CD$27)*(($GT9-$CD$27)^3-($GT9-$CF$27)^3)+($CG$27-$CE$27)/2*($GT9-$CF$27)^2,IF($GT9>=$CD$27,-1/6*($CG$27-$CE$27)/($CF$27-$CD$27)*($GT9-$CD$27)^3,0))))) -> --- | EA9: =IF($CD$27=$CF$27,"---",IF(AND($CD$27="",$CE$27="",$CF$27="",$CG$27=""),"---",(IF($GT9>=$CF$27,-$CE$27/(6*$BZ$13*$CD$19)*(($GT9-$CD$27)^3-($GT9-$CF$27)^3),IF($GT9>=$CD$27,-$CE$27/(6*$BZ$13*$CD$19)*($GT9-$CD$27)^3,0)))+(IF($GT9>=$CF$27,-1/(24*$BZ$13*$CD$19)*($CG$27-$CE$27)/($CF$27-$CD$27)*(($GT9-$CD$27)^4-($GT9-$CF$27)^4)+($CG$27-$CE$27)/(6*$BZ$13*$CD$19)*($GT9-$CF$27)^3,IF($GT9>=$CD$27,-1/(24*$BZ$13*$CD$19)*($CG$27-$CE$27)/($CF$27-$CD$27)*($GT9-$CD$27)^4,0))))) -> --- | EB9: =IF($CD$27=$CF$27,"---",IF(AND($CD$27="",$CE$27="",$CF$27="",$CG$27=""),"---",(IF($GT9>=$CF$27,$CE$27/(24*$BZ$13*$CD$19)*(($GT9-$CD$27)^4-($GT9-$CF$27)^4),IF($GT9>=$CD$27,$CE$27/(24*$BZ$13*$CD$19)*($GT9-$CD$27)^4,0)))+(IF($GT9>=$CF$27,1/(120*$BZ$13*$CD$19)*($CG$27-$CE$27)/($CF$27-$CD$27)*(($GT9-$CD$27)^5-($GT9-$CF$27)^5)-($CG$27-$CE$27)/(24*$BZ$13*$CD$19)*($GT9-$CF$27)^4,IF($GT9>=$CD$27,1/(120*$BZ$13*$CD$19)*($CG$27-$CE$27)/($CF$27-$CD$27)*($GT9-$CD$27)^5,0))))) -> --- | EC9: =$EC$8 -> --- | ED9: =$ED$8 -> --- | EE9: =$EE$8 -> --- | EF9: =$EF$8 -> --- | EG9: =IF($CD$28=$CF$28,"---",IF(AND($CD$28="",$CE$28="",$CF$28="",$CG$28=""),"---",(IF($GT9>=$CF$28,-$CE$28*($GT9-$CD$28-($GT9-$CF$28)),IF($GT9>=$CD$28,-$CE$28*($GT9-$CD$28),0)))+(IF($GT9>=$CF$28,-1/2*($CG$28-$CE$28)/($CF$28-$CD$28)*(($GT9-$CD$28)^2-($GT9-$CF$28)^2)+($CG$28-$CE$28)*($GT9-$CF$28),IF($GT9>=$CD$28,-1/2*($CG$28-$CE$28)/($CF$28-$CD$28)*($GT9-$CD$28)^2,0))))) -> --- | EH9: =IF($CD$28=$CF$28,"---",IF(AND($CD$28="",$CE$28="",$CF$28="",$CG$28=""),"---",(IF($GT9>=$CF$28,-$CE$28/2*(($GT9-$CD$28)^2-($GT9-$CF$28)^2),IF($GT9>=$CD$28,-$CE$28/2*($GT9-$CD$28)^2,0)))+(IF($GT9>=$CF$28,-1/6*($CG$28-$CE$28)/($CF$28-$CD$28)*(($GT9-$CD$28)^3-($GT9-$CF$28)^3)+($CG$28-$CE$28)/2*($GT9-$CF$28)^2,IF($GT9>=$CD$28,-1/6*($CG$28-$CE$28)/($CF$28-$CD$28)*($GT9-$CD$28)^3,0))))) -> --- | EI9: =IF($CD$28=$CF$28,"---",IF(AND($CD$28="",$CE$28="",$CF$28="",$CG$28=""),"---",(IF($GT9>=$CF$28,-$CE$28/(6*$BZ$13*$CD$19)*(($GT9-$CD$28)^3-($GT9-$CF$28)^3),IF($GT9>=$CD$28,-$CE$28/(6*$BZ$13*$CD$19)*($GT9-$CD$28)^3,0)))+(IF($GT9>=$CF$28,-1/(24*$BZ$13*$CD$19)*($CG$28-$CE$28)/($CF$28-$CD$28)*(($GT9-$CD$28)^4-($GT9-$CF$28)^4)+($CG$28-$CE$28)/(6*$BZ$13*$CD$19)*($GT9-$CF$28)^3,IF($GT9>=$CD$28,-1/(24*$BZ$13*$CD$19)*($CG$28-$CE$28)/($CF$28-$CD$28)*($GT9-$CD$28)^4,0))))) -> --- | EJ9: =IF($CD$28=$CF$28,"---",IF(AND($CD$28="",$CE$28="",$CF$28="",$CG$28=""),"---",(IF($GT9>=$CF$28,$CE$28/(24*$BZ$13*$CD$19)*(($GT9-$CD$28)^4-($GT9-$CF$28)^4),IF($GT9>=$CD$28,$CE$28/(24*$BZ$13*$CD$19)*($GT9-$CD$28)^4,0)))+(IF($GT9>=$CF$28,1/(120*$BZ$13*$CD$19)*($CG$28-$CE$28)/($CF$28-$CD$28)*(($GT9-$CD$28)^5-($GT9-$CF$28)^5)-($CG$28-$CE$28)/(24*$BZ$13*$CD$19)*($GT9-$CF$28)^4,IF($GT9>=$CD$28,1/(120*$BZ$13*$CD$19)*($CG$28-$CE$28)/($CF$28-$CD$28)*($GT9-$CD$28)^5,0))))) -> --- | EK9: =$EK$8 -> --- | EL9: =$EL$8 -> --- | EM9: =$EM$8 -> --- | EN9: =$EN$8 -> --- | EO9: =IF($CD$29=$CF$29,"---",IF(AND($CD$29="",$CE$29="",$CF$29="",$CG$29=""),"---",(IF($GT9>=$CF$29,-$CE$29*($GT9-$CD$29-($GT9-$CF$29)),IF($GT9>=$CD$29,-$CE$29*($GT9-$CD$29),0)))+(IF($GT9>=$CF$29,-1/2*($CG$29-$CE$29)/($CF$29-$CD$29)*(($GT9-$CD$29)^2-($GT9-$CF$29)^2)+($CG$29-$CE$29)*($GT9-$CF$29),IF($GT9>=$CD$29,-1/2*($CG$29-$CE$29)/($CF$29-$CD$29)*($GT9-$CD$29)^2,0))))) -> --- | EP9: =IF($CD$29=$CF$29,"---",IF(AND($CD$29="",$CE$29="",$CF$29="",$CG$29=""),"---",(IF($GT9>=$CF$29,-$CE$29/2*(($GT9-$CD$29)^2-($GT9-$CF$29)^2),IF($GT9>=$CD$29,-$CE$29/2*($GT9-$CD$29)^2,0)))+(IF($GT9>=$CF$29,-1/6*($CG$29-$CE$29)/($CF$29-$CD$29)*(($GT9-$CD$29)^3-($GT9-$CF$29)^3)+($CG$29-$CE$29)/2*($GT9-$CF$29)^2,IF($GT9>=$CD$29,-1/6*($CG$29-$CE$29)/($CF$29-$CD$29)*($GT9-$CD$29)^3,0))))) -> --- | EQ9: =IF($CD$29=$CF$29,"---",IF(AND($CD$29="",$CE$29="",$CF$29="",$CG$29=""),"---",(IF($GT9>=$CF$29,-$CE$29/(6*$BZ$13*$CD$19)*(($GT9-$CD$29)^3-($GT9-$CF$29)^3),IF($GT9>=$CD$29,-$CE$29/(6*$BZ$13*$CD$19)*($GT9-$CD$29)^3,0)))+(IF($GT9>=$CF$29,-1/(24*$BZ$13*$CD$19)*($CG$29-$CE$29)/($CF$29-$CD$29)*(($GT9-$CD$29)^4-($GT9-$CF$29)^4)+($CG$29-$CE$29)/(6*$BZ$13*$CD$19)*($GT9-$CF$29)^3,IF($GT9>=$CD$29,-1/(24*$BZ$13*$CD$19)*($CG$29-$CE$29)/($CF$29-$CD$29)*($GT9-$CD$29)^4,0))))) -> --- | ER9: =IF($CD$29=$CF$29,"---",IF(AND($CD$29="",$CE$29="",$CF$29="",$CG$29=""),"---",(IF($GT9>=$CF$29,$CE$29/(24*$BZ$13*$CD$19)*(($GT9-$CD$29)^4-($GT9-$CF$29)^4),IF($GT9>=$CD$29,$CE$29/(24*$BZ$13*$CD$19)*($GT9-$CD$29)^4,0)))+(IF($GT9>=$CF$29,1/(120*$BZ$13*$CD$19)*($CG$29-$CE$29)/($CF$29-$CD$29)*(($GT9-$CD$29)^5-($GT9-$CF$29)^5)-($CG$29-$CE$29)/(24*$BZ$13*$CD$19)*($GT9-$CF$29)^4,IF($GT9>=$CD$29,1/(120*$BZ$13*$CD$19)*($CG$29-$CE$29)/($CF$29-$CD$29)*($GT9-$CD$29)^5,0))))) -> --- | ES9: =$ES$8 -> --- | ET9: =$ET$8 -> --- | EU9: =$EU$8 -> --- | EV9: =$EV$8 -> --- | EW9: =IF($CD$30=$CF$30,"---",IF(AND($CD$30="",$CE$30="",$CF$30="",$CG$30=""),"---",(IF($GT9>=$CF$30,-$CE$30*($GT9-$CD$30-($GT9-$CF$30)),IF($GT9>=$CD$30,-$CE$30*($GT9-$CD$30),0)))+(IF($GT9>=$CF$30,-1/2*($CG$30-$CE$30)/($CF$30-$CD$30)*(($GT9-$CD$30)^2-($GT9-$CF$30)^2)+($CG$30-$CE$30)*($GT9-$CF$30),IF($GT9>=$CD$30,-1/2*($CG$30-$CE$30)/($CF$30-$CD$30)*($GT9-$CD$30)^2,0))))) -> --- | EX9: =IF($CD$30=$CF$30,"---",IF(AND($CD$30="",$CE$30="",$CF$30="",$CG$30=""),"---",(IF($GT9>=$CF$30,-$CE$30/2*(($GT9-$CD$30)^2-($GT9-$CF$30)^2),IF($GT9>=$CD$30,-$CE$30/2*($GT9-$CD$30)^2,0)))+(IF($GT9>=$CF$30,-1/6*($CG$30-$CE$30)/($CF$30-$CD$30)*(($GT9-$CD$30)^3-($GT9-$CF$30)^3)+($CG$30-$CE$30)/2*($GT9-$CF$30)^2,IF($GT9>=$CD$30,-1/6*($CG$30-$CE$30)/($CF$30-$CD$30)*($GT9-$CD$30)^3,0))))) -> --- | EY9: =IF($CD$30=$CF$30,"---",IF(AND($CD$30="",$CE$30="",$CF$30="",$CG$30=""),"---",(IF($GT9>=$CF$30,-$CE$30/(6*$BZ$13*$CD$19)*(($GT9-$CD$30)^3-($GT9-$CF$30)^3),IF($GT9>=$CD$30,-$CE$30/(6*$BZ$13*$CD$19)*($GT9-$CD$30)^3,0)))+(IF($GT9>=$CF$30,-1/(24*$BZ$13*$CD$19)*($CG$30-$CE$30)/($CF$30-$CD$30)*(($GT9-$CD$30)^4-($GT9-$CF$30)^4)+($CG$30-$CE$30)/(6*$BZ$13*$CD$19)*($GT9-$CF$30)^3,IF($GT9>=$CD$30,-1/(24*$BZ$13*$CD$19)*($CG$30-$CE$30)/($CF$30-$CD$30)*($GT9-$CD$30)^4,0))))) -> --- | EZ9: =IF($CD$30=$CF$30,"---",IF(AND($CD$30="",$CE$30="",$CF$30="",$CG$30=""),"---",(IF($GT9>=$CF$30,$CE$30/(24*$BZ$13*$CD$19)*(($GT9-$CD$30)^4-($GT9-$CF$30)^4),IF($GT9>=$CD$30,$CE$30/(24*$BZ$13*$CD$19)*($GT9-$CD$30)^4,0)))+(IF($GT9>=$CF$30,1/(120*$BZ$13*$CD$19)*($CG$30-$CE$30)/($CF$30-$CD$30)*(($GT9-$CD$30)^5-($GT9-$CF$30)^5)-($CG$30-$CE$30)/(24*$BZ$13*$CD$19)*($GT9-$CF$30)^4,IF($GT9>=$CD$30,1/(120*$BZ$13*$CD$19)*($CG$30-$CE$30)/($CF$30-$CD$30)*($GT9-$CD$30)^5,0))))) -> --- | FQ9: =$FQ$8 -> 0 | FR9: =$FR$8 -> 0 | FS9: =$FS$8 -> 0 | FT9: =$FT$8 -> 0 | FU9: =IF($GT9>$CD$35,-$CF$35,0)+IF($GT9>$CD$36,-$CF$36,0)+IF($GT9>$CD$37,-$CF$37,0)+IF($GT9>$CD$38,-$CF$38,0)+IF($GT9>$CD$39,-$CF$39,0)+IF($GT9>$CD$40,-$CF$40,0) -> 0 | FV9: =IF($GT9>$CD$35,-$CF$35*($GT9-$CD$35),0)+IF($GT9>$CD$36,-$CF$36*($GT9-$CD$36),0)+IF($GT9>$CD$37,-$CF$37*($GT9-$CD$37),0)+IF($GT9>$CD$38,-$CF$38*($GT9-$CD$38),0)+IF($GT9>$CD$39,-$CF$39*($GT9-$CD$39),0)+IF($GT9>$CD$40,-$CF$40*($GT9-$CD$40),0) -> 0 | FW9: =IF($GT9>$CD$35,-$CF$35*($GT9-$CD$35)^2/(2*$BZ$13*$CD$19),0)+IF($GT9>$CD$36,-$CF$36*($GT9-$CD$36)^2/(2*$BZ$13*$CD$19),0)+IF($GT9>$CD$37,-$CF$37*($GT9-$CD$37)^2/(2*$BZ$13*$CD$19),0)+IF($GT9>$CD$38,-$CF$38*($GT9-$CD$38)^2/(2*$BZ$13*$CD$19),0)+IF($GT9>$CD$39,-$CF$39*($GT9-$CD$39)^2/(2*$BZ$13*$CD$19),0)+IF($GT9>$CD$40,-$CF$40*($GT9-$CD$40)^2/(2*$BZ$13*$CD$19),0) -> 0 | FX9: =IF($GT9>$CD$35,$CF$35*($GT9-$CD$35)^3/(6*$BZ$13*$CD$19),0)+IF($GT9>$CD$36,$CF$36*($GT9-$CD$36)^3/(6*$BZ$13*$CD$19),0)+IF($GT9>$CD$37,$CF$37*($GT9-$CD$37)^3/(6*$BZ$13*$CD$19),0)+IF($GT9>$CD$38,$CF$38*($GT9-$CD$38)^3/(6*$BZ$13*$CD$19),0)+IF($GT9>$CD$39,$CF$39*($GT9-$CD$39)^3/(6*$BZ$13*$CD$19),0)+IF($GT9>$CD$40,$CF$40*($GT9-$CD$40)^3/(6*$BZ$13*$CD$19),0) -> 0 | FY9: =$FY$8 -> 0 | FZ9: =$FZ$8 -> 0 | GA9: =$GA$8 -> 0 | GB9: =$GB$8 -> 0 | GC9: =IF($GT9>=IF($GA$19=$CD$18,$GA$19+0.000000001,$GA$19),0,0)+IF($GT9>=IF($GA$20=$CD$18,$GA$20+0.000000001,$GA$20),0,0)+IF($GT9>=IF($GA$21=$CD$18,$GA$21+0.000000001,$GA$21),0,0)+IF($GT9>=IF($GA$22=$CD$18,$GA$22+0.000000001,$GA$22),0,0)+IF($GT9>=IF($GA$23=$CD$18,$GA$23+0.000000001,$GA$23),0,0)+IF($GT9>=IF($GA$24=$CD$18,$GA$24+0.000000001,$GA$24),0,0) -> 0 | GD9: =IF($GT9>=IF($GA$19=$CD$18,$GA$19+0.000000001,$GA$19),-$CF$52,0)+IF($GT9>=IF($GA$20=$CD$18,$GA$20+0.000000001,$GA$20),-$CF$53,0)+IF($GT9>=IF($GA$21=$CD$18,$GA$21+0.000000001,$GA$21),-$CF$54,0)+IF($GT9>=IF($GA$22=$CD$18,$GA$22+0.000000001,$GA$22),-$CF$55,0)+IF($GT9>=IF($GA$23=$CD$18,$GA$23+0.000000001,$GA$23),-$CF$56,0)+IF($GT9>=IF($GA$24=$CD$18,$GA$24+0.000000001,$GA$24),-$CF$57,0) -> 0 | GE9: =IF($GT9>=IF($GA$19=$CD$18,$GA$19+0.000000001,$GA$19),-$CF$52*($GT9-$GA$19)/($BZ$13*$CD$19),0)+IF($GT9>=IF($GA$20=$CD$18,$GA$20+0.000000001,$GA$20),-$CF$53*($GT9-$GA$20)/($BZ$13*$CD$19),0)+IF($GT9>=IF($GA$21=$CD$18,$GA$21+0.000000001,$GA$21),-$CF$54*($GT9-$GA$21)/($BZ$13*$CD$19),0)+IF($GT9>=IF($GA$22=$CD$18,$GA$22+0.000000001,$GA$22),-$CF$55*($GT9-$GA$22)/($BZ$13*$CD$19),0)+IF($GT9>=IF($GA$23=$CD$18,$GA$23+0.000000001,$GA$23),-$CF$56*($GT9-$GA$23)/($BZ$13*$CD$19),0)+IF($GT9>=IF($GA$24=$CD$18,$GA$24+0.000000001,$GA$24),-$CF$57*($GT9-$GA$24)/($BZ$13*$CD$19),0) -> 0 | GF9: =IF($GT9>=IF($GA$19=$CD$18,$GA$19+0.000000001,$GA$19),$CF$52*($GT9-$GA$19)^2/(2*$BZ$13*$CD$19),0)+IF($GT9>=IF($GA$20=$CD$18,$GA$20+0.000000001,$GA$20),$CF$53*($GT9-$GA$20)^2/(2*$BZ$13*$CD$19),0)+IF($GT9>=IF($GA$21=$CD$18,$GA$21+0.000000001,$GA$21),$CF$54*($GT9-$GA$21)^2/(2*$BZ$13*$CD$19),0)+IF($GT9>=IF($GA$22=$CD$18,$GA$22+0.000000001,$GA$22),$CF$55*($GT9-$GA$22)^2/(2*$BZ$13*$CD$19),0)+IF($GT9>=IF($GA$23=$CD$18,$GA$23+0.000000001,$GA$23),$CF$56*($GT9-$GA$23)^2/(2*$BZ$13*$CD$19),0)+IF($GT9>=IF($GA$24=$CD$18,$GA$24+0.000000001,$GA$24),$CF$57*($GT9-$GA$24)^2/(2*$BZ$13*$CD$19),0) -> 0 | GG9: =$GG$8 -> -840 | GH9: =$GH$8 -> -2640 | GI9: =$GI$8 -> -1.5890625e-06 | GJ9: =$GJ$8 -> 2.2521875e-06 | GK9: -840 | GL9: -2640 | GM9: -1.5890625e-06 | GN9: 2.2521875e-06 | GO9: =$GO$8 -> 447.1111111 | GP9: =$GP$8 -> -493.8333333 | GQ9: =$GQ$8 -> 0 | GR9: =$GR$8 -> 0 | GS9: =$GP9+$GO9*$GT9+$GL9 -> -451.1666667 | GT9: =$CD$18+0.0000000001 -> 6 | HF9: Fixed | HL9: Span #1 | HM9: Span #2 | HN9: Span #3 | HO9: Span #4 | HP9: Span #5
H10: Support 1 | P10: Pinned | BY10: No. Spans, N = | BZ10: =P9 -> 5 | CN10: +M(max) = | CO10: =MAX($CW$829:$CW$833) -> 406.2941392 | CP10: kN-m | CQ10: @ x = | CR10: =VLOOKUP($CO$10,$CW$829:$DB$833,4,FALSE) -> 3.5 | CS10: ="m ("&VLOOKUP($CO$10,$CW$829:$DB$833,6,FALSE)&")" -> m (Span #4) | CV10: Span #3 FEM(L): | CW10: =IF($CH$21=0,"---",-$CH$21*$CH$18) -> -264 | CX10: =IF($CH$21=0,"---",-$CH$21*$CH$18^2/2) -> -528 | CY10: =IF($CH$21=0,"---",-$CH$21*$CH$18^3/(6*$BZ$13*$CH$19)) -> -2.933333333e-07 | CZ10: =IF($CH$21=0,"---",$CH$21*$CH$18^4/(24*$BZ$13*$CH$19)) -> 2.933333333e-07 | DA10: =IF($CH$21=0,"---",IF($GT10=$CH$18,-$CH$21*($GT10-($GT10-$CH$18)),IF($GT10>=0,-$CH$21*$GT10,0))) -> 0 | DB10: =IF($CH$21=0,"---",IF($GT10=$CH$18,-$CH$21*($GT10^2-($GT10-$CH$18)^2)/2,IF($GT10>=0,-$CH$21*$GT10^2/2,0))) -> 0 | DC10: =IF($CH$21=0,"---",IF($GT10=$CH$18,-$CH$21*($GT10^3-($GT10-$CH$18)^3)/(6*$BZ$13*$CH$19),IF($GT10>=0,-$CH$21*$GT10^3/(6*$BZ$13*$CH$19),0))) -> 0 | DD10: =IF($CH$21=0,"---",IF($GT10=$CH$18,$CH$21*($GT10^4-($GT10-$CH$18)^4)/(24*$BZ$13*$CH$19),IF($GT10>=0,$CH$21*$GT10^4/(24*$BZ$13*$CH$19),0))) -> 0 | DE10: =IF($CH$25=$CJ$25,"---",IF(AND($CH$25="",$CI$25="",$CJ$25="",$CK$25=""),"---",(-$CI$25*($CH$18-$CH$25-($CH$18-$CJ$25)))+(-1/2*($CK$25-$CI$25)/($CJ$25-$CH$25)*(($CH$18-$CH$25)^2-($CH$18-$CJ$25)^2)+($CK$25-$CI$25)*($CH$18-$CJ$25)))) -> --- | DF10: =IF($CH$25=$CJ$25,"---",IF(AND($CH$25="",$CI$25="",$CJ$25="",$CK$25=""),"---",(-$CI$25/2*(($CH$18-$CH$25)^2-($CH$18-$CJ$25)^2))+(-1/6*($CK$25-$CI$25)/($CJ$25-$CH$25)*(($CH$18-$CH$25)^3-($CH$18-$CJ$25)^3)+($CK$25-$CI$25)/2*($CH$18-$CJ$25)^2))) -> --- | DG10: =IF($CH$25=$CJ$25,"---",IF(AND($CH$25="",$CI$25="",$CJ$25="",$CK$25=""),"---",(-$CI$25/(6*$BZ$13*$CH$19)*(($CH$18-$CH$25)^3-($CH$18-$CJ$25)^3))+(-1/(24*$BZ$13*$CH$19)*($CK$25-$CI$25)/($CJ$25-$CH$25)*(($CH$18-$CH$25)^4-($CH$18-$CJ$25)^4)+($CK$25-$CI$25)/(6*$BZ$13*$CH$19)*($CH$18-$CJ$25)^3))) -> --- | DH10: =IF($CH$25=$CJ$25,"---",IF(AND($CH$25="",$CI$25="",$CJ$25="",$CK$25=""),"---",($CI$25/(24*$BZ$13*$CH$19)*(($CH$18-$CH$25)^4-($CH$18-$CJ$25)^4))+(1/(120*$BZ$13*$CH$19)*($CK$25-$CI$25)/($CJ$25-$CH$25)*(($CH$18-$CH$25)^5-($CH$18-$CJ$25)^5)-($CK$25-$CI$25)/(24*$BZ$13*$CH$19)*($CH$18-$CJ$25)^4))) -> --- | DI10: =IF($CH$25=$CJ$25,"---",IF(AND($CH$25="",$CI$25="",$CJ$25="",$CK$25=""),"---",(IF($GT10>=$CJ$25,-$CI$25*($GT10-$CH$25-($GT10-$CJ$25)),IF($GT10>=$CH$25,-$CI$25*($GT10-$CH$25),0)))+(IF($GT10>=$CJ$25,-1/2*($CK$25-$CI$25)/($CJ$25-$CH$25)*(($GT10-$CH$25)^2-($GT10-$CJ$25)^2)+($CK$25-$CI$25)*($GT10-$CJ$25),IF($GT10>=$CH$25,-1/2*($CK$25-$CI$25)/($CJ$25-$CH$25)*($GT10-$CH$25)^2,0))))) -> --- | DJ10: =IF($CH$25=$CJ$25,"---",IF(AND($CH$25="",$CI$25="",$CJ$25="",$CK$25=""),"---",(IF($GT10>=$CJ$25,-$CI$25/2*(($GT10-$CH$25)^2-($GT10-$CJ$25)^2),IF($GT10>=$CH$25,-$CI$25/2*($GT10-$CH$25)^2,0)))+(IF($GT10>=$CJ$25,-1/6*($CK$25-$CI$25)/($CJ$25-$CH$25)*(($GT10-$CH$25)^3-($GT10-$CJ$25)^3)+($CK$25-$CI$25)/2*($GT10-$CJ$25)^2,IF($GT10>=$CH$25,-1/6*($CK$25-$CI$25)/($CJ$25-$CH$25)*($GT10-$CH$25)^3,0))))) -> --- | DK10: =IF($CH$25=$CJ$25,"---",IF(AND($CH$25="",$CI$25="",$CJ$25="",$CK$25=""),"---",(IF($GT10>=$CJ$25,-$CI$25/(6*$BZ$13*$CH$19)*(($GT10-$CH$25)^3-($GT10-$CJ$25)^3),IF($GT10>=$CH$25,-$CI$25/(6*$BZ$13*$CH$19)*($GT10-$CH$25)^3,0)))+(IF($GT10>=$CJ$25,-1/(24*$BZ$13*$CH$19)*($CK$25-$CI$25)/($CJ$25-$CH$25)*(($GT10-$CH$25)^4-($GT10-$CJ$25)^4)+($CK$25-$CI$25)/(6*$BZ$13*$CH$19)*($GT10-$CJ$25)^3,IF($GT10>=$CH$25,-1/(24*$BZ$13*$CH$19)*($CK$25-$CI$25)/($CJ$25-$CH$25)*($GT10-$CH$25)^4,0))))) -> --- | DL10: =IF($CH$25=$CJ$25,"---",IF(AND($CH$25="",$CI$25="",$CJ$25="",$CK$25=""),"---",(IF($GT10>=$CJ$25,$CI$25/(24*$BZ$13*$CH$19)*(($GT10-$CH$25)^4-($GT10-$CJ$25)^4),IF($GT10>=$CH$25,$CI$25/(24*$BZ$13*$CH$19)*($GT10-$CH$25)^4,0)))+(IF($GT10>=$CJ$25,1/(120*$BZ$13*$CH$19)*($CK$25-$CI$25)/($CJ$25-$CH$25)*(($GT10-$CH$25)^5-($GT10-$CJ$25)^5)-($CK$25-$CI$25)/(24*$BZ$13*$CH$19)*($GT10-$CJ$25)^4,IF($GT10>=$CH$25,1/(120*$BZ$13*$CH$19)*($CK$25-$CI$25)/($CJ$25-$CH$25)*($GT10-$CH$25)^5,0))))) -> --- | DM10: =IF($CH$26=$CJ$26,"---",IF(AND($CH$26="",$CI$26="",$CJ$26="",$CK$26=""),"---",(-$CI$26*($CH$18-$CH$26-($CH$18-$CJ$26)))+(-1/2*($CK$26-$CI$26)/($CJ$26-$CH$26)*(($CH$18-$CH$26)^2-($CH$18-$CJ$26)^2)+($CK$26-$CI$26)*($CH$18-$CJ$26)))) -> --- | DN10: =IF($CH$26=$CJ$26,"---",IF(AND($CH$26="",$CI$26="",$CJ$26="",$CK$26=""),"---",(-$CI$26/2*(($CH$18-$CH$26)^2-($CH$18-$CJ$26)^2))+(-1/6*($CK$26-$CI$26)/($CJ$26-$CH$26)*(($CH$18-$CH$26)^3-($CH$18-$CJ$26)^3)+($CK$26-$CI$26)/2*($CH$18-$CJ$26)^2))) -> --- | DO10: =IF($CH$26=$CJ$26,"---",IF(AND($CH$26="",$CI$26="",$CJ$26="",$CK$26=""),"---",(-$CI$26/(6*$BZ$13*$CH$19)*(($CH$18-$CH$26)^3-($CH$18-$CJ$26)^3))+(-1/(24*$BZ$13*$CH$19)*($CK$26-$CI$26)/($CJ$26-$CH$26)*(($CH$18-$CH$26)^4-($CH$18-$CJ$26)^4)+($CK$26-$CI$26)/(6*$BZ$13*$CH$19)*($CH$18-$CJ$26)^3))) -> --- | DP10: =IF($CH$26=$CJ$26,"---",IF(AND($CH$26="",$CI$26="",$CJ$26="",$CK$26=""),"---",($CI$26/(24*$BZ$13*$CH$19)*(($CH$18-$CH$26)^4-($CH$18-$CJ$26)^4))+(1/(120*$BZ$13*$CH$19)*($CK$26-$CI$26)/($CJ$26-$CH$26)*(($CH$18-$CH$26)^5-($CH$18-$CJ$26)^5)-($CK$26-$CI$26)/(24*$BZ$13*$CH$19)*($CH$18-$CJ$26)^4))) -> --- | DQ10: =IF($CH$26=$CJ$26,"---",IF(AND($CH$26="",$CI$26="",$CJ$26="",$CK$26=""),"---",(IF($GT10>=$CJ$26,-$CI$26*($GT10-$CH$26-($GT10-$CJ$26)),IF($GT10>=$CH$26,-$CI$26*($GT10-$CH$26),0)))+(IF($GT10>=$CJ$26,-1/2*($CK$26-$CI$26)/($CJ$26-$CH$26)*(($GT10-$CH$26)^2-($GT10-$CJ$26)^2)+($CK$26-$CI$26)*($GT10-$CJ$26),IF($GT10>=$CH$26,-1/2*($CK$26-$CI$26)/($CJ$26-$CH$26)*($GT10-$CH$26)^2,0))))) -> --- | DR10: =IF($CH$26=$CJ$26,"---",IF(AND($CH$26="",$CI$26="",$CJ$26="",$CK$26=""),"---",(IF($GT10>=$CJ$26,-$CI$26/2*(($GT10-$CH$26)^2-($GT10-$CJ$26)^2),IF($GT10>=$CH$26,-$CI$26/2*($GT10-$CH$26)^2,0)))+(IF($GT10>=$CJ$26,-1/6*($CK$26-$CI$26)/($CJ$26-$CH$26)*(($GT10-$CH$26)^3-($GT10-$CJ$26)^3)+($CK$26-$CI$26)/2*($GT10-$CJ$26)^2,IF($GT10>=$CH$26,-1/6*($CK$26-$CI$26)/($CJ$26-$CH$26)*($GT10-$CH$26)^3,0))))) -> --- | DS10: =IF($CH$26=$CJ$26,"---",IF(AND($CH$26="",$CI$26="",$CJ$26="",$CK$26=""),"---",(IF($GT10>=$CJ$26,-$CI$26/(6*$BZ$13*$CH$19)*(($GT10-$CH$26)^3-($GT10-$CJ$26)^3),IF($GT10>=$CH$26,-$CI$26/(6*$BZ$13*$CH$19)*($GT10-$CH$26)^3,0)))+(IF($GT10>=$CJ$26,-1/(24*$BZ$13*$CH$19)*($CK$26-$CI$26)/($CJ$26-$CH$26)*(($GT10-$CH$26)^4-($GT10-$CJ$26)^4)+($CK$26-$CI$26)/(6*$BZ$13*$CH$19)*($GT10-$CJ$26)^3,IF($GT10>=$CH$26,-1/(24*$BZ$13*$CH$19)*($CK$26-$CI$26)/($CJ$26-$CH$26)*($GT10-$CH$26)^4,0))))) -> --- | DT10: =IF($CH$26=$CJ$26,"---",IF(AND($CH$26="",$CI$26="",$CJ$26="",$CK$26=""),"---",(IF($GT10>=$CJ$26,$CI$26/(24*$BZ$13*$CH$19)*(($GT10-$CH$26)^4-($GT10-$CJ$26)^4),IF($GT10>=$CH$26,$CI$26/(24*$BZ$13*$CH$19)*($GT10-$CH$26)^4,0)))+(IF($GT10>=$CJ$26,1/(120*$BZ$13*$CH$19)*($CK$26-$CI$26)/($CJ$26-$CH$26)*(($GT10-$CH$26)^5-($GT10-$CJ$26)^5)-($CK$26-$CI$26)/(24*$BZ$13*$CH$19)*($GT10-$CJ$26)^4,IF($GT10>=$CH$26,1/(120*$BZ$13*$CH$19)*($CK$26-$CI$26)/($CJ$26-$CH$26)*($GT10-$CH$26)^5,0))))) -> --- | DU10: =IF($CH$27=$CJ$27,"---",IF(AND($CH$27="",$CI$27="",$CJ$27="",$CK$27=""),"---",(-$CI$27*($CH$18-$CH$27-($CH$18-$CJ$27)))+(-1/2*($CK$27-$CI$27)/($CJ$27-$CH$27)*(($CH$18-$CH$27)^2-($CH$18-$CJ$27)^2)+($CK$27-$CI$27)*($CH$18-$CJ$27)))) -> --- | DV10: =IF($CH$27=$CJ$27,"---",IF(AND($CH$27="",$CI$27="",$CJ$27="",$CK$27=""),"---",(-$CI$27/2*(($CH$18-$CH$27)^2-($CH$18-$CJ$27)^2))+(-1/6*($CK$27-$CI$27)/($CJ$27-$CH$27)*(($CH$18-$CH$27)^3-($CH$18-$CJ$27)^3)+($CK$27-$CI$27)/2*($CH$18-$CJ$27)^2))) -> --- | DW10: =IF($CH$27=$CJ$27,"---",IF(AND($CH$27="",$CI$27="",$CJ$27="",$CK$27=""),"---",(-$CI$27/(6*$BZ$13*$CH$19)*(($CH$18-$CH$27)^3-($CH$18-$CJ$27)^3))+(-1/(24*$BZ$13*$CH$19)*($CK$27-$CI$27)/($CJ$27-$CH$27)*(($CH$18-$CH$27)^4-($CH$18-$CJ$27)^4)+($CK$27-$CI$27)/(6*$BZ$13*$CH$19)*($CH$18-$CJ$27)^3))) -> --- | DX10: =IF($CH$27=$CJ$27,"---",IF(AND($CH$27="",$CI$27="",$CJ$27="",$CK$27=""),"---",($CI$27/(24*$BZ$13*$CH$19)*(($CH$18-$CH$27)^4-($CH$18-$CJ$27)^4))+(1/(120*$BZ$13*$CH$19)*($CK$27-$CI$27)/($CJ$27-$CH$27)*(($CH$18-$CH$27)^5-($CH$18-$CJ$27)^5)-($CK$27-$CI$27)/(24*$BZ$13*$CH$19)*($CH$18-$CJ$27)^4))) -> --- | DY10: =IF($CH$27=$CJ$27,"---",IF(AND($CH$27="",$CI$27="",$CJ$27="",$CK$27=""),"---",(IF($GT10>=$CJ$27,-$CI$27*($GT10-$CH$27-($GT10-$CJ$27)),IF($GT10>=$CH$27,-$CI$27*($GT10-$CH$27),0)))+(IF($GT10>=$CJ$27,-1/2*($CK$27-$CI$27)/($CJ$27-$CH$27)*(($GT10-$CH$27)^2-($GT10-$CJ$27)^2)+($CK$27-$CI$27)*($GT10-$CJ$27),IF($GT10>=$CH$27,-1/2*($CK$27-$CI$27)/($CJ$27-$CH$27)*($GT10-$CH$27)^2,0))))) -> --- | DZ10: =IF($CH$27=$CJ$27,"---",IF(AND($CH$27="",$CI$27="",$CJ$27="",$CK$27=""),"---",(IF($GT10>=$CJ$27,-$CI$27/2*(($GT10-$CH$27)^2-($GT10-$CJ$27)^2),IF($GT10>=$CH$27,-$CI$27/2*($GT10-$CH$27)^2,0)))+(IF($GT10>=$CJ$27,-1/6*($CK$27-$CI$27)/($CJ$27-$CH$27)*(($GT10-$CH$27)^3-($GT10-$CJ$27)^3)+($CK$27-$CI$27)/2*($GT10-$CJ$27)^2,IF($GT10>=$CH$27,-1/6*($CK$27-$CI$27)/($CJ$27-$CH$27)*($GT10-$CH$27)^3,0))))) -> --- | EA10: =IF($CH$27=$CJ$27,"---",IF(AND($CH$27="",$CI$27="",$CJ$27="",$CK$27=""),"---",(IF($GT10>=$CJ$27,-$CI$27/(6*$BZ$13*$CH$19)*(($GT10-$CH$27)^3-($GT10-$CJ$27)^3),IF($GT10>=$CH$27,-$CI$27/(6*$BZ$13*$CH$19)*($GT10-$CH$27)^3,0)))+(IF($GT10>=$CJ$27,-1/(24*$BZ$13*$CH$19)*($CK$27-$CI$27)/($CJ$27-$CH$27)*(($GT10-$CH$27)^4-($GT10-$CJ$27)^4)+($CK$27-$CI$27)/(6*$BZ$13*$CH$19)*($GT10-$CJ$27)^3,IF($GT10>=$CH$27,-1/(24*$BZ$13*$CH$19)*($CK$27-$CI$27)/($CJ$27-$CH$27)*($GT10-$CH$27)^4,0))))) -> --- | EB10: =IF($CH$27=$CJ$27,"---",IF(AND($CH$27="",$CI$27="",$CJ$27="",$CK$27=""),"---",(IF($GT10>=$CJ$27,$CI$27/(24*$BZ$13*$CH$19)*(($GT10-$CH$27)^4-($GT10-$CJ$27)^4),IF($GT10>=$CH$27,$CI$27/(24*$BZ$13*$CH$19)*($GT10-$CH$27)^4,0)))+(IF($GT10>=$CJ$27,1/(120*$BZ$13*$CH$19)*($CK$27-$CI$27)/($CJ$27-$CH$27)*(($GT10-$CH$27)^5-($GT10-$CJ$27)^5)-($CK$27-$CI$27)/(24*$BZ$13*$CH$19)*($GT10-$CJ$27)^4,IF($GT10>=$CH$27,1/(120*$BZ$13*$CH$19)*($CK$27-$CI$27)/($CJ$27-$CH$27)*($GT10-$CH$27)^5,0))))) -> --- | EC10: =IF($CH$28=$CJ$28,"---",IF(AND($CH$28="",$CI$28="",$CJ$28="",$CK$28=""),"---",(-$CI$28*($CH$18-$CH$28-($CH$18-$CJ$28)))+(-1/2*($CK$28-$CI$28)/($CJ$28-$CH$28)*(($CH$18-$CH$28)^2-($CH$18-$CJ$28)^2)+($CK$28-$CI$28)*($CH$18-$CJ$28)))) -> --- | ED10: =IF($CH$28=$CJ$28,"---",IF(AND($CH$28="",$CI$28="",$CJ$28="",$CK$28=""),"---",(-$CI$28/2*(($CH$18-$CH$28)^2-($CH$18-$CJ$28)^2))+(-1/6*($CK$28-$CI$28)/($CJ$28-$CH$28)*(($CH$18-$CH$28)^3-($CH$18-$CJ$28)^3)+($CK$28-$CI$28)/2*($CH$18-$CJ$28)^2))) -> --- | EE10: =IF($CH$28=$CJ$28,"---",IF(AND($CH$28="",$CI$28="",$CJ$28="",$CK$28=""),"---",(-$CI$28/(6*$BZ$13*$CH$19)*(($CH$18-$CH$28)^3-($CH$18-$CJ$28)^3))+(-1/(24*$BZ$13*$CH$19)*($CK$28-$CI$28)/($CJ$28-$CH$28)*(($CH$18-$CH$28)^4-($CH$18-$CJ$28)^4)+($CK$28-$CI$28)/(6*$BZ$13*$CH$19)*($CH$18-$CJ$28)^3))) -> --- | EF10: =IF($CH$28=$CJ$28,"---",IF(AND($CH$28="",$CI$28="",$CJ$28="",$CK$28=""),"---",($CI$28/(24*$BZ$13*$CH$19)*(($CH$18-$CH$28)^4-($CH$18-$CJ$28)^4))+(1/(120*$BZ$13*$CH$19)*($CK$28-$CI$28)/($CJ$28-$CH$28)*(($CH$18-$CH$28)^5-($CH$18-$CJ$28)^5)-($CK$28-$CI$28)/(24*$BZ$13*$CH$19)*($CH$18-$CJ$28)^4))) -> --- | EG10: =IF($CH$28=$CJ$28,"---",IF(AND($CH$28="",$CI$28="",$CJ$28="",$CK$28=""),"---",(IF($GT10>=$CJ$28,-$CI$28*($GT10-$CH$28-($GT10-$CJ$28)),IF($GT10>=$CH$28,-$CI$28*($GT10-$CH$28),0)))+(IF($GT10>=$CJ$28,-1/2*($CK$28-$CI$28)/($CJ$28-$CH$28)*(($GT10-$CH$28)^2-($GT10-$CJ$28)^2)+($CK$28-$CI$28)*($GT10-$CJ$28),IF($GT10>=$CH$28,-1/2*($CK$28-$CI$28)/($CJ$28-$CH$28)*($GT10-$CH$28)^2,0))))) -> --- | EH10: =IF($CH$28=$CJ$28,"---",IF(AND($CH$28="",$CI$28="",$CJ$28="",$CK$28=""),"---",(IF($GT10>=$CJ$28,-$CI$28/2*(($GT10-$CH$28)^2-($GT10-$CJ$28)^2),IF($GT10>=$CH$28,-$CI$28/2*($GT10-$CH$28)^2,0)))+(IF($GT10>=$CJ$28,-1/6*($CK$28-$CI$28)/($CJ$28-$CH$28)*(($GT10-$CH$28)^3-($GT10-$CJ$28)^3)+($CK$28-$CI$28)/2*($GT10-$CJ$28)^2,IF($GT10>=$CH$28,-1/6*($CK$28-$CI$28)/($CJ$28-$CH$28)*($GT10-$CH$28)^3,0))))) -> --- | EI10: =IF($CH$28=$CJ$28,"---",IF(AND($CH$28="",$CI$28="",$CJ$28="",$CK$28=""),"---",(IF($GT10>=$CJ$28,-$CI$28/(6*$BZ$13*$CH$19)*(($GT10-$CH$28)^3-($GT10-$CJ$28)^3),IF($GT10>=$CH$28,-$CI$28/(6*$BZ$13*$CH$19)*($GT10-$CH$28)^3,0)))+(IF($GT10>=$CJ$28,-1/(24*$BZ$13*$CH$19)*($CK$28-$CI$28)/($CJ$28-$CH$28)*(($GT10-$CH$28)^4-($GT10-$CJ$28)^4)+($CK$28-$CI$28)/(6*$BZ$13*$CH$19)*($GT10-$CJ$28)^3,IF($GT10>=$CH$28,-1/(24*$BZ$13*$CH$19)*($CK$28-$CI$28)/($CJ$28-$CH$28)*($GT10-$CH$28)^4,0))))) -> --- | EJ10: =IF($CH$28=$CJ$28,"---",IF(AND($CH$28="",$CI$28="",$CJ$28="",$CK$28=""),"---",(IF($GT10>=$CJ$28,$CI$28/(24*$BZ$13*$CH$19)*(($GT10-$CH$28)^4-($GT10-$CJ$28)^4),IF($GT10>=$CH$28,$CI$28/(24*$BZ$13*$CH$19)*($GT10-$CH$28)^4,0)))+(IF($GT10>=$CJ$28,1/(120*$BZ$13*$CH$19)*($CK$28-$CI$28)/($CJ$28-$CH$28)*(($GT10-$CH$28)^5-($GT10-$CJ$28)^5)-($CK$28-$CI$28)/(24*$BZ$13*$CH$19)*($GT10-$CJ$28)^4,IF($GT10>=$CH$28,1/(120*$BZ$13*$CH$19)*($CK$28-$CI$28)/($CJ$28-$CH$28)*($GT10-$CH$28)^5,0))))) -> --- | EK10: =IF($CH$29=$CJ$29,"---",IF(AND($CH$29="",$CI$29="",$CJ$29="",$CK$29=""),"---",(-$CI$29*($CH$18-$CH$29-($CH$18-$CJ$29)))+(-1/2*($CK$29-$CI$29)/($CJ$29-$CH$29)*(($CH$18-$CH$29)^2-($CH$18-$CJ$29)^2)+($CK$29-$CI$29)*($CH$18-$CJ$29)))) -> --- | EL10: =IF($CH$29=$CJ$29,"---",IF(AND($CH$29="",$CI$29="",$CJ$29="",$CK$29=""),"---",(-$CI$29/2*(($CH$18-$CH$29)^2-($CH$18-$CJ$29)^2))+(-1/6*($CK$29-$CI$29)/($CJ$29-$CH$29)*(($CH$18-$CH$29)^3-($CH$18-$CJ$29)^3)+($CK$29-$CI$29)/2*($CH$18-$CJ$29)^2))) -> --- | EM10: =IF($CH$29=$CJ$29,"---",IF(AND($CH$29="",$CI$29="",$CJ$29="",$CK$29=""),"---",(-$CI$29/(6*$BZ$13*$CH$19)*(($CH$18-$CH$29)^3-($CH$18-$CJ$29)^3))+(-1/(24*$BZ$13*$CH$19)*($CK$29-$CI$29)/($CJ$29-$CH$29)*(($CH$18-$CH$29)^4-($CH$18-$CJ$29)^4)+($CK$29-$CI$29)/(6*$BZ$13*$CH$19)*($CH$18-$CJ$29)^3))) -> --- | EN10: =IF($CH$29=$CJ$29,"---",IF(AND($CH$29="",$CI$29="",$CJ$29="",$CK$29=""),"---",($CI$29/(24*$BZ$13*$CH$19)*(($CH$18-$CH$29)^4-($CH$18-$CJ$29)^4))+(1/(120*$BZ$13*$CH$19)*($CK$29-$CI$29)/($CJ$29-$CH$29)*(($CH$18-$CH$29)^5-($CH$18-$CJ$29)^5)-($CK$29-$CI$29)/(24*$BZ$13*$CH$19)*($CH$18-$CJ$29)^4))) -> --- | EO10: =IF($CH$29=$CJ$29,"---",IF(AND($CH$29="",$CI$29="",$CJ$29="",$CK$29=""),"---",(IF($GT10>=$CJ$29,-$CI$29*($GT10-$CH$29-($GT10-$CJ$29)),IF($GT10>=$CH$29,-$CI$29*($GT10-$CH$29),0)))+(IF($GT10>=$CJ$29,-1/2*($CK$29-$CI$29)/($CJ$29-$CH$29)*(($GT10-$CH$29)^2-($GT10-$CJ$29)^2)+($CK$29-$CI$29)*($GT10-$CJ$29),IF($GT10>=$CH$29,-1/2*($CK$29-$CI$29)/($CJ$29-$CH$29)*($GT10-$CH$29)^2,0))))) -> --- | EP10: =IF($CH$29=$CJ$29,"---",IF(AND($CH$29="",$CI$29="",$CJ$29="",$CK$29=""),"---",(IF($GT10>=$CJ$29,-$CI$29/2*(($GT10-$CH$29)^2-($GT10-$CJ$29)^2),IF($GT10>=$CH$29,-$CI$29/2*($GT10-$CH$29)^2,0)))+(IF($GT10>=$CJ$29,-1/6*($CK$29-$CI$29)/($CJ$29-$CH$29)*(($GT10-$CH$29)^3-($GT10-$CJ$29)^3)+($CK$29-$CI$29)/2*($GT10-$CJ$29)^2,IF($GT10>=$CH$29,-1/6*($CK$29-$CI$29)/($CJ$29-$CH$29)*($GT10-$CH$29)^3,0))))) -> --- | EQ10: =IF($CH$29=$CJ$29,"---",IF(AND($CH$29="",$CI$29="",$CJ$29="",$CK$29=""),"---",(IF($GT10>=$CJ$29,-$CI$29/(6*$BZ$13*$CH$19)*(($GT10-$CH$29)^3-($GT10-$CJ$29)^3),IF($GT10>=$CH$29,-$CI$29/(6*$BZ$13*$CH$19)*($GT10-$CH$29)^3,0)))+(IF($GT10>=$CJ$29,-1/(24*$BZ$13*$CH$19)*($CK$29-$CI$29)/($CJ$29-$CH$29)*(($GT10-$CH$29)^4-($GT10-$CJ$29)^4)+($CK$29-$CI$29)/(6*$BZ$13*$CH$19)*($GT10-$CJ$29)^3,IF($GT10>=$CH$29,-1/(24*$BZ$13*$CH$19)*($CK$29-$CI$29)/($CJ$29-$CH$29)*($GT10-$CH$29)^4,0))))) -> --- | ER10: =IF($CH$29=$CJ$29,"---",IF(AND($CH$29="",$CI$29="",$CJ$29="",$CK$29=""),"---",(IF($GT10>=$CJ$29,$CI$29/(24*$BZ$13*$CH$19)*(($GT10-$CH$29)^4-($GT10-$CJ$29)^4),IF($GT10>=$CH$29,$CI$29/(24*$BZ$13*$CH$19)*($GT10-$CH$29)^4,0)))+(IF($GT10>=$CJ$29,1/(120*$BZ$13*$CH$19)*($CK$29-$CI$29)/($CJ$29-$CH$29)*(($GT10-$CH$29)^5-($GT10-$CJ$29)^5)-($CK$29-$CI$29)/(24*$BZ$13*$CH$19)*($GT10-$CJ$29)^4,IF($GT10>=$CH$29,1/(120*$BZ$13*$CH$19)*($CK$29-$CI$29)/($CJ$29-$CH$29)*($GT10-$CH$29)^5,0))))) -> --- | ES10: =IF($CH$30=$CJ$30,"---",IF(AND($CH$30="",$CI$30="",$CJ$30="",$CK$30=""),"---",(-$CI$30*($CH$18-$CH$30-($CH$18-$CJ$30)))+(-1/2*($CK$30-$CI$30)/($CJ$30-$CH$30)*(($CH$18-$CH$30)^2-($CH$18-$CJ$30)^2)+($CK$30-$CI$30)*($CH$18-$CJ$30)))) -> --- | ET10: =IF($CH$30=$CJ$30,"---",IF(AND($CH$30="",$CI$30="",$CJ$30="",$CK$30=""),"---",(-$CI$30/2*(($CH$18-$CH$30)^2-($CH$18-$CJ$30)^2))+(-1/6*($CK$30-$CI$30)/($CJ$30-$CH$30)*(($CH$18-$CH$30)^3-($CH$18-$CJ$30)^3)+($CK$30-$CI$30)/2*($CH$18-$CJ$30)^2))) -> --- | EU10: =IF($CH$30=$CJ$30,"---",IF(AND($CH$30="",$CI$30="",$CJ$30="",$CK$30=""),"---",(-$CI$30/(6*$BZ$13*$CH$19)*(($CH$18-$CH$30)^3-($CH$18-$CJ$30)^3))+(-1/(24*$BZ$13*$CH$19)*($CK$30-$CI$30)/($CJ$30-$CH$30)*(($CH$18-$CH$30)^4-($CH$18-$CJ$30)^4)+($CK$30-$CI$30)/(6*$BZ$13*$CH$19)*($CH$18-$CJ$30)^3))) -> --- | EV10: =IF($CH$30=$CJ$30,"---",IF(AND($CH$30="",$CI$30="",$CJ$30="",$CK$30=""),"---",($CI$30/(24*$BZ$13*$CH$19)*(($CH$18-$CH$30)^4-($CH$18-$CJ$30)^4))+(1/(120*$BZ$13*$CH$19)*($CK$30-$CI$30)/($CJ$30-$CH$30)*(($CH$18-$CH$30)^5-($CH$18-$CJ$30)^5)-($CK$30-$CI$30)/(24*$BZ$13*$CH$19)*($CH$18-$CJ$30)^4))) -> --- | EW10: =IF($CH$30=$CJ$30,"---",IF(AND($CH$30="",$CI$30="",$CJ$30="",$CK$30=""),"---",(IF($GT10>=$CJ$30,-$CI$30*($GT10-$CH$30-($GT10-$CJ$30)),IF($GT10>=$CH$30,-$CI$30*($GT10-$CH$30),0)))+(IF($GT10>=$CJ$30,-1/2*($CK$30-$CI$30)/($CJ$30-$CH$30)*(($GT10-$CH$30)^2-($GT10-$CJ$30)^2)+($CK$30-$CI$30)*($GT10-$CJ$30),IF($GT10>=$CH$30,-1/2*($CK$30-$CI$30)/($CJ$30-$CH$30)*($GT10-$CH$30)^2,0))))) -> --- | EX10: =IF($CH$30=$CJ$30,"---",IF(AND($CH$30="",$CI$30="",$CJ$30="",$CK$30=""),"---",(IF($GT10>=$CJ$30,-$CI$30/2*(($GT10-$CH$30)^2-($GT10-$CJ$30)^2),IF($GT10>=$CH$30,-$CI$30/2*($GT10-$CH$30)^2,0)))+(IF($GT10>=$CJ$30,-1/6*($CK$30-$CI$30)/($CJ$30-$CH$30)*(($GT10-$CH$30)^3-($GT10-$CJ$30)^3)+($CK$30-$CI$30)/2*($GT10-$CJ$30)^2,IF($GT10>=$CH$30,-1/6*($CK$30-$CI$30)/($CJ$30-$CH$30)*($GT10-$CH$30)^3,0))))) -> --- | EY10: =IF($CH$30=$CJ$30,"---",IF(AND($CH$30="",$CI$30="",$CJ$30="",$CK$30=""),"---",(IF($GT10>=$CJ$30,-$CI$30/(6*$BZ$13*$CH$19)*(($GT10-$CH$30)^3-($GT10-$CJ$30)^3),IF($GT10>=$CH$30,-$CI$30/(6*$BZ$13*$CH$19)*($GT10-$CH$30)^3,0)))+(IF($GT10>=$CJ$30,-1/(24*$BZ$13*$CH$19)*($CK$30-$CI$30)/($CJ$30-$CH$30)*(($GT10-$CH$30)^4-($GT10-$CJ$30)^4)+($CK$30-$CI$30)/(6*$BZ$13*$CH$19)*($GT10-$CJ$30)^3,IF($GT10>=$CH$30,-1/(24*$BZ$13*$CH$19)*($CK$30-$CI$30)/($CJ$30-$CH$30)*($GT10-$CH$30)^4,0))))) -> --- | EZ10: =IF($CH$30=$CJ$30,"---",IF(AND($CH$30="",$CI$30="",$CJ$30="",$CK$30=""),"---",(IF($GT10>=$CJ$30,$CI$30/(24*$BZ$13*$CH$19)*(($GT10-$CH$30)^4-($GT10-$CJ$30)^4),IF($GT10>=$CH$30,$CI$30/(24*$BZ$13*$CH$19)*($GT10-$CH$30)^4,0)))+(IF($GT10>=$CJ$30,1/(120*$BZ$13*$CH$19)*($CK$30-$CI$30)/($CJ$30-$CH$30)*(($GT10-$CH$30)^5-($GT10-$CJ$30)^5)-($CK$30-$CI$30)/(24*$BZ$13*$CH$19)*($GT10-$CJ$30)^4,IF($GT10>=$CH$30,1/(120*$BZ$13*$CH$19)*($CK$30-$CI$30)/($CJ$30-$CH$30)*($GT10-$CH$30)^5,0))))) -> --- | FQ10: =-$CJ$35+-$CJ$36+-$CJ$37+-$CJ$38+-$CJ$39+-$CJ$40 -> 0 | FR10: =-$CJ$35*($CH$18-$CH$35)+-$CJ$36*($CH$18-$CH$36)+-$CJ$37*($CH$18-$CH$37)+-$CJ$38*($CH$18-$CH$38)+-$CJ$39*($CH$18-$CH$39)+-$CJ$40*($CH$18-$CH$40) -> 0 | FS10: =-$CJ$35*($CH$18-$CH$35)^2/(2*$BZ$13*$CH$19)+-$CJ$36*($CH$18-$CH$36)^2/(2*$BZ$13*$CH$19)+-$CJ$37*($CH$18-$CH$37)^2/(2*$BZ$13*$CH$19)+-$CJ$38*($CH$18-$CH$38)^2/(2*$BZ$13*$CH$19)+-$CJ$39*($CH$18-$CH$39)^2/(2*$BZ$13*$CH$19)+-$CJ$40*($CH$18-$CH$40)^2/(2*$BZ$13*$CH$19) -> 0 | FT10: =$CJ$35*($CH$18-$CH$35)^3/(6*$BZ$13*$CH$19)+$CJ$36*($CH$18-$CH$36)^3/(6*$BZ$13*$CH$19)+$CJ$37*($CH$18-$CH$37)^3/(6*$BZ$13*$CH$19)+$CJ$38*($CH$18-$CH$38)^3/(6*$BZ$13*$CH$19)+$CJ$39*($CH$18-$CH$39)^3/(6*$BZ$13*$CH$19)+$CJ$40*($CH$18-$CH$40)^3/(6*$BZ$13*$CH$19) -> 0 | FU10: =IF($GT10>$CH$35,-$CJ$35,0)+IF($GT10>$CH$36,-$CJ$36,0)+IF($GT10>$CH$37,-$CJ$37,0)+IF($GT10>$CH$38,-$CJ$38,0)+IF($GT10>$CH$39,-$CJ$39,0)+IF($GT10>$CH$40,-$CJ$40,0) -> 0 | FV10: =IF($GT10>$CH$35,-$CJ$35*($GT10-$CH$35),0)+IF($GT10>$CH$36,-$CJ$36*($GT10-$CH$36),0)+IF($GT10>$CH$37,-$CJ$37*($GT10-$CH$37),0)+IF($GT10>$CH$38,-$CJ$38*($GT10-$CH$38),0)+IF($GT10>$CH$39,-$CJ$39*($GT10-$CH$39),0)+IF($GT10>$CH$40,-$CJ$40*($GT10-$CH$40),0) -> 0 | FW10: =IF($GT10>$CH$35,-$CJ$35*($GT10-$CH$35)^2/(2*$BZ$13*$CH$19),0)+IF($GT10>$CH$36,-$CJ$36*($GT10-$CH$36)^2/(2*$BZ$13*$CH$19),0)+IF($GT10>$CH$37,-$CJ$37*($GT10-$CH$37)^2/(2*$BZ$13*$CH$19),0)+IF($GT10>$CH$38,-$CJ$38*($GT10-$CH$38)^2/(2*$BZ$13*$CH$19),0)+IF($GT10>$CH$39,-$CJ$39*($GT10-$CH$39)^2/(2*$BZ$13*$CH$19),0)+IF($GT10>$CH$40,-$CJ$40*($GT10-$CH$40)^2/(2*$BZ$13*$CH$19),0) -> 0 | FX10: =IF($GT10>$CH$35,$CJ$35*($GT10-$CH$35)^3/(6*$BZ$13*$CH$19),0)+IF($GT10>$CH$36,$CJ$36*($GT10-$CH$36)^3/(6*$BZ$13*$CH$19),0)+IF($GT10>$CH$37,$CJ$37*($GT10-$CH$37)^3/(6*$BZ$13*$CH$19),0)+IF($GT10>$CH$38,$CJ$38*($GT10-$CH$38)^3/(6*$BZ$13*$CH$19),0)+IF($GT10>$CH$39,$CJ$39*($GT10-$CH$39)^3/(6*$BZ$13*$CH$19),0)+IF($GT10>$CH$40,$CJ$40*($GT10-$CH$40)^3/(6*$BZ$13*$CH$19),0) -> 0 | FY10: =0+0+0+0 -> 0 | FZ10: =-$CJ$52+-$CJ$53+-$CJ$54+-$CJ$55+-CJ56+-CJ57 -> 0 | GA10: =-$CJ$52*($CH$18-$GB$19)/($BZ$13*$CH$19)+-$CJ$53*($CH$18-$GB$20)/($BZ$13*$CH$19)+-$CJ$54*($CH$18-$GB$21)/($BZ$13*$CH$19)+-$CJ$55*($CH$18-$GB$22)/($BZ$13*$CH$19)+-$CJ$56*($CH$18-$GB$23)/($BZ$13*$CH$19)+-$CJ$57*($CH$18-$GB$24)/($BZ$13*$CH$19) -> 0 | GB10: =$CJ$52*($CH$18-$GB$19)^2/(2*$BZ$13*$CH$19)+$CJ$53*($CH$18-$GB$20)^2/(2*$BZ$13*$CH$19)+$CJ$54*($CH$18-$GB$21)^2/(2*$BZ$13*$CH$19)+$CJ$55*($CH$18-$GB$22)^2/(2*$BZ$13*$CH$19)+$CJ$56*($CH$18-$GB$23)^2/(2*$BZ$13*$CH$19)+$CJ$57*($CH$18-$GB$24)^2/(2*$BZ$13*$CH$19) -> 0 | GC10: =IF($GT10>=IF($GB$19=$CH$18,$GB$19+0.000000001,$GB$19),0,0)+IF($GT10>=IF($GB$20=$CH$18,$GB$20+0.000000001,$GB$20),0,0)+IF($GT10>=IF($GB$21=$CH$18,$GB$21+0.000000001,$GB$21),0,0)+IF($GT10>=IF($GB$22=$CH$18,$GB$22+0.000000001,$GB$22),0,0)+IF($GT10>=IF($GB$23=$CH$18,$GB$23+0.000000001,$GB$23),0,0)+IF($GT10>=IF($GB$24=$CH$18,$GB$24+0.000000001,$GB$24),0,0) -> 0 | GD10: =IF($GT10>=IF($GB$19=$CH$18,$GB$19+0.000000001,$GB$19),-$CJ$52,0)+IF($GT10>=IF($GB$20=$CH$18,$GB$20+0.000000001,$GB$20),-$CJ$53,0)+IF($GT10>=IF($GB$21=$CH$18,$GB$21+0.000000001,$GB$21),-$CJ$54,0)+IF($GT10>=IF($GB$22=$CH$18,$GB$22+0.000000001,$GB$22),-$CJ$55,0)+IF($GT10>=IF($GB$23=$CH$18,$GB$23+0.000000001,$GB$23),-$CJ$56,0)+IF($GT10>=IF($GB$24=$CH$18,$GB$24+0.000000001,$GB$24),-$CJ$57,0) -> 0 | GE10: =IF($GT10>=IF($GB$19=$CH$18,$GB$19+0.000000001,$GB$19),-$CJ$52*($GT10-$GB$19)/($BZ$13*$CH$19),0)+IF($GT10>=IF($GB$20=$CH$18,$GB$20+0.000000001,$GB$20),-$CJ$53*($GT10-$GB$20)/($BZ$13*$CH$19),0)+IF($GT10>=IF($GB$21=$CH$18,$GB$21+0.000000001,$GB$21),-$CJ$54*($GT10-$GB$21)/($BZ$13*$CH$19),0)+IF($GT10>=IF($GB$22=$CH$18,$GB$22+0.000000001,$GB$22),-$CJ$55*($GT10-$GB$22)/($BZ$13*$CH$19),0)+IF($GT10>=IF($GB$23=$CH$18,$GB$23+0.000000001,$GB$23),-$CJ$56*($GT10-$GB$23)/($BZ$13*$CH$19),0)+IF($GT10>=IF($GB$24=$CH$18,$GB$24+0.000000001,$GB$24),-$CJ$57*($GT10-$GB$24)/($BZ$13*$CH$19),0) -> 0 | GF10: =IF($GT10>=IF($GB$19=$CH$18,$GB$19+0.000000001,$GB$19),$CJ$52*($GT10-$GB$19)^2/(2*$BZ$13*$CH$19),0)+IF($GT10>=IF($GB$20=$CH$18,$GB$20+0.000000001,$GB$20),$CJ$53*($GT10-$GB$20)^2/(2*$BZ$13*$CH$19),0)+IF($GT10>=IF($GB$21=$CH$18,$GB$21+0.000000001,$GB$21),$CJ$54*($GT10-$GB$21)^2/(2*$BZ$13*$CH$19),0)+IF($GT10>=IF($GB$22=$CH$18,$GB$22+0.000000001,$GB$22),$CJ$55*($GT10-$GB$22)^2/(2*$BZ$13*$CH$19),0)+IF($GT10>=IF($GB$23=$CH$18,$GB$23+0.000000001,$GB$23),$CJ$56*($GT10-$GB$23)^2/(2*$BZ$13*$CH$19),0)+IF($GT10>=IF($GB$24=$CH$18,$GB$24+0.000000001,$GB$24),$CJ$57*($GT10-$GB$24)^2/(2*$BZ$13*$CH$19),0) -> 0 | GG10: =SUM(CW10,DE10,DM10,DU10,EC10,EK10,ES10,FA10,FI10,FQ10,FY10) -> -264 | GH10: =SUM(CX10,DF10,DN10,DV10,ED10,EL10,ET10,FB10,FJ10,FR10,FZ10) -> -528 | GI10: =SUM(CY10,DG10,DO10,DW10,EE10,EM10,EU10,FC10,FK10,FS10,GA10) -> -2.933333333e-07 | GJ10: =SUM(CZ10,DH10,DP10,DX10,EF10,EN10,EV10,FD10,FL10,FT10,GB10) -> 2.933333333e-07 | GK10: 0 | GL10: 0 | GM10: 0 | GN10: 0 | GO10: =-12*$BZ$13*$CH$19/$CH$18^3*$GJ10-6*$BZ$13*$CH$19/$CH$18^2*$GI10 -> 132 | GP10: =6*$BZ$13*$CH$19/$CH$18^2*$GJ10+2*$BZ$13*$CH$19/$CH$18*$GI10 -> -88 | GQ10: =0 -> 0 | GR10: =0 -> 0 | GS10: =IF($BZ$10<3,0,$GP10+$GO10*$GT10+$GL10) -> -88 | GT10: =0 -> 0 | HK10: x1 (m) = | HL10: =AB265 -> 2.4 | HM10: =AB316 -> 2 | HN10: =AB367 -> 2 | HO10: =AB418 -> 3 | HP10: =AB469 -> 1.4
H11: Support 2 | P11: Fixed | BY11: Left End = | BZ11: =P10 -> Pinned | CA11: Support #1 | CN11: -M(max) = | CO11: =MIN($CW$836:$CW$840) -> -459.696322 | CP11: kN-m | CQ11: @ x = | CR11: =VLOOKUP($CO$11,$CW$836:$DB$840,4,FALSE) -> 4 | CS11: ="m ("&VLOOKUP($CO$11,$CW$836:$DB$840,6,FALSE)&")" -> m (Span #1) | CV11: Span #3 FEM(R): | CW11: =$CW$10 -> -264 | CX11: =$CX$10 -> -528 | CY11: =$CY$10 -> -2.933333333e-07 | CZ11: =$CZ$10 -> 2.933333333e-07 | DA11: =IF($CH$21=0,"---",IF($GT11=$CH$18,-$CH$21*($GT11-($GT11-$CH$18)),IF($GT11>=0,-$CH$21*$GT11,0))) -> -264 | DB11: =IF($CH$21=0,"---",IF($GT11=$CH$18,-$CH$21*($GT11^2-($GT11-$CH$18)^2)/2,IF($GT11>=0,-$CH$21*$GT11^2/2,0))) -> -528 | DC11: =IF($CH$21=0,"---",IF($GT11=$CH$18,-$CH$21*($GT11^3-($GT11-$CH$18)^3)/(6*$BZ$13*$CH$19),IF($GT11>=0,-$CH$21*$GT11^3/(6*$BZ$13*$CH$19),0))) -> -2.933333334e-07 | DD11: =IF($CH$21=0,"---",IF($GT11=$CH$18,$CH$21*($GT11^4-($GT11-$CH$18)^4)/(24*$BZ$13*$CH$19),IF($GT11>=0,$CH$21*$GT11^4/(24*$BZ$13*$CH$19),0))) -> 2.933333334e-07 | DE11: =$DE$10 -> --- | DF11: =$DF$10 -> --- | DG11: =$DG$10 -> --- | DH11: =$DH$10 -> --- | DI11: =IF($CH$25=$CJ$25,"---",IF(AND($CH$25="",$CI$25="",$CJ$25="",$CK$25=""),"---",(IF($GT11>=$CJ$25,-$CI$25*($GT11-$CH$25-($GT11-$CJ$25)),IF($GT11>=$CH$25,-$CI$25*($GT11-$CH$25),0)))+(IF($GT11>=$CJ$25,-1/2*($CK$25-$CI$25)/($CJ$25-$CH$25)*(($GT11-$CH$25)^2-($GT11-$CJ$25)^2)+($CK$25-$CI$25)*($GT11-$CJ$25),IF($GT11>=$CH$25,-1/2*($CK$25-$CI$25)/($CJ$25-$CH$25)*($GT11-$CH$25)^2,0))))) -> --- | DJ11: =IF($CH$25=$CJ$25,"---",IF(AND($CH$25="",$CI$25="",$CJ$25="",$CK$25=""),"---",(IF($GT11>=$CJ$25,-$CI$25/2*(($GT11-$CH$25)^2-($GT11-$CJ$25)^2),IF($GT11>=$CH$25,-$CI$25/2*($GT11-$CH$25)^2,0)))+(IF($GT11>=$CJ$25,-1/6*($CK$25-$CI$25)/($CJ$25-$CH$25)*(($GT11-$CH$25)^3-($GT11-$CJ$25)^3)+($CK$25-$CI$25)/2*($GT11-$CJ$25)^2,IF($GT11>=$CH$25,-1/6*($CK$25-$CI$25)/($CJ$25-$CH$25)*($GT11-$CH$25)^3,0))))) -> --- | DK11: =IF($CH$25=$CJ$25,"---",IF(AND($CH$25="",$CI$25="",$CJ$25="",$CK$25=""),"---",(IF($GT11>=$CJ$25,-$CI$25/(6*$BZ$13*$CH$19)*(($GT11-$CH$25)^3-($GT11-$CJ$25)^3),IF($GT11>=$CH$25,-$CI$25/(6*$BZ$13*$CH$19)*($GT11-$CH$25)^3,0)))+(IF($GT11>=$CJ$25,-1/(24*$BZ$13*$CH$19)*($CK$25-$CI$25)/($CJ$25-$CH$25)*(($GT11-$CH$25)^4-($GT11-$CJ$25)^4)+($CK$25-$CI$25)/(6*$BZ$13*$CH$19)*($GT11-$CJ$25)^3,IF($GT11>=$CH$25,-1/(24*$BZ$13*$CH$19)*($CK$25-$CI$25)/($CJ$25-$CH$25)*($GT11-$CH$25)^4,0))))) -> --- | DL11: =IF($CH$25=$CJ$25,"---",IF(AND($CH$25="",$CI$25="",$CJ$25="",$CK$25=""),"---",(IF($GT11>=$CJ$25,$CI$25/(24*$BZ$13*$CH$19)*(($GT11-$CH$25)^4-($GT11-$CJ$25)^4),IF($GT11>=$CH$25,$CI$25/(24*$BZ$13*$CH$19)*($GT11-$CH$25)^4,0)))+(IF($GT11>=$CJ$25,1/(120*$BZ$13*$CH$19)*($CK$25-$CI$25)/($CJ$25-$CH$25)*(($GT11-$CH$25)^5-($GT11-$CJ$25)^5)-($CK$25-$CI$25)/(24*$BZ$13*$CH$19)*($GT11-$CJ$25)^4,IF($GT11>=$CH$25,1/(120*$BZ$13*$CH$19)*($CK$25-$CI$25)/($CJ$25-$CH$25)*($GT11-$CH$25)^5,0))))) -> --- | DM11: =$DM$10 -> --- | DN11: =$DN$10 -> --- | DO11: =$DO$10 -> --- | DP11: =$DP$10 -> --- | DQ11: =IF($CH$26=$CJ$26,"---",IF(AND($CH$26="",$CI$26="",$CJ$26="",$CK$26=""),"---",(IF($GT11>=$CJ$26,-$CI$26*($GT11-$CH$26-($GT11-$CJ$26)),IF($GT11>=$CH$26,-$CI$26*($GT11-$CH$26),0)))+(IF($GT11>=$CJ$26,-1/2*($CK$26-$CI$26)/($CJ$26-$CH$26)*(($GT11-$CH$26)^2-($GT11-$CJ$26)^2)+($CK$26-$CI$26)*($GT11-$CJ$26),IF($GT11>=$CH$26,-1/2*($CK$26-$CI$26)/($CJ$26-$CH$26)*($GT11-$CH$26)^2,0))))) -> --- | DR11: =IF($CH$26=$CJ$26,"---",IF(AND($CH$26="",$CI$26="",$CJ$26="",$CK$26=""),"---",(IF($GT11>=$CJ$26,-$CI$26/2*(($GT11-$CH$26)^2-($GT11-$CJ$26)^2),IF($GT11>=$CH$26,-$CI$26/2*($GT11-$CH$26)^2,0)))+(IF($GT11>=$CJ$26,-1/6*($CK$26-$CI$26)/($CJ$26-$CH$26)*(($GT11-$CH$26)^3-($GT11-$CJ$26)^3)+($CK$26-$CI$26)/2*($GT11-$CJ$26)^2,IF($GT11>=$CH$26,-1/6*($CK$26-$CI$26)/($CJ$26-$CH$26)*($GT11-$CH$26)^3,0))))) -> --- | DS11: =IF($CH$26=$CJ$26,"---",IF(AND($CH$26="",$CI$26="",$CJ$26="",$CK$26=""),"---",(IF($GT11>=$CJ$26,-$CI$26/(6*$BZ$13*$CH$19)*(($GT11-$CH$26)^3-($GT11-$CJ$26)^3),IF($GT11>=$CH$26,-$CI$26/(6*$BZ$13*$CH$19)*($GT11-$CH$26)^3,0)))+(IF($GT11>=$CJ$26,-1/(24*$BZ$13*$CH$19)*($CK$26-$CI$26)/($CJ$26-$CH$26)*(($GT11-$CH$26)^4-($GT11-$CJ$26)^4)+($CK$26-$CI$26)/(6*$BZ$13*$CH$19)*($GT11-$CJ$26)^3,IF($GT11>=$CH$26,-1/(24*$BZ$13*$CH$19)*($CK$26-$CI$26)/($CJ$26-$CH$26)*($GT11-$CH$26)^4,0))))) -> --- | DT11: =IF($CH$26=$CJ$26,"---",IF(AND($CH$26="",$CI$26="",$CJ$26="",$CK$26=""),"---",(IF($GT11>=$CJ$26,$CI$26/(24*$BZ$13*$CH$19)*(($GT11-$CH$26)^4-($GT11-$CJ$26)^4),IF($GT11>=$CH$26,$CI$26/(24*$BZ$13*$CH$19)*($GT11-$CH$26)^4,0)))+(IF($GT11>=$CJ$26,1/(120*$BZ$13*$CH$19)*($CK$26-$CI$26)/($CJ$26-$CH$26)*(($GT11-$CH$26)^5-($GT11-$CJ$26)^5)-($CK$26-$CI$26)/(24*$BZ$13*$CH$19)*($GT11-$CJ$26)^4,IF($GT11>=$CH$26,1/(120*$BZ$13*$CH$19)*($CK$26-$CI$26)/($CJ$26-$CH$26)*($GT11-$CH$26)^5,0))))) -> --- | DU11: =$DU$10 -> --- | DV11: =$DV$10 -> --- | DW11: =$DW$10 -> --- | DX11: =$DX$10 -> --- | DY11: =IF($CH$27=$CJ$27,"---",IF(AND($CH$27="",$CI$27="",$CJ$27="",$CK$27=""),"---",(IF($GT11>=$CJ$27,-$CI$27*($GT11-$CH$27-($GT11-$CJ$27)),IF($GT11>=$CH$27,-$CI$27*($GT11-$CH$27),0)))+(IF($GT11>=$CJ$27,-1/2*($CK$27-$CI$27)/($CJ$27-$CH$27)*(($GT11-$CH$27)^2-($GT11-$CJ$27)^2)+($CK$27-$CI$27)*($GT11-$CJ$27),IF($GT11>=$CH$27,-1/2*($CK$27-$CI$27)/($CJ$27-$CH$27)*($GT11-$CH$27)^2,0))))) -> --- | DZ11: =IF($CH$27=$CJ$27,"---",IF(AND($CH$27="",$CI$27="",$CJ$27="",$CK$27=""),"---",(IF($GT11>=$CJ$27,-$CI$27/2*(($GT11-$CH$27)^2-($GT11-$CJ$27)^2),IF($GT11>=$CH$27,-$CI$27/2*($GT11-$CH$27)^2,0)))+(IF($GT11>=$CJ$27,-1/6*($CK$27-$CI$27)/($CJ$27-$CH$27)*(($GT11-$CH$27)^3-($GT11-$CJ$27)^3)+($CK$27-$CI$27)/2*($GT11-$CJ$27)^2,IF($GT11>=$CH$27,-1/6*($CK$27-$CI$27)/($CJ$27-$CH$27)*($GT11-$CH$27)^3,0))))) -> --- | EA11: =IF($CH$27=$CJ$27,"---",IF(AND($CH$27="",$CI$27="",$CJ$27="",$CK$27=""),"---",(IF($GT11>=$CJ$27,-$CI$27/(6*$BZ$13*$CH$19)*(($GT11-$CH$27)^3-($GT11-$CJ$27)^3),IF($GT11>=$CH$27,-$CI$27/(6*$BZ$13*$CH$19)*($GT11-$CH$27)^3,0)))+(IF($GT11>=$CJ$27,-1/(24*$BZ$13*$CH$19)*($CK$27-$CI$27)/($CJ$27-$CH$27)*(($GT11-$CH$27)^4-($GT11-$CJ$27)^4)+($CK$27-$CI$27)/(6*$BZ$13*$CH$19)*($GT11-$CJ$27)^3,IF($GT11>=$CH$27,-1/(24*$BZ$13*$CH$19)*($CK$27-$CI$27)/($CJ$27-$CH$27)*($GT11-$CH$27)^4,0))))) -> --- | EB11: =IF($CH$27=$CJ$27,"---",IF(AND($CH$27="",$CI$27="",$CJ$27="",$CK$27=""),"---",(IF($GT11>=$CJ$27,$CI$27/(24*$BZ$13*$CH$19)*(($GT11-$CH$27)^4-($GT11-$CJ$27)^4),IF($GT11>=$CH$27,$CI$27/(24*$BZ$13*$CH$19)*($GT11-$CH$27)^4,0)))+(IF($GT11>=$CJ$27,1/(120*$BZ$13*$CH$19)*($CK$27-$CI$27)/($CJ$27-$CH$27)*(($GT11-$CH$27)^5-($GT11-$CJ$27)^5)-($CK$27-$CI$27)/(24*$BZ$13*$CH$19)*($GT11-$CJ$27)^4,IF($GT11>=$CH$27,1/(120*$BZ$13*$CH$19)*($CK$27-$CI$27)/($CJ$27-$CH$27)*($GT11-$CH$27)^5,0))))) -> --- | EC11: =$EC$10 -> --- | ED11: =$ED$10 -> --- | EE11: =$EE$10 -> --- | EF11: =$EF$10 -> --- | EG11: =IF($CH$28=$CJ$28,"---",IF(AND($CH$28="",$CI$28="",$CJ$28="",$CK$28=""),"---",(IF($GT11>=$CJ$28,-$CI$28*($GT11-$CH$28-($GT11-$CJ$28)),IF($GT11>=$CH$28,-$CI$28*($GT11-$CH$28),0)))+(IF($GT11>=$CJ$28,-1/2*($CK$28-$CI$28)/($CJ$28-$CH$28)*(($GT11-$CH$28)^2-($GT11-$CJ$28)^2)+($CK$28-$CI$28)*($GT11-$CJ$28),IF($GT11>=$CH$28,-1/2*($CK$28-$CI$28)/($CJ$28-$CH$28)*($GT11-$CH$28)^2,0))))) -> --- | EH11: =IF($CH$28=$CJ$28,"---",IF(AND($CH$28="",$CI$28="",$CJ$28="",$CK$28=""),"---",(IF($GT11>=$CJ$28,-$CI$28/2*(($GT11-$CH$28)^2-($GT11-$CJ$28)^2),IF($GT11>=$CH$28,-$CI$28/2*($GT11-$CH$28)^2,0)))+(IF($GT11>=$CJ$28,-1/6*($CK$28-$CI$28)/($CJ$28-$CH$28)*(($GT11-$CH$28)^3-($GT11-$CJ$28)^3)+($CK$28-$CI$28)/2*($GT11-$CJ$28)^2,IF($GT11>=$CH$28,-1/6*($CK$28-$CI$28)/($CJ$28-$CH$28)*($GT11-$CH$28)^3,0))))) -> --- | EI11: =IF($CH$28=$CJ$28,"---",IF(AND($CH$28="",$CI$28="",$CJ$28="",$CK$28=""),"---",(IF($GT11>=$CJ$28,-$CI$28/(6*$BZ$13*$CH$19)*(($GT11-$CH$28)^3-($GT11-$CJ$28)^3),IF($GT11>=$CH$28,-$CI$28/(6*$BZ$13*$CH$19)*($GT11-$CH$28)^3,0)))+(IF($GT11>=$CJ$28,-1/(24*$BZ$13*$CH$19)*($CK$28-$CI$28)/($CJ$28-$CH$28)*(($GT11-$CH$28)^4-($GT11-$CJ$28)^4)+($CK$28-$CI$28)/(6*$BZ$13*$CH$19)*($GT11-$CJ$28)^3,IF($GT11>=$CH$28,-1/(24*$BZ$13*$CH$19)*($CK$28-$CI$28)/($CJ$28-$CH$28)*($GT11-$CH$28)^4,0))))) -> --- | EJ11: =IF($CH$28=$CJ$28,"---",IF(AND($CH$28="",$CI$28="",$CJ$28="",$CK$28=""),"---",(IF($GT11>=$CJ$28,$CI$28/(24*$BZ$13*$CH$19)*(($GT11-$CH$28)^4-($GT11-$CJ$28)^4),IF($GT11>=$CH$28,$CI$28/(24*$BZ$13*$CH$19)*($GT11-$CH$28)^4,0)))+(IF($GT11>=$CJ$28,1/(120*$BZ$13*$CH$19)*($CK$28-$CI$28)/($CJ$28-$CH$28)*(($GT11-$CH$28)^5-($GT11-$CJ$28)^5)-($CK$28-$CI$28)/(24*$BZ$13*$CH$19)*($GT11-$CJ$28)^4,IF($GT11>=$CH$28,1/(120*$BZ$13*$CH$19)*($CK$28-$CI$28)/($CJ$28-$CH$28)*($GT11-$CH$28)^5,0))))) -> --- | EK11: =$EK$10 -> --- | EL11: =$EL$10 -> --- | EM11: =$EM$10 -> --- | EN11: =$EN$10 -> --- | EO11: =IF($CH$29=$CJ$29,"---",IF(AND($CH$29="",$CI$29="",$CJ$29="",$CK$29=""),"---",(IF($GT11>=$CJ$29,-$CI$29*($GT11-$CH$29-($GT11-$CJ$29)),IF($GT11>=$CH$29,-$CI$29*($GT11-$CH$29),0)))+(IF($GT11>=$CJ$29,-1/2*($CK$29-$CI$29)/($CJ$29-$CH$29)*(($GT11-$CH$29)^2-($GT11-$CJ$29)^2)+($CK$29-$CI$29)*($GT11-$CJ$29),IF($GT11>=$CH$29,-1/2*($CK$29-$CI$29)/($CJ$29-$CH$29)*($GT11-$CH$29)^2,0))))) -> --- | EP11: =IF($CH$29=$CJ$29,"---",IF(AND($CH$29="",$CI$29="",$CJ$29="",$CK$29=""),"---",(IF($GT11>=$CJ$29,-$CI$29/2*(($GT11-$CH$29)^2-($GT11-$CJ$29)^2),IF($GT11>=$CH$29,-$CI$29/2*($GT11-$CH$29)^2,0)))+(IF($GT11>=$CJ$29,-1/6*($CK$29-$CI$29)/($CJ$29-$CH$29)*(($GT11-$CH$29)^3-($GT11-$CJ$29)^3)+($CK$29-$CI$29)/2*($GT11-$CJ$29)^2,IF($GT11>=$CH$29,-1/6*($CK$29-$CI$29)/($CJ$29-$CH$29)*($GT11-$CH$29)^3,0))))) -> --- | EQ11: =IF($CH$29=$CJ$29,"---",IF(AND($CH$29="",$CI$29="",$CJ$29="",$CK$29=""),"---",(IF($GT11>=$CJ$29,-$CI$29/(6*$BZ$13*$CH$19)*(($GT11-$CH$29)^3-($GT11-$CJ$29)^3),IF($GT11>=$CH$29,-$CI$29/(6*$BZ$13*$CH$19)*($GT11-$CH$29)^3,0)))+(IF($GT11>=$CJ$29,-1/(24*$BZ$13*$CH$19)*($CK$29-$CI$29)/($CJ$29-$CH$29)*(($GT11-$CH$29)^4-($GT11-$CJ$29)^4)+($CK$29-$CI$29)/(6*$BZ$13*$CH$19)*($GT11-$CJ$29)^3,IF($GT11>=$CH$29,-1/(24*$BZ$13*$CH$19)*($CK$29-$CI$29)/($CJ$29-$CH$29)*($GT11-$CH$29)^4,0))))) -> --- | ER11: =IF($CH$29=$CJ$29,"---",IF(AND($CH$29="",$CI$29="",$CJ$29="",$CK$29=""),"---",(IF($GT11>=$CJ$29,$CI$29/(24*$BZ$13*$CH$19)*(($GT11-$CH$29)^4-($GT11-$CJ$29)^4),IF($GT11>=$CH$29,$CI$29/(24*$BZ$13*$CH$19)*($GT11-$CH$29)^4,0)))+(IF($GT11>=$CJ$29,1/(120*$BZ$13*$CH$19)*($CK$29-$CI$29)/($CJ$29-$CH$29)*(($GT11-$CH$29)^5-($GT11-$CJ$29)^5)-($CK$29-$CI$29)/(24*$BZ$13*$CH$19)*($GT11-$CJ$29)^4,IF($GT11>=$CH$29,1/(120*$BZ$13*$CH$19)*($CK$29-$CI$29)/($CJ$29-$CH$29)*($GT11-$CH$29)^5,0))))) -> --- | ES11: =$ES$10 -> --- | ET11: =$ET$10 -> --- | EU11: =$EU$10 -> --- | EV11: =$EV$10 -> --- | EW11: =IF($CH$30=$CJ$30,"---",IF(AND($CH$30="",$CI$30="",$CJ$30="",$CK$30=""),"---",(IF($GT11>=$CJ$30,-$CI$30*($GT11-$CH$30-($GT11-$CJ$30)),IF($GT11>=$CH$30,-$CI$30*($GT11-$CH$30),0)))+(IF($GT11>=$CJ$30,-1/2*($CK$30-$CI$30)/($CJ$30-$CH$30)*(($GT11-$CH$30)^2-($GT11-$CJ$30)^2)+($CK$30-$CI$30)*($GT11-$CJ$30),IF($GT11>=$CH$30,-1/2*($CK$30-$CI$30)/($CJ$30-$CH$30)*($GT11-$CH$30)^2,0))))) -> --- | EX11: =IF($CH$30=$CJ$30,"---",IF(AND($CH$30="",$CI$30="",$CJ$30="",$CK$30=""),"---",(IF($GT11>=$CJ$30,-$CI$30/2*(($GT11-$CH$30)^2-($GT11-$CJ$30)^2),IF($GT11>=$CH$30,-$CI$30/2*($GT11-$CH$30)^2,0)))+(IF($GT11>=$CJ$30,-1/6*($CK$30-$CI$30)/($CJ$30-$CH$30)*(($GT11-$CH$30)^3-($GT11-$CJ$30)^3)+($CK$30-$CI$30)/2*($GT11-$CJ$30)^2,IF($GT11>=$CH$30,-1/6*($CK$30-$CI$30)/($CJ$30-$CH$30)*($GT11-$CH$30)^3,0))))) -> --- | EY11: =IF($CH$30=$CJ$30,"---",IF(AND($CH$30="",$CI$30="",$CJ$30="",$CK$30=""),"---",(IF($GT11>=$CJ$30,-$CI$30/(6*$BZ$13*$CH$19)*(($GT11-$CH$30)^3-($GT11-$CJ$30)^3),IF($GT11>=$CH$30,-$CI$30/(6*$BZ$13*$CH$19)*($GT11-$CH$30)^3,0)))+(IF($GT11>=$CJ$30,-1/(24*$BZ$13*$CH$19)*($CK$30-$CI$30)/($CJ$30-$CH$30)*(($GT11-$CH$30)^4-($GT11-$CJ$30)^4)+($CK$30-$CI$30)/(6*$BZ$13*$CH$19)*($GT11-$CJ$30)^3,IF($GT11>=$CH$30,-1/(24*$BZ$13*$CH$19)*($CK$30-$CI$30)/($CJ$30-$CH$30)*($GT11-$CH$30)^4,0))))) -> --- | EZ11: =IF($CH$30=$CJ$30,"---",IF(AND($CH$30="",$CI$30="",$CJ$30="",$CK$30=""),"---",(IF($GT11>=$CJ$30,$CI$30/(24*$BZ$13*$CH$19)*(($GT11-$CH$30)^4-($GT11-$CJ$30)^4),IF($GT11>=$CH$30,$CI$30/(24*$BZ$13*$CH$19)*($GT11-$CH$30)^4,0)))+(IF($GT11>=$CJ$30,1/(120*$BZ$13*$CH$19)*($CK$30-$CI$30)/($CJ$30-$CH$30)*(($GT11-$CH$30)^5-($GT11-$CJ$30)^5)-($CK$30-$CI$30)/(24*$BZ$13*$CH$19)*($GT11-$CJ$30)^4,IF($GT11>=$CH$30,1/(120*$BZ$13*$CH$19)*($CK$30-$CI$30)/($CJ$30-$CH$30)*($GT11-$CH$30)^5,0))))) -> --- | FQ11: =$FQ$10 -> 0 | FR11: =$FR$10 -> 0 | FS11: =$FS$10 -> 0 | FT11: =$FT$10 -> 0 | FU11: =IF($GT11>$CH$35,-$CJ$35,0)+IF($GT11>$CH$36,-$CJ$36,0)+IF($GT11>$CH$37,-$CJ$37,0)+IF($GT11>$CH$38,-$CJ$38,0)+IF($GT11>$CH$39,-$CJ$39,0)+IF($GT11>$CH$40,-$CJ$40,0) -> 0 | FV11: =IF($GT11>$CH$35,-$CJ$35*($GT11-$CH$35),0)+IF($GT11>$CH$36,-$CJ$36*($GT11-$CH$36),0)+IF($GT11>$CH$37,-$CJ$37*($GT11-$CH$37),0)+IF($GT11>$CH$38,-$CJ$38*($GT11-$CH$38),0)+IF($GT11>$CH$39,-$CJ$39*($GT11-$CH$39),0)+IF($GT11>$CH$40,-$CJ$40*($GT11-$CH$40),0) -> 0 | FW11: =IF($GT11>$CH$35,-$CJ$35*($GT11-$CH$35)^2/(2*$BZ$13*$CH$19),0)+IF($GT11>$CH$36,-$CJ$36*($GT11-$CH$36)^2/(2*$BZ$13*$CH$19),0)+IF($GT11>$CH$37,-$CJ$37*($GT11-$CH$37)^2/(2*$BZ$13*$CH$19),0)+IF($GT11>$CH$38,-$CJ$38*($GT11-$CH$38)^2/(2*$BZ$13*$CH$19),0)+IF($GT11>$CH$39,-$CJ$39*($GT11-$CH$39)^2/(2*$BZ$13*$CH$19),0)+IF($GT11>$CH$40,-$CJ$40*($GT11-$CH$40)^2/(2*$BZ$13*$CH$19),0) -> 0 | FX11: =IF($GT11>$CH$35,$CJ$35*($GT11-$CH$35)^3/(6*$BZ$13*$CH$19),0)+IF($GT11>$CH$36,$CJ$36*($GT11-$CH$36)^3/(6*$BZ$13*$CH$19),0)+IF($GT11>$CH$37,$CJ$37*($GT11-$CH$37)^3/(6*$BZ$13*$CH$19),0)+IF($GT11>$CH$38,$CJ$38*($GT11-$CH$38)^3/(6*$BZ$13*$CH$19),0)+IF($GT11>$CH$39,$CJ$39*($GT11-$CH$39)^3/(6*$BZ$13*$CH$19),0)+IF($GT11>$CH$40,$CJ$40*($GT11-$CH$40)^3/(6*$BZ$13*$CH$19),0) -> 0 | FY11: =$FY$10 -> 0 | FZ11: =$FZ$10 -> 0 | GA11: =$GA$10 -> 0 | GB11: =$GB$10 -> 0 | GC11: =IF($GT11>=IF($GB$19=$CH$18,$GB$19+0.000000001,$GB$19),0,0)+IF($GT11>=IF($GB$20=$CH$18,$GB$20+0.000000001,$GB$20),0,0)+IF($GT11>=IF($GB$21=$CH$18,$GB$21+0.000000001,$GB$21),0,0)+IF($GT11>=IF($GB$22=$CH$18,$GB$22+0.000000001,$GB$22),0,0)+IF($GT11>=IF($GB$23=$CH$18,$GB$23+0.000000001,$GB$23),0,0)+IF($GT11>=IF($GB$24=$CH$18,$GB$24+0.000000001,$GB$24),0,0) -> 0 | GD11: =IF($GT11>=IF($GB$19=$CH$18,$GB$19+0.000000001,$GB$19),-$CJ$52,0)+IF($GT11>=IF($GB$20=$CH$18,$GB$20+0.000000001,$GB$20),-$CJ$53,0)+IF($GT11>=IF($GB$21=$CH$18,$GB$21+0.000000001,$GB$21),-$CJ$54,0)+IF($GT11>=IF($GB$22=$CH$18,$GB$22+0.000000001,$GB$22),-$CJ$55,0)+IF($GT11>=IF($GB$23=$CH$18,$GB$23+0.000000001,$GB$23),-$CJ$56,0)+IF($GT11>=IF($GB$24=$CH$18,$GB$24+0.000000001,$GB$24),-$CJ$57,0) -> 0 | GE11: =IF($GT11>=IF($GB$19=$CH$18,$GB$19+0.000000001,$GB$19),-$CJ$52*($GT11-$GB$19)/($BZ$13*$CH$19),0)+IF($GT11>=IF($GB$20=$CH$18,$GB$20+0.000000001,$GB$20),-$CJ$53*($GT11-$GB$20)/($BZ$13*$CH$19),0)+IF($GT11>=IF($GB$21=$CH$18,$GB$21+0.000000001,$GB$21),-$CJ$54*($GT11-$GB$21)/($BZ$13*$CH$19),0)+IF($GT11>=IF($GB$22=$CH$18,$GB$22+0.000000001,$GB$22),-$CJ$55*($GT11-$GB$22)/($BZ$13*$CH$19),0)+IF($GT11>=IF($GB$23=$CH$18,$GB$23+0.000000001,$GB$23),-$CJ$56*($GT11-$GB$23)/($BZ$13*$CH$19),0)+IF($GT11>=IF($GB$24=$CH$18,$GB$24+0.000000001,$GB$24),-$CJ$57*($GT11-$GB$24)/($BZ$13*$CH$19),0) -> 0 | GF11: =IF($GT11>=IF($GB$19=$CH$18,$GB$19+0.000000001,$GB$19),$CJ$52*($GT11-$GB$19)^2/(2*$BZ$13*$CH$19),0)+IF($GT11>=IF($GB$20=$CH$18,$GB$20+0.000000001,$GB$20),$CJ$53*($GT11-$GB$20)^2/(2*$BZ$13*$CH$19),0)+IF($GT11>=IF($GB$21=$CH$18,$GB$21+0.000000001,$GB$21),$CJ$54*($GT11-$GB$21)^2/(2*$BZ$13*$CH$19),0)+IF($GT11>=IF($GB$22=$CH$18,$GB$22+0.000000001,$GB$22),$CJ$55*($GT11-$GB$22)^2/(2*$BZ$13*$CH$19),0)+IF($GT11>=IF($GB$23=$CH$18,$GB$23+0.000000001,$GB$23),$CJ$56*($GT11-$GB$23)^2/(2*$BZ$13*$CH$19),0)+IF($GT11>=IF($GB$24=$CH$18,$GB$24+0.000000001,$GB$24),$CJ$57*($GT11-$GB$24)^2/(2*$BZ$13*$CH$19),0) -> 0 | GG11: =$GG$10 -> -264 | GH11: =$GH$10 -> -528 | GI11: =$GI$10 -> -2.933333333e-07 | GJ11: =$GJ$10 -> 2.933333333e-07 | GK11: -264 | GL11: -528 | GM11: -2.933333334e-07 | GN11: 2.933333334e-07 | GO11: =$GO$10 -> 132 | GP11: =$GP$10 -> -88 | GQ11: =$GQ$10 -> 0 | GR11: =$GR$10 -> 0 | GS11: =IF($BZ$10<3,0,$GP11+$GO11*$GT11+$GL11) -> -88.00000001 | GT11: =$CH$18+0.0000000001 -> 4 | HE11: AISC Shape | HF11: Ix (in.^4) | HG11: Iy (in.^4) | HH11: Ix (cm^4) | HI11: Iy (cm^4) | HK11: x2 (m) = | HL11: 0 | HM11: 0 | HN11: 0 | HO11: 0 | HP11: 0
H12: Modulus of Elasticity | P12: 200000 | S12: MPa | BY12: Right End = | BZ12: =P11 -> Fixed | CA12: ="Support #"&$BZ$10+1 -> Support #6 | CN12: Maximum Deflections in Beam: | CV12: Span #4 FEM(L): | CW12: =IF($CL$21=0,"---",-$CL$21*$CL$18) -> -630 | CX12: =IF($CL$21=0,"---",-$CL$21*$CL$18^2/2) -> -2205 | CY12: =IF($CL$21=0,"---",-$CL$21*$CL$18^3/(6*$BZ$13*$CL$19)) -> -1.6078125e-06 | CZ12: =IF($CL$21=0,"---",$CL$21*$CL$18^4/(24*$BZ$13*$CL$19)) -> 2.813671875e-06 | DA12: =IF($CL$21=0,"---",IF($GT12=$CL$18,-$CL$21*($GT12-($GT12-$CL$18)),IF($GT12>=0,-$CL$21*$GT12,0))) -> 0 | DB12: =IF($CL$21=0,"---",IF($GT12=$CL$18,-$CL$21*($GT12^2-($GT12-$CL$18)^2)/2,IF($GT12>=0,-$CL$21*$GT12^2/2,0))) -> 0 | DC12: =IF($CL$21=0,"---",IF($GT12=$CL$18,-$CL$21*($GT12^3-($GT12-$CL$18)^3)/(6*$BZ$13*$CL$19),IF($GT12>=0,-$CL$21*$GT12^3/(6*$BZ$13*$CL$19),0))) -> 0 | DD12: =IF($CL$21=0,"---",IF($GT12=$CL$18,$CL$21*($GT12^4-($GT12-$CL$18)^4)/(24*$BZ$13*$CL$19),IF($GT12>=0,$CL$21*$GT12^4/(24*$BZ$13*$CL$19),0))) -> 0 | DE12: =IF($CL$25=$CN$25,"---",IF(AND($CL$25="",$CM$25="",$CN$25="",$CO$25=""),"---",(-$CM$25*($CL$18-$CL$25-($CL$18-$CN$25)))+(-1/2*($CO$25-$CM$25)/($CN$25-$CL$25)*(($CL$18-$CL$25)^2-($CL$18-$CN$25)^2)+($CO$25-$CM$25)*($CL$18-$CN$25)))) -> --- | DF12: =IF($CL$25=$CN$25,"---",IF(AND($CL$25="",$CM$25="",$CN$25="",$CO$25=""),"---",(-$CM$25/2*(($CL$18-$CL$25)^2-($CL$18-$CN$25)^2))+(-1/6*($CO$25-$CM$25)/($CN$25-$CL$25)*(($CL$18-$CL$25)^3-($CL$18-$CN$25)^3)+($CO$25-$CM$25)/2*($CL$18-$CN$25)^2))) -> --- | DG12: =IF($CL$25=$CN$25,"---",IF(AND($CL$25="",$CM$25="",$CN$25="",$CO$25=""),"---",(-$CM$25/(6*$BZ$13*$CL$19)*(($CL$18-$CL$25)^3-($CL$18-$CN$25)^3))+(-1/(24*$BZ$13*$CL$19)*($CO$25-$CM$25)/($CN$25-$CL$25)*(($CL$18-$CL$25)^4-($CL$18-$CN$25)^4)+($CO$25-$CM$25)/(6*$BZ$13*$CL$19)*($CL$18-$CN$25)^3))) -> --- | DH12: =IF($CL$25=$CN$25,"---",IF(AND($CL$25="",$CM$25="",$CN$25="",$CO$25=""),"---",($CM$25/(24*$BZ$13*$CL$19)*(($CL$18-$CL$25)^4-($CL$18-$CN$25)^4))+(1/(120*$BZ$13*$CL$19)*($CO$25-$CM$25)/($CN$25-$CL$25)*(($CL$18-$CL$25)^5-($CL$18-$CN$25)^5)-($CO$25-$CM$25)/(24*$BZ$13*$CL$19)*($CL$18-$CN$25)^4))) -> --- | DI12: =IF($CL$25=$CN$25,"---",IF(AND($CL$25="",$CM$25="",$CN$25="",$CO$25=""),"---",(IF($GT12>=$CN$25,-$CM$25*($GT12-$CL$25-($GT12-$CN$25)),IF($GT12>=$CL$25,-$CM$25*($GT12-$CL$25),0)))+(IF($GT12>=$CN$25,-1/2*($CO$25-$CM$25)/($CN$25-$CL$25)*(($GT12-$CL$25)^2-($GT12-$CN$25)^2)+($CO$25-$CM$25)*($GT12-$CN$25),IF($GT12>=$CL$25,-1/2*($CO$25-$CM$25)/($CN$25-$CL$25)*($GT12-$CL$25)^2,0))))) -> --- | DJ12: =IF($CL$25=$CN$25,"---",IF(AND($CL$25="",$CM$25="",$CN$25="",$CO$25=""),"---",(IF($GT12>=$CN$25,-$CM$25/2*(($GT12-$CL$25)^2-($GT12-$CN$25)^2),IF($GT12>=$CL$25,-$CM$25/2*($GT12-$CL$25)^2,0)))+(IF($GT12>=$CN$25,-1/6*($CO$25-$CM$25)/($CN$25-$CL$25)*(($GT12-$CL$25)^3-($GT12-$CN$25)^3)+($CO$25-$CM$25)/2*($GT12-$CN$25)^2,IF($GT12>=$CL$25,-1/6*($CO$25-$CM$25)/($CN$25-$CL$25)*($GT12-$CL$25)^3,0))))) -> --- | DK12: =IF($CL$25=$CN$25,"---",IF(AND($CL$25="",$CM$25="",$CN$25="",$CO$25=""),"---",(IF($GT12>=$CN$25,-$CM$25/(6*$BZ$13*$CL$19)*(($GT12-$CL$25)^3-($GT12-$CN$25)^3),IF($GT12>=$CL$25,-$CM$25/(6*$BZ$13*$CL$19)*($GT12-$CL$25)^3,0)))+(IF($GT12>=$CN$25,-1/(24*$BZ$13*$CL$19)*($CO$25-$CM$25)/($CN$25-$CL$25)*(($GT12-$CL$25)^4-($GT12-$CN$25)^4)+($CO$25-$CM$25)/(6*$BZ$13*$CL$19)*($GT12-$CN$25)^3,IF($GT12>=$CL$25,-1/(24*$BZ$13*$CL$19)*($CO$25-$CM$25)/($CN$25-$CL$25)*($GT12-$CL$25)^4,0))))) -> --- | DL12: =IF($CL$25=$CN$25,"---",IF(AND($CL$25="",$CM$25="",$CN$25="",$CO$25=""),"---",(IF($GT12>=$CN$25,$CM$25/(24*$BZ$13*$CL$19)*(($GT12-$CL$25)^4-($GT12-$CN$25)^4),IF($GT12>=$CL$25,$CM$25/(24*$BZ$13*$CL$19)*($GT12-$CL$25)^4,0)))+(IF($GT12>=$CN$25,1/(120*$BZ$13*$CL$19)*($CO$25-$CM$25)/($CN$25-$CL$25)*(($GT12-$CL$25)^5-($GT12-$CN$25)^5)-($CO$25-$CM$25)/(24*$BZ$13*$CL$19)*($GT12-$CN$25)^4,IF($GT12>=$CL$25,1/(120*$BZ$13*$CL$19)*($CO$25-$CM$25)/($CN$25-$CL$25)*($GT12-$CL$25)^5,0))))) -> --- | DM12: =IF($CL$26=$CN$26,"---",IF(AND($CL$26="",$CM$26="",$CN$26="",$CO$26=""),"---",(-$CM$26*($CL$18-$CL$26-($CL$18-$CN$26)))+(-1/2*($CO$26-$CM$26)/($CN$26-$CL$26)*(($CL$18-$CL$26)^2-($CL$18-$CN$26)^2)+($CO$26-$CM$26)*($CL$18-$CN$26)))) -> --- | DN12: =IF($CL$26=$CN$26,"---",IF(AND($CL$26="",$CM$26="",$CN$26="",$CO$26=""),"---",(-$CM$26/2*(($CL$18-$CL$26)^2-($CL$18-$CN$26)^2))+(-1/6*($CO$26-$CM$26)/($CN$26-$CL$26)*(($CL$18-$CL$26)^3-($CL$18-$CN$26)^3)+($CO$26-$CM$26)/2*($CL$18-$CN$26)^2))) -> --- | DO12: =IF($CL$26=$CN$26,"---",IF(AND($CL$26="",$CM$26="",$CN$26="",$CO$26=""),"---",(-$CM$26/(6*$BZ$13*$CL$19)*(($CL$18-$CL$26)^3-($CL$18-$CN$26)^3))+(-1/(24*$BZ$13*$CL$19)*($CO$26-$CM$26)/($CN$26-$CL$26)*(($CL$18-$CL$26)^4-($CL$18-$CN$26)^4)+($CO$26-$CM$26)/(6*$BZ$13*$CL$19)*($CL$18-$CN$26)^3))) -> --- | DP12: =IF($CL$26=$CN$26,"---",IF(AND($CL$26="",$CM$26="",$CN$26="",$CO$26=""),"---",($CM$26/(24*$BZ$13*$CL$19)*(($CL$18-$CL$26)^4-($CL$18-$CN$26)^4))+(1/(120*$BZ$13*$CL$19)*($CO$26-$CM$26)/($CN$26-$CL$26)*(($CL$18-$CL$26)^5-($CL$18-$CN$26)^5)-($CO$26-$CM$26)/(24*$BZ$13*$CL$19)*($CL$18-$CN$26)^4))) -> --- | DQ12: =IF($CL$26=$CN$26,"---",IF(AND($CL$26="",$CM$26="",$CN$26="",$CO$26=""),"---",(IF($GT12>=$CN$26,-$CM$26*($GT12-$CL$26-($GT12-$CN$26)),IF($GT12>=$CL$26,-$CM$26*($GT12-$CL$26),0)))+(IF($GT12>=$CN$26,-1/2*($CO$26-$CM$26)/($CN$26-$CL$26)*(($GT12-$CL$26)^2-($GT12-$CN$26)^2)+($CO$26-$CM$26)*($GT12-$CN$26),IF($GT12>=$CL$26,-1/2*($CO$26-$CM$26)/($CN$26-$CL$26)*($GT12-$CL$26)^2,0))))) -> --- | DR12: =IF($CL$26=$CN$26,"---",IF(AND($CL$26="",$CM$26="",$CN$26="",$CO$26=""),"---",(IF($GT12>=$CN$26,-$CM$26/2*(($GT12-$CL$26)^2-($GT12-$CN$26)^2),IF($GT12>=$CL$26,-$CM$26/2*($GT12-$CL$26)^2,0)))+(IF($GT12>=$CN$26,-1/6*($CO$26-$CM$26)/($CN$26-$CL$26)*(($GT12-$CL$26)^3-($GT12-$CN$26)^3)+($CO$26-$CM$26)/2*($GT12-$CN$26)^2,IF($GT12>=$CL$26,-1/6*($CO$26-$CM$26)/($CN$26-$CL$26)*($GT12-$CL$26)^3,0))))) -> --- | DS12: =IF($CL$26=$CN$26,"---",IF(AND($CL$26="",$CM$26="",$CN$26="",$CO$26=""),"---",(IF($GT12>=$CN$26,-$CM$26/(6*$BZ$13*$CL$19)*(($GT12-$CL$26)^3-($GT12-$CN$26)^3),IF($GT12>=$CL$26,-$CM$26/(6*$BZ$13*$CL$19)*($GT12-$CL$26)^3,0)))+(IF($GT12>=$CN$26,-1/(24*$BZ$13*$CL$19)*($CO$26-$CM$26)/($CN$26-$CL$26)*(($GT12-$CL$26)^4-($GT12-$CN$26)^4)+($CO$26-$CM$26)/(6*$BZ$13*$CL$19)*($GT12-$CN$26)^3,IF($GT12>=$CL$26,-1/(24*$BZ$13*$CL$19)*($CO$26-$CM$26)/($CN$26-$CL$26)*($GT12-$CL$26)^4,0))))) -> --- | DT12: =IF($CL$26=$CN$26,"---",IF(AND($CL$26="",$CM$26="",$CN$26="",$CO$26=""),"---",(IF($GT12>=$CN$26,$CM$26/(24*$BZ$13*$CL$19)*(($GT12-$CL$26)^4-($GT12-$CN$26)^4),IF($GT12>=$CL$26,$CM$26/(24*$BZ$13*$CL$19)*($GT12-$CL$26)^4,0)))+(IF($GT12>=$CN$26,1/(120*$BZ$13*$CL$19)*($CO$26-$CM$26)/($CN$26-$CL$26)*(($GT12-$CL$26)^5-($GT12-$CN$26)^5)-($CO$26-$CM$26)/(24*$BZ$13*$CL$19)*($GT12-$CN$26)^4,IF($GT12>=$CL$26,1/(120*$BZ$13*$CL$19)*($CO$26-$CM$26)/($CN$26-$CL$26)*($GT12-$CL$26)^5,0))))) -> --- | DU12: =IF($CL$27=$CN$27,"---",IF(AND($CL$27="",$CM$27="",$CN$27="",$CO$27=""),"---",(-$CM$27*($CL$18-$CL$27-($CL$18-$CN$27)))+(-1/2*($CO$27-$CM$27)/($CN$27-$CL$27)*(($CL$18-$CL$27)^2-($CL$18-$CN$27)^2)+($CO$27-$CM$27)*($CL$18-$CN$27)))) -> --- | DV12: =IF($CL$27=$CN$27,"---",IF(AND($CL$27="",$CM$27="",$CN$27="",$CO$27=""),"---",(-$CM$27/2*(($CL$18-$CL$27)^2-($CL$18-$CN$27)^2))+(-1/6*($CO$27-$CM$27)/($CN$27-$CL$27)*(($CL$18-$CL$27)^3-($CL$18-$CN$27)^3)+($CO$27-$CM$27)/2*($CL$18-$CN$27)^2))) -> --- | DW12: =IF($CL$27=$CN$27,"---",IF(AND($CL$27="",$CM$27="",$CN$27="",$CO$27=""),"---",(-$CM$27/(6*$BZ$13*$CL$19)*(($CL$18-$CL$27)^3-($CL$18-$CN$27)^3))+(-1/(24*$BZ$13*$CL$19)*($CO$27-$CM$27)/($CN$27-$CL$27)*(($CL$18-$CL$27)^4-($CL$18-$CN$27)^4)+($CO$27-$CM$27)/(6*$BZ$13*$CL$19)*($CL$18-$CN$27)^3))) -> --- | DX12: =IF($CL$27=$CN$27,"---",IF(AND($CL$27="",$CM$27="",$CN$27="",$CO$27=""),"---",($CM$27/(24*$BZ$13*$CL$19)*(($CL$18-$CL$27)^4-($CL$18-$CN$27)^4))+(1/(120*$BZ$13*$CL$19)*($CO$27-$CM$27)/($CN$27-$CL$27)*(($CL$18-$CL$27)^5-($CL$18-$CN$27)^5)-($CO$27-$CM$27)/(24*$BZ$13*$CL$19)*($CL$18-$CN$27)^4))) -> --- | DY12: =IF($CL$27=$CN$27,"---",IF(AND($CL$27="",$CM$27="",$CN$27="",$CO$27=""),"---",(IF($GT12>=$CN$27,-$CM$27*($GT12-$CL$27-($GT12-$CN$27)),IF($GT12>=$CL$27,-$CM$27*($GT12-$CL$27),0)))+(IF($GT12>=$CN$27,-1/2*($CO$27-$CM$27)/($CN$27-$CL$27)*(($GT12-$CL$27)^2-($GT12-$CN$27)^2)+($CO$27-$CM$27)*($GT12-$CN$27),IF($GT12>=$CL$27,-1/2*($CO$27-$CM$27)/($CN$27-$CL$27)*($GT12-$CL$27)^2,0))))) -> --- | DZ12: =IF($CL$27=$CN$27,"---",IF(AND($CL$27="",$CM$27="",$CN$27="",$CO$27=""),"---",(IF($GT12>=$CN$27,-$CM$27/2*(($GT12-$CL$27)^2-($GT12-$CN$27)^2),IF($GT12>=$CL$27,-$CM$27/2*($GT12-$CL$27)^2,0)))+(IF($GT12>=$CN$27,-1/6*($CO$27-$CM$27)/($CN$27-$CL$27)*(($GT12-$CL$27)^3-($GT12-$CN$27)^3)+($CO$27-$CM$27)/2*($GT12-$CN$27)^2,IF($GT12>=$CL$27,-1/6*($CO$27-$CM$27)/($CN$27-$CL$27)*($GT12-$CL$27)^3,0))))) -> --- | EA12: =IF($CL$27=$CN$27,"---",IF(AND($CL$27="",$CM$27="",$CN$27="",$CO$27=""),"---",(IF($GT12>=$CN$27,-$CM$27/(6*$BZ$13*$CL$19)*(($GT12-$CL$27)^3-($GT12-$CN$27)^3),IF($GT12>=$CL$27,-$CM$27/(6*$BZ$13*$CL$19)*($GT12-$CL$27)^3,0)))+(IF($GT12>=$CN$27,-1/(24*$BZ$13*$CL$19)*($CO$27-$CM$27)/($CN$27-$CL$27)*(($GT12-$CL$27)^4-($GT12-$CN$27)^4)+($CO$27-$CM$27)/(6*$BZ$13*$CL$19)*($GT12-$CN$27)^3,IF($GT12>=$CL$27,-1/(24*$BZ$13*$CL$19)*($CO$27-$CM$27)/($CN$27-$CL$27)*($GT12-$CL$27)^4,0))))) -> --- | EB12: =IF($CL$27=$CN$27,"---",IF(AND($CL$27="",$CM$27="",$CN$27="",$CO$27=""),"---",(IF($GT12>=$CN$27,$CM$27/(24*$BZ$13*$CL$19)*(($GT12-$CL$27)^4-($GT12-$CN$27)^4),IF($GT12>=$CL$27,$CM$27/(24*$BZ$13*$CL$19)*($GT12-$CL$27)^4,0)))+(IF($GT12>=$CN$27,1/(120*$BZ$13*$CL$19)*($CO$27-$CM$27)/($CN$27-$CL$27)*(($GT12-$CL$27)^5-($GT12-$CN$27)^5)-($CO$27-$CM$27)/(24*$BZ$13*$CL$19)*($GT12-$CN$27)^4,IF($GT12>=$CL$27,1/(120*$BZ$13*$CL$19)*($CO$27-$CM$27)/($CN$27-$CL$27)*($GT12-$CL$27)^5,0))))) -> --- | EC12: =IF($CL$28=$CN$28,"---",IF(AND($CL$28="",$CM$28="",$CN$28="",$CO$28=""),"---",(-$CM$28*($CL$18-$CL$28-($CL$18-$CN$28)))+(-1/2*($CO$28-$CM$28)/($CN$28-$CL$28)*(($CL$18-$CL$28)^2-($CL$18-$CN$28)^2)+($CO$28-$CM$28)*($CL$18-$CN$28)))) -> --- | ED12: =IF($CL$28=$CN$28,"---",IF(AND($CL$28="",$CM$28="",$CN$28="",$CO$28=""),"---",(-$CM$28/2*(($CL$18-$CL$28)^2-($CL$18-$CN$28)^2))+(-1/6*($CO$28-$CM$28)/($CN$28-$CL$28)*(($CL$18-$CL$28)^3-($CL$18-$CN$28)^3)+($CO$28-$CM$28)/2*($CL$18-$CN$28)^2))) -> --- | EE12: =IF($CL$28=$CN$28,"---",IF(AND($CL$28="",$CM$28="",$CN$28="",$CO$28=""),"---",(-$CM$28/(6*$BZ$13*$CL$19)*(($CL$18-$CL$28)^3-($CL$18-$CN$28)^3))+(-1/(24*$BZ$13*$CL$19)*($CO$28-$CM$28)/($CN$28-$CL$28)*(($CL$18-$CL$28)^4-($CL$18-$CN$28)^4)+($CO$28-$CM$28)/(6*$BZ$13*$CL$19)*($CL$18-$CN$28)^3))) -> --- | EF12: =IF($CL$28=$CN$28,"---",IF(AND($CL$28="",$CM$28="",$CN$28="",$CO$28=""),"---",($CM$28/(24*$BZ$13*$CL$19)*(($CL$18-$CL$28)^4-($CL$18-$CN$28)^4))+(1/(120*$BZ$13*$CL$19)*($CO$28-$CM$28)/($CN$28-$CL$28)*(($CL$18-$CL$28)^5-($CL$18-$CN$28)^5)-($CO$28-$CM$28)/(24*$BZ$13*$CL$19)*($CL$18-$CN$28)^4))) -> --- | EG12: =IF($CL$28=$CN$28,"---",IF(AND($CL$28="",$CM$28="",$CN$28="",$CO$28=""),"---",(IF($GT12>=$CN$28,-$CM$28*($GT12-$CL$28-($GT12-$CN$28)),IF($GT12>=$CL$28,-$CM$28*($GT12-$CL$28),0)))+(IF($GT12>=$CN$28,-1/2*($CO$28-$CM$28)/($CN$28-$CL$28)*(($GT12-$CL$28)^2-($GT12-$CN$28)^2)+($CO$28-$CM$28)*($GT12-$CN$28),IF($GT12>=$CL$28,-1/2*($CO$28-$CM$28)/($CN$28-$CL$28)*($GT12-$CL$28)^2,0))))) -> --- | EH12: =IF($CL$28=$CN$28,"---",IF(AND($CL$28="",$CM$28="",$CN$28="",$CO$28=""),"---",(IF($GT12>=$CN$28,-$CM$28/2*(($GT12-$CL$28)^2-($GT12-$CN$28)^2),IF($GT12>=$CL$28,-$CM$28/2*($GT12-$CL$28)^2,0)))+(IF($GT12>=$CN$28,-1/6*($CO$28-$CM$28)/($CN$28-$CL$28)*(($GT12-$CL$28)^3-($GT12-$CN$28)^3)+($CO$28-$CM$28)/2*($GT12-$CN$28)^2,IF($GT12>=$CL$28,-1/6*($CO$28-$CM$28)/($CN$28-$CL$28)*($GT12-$CL$28)^3,0))))) -> --- | EI12: =IF($CL$28=$CN$28,"---",IF(AND($CL$28="",$CM$28="",$CN$28="",$CO$28=""),"---",(IF($GT12>=$CN$28,-$CM$28/(6*$BZ$13*$CL$19)*(($GT12-$CL$28)^3-($GT12-$CN$28)^3),IF($GT12>=$CL$28,-$CM$28/(6*$BZ$13*$CL$19)*($GT12-$CL$28)^3,0)))+(IF($GT12>=$CN$28,-1/(24*$BZ$13*$CL$19)*($CO$28-$CM$28)/($CN$28-$CL$28)*(($GT12-$CL$28)^4-($GT12-$CN$28)^4)+($CO$28-$CM$28)/(6*$BZ$13*$CL$19)*($GT12-$CN$28)^3,IF($GT12>=$CL$28,-1/(24*$BZ$13*$CL$19)*($CO$28-$CM$28)/($CN$28-$CL$28)*($GT12-$CL$28)^4,0))))) -> --- | EJ12: =IF($CL$28=$CN$28,"---",IF(AND($CL$28="",$CM$28="",$CN$28="",$CO$28=""),"---",(IF($GT12>=$CN$28,$CM$28/(24*$BZ$13*$CL$19)*(($GT12-$CL$28)^4-($GT12-$CN$28)^4),IF($GT12>=$CL$28,$CM$28/(24*$BZ$13*$CL$19)*($GT12-$CL$28)^4,0)))+(IF($GT12>=$CN$28,1/(120*$BZ$13*$CL$19)*($CO$28-$CM$28)/($CN$28-$CL$28)*(($GT12-$CL$28)^5-($GT12-$CN$28)^5)-($CO$28-$CM$28)/(24*$BZ$13*$CL$19)*($GT12-$CN$28)^4,IF($GT12>=$CL$28,1/(120*$BZ$13*$CL$19)*($CO$28-$CM$28)/($CN$28-$CL$28)*($GT12-$CL$28)^5,0))))) -> --- | EK12: =IF($CL$29=$CN$29,"---",IF(AND($CL$29="",$CM$29="",$CN$29="",$CO$29=""),"---",(-$CM$29*($CL$18-$CL$29-($CL$18-$CN$29)))+(-1/2*($CO$29-$CM$29)/($CN$29-$CL$29)*(($CL$18-$CL$29)^2-($CL$18-$CN$29)^2)+($CO$29-$CM$29)*($CL$18-$CN$29)))) -> --- | EL12: =IF($CL$29=$CN$29,"---",IF(AND($CL$29="",$CM$29="",$CN$29="",$CO$29=""),"---",(-$CM$29/2*(($CL$18-$CL$29)^2-($CL$18-$CN$29)^2))+(-1/6*($CO$29-$CM$29)/($CN$29-$CL$29)*(($CL$18-$CL$29)^3-($CL$18-$CN$29)^3)+($CO$29-$CM$29)/2*($CL$18-$CN$29)^2))) -> --- | EM12: =IF($CL$29=$CN$29,"---",IF(AND($CL$29="",$CM$29="",$CN$29="",$CO$29=""),"---",(-$CM$29/(6*$BZ$13*$CL$19)*(($CL$18-$CL$29)^3-($CL$18-$CN$29)^3))+(-1/(24*$BZ$13*$CL$19)*($CO$29-$CM$29)/($CN$29-$CL$29)*(($CL$18-$CL$29)^4-($CL$18-$CN$29)^4)+($CO$29-$CM$29)/(6*$BZ$13*$CL$19)*($CL$18-$CN$29)^3))) -> --- | EN12: =IF($CL$29=$CN$29,"---",IF(AND($CL$29="",$CM$29="",$CN$29="",$CO$29=""),"---",($CM$29/(24*$BZ$13*$CL$19)*(($CL$18-$CL$29)^4-($CL$18-$CN$29)^4))+(1/(120*$BZ$13*$CL$19)*($CO$29-$CM$29)/($CN$29-$CL$29)*(($CL$18-$CL$29)^5-($CL$18-$CN$29)^5)-($CO$29-$CM$29)/(24*$BZ$13*$CL$19)*($CL$18-$CN$29)^4))) -> --- | EO12: =IF($CL$29=$CN$29,"---",IF(AND($CL$29="",$CM$29="",$CN$29="",$CO$29=""),"---",(IF($GT12>=$CN$29,-$CM$29*($GT12-$CL$29-($GT12-$CN$29)),IF($GT12>=$CL$29,-$CM$29*($GT12-$CL$29),0)))+(IF($GT12>=$CN$29,-1/2*($CO$29-$CM$29)/($CN$29-$CL$29)*(($GT12-$CL$29)^2-($GT12-$CN$29)^2)+($CO$29-$CM$29)*($GT12-$CN$29),IF($GT12>=$CL$29,-1/2*($CO$29-$CM$29)/($CN$29-$CL$29)*($GT12-$CL$29)^2,0))))) -> --- | EP12: =IF($CL$29=$CN$29,"---",IF(AND($CL$29="",$CM$29="",$CN$29="",$CO$29=""),"---",(IF($GT12>=$CN$29,-$CM$29/2*(($GT12-$CL$29)^2-($GT12-$CN$29)^2),IF($GT12>=$CL$29,-$CM$29/2*($GT12-$CL$29)^2,0)))+(IF($GT12>=$CN$29,-1/6*($CO$29-$CM$29)/($CN$29-$CL$29)*(($GT12-$CL$29)^3-($GT12-$CN$29)^3)+($CO$29-$CM$29)/2*($GT12-$CN$29)^2,IF($GT12>=$CL$29,-1/6*($CO$29-$CM$29)/($CN$29-$CL$29)*($GT12-$CL$29)^3,0))))) -> --- | EQ12: =IF($CL$29=$CN$29,"---",IF(AND($CL$29="",$CM$29="",$CN$29="",$CO$29=""),"---",(IF($GT12>=$CN$29,-$CM$29/(6*$BZ$13*$CL$19)*(($GT12-$CL$29)^3-($GT12-$CN$29)^3),IF($GT12>=$CL$29,-$CM$29/(6*$BZ$13*$CL$19)*($GT12-$CL$29)^3,0)))+(IF($GT12>=$CN$29,-1/(24*$BZ$13*$CL$19)*($CO$29-$CM$29)/($CN$29-$CL$29)*(($GT12-$CL$29)^4-($GT12-$CN$29)^4)+($CO$29-$CM$29)/(6*$BZ$13*$CL$19)*($GT12-$CN$29)^3,IF($GT12>=$CL$29,-1/(24*$BZ$13*$CL$19)*($CO$29-$CM$29)/($CN$29-$CL$29)*($GT12-$CL$29)^4,0))))) -> --- | ER12: =IF($CL$29=$CN$29,"---",IF(AND($CL$29="",$CM$29="",$CN$29="",$CO$29=""),"---",(IF($GT12>=$CN$29,$CM$29/(24*$BZ$13*$CL$19)*(($GT12-$CL$29)^4-($GT12-$CN$29)^4),IF($GT12>=$CL$29,$CM$29/(24*$BZ$13*$CL$19)*($GT12-$CL$29)^4,0)))+(IF($GT12>=$CN$29,1/(120*$BZ$13*$CL$19)*($CO$29-$CM$29)/($CN$29-$CL$29)*(($GT12-$CL$29)^5-($GT12-$CN$29)^5)-($CO$29-$CM$29)/(24*$BZ$13*$CL$19)*($GT12-$CN$29)^4,IF($GT12>=$CL$29,1/(120*$BZ$13*$CL$19)*($CO$29-$CM$29)/($CN$29-$CL$29)*($GT12-$CL$29)^5,0))))) -> --- | ES12: =IF($CL$30=$CN$30,"---",IF(AND($CL$30="",$CM$30="",$CN$30="",$CO$30=""),"---",(-$CM$30*($CL$18-$CL$30-($CL$18-$CN$30)))+(-1/2*($CO$30-$CM$30)/($CN$30-$CL$30)*(($CL$18-$CL$30)^2-($CL$18-$CN$30)^2)+($CO$30-$CM$30)*($CL$18-$CN$30)))) -> --- | ET12: =IF($CL$30=$CN$30,"---",IF(AND($CL$30="",$CM$30="",$CN$30="",$CO$30=""),"---",(-$CM$30/2*(($CL$18-$CL$30)^2-($CL$18-$CN$30)^2))+(-1/6*($CO$30-$CM$30)/($CN$30-$CL$30)*(($CL$18-$CL$30)^3-($CL$18-$CN$30)^3)+($CO$30-$CM$30)/2*($CL$18-$CN$30)^2))) -> --- | EU12: =IF($CL$30=$CN$30,"---",IF(AND($CL$30="",$CM$30="",$CN$30="",$CO$30=""),"---",(-$CM$30/(6*$BZ$13*$CL$19)*(($CL$18-$CL$30)^3-($CL$18-$CN$30)^3))+(-1/(24*$BZ$13*$CL$19)*($CO$30-$CM$30)/($CN$30-$CL$30)*(($CL$18-$CL$30)^4-($CL$18-$CN$30)^4)+($CO$30-$CM$30)/(6*$BZ$13*$CL$19)*($CL$18-$CN$30)^3))) -> --- | EV12: =IF($CL$30=$CN$30,"---",IF(AND($CL$30="",$CM$30="",$CN$30="",$CO$30=""),"---",($CM$30/(24*$BZ$13*$CL$19)*(($CL$18-$CL$30)^4-($CL$18-$CN$30)^4))+(1/(120*$BZ$13*$CL$19)*($CO$30-$CM$30)/($CN$30-$CL$30)*(($CL$18-$CL$30)^5-($CL$18-$CN$30)^5)-($CO$30-$CM$30)/(24*$BZ$13*$CL$19)*($CL$18-$CN$30)^4))) -> --- | EW12: =IF($CL$30=$CN$30,"---",IF(AND($CL$30="",$CM$30="",$CN$30="",$CO$30=""),"---",(IF($GT12>=$CN$30,-$CM$30*($GT12-$CL$30-($GT12-$CN$30)),IF($GT12>=$CL$30,-$CM$30*($GT12-$CL$30),0)))+(IF($GT12>=$CN$30,-1/2*($CO$30-$CM$30)/($CN$30-$CL$30)*(($GT12-$CL$30)^2-($GT12-$CN$30)^2)+($CO$30-$CM$30)*($GT12-$CN$30),IF($GT12>=$CL$30,-1/2*($CO$30-$CM$30)/($CN$30-$CL$30)*($GT12-$CL$30)^2,0))))) -> --- | EX12: =IF($CL$30=$CN$30,"---",IF(AND($CL$30="",$CM$30="",$CN$30="",$CO$30=""),"---",(IF($GT12>=$CN$30,-$CM$30/2*(($GT12-$CL$30)^2-($GT12-$CN$30)^2),IF($GT12>=$CL$30,-$CM$30/2*($GT12-$CL$30)^2,0)))+(IF($GT12>=$CN$30,-1/6*($CO$30-$CM$30)/($CN$30-$CL$30)*(($GT12-$CL$30)^3-($GT12-$CN$30)^3)+($CO$30-$CM$30)/2*($GT12-$CN$30)^2,IF($GT12>=$CL$30,-1/6*($CO$30-$CM$30)/($CN$30-$CL$30)*($GT12-$CL$30)^3,0))))) -> --- | EY12: =IF($CL$30=$CN$30,"---",IF(AND($CL$30="",$CM$30="",$CN$30="",$CO$30=""),"---",(IF($GT12>=$CN$30,-$CM$30/(6*$BZ$13*$CL$19)*(($GT12-$CL$30)^3-($GT12-$CN$30)^3),IF($GT12>=$CL$30,-$CM$30/(6*$BZ$13*$CL$19)*($GT12-$CL$30)^3,0)))+(IF($GT12>=$CN$30,-1/(24*$BZ$13*$CL$19)*($CO$30-$CM$30)/($CN$30-$CL$30)*(($GT12-$CL$30)^4-($GT12-$CN$30)^4)+($CO$30-$CM$30)/(6*$BZ$13*$CL$19)*($GT12-$CN$30)^3,IF($GT12>=$CL$30,-1/(24*$BZ$13*$CL$19)*($CO$30-$CM$30)/($CN$30-$CL$30)*($GT12-$CL$30)^4,0))))) -> --- | EZ12: =IF($CL$30=$CN$30,"---",IF(AND($CL$30="",$CM$30="",$CN$30="",$CO$30=""),"---",(IF($GT12>=$CN$30,$CM$30/(24*$BZ$13*$CL$19)*(($GT12-$CL$30)^4-($GT12-$CN$30)^4),IF($GT12>=$CL$30,$CM$30/(24*$BZ$13*$CL$19)*($GT12-$CL$30)^4,0)))+(IF($GT12>=$CN$30,1/(120*$BZ$13*$CL$19)*($CO$30-$CM$30)/($CN$30-$CL$30)*(($GT12-$CL$30)^5-($GT12-$CN$30)^5)-($CO$30-$CM$30)/(24*$BZ$13*$CL$19)*($GT12-$CN$30)^4,IF($GT12>=$CL$30,1/(120*$BZ$13*$CL$19)*($CO$30-$CM$30)/($CN$30-$CL$30)*($GT12-$CL$30)^5,0))))) -> --- | FQ12: =-$CN$35+-$CN$36+-$CN$37+-$CN$38+-$CN$39+-$CN$40 -> -120 | FR12: =-$CN$35*($CL$18-$CL$35)+-$CN$36*($CL$18-$CL$36)+-$CN$37*($CL$18-$CL$37)+-$CN$38*($CL$18-$CL$38)+-$CN$39*($CL$18-$CL$39)+-$CN$40*($CL$18-$CL$40) -> -420 | FS12: =-$CN$35*($CL$18-$CL$35)^2/(2*$BZ$13*$CL$19)+-$CN$36*($CL$18-$CL$36)^2/(2*$BZ$13*$CL$19)+-$CN$37*($CL$18-$CL$37)^2/(2*$BZ$13*$CL$19)+-$CN$38*($CL$18-$CL$38)^2/(2*$BZ$13*$CL$19)+-$CN$39*($CL$18-$CL$39)^2/(2*$BZ$13*$CL$19)+-$CN$40*($CL$18-$CL$40)^2/(2*$BZ$13*$CL$19) -> -2.296875e-07 | FT12: =$CN$35*($CL$18-$CL$35)^3/(6*$BZ$13*$CL$19)+$CN$36*($CL$18-$CL$36)^3/(6*$BZ$13*$CL$19)+$CN$37*($CL$18-$CL$37)^3/(6*$BZ$13*$CL$19)+$CN$38*($CL$18-$CL$38)^3/(6*$BZ$13*$CL$19)+$CN$39*($CL$18-$CL$39)^3/(6*$BZ$13*$CL$19)+$CN$40*($CL$18-$CL$40)^3/(6*$BZ$13*$CL$19) -> 2.6796875e-07 | FU12: =IF($GT12>$CL$35,-$CN$35,0)+IF($GT12>$CL$36,-$CN$36,0)+IF($GT12>$CL$37,-$CN$37,0)+IF($GT12>$CL$38,-$CN$38,0)+IF($GT12>$CL$39,-$CN$39,0)+IF($GT12>$CL$40,-$CN$40,0) -> 0 | FV12: =IF($GT12>$CL$35,-$CN$35*($GT12-$CL$35),0)+IF($GT12>$CL$36,-$CN$36*($GT12-$CL$36),0)+IF($GT12>$CL$37,-$CN$37*($GT12-$CL$37),0)+IF($GT12>$CL$38,-$CN$38*($GT12-$CL$38),0)+IF($GT12>$CL$39,-$CN$39*($GT12-$CL$39),0)+IF($GT12>$CL$40,-$CN$40*($GT12-$CL$40),0) -> 0 | FW12: =IF($GT12>$CL$35,-$CN$35*($GT12-$CL$35)^2/(2*$BZ$13*$CL$19),0)+IF($GT12>$CL$36,-$CN$36*($GT12-$CL$36)^2/(2*$BZ$13*$CL$19),0)+IF($GT12>$CL$37,-$CN$37*($GT12-$CL$37)^2/(2*$BZ$13*$CL$19),0)+IF($GT12>$CL$38,-$CN$38*($GT12-$CL$38)^2/(2*$BZ$13*$CL$19),0)+IF($GT12>$CL$39,-$CN$39*($GT12-$CL$39)^2/(2*$BZ$13*$CL$19),0)+IF($GT12>$CL$40,-$CN$40*($GT12-$CL$40)^2/(2*$BZ$13*$CL$19),0) -> 0 | FX12: =IF($GT12>$CL$35,$CN$35*($GT12-$CL$35)^3/(6*$BZ$13*$CL$19),0)+IF($GT12>$CL$36,$CN$36*($GT12-$CL$36)^3/(6*$BZ$13*$CL$19),0)+IF($GT12>$CL$37,$CN$37*($GT12-$CL$37)^3/(6*$BZ$13*$CL$19),0)+IF($GT12>$CL$38,$CN$38*($GT12-$CL$38)^3/(6*$BZ$13*$CL$19),0)+IF($GT12>$CL$39,$CN$39*($GT12-$CL$39)^3/(6*$BZ$13*$CL$19),0)+IF($GT12>$CL$40,$CN$40*($GT12-$CL$40)^3/(6*$BZ$13*$CL$19),0) -> 0 | FY12: =0+0+0+0 -> 0 | FZ12: =-$CN$52+-$CN$53+-$CN$54+-$CN$55+-CN56+-CN57 -> 0 | GA12: =-$CN$52*($CL$18-$GC$19)/($BZ$13*$CL$19)+-$CN$53*($CL$18-$GC$20)/($BZ$13*$CL$19)+-$CN$54*($CL$18-$GC$21)/($BZ$13*$CL$19)+-$CN$55*($CL$18-$GC$22)/($BZ$13*$CL$19)+-$CN$56*($CL$18-$GC$23)/($BZ$13*$CL$19)+-$CN$57*($CL$18-$GC$24)/($BZ$13*$CL$19) -> 0 | GB12: =$CN$52*($CL$18-$GC$19)^2/(2*$BZ$13*$CL$19)+$CN$53*($CL$18-$GC$20)^2/(2*$BZ$13*$CL$19)+$CN$54*($CL$18-$GC$21)^2/(2*$BZ$13*$CL$19)+$CN$55*($CL$18-$GC$22)^2/(2*$BZ$13*$CL$19)+$CN$56*($CL$18-$GC$23)^2/(2*$BZ$13*$CL$19)+$CN$57*($CL$18-$GC$24)^2/(2*$BZ$13*$CL$19) -> 0 | GC12: =IF($GT12>=IF($GC$19=$CL$18,$GC$19+0.000000001,$GC$19),0,0)+IF($GT12>=IF($GC$20=$CL$18,$GC$20+0.000000001,$GC$20),0,0)+IF($GT12>=IF($GC$21=$CL$18,$GC$21+0.000000001,$GC$21),0,0)+IF($GT12>=IF($GC$22=$CL$18,$GC$22+0.000000001,$GC$22),0,0)+IF($GT12>=IF($GC$23=$CL$18,$GC$23+0.000000001,$GC$23),0,0)+IF($GT12>=IF($GC$24=$CL$18,$GC$24+0.000000001,$GC$24),0,0) -> 0 | GD12: =IF($GT12>=IF($GC$19=$CL$18,$GC$19+0.000000001,$GC$19),-$CN$52,0)+IF($GT12>=IF($GC$20=$CL$18,$GC$20+0.000000001,$GC$20),-$CN$53,0)+IF($GT12>=IF($GC$21=$CL$18,$GC$21+0.000000001,$GC$21),-$CN$54,0)+IF($GT12>=IF($GC$22=$CL$18,$GC$22+0.000000001,$GC$22),-$CN$55,0)+IF($GT12>=IF($GC$23=$CL$18,$GC$23+0.000000001,$GC$23),-$CN$56,0)+IF($GT12>=IF($GC$24=$CL$18,$GC$24+0.000000001,$GC$24),-$CN$57,0) -> 0 | GE12: =IF($GT12>=IF($GC$19=$CL$18,$GC$19+0.000000001,$GC$19),-$CN$52*($GT12-$GC$19)/($BZ$13*$CL$19),0)+IF($GT12>=IF($GC$20=$CL$18,$GC$20+0.000000001,$GC$20),-$CN$53*($GT12-$GC$20)/($BZ$13*$CL$19),0)+IF($GT12>=IF($GC$21=$CL$18,$GC$21+0.000000001,$GC$21),-$CN$54*($GT12-$GC$21)/($BZ$13*$CL$19),0)+IF($GT12>=IF($GC$22=$CL$18,$GC$22+0.000000001,$GC$22),-$CN$55*($GT12-$GC$22)/($BZ$13*$CL$19),0)+IF($GT12>=IF($GC$23=$CL$18,$GC$23+0.000000001,$GC$23),-$CN$56*($GT12-$GC$23)/($BZ$13*$CL$19),0)+IF($GT12>=IF($GC$24=$CL$18,$GC$24+0.000000001,$GC$24),-$CN$57*($GT12-$GC$24)/($BZ$13*$CL$19),0) -> 0 | GF12: =IF($GT12>=IF($GC$19=$CL$18,$GC$19+0.000000001,$GC$19),$CN$52*($GT12-$GC$19)^2/(2*$BZ$13*$CL$19),0)+IF($GT12>=IF($GC$20=$CL$18,$GC$20+0.000000001,$GC$20),$CN$53*($GT12-$GC$20)^2/(2*$BZ$13*$CL$19),0)+IF($GT12>=IF($GC$21=$CL$18,$GC$21+0.000000001,$GC$21),$CN$54*($GT12-$GC$21)^2/(2*$BZ$13*$CL$19),0)+IF($GT12>=IF($GC$22=$CL$18,$GC$22+0.000000001,$GC$22),$CN$55*($GT12-$GC$22)^2/(2*$BZ$13*$CL$19),0)+IF($GT12>=IF($GC$23=$CL$18,$GC$23+0.000000001,$GC$23),$CN$56*($GT12-$GC$23)^2/(2*$BZ$13*$CL$19),0)+IF($GT12>=IF($GC$24=$CL$18,$GC$24+0.000000001,$GC$24),$CN$57*($GT12-$GC$24)^2/(2*$BZ$13*$CL$19),0) -> 0 | GG12: =SUM(CW12,DE12,DM12,DU12,EC12,EK12,ES12,FA12,FI12,FQ12,FY12) -> -750 | GH12: =SUM(CX12,DF12,DN12,DV12,ED12,EL12,ET12,FB12,FJ12,FR12,FZ12) -> -2625 | GI12: =SUM(CY12,DG12,DO12,DW12,EE12,EM12,EU12,FC12,FK12,FS12,GA12) -> -1.8375e-06 | GJ12: =SUM(CZ12,DH12,DP12,DX12,EF12,EN12,EV12,FD12,FL12,FT12,GB12) -> 3.081640625e-06 | GK12: 0 | GL12: 0 | GM12: 0 | GN12: 0 | GO12: =-12*$BZ$13*$CL$19/$CL$18^3*$GJ12-6*$BZ$13*$CL$19/$CL$18^2*$GI12 -> 375 | GP12: =6*$BZ$13*$CL$19/$CL$18^2*$GJ12+2*$BZ$13*$CL$19/$CL$18*$GI12 -> -472.5 | GQ12: =0 -> 0 | GR12: =0 -> 0 | GS12: =IF($BZ$10<4,0,$GP12+$GO12*$GT12+$GL12) -> -472.5 | GT12: =0 -> 0 | HE12: W44x335 | HF12: 31100 | HG12: 1200 | HH12: =ROUND(HF12*(2.54^4),2) -> 1294479.73 | HI12: =ROUND(HG12*(2.54^4),2) -> 49947.77 | HK12: =IF(OR($HL$10>$BZ$18,$HL$11>$BZ$18,$HM$10>$CD$18,$HM$11>$CD$18,$HN$10>$CH$18,$HN$11>$CH$18,$HO$10>$CL$18,$HO$11>$CL$18,$HP$10>$CP$18,$HP$11>$CP$18),"All values of x1 and x2 must be <= respective span lengths !","") -> 
BY13: Modulus, E = | BZ13: =P12 -> 200000 | CA13: MPa | CN13: -D(max) = | CO13: =MIN($CW$843:$CW$847) -> -46.84425435 | CP13: mm | CQ13: @ x = | CR13: =VLOOKUP($CO$13,$CW$843:$DB$847,4,FALSE) -> 3.401176471 | CS13: ="m ("&VLOOKUP($CO$13,$CW$843:$DB$847,6,FALSE)&")" -> m (Span #4) | CV13: Span #4 FEM(R): | CW13: =$CW$12 -> -630 | CX13: =$CX$12 -> -2205 | CY13: =$CY$12 -> -1.6078125e-06 | CZ13: =$CZ$12 -> 2.813671875e-06 | DA13: =IF($CL$21=0,"---",IF($GT13=$CL$18,-$CL$21*($GT13-($GT13-$CL$18)),IF($GT13>=0,-$CL$21*$GT13,0))) -> -630 | DB13: =IF($CL$21=0,"---",IF($GT13=$CL$18,-$CL$21*($GT13^2-($GT13-$CL$18)^2)/2,IF($GT13>=0,-$CL$21*$GT13^2/2,0))) -> -2205 | DC13: =IF($CL$21=0,"---",IF($GT13=$CL$18,-$CL$21*($GT13^3-($GT13-$CL$18)^3)/(6*$BZ$13*$CL$19),IF($GT13>=0,-$CL$21*$GT13^3/(6*$BZ$13*$CL$19),0))) -> -1.6078125e-06 | DD13: =IF($CL$21=0,"---",IF($GT13=$CL$18,$CL$21*($GT13^4-($GT13-$CL$18)^4)/(24*$BZ$13*$CL$19),IF($GT13>=0,$CL$21*$GT13^4/(24*$BZ$13*$CL$19),0))) -> 2.813671875e-06 | DE13: =$DE$12 -> --- | DF13: =$DF$12 -> --- | DG13: =$DG$12 -> --- | DH13: =$DH$12 -> --- | DI13: =IF($CL$25=$CN$25,"---",IF(AND($CL$25="",$CM$25="",$CN$25="",$CO$25=""),"---",(IF($GT13>=$CN$25,-$CM$25*($GT13-$CL$25-($GT13-$CN$25)),IF($GT13>=$CL$25,-$CM$25*($GT13-$CL$25),0)))+(IF($GT13>=$CN$25,-1/2*($CO$25-$CM$25)/($CN$25-$CL$25)*(($GT13-$CL$25)^2-($GT13-$CN$25)^2)+($CO$25-$CM$25)*($GT13-$CN$25),IF($GT13>=$CL$25,-1/2*($CO$25-$CM$25)/($CN$25-$CL$25)*($GT13-$CL$25)^2,0))))) -> --- | DJ13: =IF($CL$25=$CN$25,"---",IF(AND($CL$25="",$CM$25="",$CN$25="",$CO$25=""),"---",(IF($GT13>=$CN$25,-$CM$25/2*(($GT13-$CL$25)^2-($GT13-$CN$25)^2),IF($GT13>=$CL$25,-$CM$25/2*($GT13-$CL$25)^2,0)))+(IF($GT13>=$CN$25,-1/6*($CO$25-$CM$25)/($CN$25-$CL$25)*(($GT13-$CL$25)^3-($GT13-$CN$25)^3)+($CO$25-$CM$25)/2*($GT13-$CN$25)^2,IF($GT13>=$CL$25,-1/6*($CO$25-$CM$25)/($CN$25-$CL$25)*($GT13-$CL$25)^3,0))))) -> --- | DK13: =IF($CL$25=$CN$25,"---",IF(AND($CL$25="",$CM$25="",$CN$25="",$CO$25=""),"---",(IF($GT13>=$CN$25,-$CM$25/(6*$BZ$13*$CL$19)*(($GT13-$CL$25)^3-($GT13-$CN$25)^3),IF($GT13>=$CL$25,-$CM$25/(6*$BZ$13*$CL$19)*($GT13-$CL$25)^3,0)))+(IF($GT13>=$CN$25,-1/(24*$BZ$13*$CL$19)*($CO$25-$CM$25)/($CN$25-$CL$25)*(($GT13-$CL$25)^4-($GT13-$CN$25)^4)+($CO$25-$CM$25)/(6*$BZ$13*$CL$19)*($GT13-$CN$25)^3,IF($GT13>=$CL$25,-1/(24*$BZ$13*$CL$19)*($CO$25-$CM$25)/($CN$25-$CL$25)*($GT13-$CL$25)^4,0))))) -> --- | DL13: =IF($CL$25=$CN$25,"---",IF(AND($CL$25="",$CM$25="",$CN$25="",$CO$25=""),"---",(IF($GT13>=$CN$25,$CM$25/(24*$BZ$13*$CL$19)*(($GT13-$CL$25)^4-($GT13-$CN$25)^4),IF($GT13>=$CL$25,$CM$25/(24*$BZ$13*$CL$19)*($GT13-$CL$25)^4,0)))+(IF($GT13>=$CN$25,1/(120*$BZ$13*$CL$19)*($CO$25-$CM$25)/($CN$25-$CL$25)*(($GT13-$CL$25)^5-($GT13-$CN$25)^5)-($CO$25-$CM$25)/(24*$BZ$13*$CL$19)*($GT13-$CN$25)^4,IF($GT13>=$CL$25,1/(120*$BZ$13*$CL$19)*($CO$25-$CM$25)/($CN$25-$CL$25)*($GT13-$CL$25)^5,0))))) -> --- | DM13: =$DM$12 -> --- | DN13: =$DN$12 -> --- | DO13: =$DO$12 -> --- | DP13: =$DP$12 -> --- | DQ13: =IF($CL$26=$CN$26,"---",IF(AND($CL$26="",$CM$26="",$CN$26="",$CO$26=""),"---",(IF($GT13>=$CN$26,-$CM$26*($GT13-$CL$26-($GT13-$CN$26)),IF($GT13>=$CL$26,-$CM$26*($GT13-$CL$26),0)))+(IF($GT13>=$CN$26,-1/2*($CO$26-$CM$26)/($CN$26-$CL$26)*(($GT13-$CL$26)^2-($GT13-$CN$26)^2)+($CO$26-$CM$26)*($GT13-$CN$26),IF($GT13>=$CL$26,-1/2*($CO$26-$CM$26)/($CN$26-$CL$26)*($GT13-$CL$26)^2,0))))) -> --- | DR13: =IF($CL$26=$CN$26,"---",IF(AND($CL$26="",$CM$26="",$CN$26="",$CO$26=""),"---",(IF($GT13>=$CN$26,-$CM$26/2*(($GT13-$CL$26)^2-($GT13-$CN$26)^2),IF($GT13>=$CL$26,-$CM$26/2*($GT13-$CL$26)^2,0)))+(IF($GT13>=$CN$26,-1/6*($CO$26-$CM$26)/($CN$26-$CL$26)*(($GT13-$CL$26)^3-($GT13-$CN$26)^3)+($CO$26-$CM$26)/2*($GT13-$CN$26)^2,IF($GT13>=$CL$26,-1/6*($CO$26-$CM$26)/($CN$26-$CL$26)*($GT13-$CL$26)^3,0))))) -> --- | DS13: =IF($CL$26=$CN$26,"---",IF(AND($CL$26="",$CM$26="",$CN$26="",$CO$26=""),"---",(IF($GT13>=$CN$26,-$CM$26/(6*$BZ$13*$CL$19)*(($GT13-$CL$26)^3-($GT13-$CN$26)^3),IF($GT13>=$CL$26,-$CM$26/(6*$BZ$13*$CL$19)*($GT13-$CL$26)^3,0)))+(IF($GT13>=$CN$26,-1/(24*$BZ$13*$CL$19)*($CO$26-$CM$26)/($CN$26-$CL$26)*(($GT13-$CL$26)^4-($GT13-$CN$26)^4)+($CO$26-$CM$26)/(6*$BZ$13*$CL$19)*($GT13-$CN$26)^3,IF($GT13>=$CL$26,-1/(24*$BZ$13*$CL$19)*($CO$26-$CM$26)/($CN$26-$CL$26)*($GT13-$CL$26)^4,0))))) -> --- | DT13: =IF($CL$26=$CN$26,"---",IF(AND($CL$26="",$CM$26="",$CN$26="",$CO$26=""),"---",(IF($GT13>=$CN$26,$CM$26/(24*$BZ$13*$CL$19)*(($GT13-$CL$26)^4-($GT13-$CN$26)^4),IF($GT13>=$CL$26,$CM$26/(24*$BZ$13*$CL$19)*($GT13-$CL$26)^4,0)))+(IF($GT13>=$CN$26,1/(120*$BZ$13*$CL$19)*($CO$26-$CM$26)/($CN$26-$CL$26)*(($GT13-$CL$26)^5-($GT13-$CN$26)^5)-($CO$26-$CM$26)/(24*$BZ$13*$CL$19)*($GT13-$CN$26)^4,IF($GT13>=$CL$26,1/(120*$BZ$13*$CL$19)*($CO$26-$CM$26)/($CN$26-$CL$26)*($GT13-$CL$26)^5,0))))) -> --- | DU13: =$DU$12 -> --- | DV13: =$DV$12 -> --- | DW13: =$DW$12 -> --- | DX13: =$DX$12 -> --- | DY13: =IF($CL$27=$CN$27,"---",IF(AND($CL$27="",$CM$27="",$CN$27="",$CO$27=""),"---",(IF($GT13>=$CN$27,-$CM$27*($GT13-$CL$27-($GT13-$CN$27)),IF($GT13>=$CL$27,-$CM$27*($GT13-$CL$27),0)))+(IF($GT13>=$CN$27,-1/2*($CO$27-$CM$27)/($CN$27-$CL$27)*(($GT13-$CL$27)^2-($GT13-$CN$27)^2)+($CO$27-$CM$27)*($GT13-$CN$27),IF($GT13>=$CL$27,-1/2*($CO$27-$CM$27)/($CN$27-$CL$27)*($GT13-$CL$27)^2,0))))) -> --- | DZ13: =IF($CL$27=$CN$27,"---",IF(AND($CL$27="",$CM$27="",$CN$27="",$CO$27=""),"---",(IF($GT13>=$CN$27,-$CM$27/2*(($GT13-$CL$27)^2-($GT13-$CN$27)^2),IF($GT13>=$CL$27,-$CM$27/2*($GT13-$CL$27)^2,0)))+(IF($GT13>=$CN$27,-1/6*($CO$27-$CM$27)/($CN$27-$CL$27)*(($GT13-$CL$27)^3-($GT13-$CN$27)^3)+($CO$27-$CM$27)/2*($GT13-$CN$27)^2,IF($GT13>=$CL$27,-1/6*($CO$27-$CM$27)/($CN$27-$CL$27)*($GT13-$CL$27)^3,0))))) -> --- | EA13: =IF($CL$27=$CN$27,"---",IF(AND($CL$27="",$CM$27="",$CN$27="",$CO$27=""),"---",(IF($GT13>=$CN$27,-$CM$27/(6*$BZ$13*$CL$19)*(($GT13-$CL$27)^3-($GT13-$CN$27)^3),IF($GT13>=$CL$27,-$CM$27/(6*$BZ$13*$CL$19)*($GT13-$CL$27)^3,0)))+(IF($GT13>=$CN$27,-1/(24*$BZ$13*$CL$19)*($CO$27-$CM$27)/($CN$27-$CL$27)*(($GT13-$CL$27)^4-($GT13-$CN$27)^4)+($CO$27-$CM$27)/(6*$BZ$13*$CL$19)*($GT13-$CN$27)^3,IF($GT13>=$CL$27,-1/(24*$BZ$13*$CL$19)*($CO$27-$CM$27)/($CN$27-$CL$27)*($GT13-$CL$27)^4,0))))) -> --- | EB13: =IF($CL$27=$CN$27,"---",IF(AND($CL$27="",$CM$27="",$CN$27="",$CO$27=""),"---",(IF($GT13>=$CN$27,$CM$27/(24*$BZ$13*$CL$19)*(($GT13-$CL$27)^4-($GT13-$CN$27)^4),IF($GT13>=$CL$27,$CM$27/(24*$BZ$13*$CL$19)*($GT13-$CL$27)^4,0)))+(IF($GT13>=$CN$27,1/(120*$BZ$13*$CL$19)*($CO$27-$CM$27)/($CN$27-$CL$27)*(($GT13-$CL$27)^5-($GT13-$CN$27)^5)-($CO$27-$CM$27)/(24*$BZ$13*$CL$19)*($GT13-$CN$27)^4,IF($GT13>=$CL$27,1/(120*$BZ$13*$CL$19)*($CO$27-$CM$27)/($CN$27-$CL$27)*($GT13-$CL$27)^5,0))))) -> --- | EC13: =$EC$12 -> --- | ED13: =$ED$12 -> --- | EE13: =$EE$12 -> --- | EF13: =$EF$12 -> --- | EG13: =IF($CL$28=$CN$28,"---",IF(AND($CL$28="",$CM$28="",$CN$28="",$CO$28=""),"---",(IF($GT13>=$CN$28,-$CM$28*($GT13-$CL$28-($GT13-$CN$28)),IF($GT13>=$CL$28,-$CM$28*($GT13-$CL$28),0)))+(IF($GT13>=$CN$28,-1/2*($CO$28-$CM$28)/($CN$28-$CL$28)*(($GT13-$CL$28)^2-($GT13-$CN$28)^2)+($CO$28-$CM$28)*($GT13-$CN$28),IF($GT13>=$CL$28,-1/2*($CO$28-$CM$28)/($CN$28-$CL$28)*($GT13-$CL$28)^2,0))))) -> --- | EH13: =IF($CL$28=$CN$28,"---",IF(AND($CL$28="",$CM$28="",$CN$28="",$CO$28=""),"---",(IF($GT13>=$CN$28,-$CM$28/2*(($GT13-$CL$28)^2-($GT13-$CN$28)^2),IF($GT13>=$CL$28,-$CM$28/2*($GT13-$CL$28)^2,0)))+(IF($GT13>=$CN$28,-1/6*($CO$28-$CM$28)/($CN$28-$CL$28)*(($GT13-$CL$28)^3-($GT13-$CN$28)^3)+($CO$28-$CM$28)/2*($GT13-$CN$28)^2,IF($GT13>=$CL$28,-1/6*($CO$28-$CM$28)/($CN$28-$CL$28)*($GT13-$CL$28)^3,0))))) -> --- | EI13: =IF($CL$28=$CN$28,"---",IF(AND($CL$28="",$CM$28="",$CN$28="",$CO$28=""),"---",(IF($GT13>=$CN$28,-$CM$28/(6*$BZ$13*$CL$19)*(($GT13-$CL$28)^3-($GT13-$CN$28)^3),IF($GT13>=$CL$28,-$CM$28/(6*$BZ$13*$CL$19)*($GT13-$CL$28)^3,0)))+(IF($GT13>=$CN$28,-1/(24*$BZ$13*$CL$19)*($CO$28-$CM$28)/($CN$28-$CL$28)*(($GT13-$CL$28)^4-($GT13-$CN$28)^4)+($CO$28-$CM$28)/(6*$BZ$13*$CL$19)*($GT13-$CN$28)^3,IF($GT13>=$CL$28,-1/(24*$BZ$13*$CL$19)*($CO$28-$CM$28)/($CN$28-$CL$28)*($GT13-$CL$28)^4,0))))) -> --- | EJ13: =IF($CL$28=$CN$28,"---",IF(AND($CL$28="",$CM$28="",$CN$28="",$CO$28=""),"---",(IF($GT13>=$CN$28,$CM$28/(24*$BZ$13*$CL$19)*(($GT13-$CL$28)^4-($GT13-$CN$28)^4),IF($GT13>=$CL$28,$CM$28/(24*$BZ$13*$CL$19)*($GT13-$CL$28)^4,0)))+(IF($GT13>=$CN$28,1/(120*$BZ$13*$CL$19)*($CO$28-$CM$28)/($CN$28-$CL$28)*(($GT13-$CL$28)^5-($GT13-$CN$28)^5)-($CO$28-$CM$28)/(24*$BZ$13*$CL$19)*($GT13-$CN$28)^4,IF($GT13>=$CL$28,1/(120*$BZ$13*$CL$19)*($CO$28-$CM$28)/($CN$28-$CL$28)*($GT13-$CL$28)^5,0))))) -> --- | EK13: =$EK$12 -> --- | EL13: =$EL$12 -> --- | EM13: =$EM$12 -> --- | EN13: =$EN$12 -> --- | EO13: =IF($CL$29=$CN$29,"---",IF(AND($CL$29="",$CM$29="",$CN$29="",$CO$29=""),"---",(IF($GT13>=$CN$29,-$CM$29*($GT13-$CL$29-($GT13-$CN$29)),IF($GT13>=$CL$29,-$CM$29*($GT13-$CL$29),0)))+(IF($GT13>=$CN$29,-1/2*($CO$29-$CM$29)/($CN$29-$CL$29)*(($GT13-$CL$29)^2-($GT13-$CN$29)^2)+($CO$29-$CM$29)*($GT13-$CN$29),IF($GT13>=$CL$29,-1/2*($CO$29-$CM$29)/($CN$29-$CL$29)*($GT13-$CL$29)^2,0))))) -> --- | EP13: =IF($CL$29=$CN$29,"---",IF(AND($CL$29="",$CM$29="",$CN$29="",$CO$29=""),"---",(IF($GT13>=$CN$29,-$CM$29/2*(($GT13-$CL$29)^2-($GT13-$CN$29)^2),IF($GT13>=$CL$29,-$CM$29/2*($GT13-$CL$29)^2,0)))+(IF($GT13>=$CN$29,-1/6*($CO$29-$CM$29)/($CN$29-$CL$29)*(($GT13-$CL$29)^3-($GT13-$CN$29)^3)+($CO$29-$CM$29)/2*($GT13-$CN$29)^2,IF($GT13>=$CL$29,-1/6*($CO$29-$CM$29)/($CN$29-$CL$29)*($GT13-$CL$29)^3,0))))) -> --- | EQ13: =IF($CL$29=$CN$29,"---",IF(AND($CL$29="",$CM$29="",$CN$29="",$CO$29=""),"---",(IF($GT13>=$CN$29,-$CM$29/(6*$BZ$13*$CL$19)*(($GT13-$CL$29)^3-($GT13-$CN$29)^3),IF($GT13>=$CL$29,-$CM$29/(6*$BZ$13*$CL$19)*($GT13-$CL$29)^3,0)))+(IF($GT13>=$CN$29,-1/(24*$BZ$13*$CL$19)*($CO$29-$CM$29)/($CN$29-$CL$29)*(($GT13-$CL$29)^4-($GT13-$CN$29)^4)+($CO$29-$CM$29)/(6*$BZ$13*$CL$19)*($GT13-$CN$29)^3,IF($GT13>=$CL$29,-1/(24*$BZ$13*$CL$19)*($CO$29-$CM$29)/($CN$29-$CL$29)*($GT13-$CL$29)^4,0))))) -> --- | ER13: =IF($CL$29=$CN$29,"---",IF(AND($CL$29="",$CM$29="",$CN$29="",$CO$29=""),"---",(IF($GT13>=$CN$29,$CM$29/(24*$BZ$13*$CL$19)*(($GT13-$CL$29)^4-($GT13-$CN$29)^4),IF($GT13>=$CL$29,$CM$29/(24*$BZ$13*$CL$19)*($GT13-$CL$29)^4,0)))+(IF($GT13>=$CN$29,1/(120*$BZ$13*$CL$19)*($CO$29-$CM$29)/($CN$29-$CL$29)*(($GT13-$CL$29)^5-($GT13-$CN$29)^5)-($CO$29-$CM$29)/(24*$BZ$13*$CL$19)*($GT13-$CN$29)^4,IF($GT13>=$CL$29,1/(120*$BZ$13*$CL$19)*($CO$29-$CM$29)/($CN$29-$CL$29)*($GT13-$CL$29)^5,0))))) -> --- | ES13: =$ES$12 -> --- | ET13: =$ET$12 -> --- | EU13: =$EU$12 -> --- | EV13: =$EV$12 -> --- | EW13: =IF($CL$30=$CN$30,"---",IF(AND($CL$30="",$CM$30="",$CN$30="",$CO$30=""),"---",(IF($GT13>=$CN$30,-$CM$30*($GT13-$CL$30-($GT13-$CN$30)),IF($GT13>=$CL$30,-$CM$30*($GT13-$CL$30),0)))+(IF($GT13>=$CN$30,-1/2*($CO$30-$CM$30)/($CN$30-$CL$30)*(($GT13-$CL$30)^2-($GT13-$CN$30)^2)+($CO$30-$CM$30)*($GT13-$CN$30),IF($GT13>=$CL$30,-1/2*($CO$30-$CM$30)/($CN$30-$CL$30)*($GT13-$CL$30)^2,0))))) -> --- | EX13: =IF($CL$30=$CN$30,"---",IF(AND($CL$30="",$CM$30="",$CN$30="",$CO$30=""),"---",(IF($GT13>=$CN$30,-$CM$30/2*(($GT13-$CL$30)^2-($GT13-$CN$30)^2),IF($GT13>=$CL$30,-$CM$30/2*($GT13-$CL$30)^2,0)))+(IF($GT13>=$CN$30,-1/6*($CO$30-$CM$30)/($CN$30-$CL$30)*(($GT13-$CL$30)^3-($GT13-$CN$30)^3)+($CO$30-$CM$30)/2*($GT13-$CN$30)^2,IF($GT13>=$CL$30,-1/6*($CO$30-$CM$30)/($CN$30-$CL$30)*($GT13-$CL$30)^3,0))))) -> --- | EY13: =IF($CL$30=$CN$30,"---",IF(AND($CL$30="",$CM$30="",$CN$30="",$CO$30=""),"---",(IF($GT13>=$CN$30,-$CM$30/(6*$BZ$13*$CL$19)*(($GT13-$CL$30)^3-($GT13-$CN$30)^3),IF($GT13>=$CL$30,-$CM$30/(6*$BZ$13*$CL$19)*($GT13-$CL$30)^3,0)))+(IF($GT13>=$CN$30,-1/(24*$BZ$13*$CL$19)*($CO$30-$CM$30)/($CN$30-$CL$30)*(($GT13-$CL$30)^4-($GT13-$CN$30)^4)+($CO$30-$CM$30)/(6*$BZ$13*$CL$19)*($GT13-$CN$30)^3,IF($GT13>=$CL$30,-1/(24*$BZ$13*$CL$19)*($CO$30-$CM$30)/($CN$30-$CL$30)*($GT13-$CL$30)^4,0))))) -> --- | EZ13: =IF($CL$30=$CN$30,"---",IF(AND($CL$30="",$CM$30="",$CN$30="",$CO$30=""),"---",(IF($GT13>=$CN$30,$CM$30/(24*$BZ$13*$CL$19)*(($GT13-$CL$30)^4-($GT13-$CN$30)^4),IF($GT13>=$CL$30,$CM$30/(24*$BZ$13*$CL$19)*($GT13-$CL$30)^4,0)))+(IF($GT13>=$CN$30,1/(120*$BZ$13*$CL$19)*($CO$30-$CM$30)/($CN$30-$CL$30)*(($GT13-$CL$30)^5-($GT13-$CN$30)^5)-($CO$30-$CM$30)/(24*$BZ$13*$CL$19)*($GT13-$CN$30)^4,IF($GT13>=$CL$30,1/(120*$BZ$13*$CL$19)*($CO$30-$CM$30)/($CN$30-$CL$30)*($GT13-$CL$30)^5,0))))) -> --- | FQ13: =$FQ$12 -> -120 | FR13: =$FR$12 -> -420 | FS13: =$FS$12 -> -2.296875e-07 | FT13: =$FT$12 -> 2.6796875e-07 | FU13: =IF($GT13>$CL$35,-$CN$35,0)+IF($GT13>$CL$36,-$CN$36,0)+IF($GT13>$CL$37,-$CN$37,0)+IF($GT13>$CL$38,-$CN$38,0)+IF($GT13>$CL$39,-$CN$39,0)+IF($GT13>$CL$40,-$CN$40,0) -> -120 | FV13: =IF($GT13>$CL$35,-$CN$35*($GT13-$CL$35),0)+IF($GT13>$CL$36,-$CN$36*($GT13-$CL$36),0)+IF($GT13>$CL$37,-$CN$37*($GT13-$CL$37),0)+IF($GT13>$CL$38,-$CN$38*($GT13-$CL$38),0)+IF($GT13>$CL$39,-$CN$39*($GT13-$CL$39),0)+IF($GT13>$CL$40,-$CN$40*($GT13-$CL$40),0) -> -420 | FW13: =IF($GT13>$CL$35,-$CN$35*($GT13-$CL$35)^2/(2*$BZ$13*$CL$19),0)+IF($GT13>$CL$36,-$CN$36*($GT13-$CL$36)^2/(2*$BZ$13*$CL$19),0)+IF($GT13>$CL$37,-$CN$37*($GT13-$CL$37)^2/(2*$BZ$13*$CL$19),0)+IF($GT13>$CL$38,-$CN$38*($GT13-$CL$38)^2/(2*$BZ$13*$CL$19),0)+IF($GT13>$CL$39,-$CN$39*($GT13-$CL$39)^2/(2*$BZ$13*$CL$19),0)+IF($GT13>$CL$40,-$CN$40*($GT13-$CL$40)^2/(2*$BZ$13*$CL$19),0) -> -2.296875e-07 | FX13: =IF($GT13>$CL$35,$CN$35*($GT13-$CL$35)^3/(6*$BZ$13*$CL$19),0)+IF($GT13>$CL$36,$CN$36*($GT13-$CL$36)^3/(6*$BZ$13*$CL$19),0)+IF($GT13>$CL$37,$CN$37*($GT13-$CL$37)^3/(6*$BZ$13*$CL$19),0)+IF($GT13>$CL$38,$CN$38*($GT13-$CL$38)^3/(6*$BZ$13*$CL$19),0)+IF($GT13>$CL$39,$CN$39*($GT13-$CL$39)^3/(6*$BZ$13*$CL$19),0)+IF($GT13>$CL$40,$CN$40*($GT13-$CL$40)^3/(6*$BZ$13*$CL$19),0) -> 2.6796875e-07 | FY13: =$FY$12 -> 0 | FZ13: =$FZ$12 -> 0 | GA13: =$GA$12 -> 0 | GB13: =$GB$12 -> 0 | GC13: =IF($GT13>=IF($GC$19=$CL$18,$GC$19+0.000000001,$GC$19),0,0)+IF($GT13>=IF($GC$20=$CL$18,$GC$20+0.000000001,$GC$20),0,0)+IF($GT13>=IF($GC$21=$CL$18,$GC$21+0.000000001,$GC$21),0,0)+IF($GT13>=IF($GC$22=$CL$18,$GC$22+0.000000001,$GC$22),0,0)+IF($GT13>=IF($GC$23=$CL$18,$GC$23+0.000000001,$GC$23),0,0)+IF($GT13>=IF($GC$24=$CL$18,$GC$24+0.000000001,$GC$24),0,0) -> 0 | GD13: =IF($GT13>=IF($GC$19=$CL$18,$GC$19+0.000000001,$GC$19),-$CN$52,0)+IF($GT13>=IF($GC$20=$CL$18,$GC$20+0.000000001,$GC$20),-$CN$53,0)+IF($GT13>=IF($GC$21=$CL$18,$GC$21+0.000000001,$GC$21),-$CN$54,0)+IF($GT13>=IF($GC$22=$CL$18,$GC$22+0.000000001,$GC$22),-$CN$55,0)+IF($GT13>=IF($GC$23=$CL$18,$GC$23+0.000000001,$GC$23),-$CN$56,0)+IF($GT13>=IF($GC$24=$CL$18,$GC$24+0.000000001,$GC$24),-$CN$57,0) -> 0 | GE13: =IF($GT13>=IF($GC$19=$CL$18,$GC$19+0.000000001,$GC$19),-$CN$52*($GT13-$GC$19)/($BZ$13*$CL$19),0)+IF($GT13>=IF($GC$20=$CL$18,$GC$20+0.000000001,$GC$20),-$CN$53*($GT13-$GC$20)/($BZ$13*$CL$19),0)+IF($GT13>=IF($GC$21=$CL$18,$GC$21+0.000000001,$GC$21),-$CN$54*($GT13-$GC$21)/($BZ$13*$CL$19),0)+IF($GT13>=IF($GC$22=$CL$18,$GC$22+0.000000001,$GC$22),-$CN$55*($GT13-$GC$22)/($BZ$13*$CL$19),0)+IF($GT13>=IF($GC$23=$CL$18,$GC$23+0.000000001,$GC$23),-$CN$56*($GT13-$GC$23)/($BZ$13*$CL$19),0)+IF($GT13>=IF($GC$24=$CL$18,$GC$24+0.000000001,$GC$24),-$CN$57*($GT13-$GC$24)/($BZ$13*$CL$19),0) -> 0 | GF13: =IF($GT13>=IF($GC$19=$CL$18,$GC$19+0.000000001,$GC$19),$CN$52*($GT13-$GC$19)^2/(2*$BZ$13*$CL$19),0)+IF($GT13>=IF($GC$20=$CL$18,$GC$20+0.000000001,$GC$20),$CN$53*($GT13-$GC$20)^2/(2*$BZ$13*$CL$19),0)+IF($GT13>=IF($GC$21=$CL$18,$GC$21+0.000000001,$GC$21),$CN$54*($GT13-$GC$21)^2/(2*$BZ$13*$CL$19),0)+IF($GT13>=IF($GC$22=$CL$18,$GC$22+0.000000001,$GC$22),$CN$55*($GT13-$GC$22)^2/(2*$BZ$13*$CL$19),0)+IF($GT13>=IF($GC$23=$CL$18,$GC$23+0.000000001,$GC$23),$CN$56*($GT13-$GC$23)^2/(2*$BZ$13*$CL$19),0)+IF($GT13>=IF($GC$24=$CL$18,$GC$24+0.000000001,$GC$24),$CN$57*($GT13-$GC$24)^2/(2*$BZ$13*$CL$19),0) -> 0 | GG13: =$GG$12 -> -750 | GH13: =$GH$12 -> -2625 | GI13: =$GI$12 -> -1.8375e-06 | GJ13: =$GJ$12 -> 3.081640625e-06 | GK13: -750 | GL13: -2625 | GM13: -1.8375e-06 | GN13: 3.081640625e-06 | GO13: =$GO$12 -> 375 | GP13: =$GP$12 -> -472.5 | GQ13: =$GQ$12 -> 0 | GR13: =$GR$12 -> 0 | GS13: =IF($BZ$10<4,0,$GP13+$GO13*$GT13+$GL13) -> -472.5 | GT13: =$CL$18+0.0000000001 -> 7 | HE13: W44x290 | HF13: 27100 | HG13: 1050 | HH13: 1127987.16 | HI13: 43704.3 | HL13: Results for User Designated Points:
BY14: =IF($BZ$11="Fixed",IF(OR($CB$60<>0,$CG$60<>0),"Cannot have end fixed with end cant. load!",""),"") ->  | CN14: +D(max) = | CO14: =MAX($CW$850:$CW$854) -> 12.89868447 | CP14: mm | CQ14: @ x = | CR14: =VLOOKUP($CO$14,$CW$850:$DB$854,4,FALSE) -> 2.06 | CS14: ="m ("&VLOOKUP($CO$14,$CW$850:$DB$854,6,FALSE)&")" -> m (Span #3) | CV14: Span #5 FEM(L): | CW14: =IF($CP$21=0,"---",-$CP$21*$CP$18) -> -330 | CX14: =IF($CP$21=0,"---",-$CP$21*$CP$18^2/2) -> -825 | CY14: =IF($CP$21=0,"---",-$CP$21*$CP$18^3/(6*$BZ$13*$CP$19)) -> -4.296875e-07 | CZ14: =IF($CP$21=0,"---",$CP$21*$CP$18^4/(24*$BZ$13*$CP$19)) -> 5.37109375e-07 | DA14: =IF($CP$21=0,"---",IF($GT14=$CP$18,-$CP$21*($GT14-($GT14-$CP$18)),IF($GT14>=0,-$CP$21*$GT14,0))) -> 0 | DB14: =IF($CP$21=0,"---",IF($GT14=$CP$18,-$CP$21*($GT14^2-($GT14-$CP$18)^2)/2,IF($GT14>=0,-$CP$21*$GT14^2/2,0))) -> 0 | DC14: =IF($CP$21=0,"---",IF($GT14=$CP$18,-$CP$21*($GT14^3-($GT14-$CP$18)^3)/(6*$BZ$13*$CP$19),IF($GT14>=0,-$CP$21*$GT14^3/(6*$BZ$13*$CP$19),0))) -> 0 | DD14: =IF($CP$21=0,"---",IF($GT14=$CP$18,$CP$21*($GT14^4-($GT14-$CP$18)^4)/(24*$BZ$13*$CP$19),IF($GT14>=0,$CP$21*$GT14^4/(24*$BZ$13*$CP$19),0))) -> 0 | DE14: =IF($CP$25=$CR$25,"---",IF(AND($CP$25="",$CQ$25="",$CR$25="",$CS$25=""),"---",(-$CQ$25*($CP$18-$CP$25-($CP$18-$CR$25)))+(-1/2*($CS$25-$CQ$25)/($CR$25-$CP$25)*(($CP$18-$CP$25)^2-($CP$18-$CR$25)^2)+($CS$25-$CQ$25)*($CP$18-$CR$25)))) -> --- | DF14: =IF($CP$25=$CR$25,"---",IF(AND($CP$25="",$CQ$25="",$CR$25="",$CS$25=""),"---",(-$CQ$25/2*(($CP$18-$CP$25)^2-($CP$18-$CR$25)^2))+(-1/6*($CS$25-$CQ$25)/($CR$25-$CP$25)*(($CP$18-$CP$25)^3-($CP$18-$CR$25)^3)+($CS$25-$CQ$25)/2*($CP$18-$CR$25)^2))) -> --- | DG14: =IF($CP$25=$CR$25,"---",IF(AND($CP$25="",$CQ$25="",$CR$25="",$CS$25=""),"---",(-$CQ$25/(6*$BZ$13*$CP$19)*(($CP$18-$CP$25)^3-($CP$18-$CR$25)^3))+(-1/(24*$BZ$13*$CP$19)*($CS$25-$CQ$25)/($CR$25-$CP$25)*(($CP$18-$CP$25)^4-($CP$18-$CR$25)^4)+($CS$25-$CQ$25)/(6*$BZ$13*$CP$19)*($CP$18-$CR$25)^3))) -> --- | DH14: =IF($CP$25=$CR$25,"---",IF(AND($CP$25="",$CQ$25="",$CR$25="",$CS$25=""),"---",($CQ$25/(24*$BZ$13*$CP$19)*(($CP$18-$CP$25)^4-($CP$18-$CR$25)^4))+(1/(120*$BZ$13*$CP$19)*($CS$25-$CQ$25)/($CR$25-$CP$25)*(($CP$18-$CP$25)^5-($CP$18-$CR$25)^5)-($CS$25-$CQ$25)/(24*$BZ$13*$CP$19)*($CP$18-$CR$25)^4))) -> --- | DI14: =IF($CP$25=$CR$25,"---",IF(AND($CP$25="",$CQ$25="",$CR$25="",$CS$25=""),"---",(IF($GT14>=$CR$25,-$CQ$25*($GT14-$CP$25-($GT14-$CR$25)),IF($GT14>=$CP$25,-$CQ$25*($GT14-$CP$25),0)))+(IF($GT14>=$CR$25,-1/2*($CS$25-$CQ$25)/($CR$25-$CP$25)*(($GT14-$CP$25)^2-($GT14-$CR$25)^2)+($CS$25-$CQ$25)*($GT14-$CR$25),IF($GT14>=$CP$25,-1/2*($CS$25-$CQ$25)/($CR$25-$CP$25)*($GT14-$CP$25)^2,0))))) -> --- | DJ14: =IF($CP$25=$CR$25,"---",IF(AND($CP$25="",$CQ$25="",$CR$25="",$CS$25=""),"---",(IF($GT14>=$CR$25,-$CQ$25/2*(($GT14-$CP$25)^2-($GT14-$CR$25)^2),IF($GT14>=$CP$25,-$CQ$25/2*($GT14-$CP$25)^2,0)))+(IF($GT14>=$CR$25,-1/6*($CS$25-$CQ$25)/($CR$25-$CP$25)*(($GT14-$CP$25)^3-($GT14-$CR$25)^3)+($CS$25-$CQ$25)/2*($GT14-$CR$25)^2,IF($GT14>=$CP$25,-1/6*($CS$25-$CQ$25)/($CR$25-$CP$25)*($GT14-$CP$25)^3,0))))) -> --- | DK14: =IF($CP$25=$CR$25,"---",IF(AND($CP$25="",$CQ$25="",$CR$25="",$CS$25=""),"---",(IF($GT14>=$CR$25,-$CQ$25/(6*$BZ$13*$CP$19)*(($GT14-$CP$25)^3-($GT14-$CR$25)^3),IF($GT14>=$CP$25,-$CQ$25/(6*$BZ$13*$CP$19)*($GT14-$CP$25)^3,0)))+(IF($GT14>=$CR$25,-1/(24*$BZ$13*$CP$19)*($CS$25-$CQ$25)/($CR$25-$CP$25)*(($GT14-$CP$25)^4-($GT14-$CR$25)^4)+($CS$25-$CQ$25)/(6*$BZ$13*$CP$19)*($GT14-$CR$25)^3,IF($GT14>=$CP$25,-1/(24*$BZ$13*$CP$19)*($CS$25-$CQ$25)/($CR$25-$CP$25)*($GT14-$CP$25)^4,0))))) -> --- | DL14: =IF($CP$25=$CR$25,"---",IF(AND($CP$25="",$CQ$25="",$CR$25="",$CS$25=""),"---",(IF($GT14>=$CR$25,$CQ$25/(24*$BZ$13*$CP$19)*(($GT14-$CP$25)^4-($GT14-$CR$25)^4),IF($GT14>=$CP$25,$CQ$25/(24*$BZ$13*$CP$19)*($GT14-$CP$25)^4,0)))+(IF($GT14>=$CR$25,1/(120*$BZ$13*$CP$19)*($CS$25-$CQ$25)/($CR$25-$CP$25)*(($GT14-$CP$25)^5-($GT14-$CR$25)^5)-($CS$25-$CQ$25)/(24*$BZ$13*$CP$19)*($GT14-$CR$25)^4,IF($GT14>=$CP$25,1/(120*$BZ$13*$CP$19)*($CS$25-$CQ$25)/($CR$25-$CP$25)*($GT14-$CP$25)^5,0))))) -> --- | DM14: =IF($CP$26=$CR$26,"---",IF(AND($CP$26="",$CQ$26="",$CR$26="",$CS$26=""),"---",(-$CQ$26*($CP$18-$CP$26-($CP$18-$CR$26)))+(-1/2*($CS$26-$CQ$26)/($CR$26-$CP$26)*(($CP$18-$CP$26)^2-($CP$18-$CR$26)^2)+($CS$26-$CQ$26)*($CP$18-$CR$26)))) -> --- | DN14: =IF($CP$26=$CR$26,"---",IF(AND($CP$26="",$CQ$26="",$CR$26="",$CS$26=""),"---",(-$CQ$26/2*(($CP$18-$CP$26)^2-($CP$18-$CR$26)^2))+(-1/6*($CS$26-$CQ$26)/($CR$26-$CP$26)*(($CP$18-$CP$26)^3-($CP$18-$CR$26)^3)+($CS$26-$CQ$26)/2*($CP$18-$CR$26)^2))) -> --- | DO14: =IF($CP$26=$CR$26,"---",IF(AND($CP$26="",$CQ$26="",$CR$26="",$CS$26=""),"---",(-$CQ$26/(6*$BZ$13*$CP$19)*(($CP$18-$CP$26)^3-($CP$18-$CR$26)^3))+(-1/(24*$BZ$13*$CP$19)*($CS$26-$CQ$26)/($CR$26-$CP$26)*(($CP$18-$CP$26)^4-($CP$18-$CR$26)^4)+($CS$26-$CQ$26)/(6*$BZ$13*$CP$19)*($CP$18-$CR$26)^3))) -> --- | DP14: =IF($CP$26=$CR$26,"---",IF(AND($CP$26="",$CQ$26="",$CR$26="",$CS$26=""),"---",($CQ$26/(24*$BZ$13*$CP$19)*(($CP$18-$CP$26)^4-($CP$18-$CR$26)^4))+(1/(120*$BZ$13*$CP$19)*($CS$26-$CQ$26)/($CR$26-$CP$26)*(($CP$18-$CP$26)^5-($CP$18-$CR$26)^5)-($CS$26-$CQ$26)/(24*$BZ$13*$CP$19)*($CP$18-$CR$26)^4))) -> --- | DQ14: =IF($CP$26=$CR$26,"---",IF(AND($CP$26="",$CQ$26="",$CR$26="",$CS$26=""),"---",(IF($GT14>=$CR$26,-$CQ$26*($GT14-$CP$26-($GT14-$CR$26)),IF($GT14>=$CP$26,-$CQ$26*($GT14-$CP$26),0)))+(IF($GT14>=$CR$26,-1/2*($CS$26-$CQ$26)/($CR$26-$CP$26)*(($GT14-$CP$26)^2-($GT14-$CR$26)^2)+($CS$26-$CQ$26)*($GT14-$CR$26),IF($GT14>=$CP$26,-1/2*($CS$26-$CQ$26)/($CR$26-$CP$26)*($GT14-$CP$26)^2,0))))) -> --- | DR14: =IF($CP$26=$CR$26,"---",IF(AND($CP$26="",$CQ$26="",$CR$26="",$CS$26=""),"---",(IF($GT14>=$CR$26,-$CQ$26/2*(($GT14-$CP$26)^2-($GT14-$CR$26)^2),IF($GT14>=$CP$26,-$CQ$26/2*($GT14-$CP$26)^2,0)))+(IF($GT14>=$CR$26,-1/6*($CS$26-$CQ$26)/($CR$26-$CP$26)*(($GT14-$CP$26)^3-($GT14-$CR$26)^3)+($CS$26-$CQ$26)/2*($GT14-$CR$26)^2,IF($GT14>=$CP$26,-1/6*($CS$26-$CQ$26)/($CR$26-$CP$26)*($GT14-$CP$26)^3,0))))) -> --- | DS14: =IF($CP$26=$CR$26,"---",IF(AND($CP$26="",$CQ$26="",$CR$26="",$CS$26=""),"---",(IF($GT14>=$CR$26,-$CQ$26/(6*$BZ$13*$CP$19)*(($GT14-$CP$26)^3-($GT14-$CR$26)^3),IF($GT14>=$CP$26,-$CQ$26/(6*$BZ$13*$CP$19)*($GT14-$CP$26)^3,0)))+(IF($GT14>=$CR$26,-1/(24*$BZ$13*$CP$19)*($CS$26-$CQ$26)/($CR$26-$CP$26)*(($GT14-$CP$26)^4-($GT14-$CR$26)^4)+($CS$26-$CQ$26)/(6*$BZ$13*$CP$19)*($GT14-$CR$26)^3,IF($GT14>=$CP$26,-1/(24*$BZ$13*$CP$19)*($CS$26-$CQ$26)/($CR$26-$CP$26)*($GT14-$CP$26)^4,0))))) -> --- | DT14: =IF($CP$26=$CR$26,"---",IF(AND($CP$26="",$CQ$26="",$CR$26="",$CS$26=""),"---",(IF($GT14>=$CR$26,$CQ$26/(24*$BZ$13*$CP$19)*(($GT14-$CP$26)^4-($GT14-$CR$26)^4),IF($GT14>=$CP$26,$CQ$26/(24*$BZ$13*$CP$19)*($GT14-$CP$26)^4,0)))+(IF($GT14>=$CR$26,1/(120*$BZ$13*$CP$19)*($CS$26-$CQ$26)/($CR$26-$CP$26)*(($GT14-$CP$26)^5-($GT14-$CR$26)^5)-($CS$26-$CQ$26)/(24*$BZ$13*$CP$19)*($GT14-$CR$26)^4,IF($GT14>=$CP$26,1/(120*$BZ$13*$CP$19)*($CS$26-$CQ$26)/($CR$26-$CP$26)*($GT14-$CP$26)^5,0))))) -> --- | DU14: =IF($CP$27=$CR$27,"---",IF(AND($CP$27="",$CQ$27="",$CR$27="",$CS$27=""),"---",(-$CQ$27*($CP$18-$CP$27-($CP$18-$CR$27)))+(-1/2*($CS$27-$CQ$27)/($CR$27-$CP$27)*(($CP$18-$CP$27)^2-($CP$18-$CR$27)^2)+($CS$27-$CQ$27)*($CP$18-$CR$27)))) -> --- | DV14: =IF($CP$27=$CR$27,"---",IF(AND($CP$27="",$CQ$27="",$CR$27="",$CS$27=""),"---",(-$CQ$27/2*(($CP$18-$CP$27)^2-($CP$18-$CR$27)^2))+(-1/6*($CS$27-$CQ$27)/($CR$27-$CP$27)*(($CP$18-$CP$27)^3-($CP$18-$CR$27)^3)+($CS$27-$CQ$27)/2*($CP$18-$CR$27)^2))) -> --- | DW14: =IF($CP$27=$CR$27,"---",IF(AND($CP$27="",$CQ$27="",$CR$27="",$CS$27=""),"---",(-$CQ$27/(6*$BZ$13*$CP$19)*(($CP$18-$CP$27)^3-($CP$18-$CR$27)^3))+(-1/(24*$BZ$13*$CP$19)*($CS$27-$CQ$27)/($CR$27-$CP$27)*(($CP$18-$CP$27)^4-($CP$18-$CR$27)^4)+($CS$27-$CQ$27)/(6*$BZ$13*$CP$19)*($CP$18-$CR$27)^3))) -> --- | DX14: =IF($CP$27=$CR$27,"---",IF(AND($CP$27="",$CQ$27="",$CR$27="",$CS$27=""),"---",($CQ$27/(24*$BZ$13*$CP$19)*(($CP$18-$CP$27)^4-($CP$18-$CR$27)^4))+(1/(120*$BZ$13*$CP$19)*($CS$27-$CQ$27)/($CR$27-$CP$27)*(($CP$18-$CP$27)^5-($CP$18-$CR$27)^5)-($CS$27-$CQ$27)/(24*$BZ$13*$CP$19)*($CP$18-$CR$27)^4))) -> --- | DY14: =IF($CP$27=$CR$27,"---",IF(AND($CP$27="",$CQ$27="",$CR$27="",$CS$27=""),"---",(IF($GT14>=$CR$27,-$CQ$27*($GT14-$CP$27-($GT14-$CR$27)),IF($GT14>=$CP$27,-$CQ$27*($GT14-$CP$27),0)))+(IF($GT14>=$CR$27,-1/2*($CS$27-$CQ$27)/($CR$27-$CP$27)*(($GT14-$CP$27)^2-($GT14-$CR$27)^2)+($CS$27-$CQ$27)*($GT14-$CR$27),IF($GT14>=$CP$27,-1/2*($CS$27-$CQ$27)/($CR$27-$CP$27)*($GT14-$CP$27)^2,0))))) -> --- | DZ14: =IF($CP$27=$CR$27,"---",IF(AND($CP$27="",$CQ$27="",$CR$27="",$CS$27=""),"---",(IF($GT14>=$CR$27,-$CQ$27/2*(($GT14-$CP$27)^2-($GT14-$CR$27)^2),IF($GT14>=$CP$27,-$CQ$27/2*($GT14-$CP$27)^2,0)))+(IF($GT14>=$CR$27,-1/6*($CS$27-$CQ$27)/($CR$27-$CP$27)*(($GT14-$CP$27)^3-($GT14-$CR$27)^3)+($CS$27-$CQ$27)/2*($GT14-$CR$27)^2,IF($GT14>=$CP$27,-1/6*($CS$27-$CQ$27)/($CR$27-$CP$27)*($GT14-$CP$27)^3,0))))) -> --- | EA14: =IF($CP$27=$CR$27,"---",IF(AND($CP$27="",$CQ$27="",$CR$27="",$CS$27=""),"---",(IF($GT14>=$CR$27,-$CQ$27/(6*$BZ$13*$CP$19)*(($GT14-$CP$27)^3-($GT14-$CR$27)^3),IF($GT14>=$CP$27,-$CQ$27/(6*$BZ$13*$CP$19)*($GT14-$CP$27)^3,0)))+(IF($GT14>=$CR$27,-1/(24*$BZ$13*$CP$19)*($CS$27-$CQ$27)/($CR$27-$CP$27)*(($GT14-$CP$27)^4-($GT14-$CR$27)^4)+($CS$27-$CQ$27)/(6*$BZ$13*$CP$19)*($GT14-$CR$27)^3,IF($GT14>=$CP$27,-1/(24*$BZ$13*$CP$19)*($CS$27-$CQ$27)/($CR$27-$CP$27)*($GT14-$CP$27)^4,0))))) -> --- | EB14: =IF($CP$27=$CR$27,"---",IF(AND($CP$27="",$CQ$27="",$CR$27="",$CS$27=""),"---",(IF($GT14>=$CR$27,$CQ$27/(24*$BZ$13*$CP$19)*(($GT14-$CP$27)^4-($GT14-$CR$27)^4),IF($GT14>=$CP$27,$CQ$27/(24*$BZ$13*$CP$19)*($GT14-$CP$27)^4,0)))+(IF($GT14>=$CR$27,1/(120*$BZ$13*$CP$19)*($CS$27-$CQ$27)/($CR$27-$CP$27)*(($GT14-$CP$27)^5-($GT14-$CR$27)^5)-($CS$27-$CQ$27)/(24*$BZ$13*$CP$19)*($GT14-$CR$27)^4,IF($GT14>=$CP$27,1/(120*$BZ$13*$CP$19)*($CS$27-$CQ$27)/($CR$27-$CP$27)*($GT14-$CP$27)^5,0))))) -> --- | EC14: =IF($CP$28=$CR$28,"---",IF(AND($CP$28="",$CQ$28="",$CR$28="",$CS$28=""),"---",(-$CQ$28*($CP$18-$CP$28-($CP$18-$CR$28)))+(-1/2*($CS$28-$CQ$28)/($CR$28-$CP$28)*(($CP$18-$CP$28)^2-($CP$18-$CR$28)^2)+($CS$28-$CQ$28)*($CP$18-$CR$28)))) -> --- | ED14: =IF($CP$28=$CR$28,"---",IF(AND($CP$28="",$CQ$28="",$CR$28="",$CS$28=""),"---",(-$CQ$28/2*(($CP$18-$CP$28)^2-($CP$18-$CR$28)^2))+(-1/6*($CS$28-$CQ$28)/($CR$28-$CP$28)*(($CP$18-$CP$28)^3-($CP$18-$CR$28)^3)+($CS$28-$CQ$28)/2*($CP$18-$CR$28)^2))) -> --- | EE14: =IF($CP$28=$CR$28,"---",IF(AND($CP$28="",$CQ$28="",$CR$28="",$CS$28=""),"---",(-$CQ$28/(6*$BZ$13*$CP$19)*(($CP$18-$CP$28)^3-($CP$18-$CR$28)^3))+(-1/(24*$BZ$13*$CP$19)*($CS$28-$CQ$28)/($CR$28-$CP$28)*(($CP$18-$CP$28)^4-($CP$18-$CR$28)^4)+($CS$28-$CQ$28)/(6*$BZ$13*$CP$19)*($CP$18-$CR$28)^3))) -> --- | EF14: =IF($CP$28=$CR$28,"---",IF(AND($CP$28="",$CQ$28="",$CR$28="",$CS$28=""),"---",($CQ$28/(24*$BZ$13*$CP$19)*(($CP$18-$CP$28)^4-($CP$18-$CR$28)^4))+(1/(120*$BZ$13*$CP$19)*($CS$28-$CQ$28)/($CR$28-$CP$28)*(($CP$18-$CP$28)^5-($CP$18-$CR$28)^5)-($CS$28-$CQ$28)/(24*$BZ$13*$CP$19)*($CP$18-$CR$28)^4))) -> --- | EG14: =IF($CP$28=$CR$28,"---",IF(AND($CP$28="",$CQ$28="",$CR$28="",$CS$28=""),"---",(IF($GT14>=$CR$28,-$CQ$28*($GT14-$CP$28-($GT14-$CR$28)),IF($GT14>=$CP$28,-$CQ$28*($GT14-$CP$28),0)))+(IF($GT14>=$CR$28,-1/2*($CS$28-$CQ$28)/($CR$28-$CP$28)*(($GT14-$CP$28)^2-($GT14-$CR$28)^2)+($CS$28-$CQ$28)*($GT14-$CR$28),IF($GT14>=$CP$28,-1/2*($CS$28-$CQ$28)/($CR$28-$CP$28)*($GT14-$CP$28)^2,0))))) -> --- | EH14: =IF($CP$28=$CR$28,"---",IF(AND($CP$28="",$CQ$28="",$CR$28="",$CS$28=""),"---",(IF($GT14>=$CR$28,-$CQ$28/2*(($GT14-$CP$28)^2-($GT14-$CR$28)^2),IF($GT14>=$CP$28,-$CQ$28/2*($GT14-$CP$28)^2,0)))+(IF($GT14>=$CR$28,-1/6*($CS$28-$CQ$28)/($CR$28-$CP$28)*(($GT14-$CP$28)^3-($GT14-$CR$28)^3)+($CS$28-$CQ$28)/2*($GT14-$CR$28)^2,IF($GT14>=$CP$28,-1/6*($CS$28-$CQ$28)/($CR$28-$CP$28)*($GT14-$CP$28)^3,0))))) -> --- | EI14: =IF($CP$28=$CR$28,"---",IF(AND($CP$28="",$CQ$28="",$CR$28="",$CS$28=""),"---",(IF($GT14>=$CR$28,-$CQ$28/(6*$BZ$13*$CP$19)*(($GT14-$CP$28)^3-($GT14-$CR$28)^3),IF($GT14>=$CP$28,-$CQ$28/(6*$BZ$13*$CP$19)*($GT14-$CP$28)^3,0)))+(IF($GT14>=$CR$28,-1/(24*$BZ$13*$CP$19)*($CS$28-$CQ$28)/($CR$28-$CP$28)*(($GT14-$CP$28)^4-($GT14-$CR$28)^4)+($CS$28-$CQ$28)/(6*$BZ$13*$CP$19)*($GT14-$CR$28)^3,IF($GT14>=$CP$28,-1/(24*$BZ$13*$CP$19)*($CS$28-$CQ$28)/($CR$28-$CP$28)*($GT14-$CP$28)^4,0))))) -> --- | EJ14: =IF($CP$28=$CR$28,"---",IF(AND($CP$28="",$CQ$28="",$CR$28="",$CS$28=""),"---",(IF($GT14>=$CR$28,$CQ$28/(24*$BZ$13*$CP$19)*(($GT14-$CP$28)^4-($GT14-$CR$28)^4),IF($GT14>=$CP$28,$CQ$28/(24*$BZ$13*$CP$19)*($GT14-$CP$28)^4,0)))+(IF($GT14>=$CR$28,1/(120*$BZ$13*$CP$19)*($CS$28-$CQ$28)/($CR$28-$CP$28)*(($GT14-$CP$28)^5-($GT14-$CR$28)^5)-($CS$28-$CQ$28)/(24*$BZ$13*$CP$19)*($GT14-$CR$28)^4,IF($GT14>=$CP$28,1/(120*$BZ$13*$CP$19)*($CS$28-$CQ$28)/($CR$28-$CP$28)*($GT14-$CP$28)^5,0))))) -> --- | EK14: =IF($CP$29=$CR$29,"---",IF(AND($CP$29="",$CQ$29="",$CR$29="",$CS$29=""),"---",(-$CQ$29*($CP$18-$CP$29-($CP$18-$CR$29)))+(-1/2*($CS$29-$CQ$29)/($CR$29-$CP$29)*(($CP$18-$CP$29)^2-($CP$18-$CR$29)^2)+($CS$29-$CQ$29)*($CP$18-$CR$29)))) -> --- | EL14: =IF($CP$29=$CR$29,"---",IF(AND($CP$29="",$CQ$29="",$CR$29="",$CS$29=""),"---",(-$CQ$29/2*(($CP$18-$CP$29)^2-($CP$18-$CR$29)^2))+(-1/6*($CS$29-$CQ$29)/($CR$29-$CP$29)*(($CP$18-$CP$29)^3-($CP$18-$CR$29)^3)+($CS$29-$CQ$29)/2*($CP$18-$CR$29)^2))) -> --- | EM14: =IF($CP$29=$CR$29,"---",IF(AND($CP$29="",$CQ$29="",$CR$29="",$CS$29=""),"---",(-$CQ$29/(6*$BZ$13*$CP$19)*(($CP$18-$CP$29)^3-($CP$18-$CR$29)^3))+(-1/(24*$BZ$13*$CP$19)*($CS$29-$CQ$29)/($CR$29-$CP$29)*(($CP$18-$CP$29)^4-($CP$18-$CR$29)^4)+($CS$29-$CQ$29)/(6*$BZ$13*$CP$19)*($CP$18-$CR$29)^3))) -> --- | EN14: =IF($CP$29=$CR$29,"---",IF(AND($CP$29="",$CQ$29="",$CR$29="",$CS$29=""),"---",($CQ$29/(24*$BZ$13*$CP$19)*(($CP$18-$CP$29)^4-($CP$18-$CR$29)^4))+(1/(120*$BZ$13*$CP$19)*($CS$29-$CQ$29)/($CR$29-$CP$29)*(($CP$18-$CP$29)^5-($CP$18-$CR$29)^5)-($CS$29-$CQ$29)/(24*$BZ$13*$CP$19)*($CP$18-$CR$29)^4))) -> --- | EO14: =IF($CP$29=$CR$29,"---",IF(AND($CP$29="",$CQ$29="",$CR$29="",$CS$29=""),"---",(IF($GT14>=$CR$29,-$CQ$29*($GT14-$CP$29-($GT14-$CR$29)),IF($GT14>=$CP$29,-$CQ$29*($GT14-$CP$29),0)))+(IF($GT14>=$CR$29,-1/2*($CS$29-$CQ$29)/($CR$29-$CP$29)*(($GT14-$CP$29)^2-($GT14-$CR$29)^2)+($CS$29-$CQ$29)*($GT14-$CR$29),IF($GT14>=$CP$29,-1/2*($CS$29-$CQ$29)/($CR$29-$CP$29)*($GT14-$CP$29)^2,0))))) -> --- | EP14: =IF($CP$29=$CR$29,"---",IF(AND($CP$29="",$CQ$29="",$CR$29="",$CS$29=""),"---",(IF($GT14>=$CR$29,-$CQ$29/2*(($GT14-$CP$29)^2-($GT14-$CR$29)^2),IF($GT14>=$CP$29,-$CQ$29/2*($GT14-$CP$29)^2,0)))+(IF($GT14>=$CR$29,-1/6*($CS$29-$CQ$29)/($CR$29-$CP$29)*(($GT14-$CP$29)^3-($GT14-$CR$29)^3)+($CS$29-$CQ$29)/2*($GT14-$CR$29)^2,IF($GT14>=$CP$29,-1/6*($CS$29-$CQ$29)/($CR$29-$CP$29)*($GT14-$CP$29)^3,0))))) -> --- | EQ14: =IF($CP$29=$CR$29,"---",IF(AND($CP$29="",$CQ$29="",$CR$29="",$CS$29=""),"---",(IF($GT14>=$CR$29,-$CQ$29/(6*$BZ$13*$CP$19)*(($GT14-$CP$29)^3-($GT14-$CR$29)^3),IF($GT14>=$CP$29,-$CQ$29/(6*$BZ$13*$CP$19)*($GT14-$CP$29)^3,0)))+(IF($GT14>=$CR$29,-1/(24*$BZ$13*$CP$19)*($CS$29-$CQ$29)/($CR$29-$CP$29)*(($GT14-$CP$29)^4-($GT14-$CR$29)^4)+($CS$29-$CQ$29)/(6*$BZ$13*$CP$19)*($GT14-$CR$29)^3,IF($GT14>=$CP$29,-1/(24*$BZ$13*$CP$19)*($CS$29-$CQ$29)/($CR$29-$CP$29)*($GT14-$CP$29)^4,0))))) -> --- | ER14: =IF($CP$29=$CR$29,"---",IF(AND($CP$29="",$CQ$29="",$CR$29="",$CS$29=""),"---",(IF($GT14>=$CR$29,$CQ$29/(24*$BZ$13*$CP$19)*(($GT14-$CP$29)^4-($GT14-$CR$29)^4),IF($GT14>=$CP$29,$CQ$29/(24*$BZ$13*$CP$19)*($GT14-$CP$29)^4,0)))+(IF($GT14>=$CR$29,1/(120*$BZ$13*$CP$19)*($CS$29-$CQ$29)/($CR$29-$CP$29)*(($GT14-$CP$29)^5-($GT14-$CR$29)^5)-($CS$29-$CQ$29)/(24*$BZ$13*$CP$19)*($GT14-$CR$29)^4,IF($GT14>=$CP$29,1/(120*$BZ$13*$CP$19)*($CS$29-$CQ$29)/($CR$29-$CP$29)*($GT14-$CP$29)^5,0))))) -> --- | ES14: =IF($CP$30=$CR$30,"---",IF(AND($CP$30="",$CQ$30="",$CR$30="",$CS$30=""),"---",(-$CQ$30*($CP$18-$CP$30-($CP$18-$CR$30)))+(-1/2*($CS$30-$CQ$30)/($CR$30-$CP$30)*(($CP$18-$CP$30)^2-($CP$18-$CR$30)^2)+($CS$30-$CQ$30)*($CP$18-$CR$30)))) -> --- | ET14: =IF($CP$30=$CR$30,"---",IF(AND($CP$30="",$CQ$30="",$CR$30="",$CS$30=""),"---",(-$CQ$30/2*(($CP$18-$CP$30)^2-($CP$18-$CR$30)^2))+(-1/6*($CS$30-$CQ$30)/($CR$30-$CP$30)*(($CP$18-$CP$30)^3-($CP$18-$CR$30)^3)+($CS$30-$CQ$30)/2*($CP$18-$CR$30)^2))) -> --- | EU14: =IF($CP$30=$CR$30,"---",IF(AND($CP$30="",$CQ$30="",$CR$30="",$CS$30=""),"---",(-$CQ$30/(6*$BZ$13*$CP$19)*(($CP$18-$CP$30)^3-($CP$18-$CR$30)^3))+(-1/(24*$BZ$13*$CP$19)*($CS$30-$CQ$30)/($CR$30-$CP$30)*(($CP$18-$CP$30)^4-($CP$18-$CR$30)^4)+($CS$30-$CQ$30)/(6*$BZ$13*$CP$19)*($CP$18-$CR$30)^3))) -> --- | EV14: =IF($CP$30=$CR$30,"---",IF(AND($CP$30="",$CQ$30="",$CR$30="",$CS$30=""),"---",($CQ$30/(24*$BZ$13*$CP$19)*(($CP$18-$CP$30)^4-($CP$18-$CR$30)^4))+(1/(120*$BZ$13*$CP$19)*($CS$30-$CQ$30)/($CR$30-$CP$30)*(($CP$18-$CP$30)^5-($CP$18-$CR$30)^5)-($CS$30-$CQ$30)/(24*$BZ$13*$CP$19)*($CP$18-$CR$30)^4))) -> --- | EW14: =IF($CP$30=$CR$30,"---",IF(AND($CP$30="",$CQ$30="",$CR$30="",$CS$30=""),"---",(IF($GT14>=$CR$30,-$CQ$30*($GT14-$CP$30-($GT14-$CR$30)),IF($GT14>=$CP$30,-$CQ$30*($GT14-$CP$30),0)))+(IF($GT14>=$CR$30,-1/2*($CS$30-$CQ$30)/($CR$30-$CP$30)*(($GT14-$CP$30)^2-($GT14-$CR$30)^2)+($CS$30-$CQ$30)*($GT14-$CR$30),IF($GT14>=$CP$30,-1/2*($CS$30-$CQ$30)/($CR$30-$CP$30)*($GT14-$CP$30)^2,0))))) -> --- | EX14: =IF($CP$30=$CR$30,"---",IF(AND($CP$30="",$CQ$30="",$CR$30="",$CS$30=""),"---",(IF($GT14>=$CR$30,-$CQ$30/2*(($GT14-$CP$30)^2-($GT14-$CR$30)^2),IF($GT14>=$CP$30,-$CQ$30/2*($GT14-$CP$30)^2,0)))+(IF($GT14>=$CR$30,-1/6*($CS$30-$CQ$30)/($CR$30-$CP$30)*(($GT14-$CP$30)^3-($GT14-$CR$30)^3)+($CS$30-$CQ$30)/2*($GT14-$CR$30)^2,IF($GT14>=$CP$30,-1/6*($CS$30-$CQ$30)/($CR$30-$CP$30)*($GT14-$CP$30)^3,0))))) -> --- | EY14: =IF($CP$30=$CR$30,"---",IF(AND($CP$30="",$CQ$30="",$CR$30="",$CS$30=""),"---",(IF($GT14>=$CR$30,-$CQ$30/(6*$BZ$13*$CP$19)*(($GT14-$CP$30)^3-($GT14-$CR$30)^3),IF($GT14>=$CP$30,-$CQ$30/(6*$BZ$13*$CP$19)*($GT14-$CP$30)^3,0)))+(IF($GT14>=$CR$30,-1/(24*$BZ$13*$CP$19)*($CS$30-$CQ$30)/($CR$30-$CP$30)*(($GT14-$CP$30)^4-($GT14-$CR$30)^4)+($CS$30-$CQ$30)/(6*$BZ$13*$CP$19)*($GT14-$CR$30)^3,IF($GT14>=$CP$30,-1/(24*$BZ$13*$CP$19)*($CS$30-$CQ$30)/($CR$30-$CP$30)*($GT14-$CP$30)^4,0))))) -> --- | EZ14: =IF($CP$30=$CR$30,"---",IF(AND($CP$30="",$CQ$30="",$CR$30="",$CS$30=""),"---",(IF($GT14>=$CR$30,$CQ$30/(24*$BZ$13*$CP$19)*(($GT14-$CP$30)^4-($GT14-$CR$30)^4),IF($GT14>=$CP$30,$CQ$30/(24*$BZ$13*$CP$19)*($GT14-$CP$30)^4,0)))+(IF($GT14>=$CR$30,1/(120*$BZ$13*$CP$19)*($CS$30-$CQ$30)/($CR$30-$CP$30)*(($GT14-$CP$30)^5-($GT14-$CR$30)^5)-($CS$30-$CQ$30)/(24*$BZ$13*$CP$19)*($GT14-$CR$30)^4,IF($GT14>=$CP$30,1/(120*$BZ$13*$CP$19)*($CS$30-$CQ$30)/($CR$30-$CP$30)*($GT14-$CP$30)^5,0))))) -> --- | FQ14: =-$CR$35+-$CR$36+-$CR$37+-$CR$38+-$CR$39+-$CR$40 -> 0 | FR14: =-$CR$35*($CP$18-$CP$35)+-$CR$36*($CP$18-$CP$36)+-$CR$37*($CP$18-$CP$37)+-$CR$38*($CP$18-$CP$38)+-$CR$39*($CP$18-$CP$39)+-$CR$40*($CP$18-$CP$40) -> 0 | FS14: =-$CR$35*($CP$18-$CP$35)^2/(2*$BZ$13*$CP$19)+-$CR$36*($CP$18-$CP$36)^2/(2*$BZ$13*$CP$19)+-$CR$37*($CP$18-$CP$37)^2/(2*$BZ$13*$CP$19)+-$CR$38*($CP$18-$CP$38)^2/(2*$BZ$13*$CP$19)+-$CR$39*($CP$18-$CP$39)^2/(2*$BZ$13*$CP$19)+-$CR$40*($CP$18-$CP$40)^2/(2*$BZ$13*$CP$19) -> 0 | FT14: =$CR$35*($CP$18-$CP$35)^3/(6*$BZ$13*$CP$19)+$CR$36*($CP$18-$CP$36)^3/(6*$BZ$13*$CP$19)+$CR$37*($CP$18-$CP$37)^3/(6*$BZ$13*$CP$19)+$CR$38*($CP$18-$CP$38)^3/(6*$BZ$13*$CP$19)+$CR$39*($CP$18-$CP$39)^3/(6*$BZ$13*$CP$19)+$CR$40*($CP$18-$CP$40)^3/(6*$BZ$13*$CP$19) -> 0 | FU14: =IF($GT14>$CP$35,-$CR$35,0)+IF($GT14>$CP$36,-$CR$36,0)+IF($GT14>$CP$37,-$CR$37,0)+IF($GT14>$CP$38,-$CR$38,0)+IF($GT14>$CP$39,-$CR$39,0)+IF($GT14>$CP$40,-$CR$40,0) -> 0 | FV14: =IF($GT14>$CP$35,-$CR$35*($GT14-$CP$35),0)+IF($GT14>$CP$36,-$CR$36*($GT14-$CP$36),0)+IF($GT14>$CP$37,-$CR$37*($GT14-$CP$37),0)+IF($GT14>$CP$38,-$CR$38*($GT14-$CP$38),0)+IF($GT14>$CP$39,-$CR$39*($GT14-$CP$39),0)+IF($GT14>$CP$40,-$CR$40*($GT14-$CP$40),0) -> 0 | FW14: =IF($GT14>$CP$35,-$CR$35*($GT14-$CP$35)^2/(2*$BZ$13*$CP$19),0)+IF($GT14>$CP$36,-$CR$36*($GT14-$CP$36)^2/(2*$BZ$13*$CP$19),0)+IF($GT14>$CP$37,-$CR$37*($GT14-$CP$37)^2/(2*$BZ$13*$CP$19),0)+IF($GT14>$CP$38,-$CR$38*($GT14-$CP$38)^2/(2*$BZ$13*$CP$19),0)+IF($GT14>$CP$39,-$CR$39*($GT14-$CP$39)^2/(2*$BZ$13*$CP$19),0)+IF($GT14>$CP$40,-$CR$40*($GT14-$CP$40)^2/(2*$BZ$13*$CP$19),0) -> 0 | FX14: =IF($GT14>$CP$35,$CR$35*($GT14-$CP$35)^3/(6*$BZ$13*$CP$19),0)+IF($GT14>$CP$36,$CR$36*($GT14-$CP$36)^3/(6*$BZ$13*$CP$19),0)+IF($GT14>$CP$37,$CR$37*($GT14-$CP$37)^3/(6*$BZ$13*$CP$19),0)+IF($GT14>$CP$38,$CR$38*($GT14-$CP$38)^3/(6*$BZ$13*$CP$19),0)+IF($GT14>$CP$39,$CR$39*($GT14-$CP$39)^3/(6*$BZ$13*$CP$19),0)+IF($GT14>$CP$40,$CR$40*($GT14-$CP$40)^3/(6*$BZ$13*$CP$19),0) -> 0 | FY14: =0+0+0+0 -> 0 | FZ14: =-$CR$52+-$CR$53+-$CR$54+-$CR$55+-CR56+-CR57 -> -80 | GA14: =-$CR$52*($CP$18-$GD$19)/($BZ$13*$CP$19)+-$CR$53*($CP$18-$GD$20)/($BZ$13*$CP$19)+-$CR$54*($CP$18-$GD$21)/($BZ$13*$CP$19)+-$CR$55*($CP$18-$GD$22)/($BZ$13*$CP$19)+-$CR$56*($CP$18-$GD$23)/($BZ$13*$CP$19)+-$CR$57*($CP$18-$GD$24)/($BZ$13*$CP$19) -> -6.25e-08 | GB14: =$CR$52*($CP$18-$GD$19)^2/(2*$BZ$13*$CP$19)+$CR$53*($CP$18-$GD$20)^2/(2*$BZ$13*$CP$19)+$CR$54*($CP$18-$GD$21)^2/(2*$BZ$13*$CP$19)+$CR$55*($CP$18-$GD$22)^2/(2*$BZ$13*$CP$19)+$CR$56*($CP$18-$GD$23)^2/(2*$BZ$13*$CP$19)+$CR$57*($CP$18-$GD$24)^2/(2*$BZ$13*$CP$19) -> 7.8125e-08 | GC14: =IF($GT14>=IF($GD$19=$CP$18,$GD$19+0.000000001,$GD$19),0,0)+IF($GT14>=IF($GD$20=$CP$18,$GD$20+0.000000001,$GD$20),0,0)+IF($GT14>=IF($GD$21=$CP$18,$GD$21+0.000000001,$GD$21),0,0)+IF($GT14>=IF($GD$22=$CP$18,$GD$22+0.000000001,$GD$22),0,0)+IF($GT14>=IF($GD$23=$CP$18,$GD$23+0.000000001,$GD$23),0,0)+IF($GT14>=IF($GD$24=$CP$18,$GD$24+0.000000001,$GD$24),0,0) -> 0 | GD14: =IF($GT14>=IF($GD$19=$CP$18,$GD$19+0.000000001,$GD$19),-$CR$52,0)+IF($GT14>=IF($GD$20=$CP$18,$GD$20+0.000000001,$GD$20),-$CR$53,0)+IF($GT14>=IF($GD$21=$CP$18,$GD$21+0.000000001,$GD$21),-$CR$54,0)+IF($GT14>=IF($GD$22=$CP$18,$GD$22+0.000000001,$GD$22),-$CR$55,0)+IF($GT14>=IF($GD$23=$CP$18,$GD$23+0.000000001,$GD$23),-$CR$56,0)+IF($GT14>=IF($GD$24=$CP$18,$GD$24+0.000000001,$GD$24),-$CR$57,0) -> 0 | GE14: =IF($GT14>=IF($GD$19=$CP$18,$GD$19+0.000000001,$GD$19),-$CR$52*($GT14-$GD$19)/($BZ$13*$CP$19),0)+IF($GT14>=IF($GD$20=$CP$18,$GD$20+0.000000001,$GD$20),-$CR$53*($GT14-$GD$20)/($BZ$13*$CP$19),0)+IF($GT14>=IF($GD$21=$CP$18,$GD$21+0.000000001,$GD$21),-$CR$54*($GT14-$GD$21)/($BZ$13*$CP$19),0)+IF($GT14>=IF($GD$22=$CP$18,$GD$22+0.000000001,$GD$22),-$CR$55*($GT14-$GD$22)/($BZ$13*$CP$19),0)+IF($GT14>=IF($GD$23=$CP$18,$GD$23+0.000000001,$GD$23),-$CR$56*($GT14-$GD$23)/($BZ$13*$CP$19),0)+IF($GT14>=IF($GD$24=$CP$18,$GD$24+0.000000001,$GD$24),-$CR$57*($GT14-$GD$24)/($BZ$13*$CP$19),0) -> 0 | GF14: =IF($GT14>=IF($GD$19=$CP$18,$GD$19+0.000000001,$GD$19),$CR$52*($GT14-$GD$19)^2/(2*$BZ$13*$CP$19),0)+IF($GT14>=IF($GD$20=$CP$18,$GD$20+0.000000001,$GD$20),$CR$53*($GT14-$GD$20)^2/(2*$BZ$13*$CP$19),0)+IF($GT14>=IF($GD$21=$CP$18,$GD$21+0.000000001,$GD$21),$CR$54*($GT14-$GD$21)^2/(2*$BZ$13*$CP$19),0)+IF($GT14>=IF($GD$22=$CP$18,$GD$22+0.000000001,$GD$22),$CR$55*($GT14-$GD$22)^2/(2*$BZ$13*$CP$19),0)+IF($GT14>=IF($GD$23=$CP$18,$GD$23+0.000000001,$GD$23),$CR$56*($GT14-$GD$23)^2/(2*$BZ$13*$CP$19),0)+IF($GT14>=IF($GD$24=$CP$18,$GD$24+0.000000001,$GD$24),$CR$57*($GT14-$GD$24)^2/(2*$BZ$13*$CP$19),0) -> 0 | GG14: =SUM(CW14,DE14,DM14,DU14,EC14,EK14,ES14,FA14,FI14,FQ14,FY14) -> -330 | GH14: =SUM(CX14,DF14,DN14,DV14,ED14,EL14,ET14,FB14,FJ14,FR14,FZ14) -> -905 | GI14: =SUM(CY14,DG14,DO14,DW14,EE14,EM14,EU14,FC14,FK14,FS14,GA14) -> -4.921875e-07 | GJ14: =SUM(CZ14,DH14,DP14,DX14,EF14,EN14,EV14,FD14,FL14,FT14,GB14) -> 6.15234375e-07 | GK14: 0 | GL14: 0 | GM14: 0 | GN14: 0 | GO14: =-12*$BZ$13*$CP$19/$CP$18^3*$GJ14-6*$BZ$13*$CP$19/$CP$18^2*$GI14 -> 189 | GP14: =6*$BZ$13*$CP$19/$CP$18^2*$GJ14+2*$BZ$13*$CP$19/$CP$18*$GI14 -> -157.5 | GQ14: =0 -> 0 | GR14: =0 -> 0 | GS14: =IF($BZ$10<5,0,$GP14+$GO14*$GT14+$GL14) -> -157.5 | GT14: =0 -> 0 | HE14: W44x285 | HF14: 24600 | HG14: 490 | HH14: 1023929.31 | HI14: 20395.34 | HL14: Span #1 | HM14: Span #2 | HN14: Span #3 | HO14: Span #4 | HP14: Span #5
H15: Span Number | N15: 1 | Q15: 2 | T15: 3 | W15: 4 | Z15: 5 | BY15: Span Data and Loadings: | CB15: =IF($BZ$12="Fixed",IF(OR($CM$60<>0,$CR$60<>0),"Cannot have end fixed with end cantilever load!",""),"") ->  | CN15: D(ratio) = | CO15: ="L/"&MIN($GX$154,$GX$325,$GX$496,$GX$667,$GX$838) -> L/149 | CV15: Span #5 FEM(R): | CW15: =$CW$14 -> -330 | CX15: =$CX$14 -> -825 | CY15: =$CY$14 -> -4.296875e-07 | CZ15: =$CZ$14 -> 5.37109375e-07 | DA15: =IF($CP$21=0,"---",IF($GT15=$CP$18,-$CP$21*($GT15-($GT15-$CP$18)),IF($GT15>=0,-$CP$21*$GT15,0))) -> -330 | DB15: =IF($CP$21=0,"---",IF($GT15=$CP$18,-$CP$21*($GT15^2-($GT15-$CP$18)^2)/2,IF($GT15>=0,-$CP$21*$GT15^2/2,0))) -> -825 | DC15: =IF($CP$21=0,"---",IF($GT15=$CP$18,-$CP$21*($GT15^3-($GT15-$CP$18)^3)/(6*$BZ$13*$CP$19),IF($GT15>=0,-$CP$21*$GT15^3/(6*$BZ$13*$CP$19),0))) -> -4.296875e-07 | DD15: =IF($CP$21=0,"---",IF($GT15=$CP$18,$CP$21*($GT15^4-($GT15-$CP$18)^4)/(24*$BZ$13*$CP$19),IF($GT15>=0,$CP$21*$GT15^4/(24*$BZ$13*$CP$19),0))) -> 5.37109375e-07 | DE15: =$DE$14 -> --- | DF15: =$DF$14 -> --- | DG15: =$DG$14 -> --- | DH15: =$DH$14 -> --- | DI15: =IF($CP$25=$CR$25,"---",IF(AND($CP$25="",$CQ$25="",$CR$25="",$CS$25=""),"---",(IF($GT15>=$CR$25,-$CQ$25*($GT15-$CP$25-($GT15-$CR$25)),IF($GT15>=$CP$25,-$CQ$25*($GT15-$CP$25),0)))+(IF($GT15>=$CR$25,-1/2*($CS$25-$CQ$25)/($CR$25-$CP$25)*(($GT15-$CP$25)^2-($GT15-$CR$25)^2)+($CS$25-$CQ$25)*($GT15-$CR$25),IF($GT15>=$CP$25,-1/2*($CS$25-$CQ$25)/($CR$25-$CP$25)*($GT15-$CP$25)^2,0))))) -> --- | DJ15: =IF($CP$25=$CR$25,"---",IF(AND($CP$25="",$CQ$25="",$CR$25="",$CS$25=""),"---",(IF($GT15>=$CR$25,-$CQ$25/2*(($GT15-$CP$25)^2-($GT15-$CR$25)^2),IF($GT15>=$CP$25,-$CQ$25/2*($GT15-$CP$25)^2,0)))+(IF($GT15>=$CR$25,-1/6*($CS$25-$CQ$25)/($CR$25-$CP$25)*(($GT15-$CP$25)^3-($GT15-$CR$25)^3)+($CS$25-$CQ$25)/2*($GT15-$CR$25)^2,IF($GT15>=$CP$25,-1/6*($CS$25-$CQ$25)/($CR$25-$CP$25)*($GT15-$CP$25)^3,0))))) -> --- | DK15: =IF($CP$25=$CR$25,"---",IF(AND($CP$25="",$CQ$25="",$CR$25="",$CS$25=""),"---",(IF($GT15>=$CR$25,-$CQ$25/(6*$BZ$13*$CP$19)*(($GT15-$CP$25)^3-($GT15-$CR$25)^3),IF($GT15>=$CP$25,-$CQ$25/(6*$BZ$13*$CP$19)*($GT15-$CP$25)^3,0)))+(IF($GT15>=$CR$25,-1/(24*$BZ$13*$CP$19)*($CS$25-$CQ$25)/($CR$25-$CP$25)*(($GT15-$CP$25)^4-($GT15-$CR$25)^4)+($CS$25-$CQ$25)/(6*$BZ$13*$CP$19)*($GT15-$CR$25)^3,IF($GT15>=$CP$25,-1/(24*$BZ$13*$CP$19)*($CS$25-$CQ$25)/($CR$25-$CP$25)*($GT15-$CP$25)^4,0))))) -> --- | DL15: =IF($CP$25=$CR$25,"---",IF(AND($CP$25="",$CQ$25="",$CR$25="",$CS$25=""),"---",(IF($GT15>=$CR$25,$CQ$25/(24*$BZ$13*$CP$19)*(($GT15-$CP$25)^4-($GT15-$CR$25)^4),IF($GT15>=$CP$25,$CQ$25/(24*$BZ$13*$CP$19)*($GT15-$CP$25)^4,0)))+(IF($GT15>=$CR$25,1/(120*$BZ$13*$CP$19)*($CS$25-$CQ$25)/($CR$25-$CP$25)*(($GT15-$CP$25)^5-($GT15-$CR$25)^5)-($CS$25-$CQ$25)/(24*$BZ$13*$CP$19)*($GT15-$CR$25)^4,IF($GT15>=$CP$25,1/(120*$BZ$13*$CP$19)*($CS$25-$CQ$25)/($CR$25-$CP$25)*($GT15-$CP$25)^5,0))))) -> --- | DM15: =$DM$14 -> --- | DN15: =$DN$14 -> --- | DO15: =$DO$14 -> --- | DP15: =$DP$14 -> --- | DQ15: =IF($CP$26=$CR$26,"---",IF(AND($CP$26="",$CQ$26="",$CR$26="",$CS$26=""),"---",(IF($GT15>=$CR$26,-$CQ$26*($GT15-$CP$26-($GT15-$CR$26)),IF($GT15>=$CP$26,-$CQ$26*($GT15-$CP$26),0)))+(IF($GT15>=$CR$26,-1/2*($CS$26-$CQ$26)/($CR$26-$CP$26)*(($GT15-$CP$26)^2-($GT15-$CR$26)^2)+($CS$26-$CQ$26)*($GT15-$CR$26),IF($GT15>=$CP$26,-1/2*($CS$26-$CQ$26)/($CR$26-$CP$26)*($GT15-$CP$26)^2,0))))) -> --- | DR15: =IF($CP$26=$CR$26,"---",IF(AND($CP$26="",$CQ$26="",$CR$26="",$CS$26=""),"---",(IF($GT15>=$CR$26,-$CQ$26/2*(($GT15-$CP$26)^2-($GT15-$CR$26)^2),IF($GT15>=$CP$26,-$CQ$26/2*($GT15-$CP$26)^2,0)))+(IF($GT15>=$CR$26,-1/6*($CS$26-$CQ$26)/($CR$26-$CP$26)*(($GT15-$CP$26)^3-($GT15-$CR$26)^3)+($CS$26-$CQ$26)/2*($GT15-$CR$26)^2,IF($GT15>=$CP$26,-1/6*($CS$26-$CQ$26)/($CR$26-$CP$26)*($GT15-$CP$26)^3,0))))) -> --- | DS15: =IF($CP$26=$CR$26,"---",IF(AND($CP$26="",$CQ$26="",$CR$26="",$CS$26=""),"---",(IF($GT15>=$CR$26,-$CQ$26/(6*$BZ$13*$CP$19)*(($GT15-$CP$26)^3-($GT15-$CR$26)^3),IF($GT15>=$CP$26,-$CQ$26/(6*$BZ$13*$CP$19)*($GT15-$CP$26)^3,0)))+(IF($GT15>=$CR$26,-1/(24*$BZ$13*$CP$19)*($CS$26-$CQ$26)/($CR$26-$CP$26)*(($GT15-$CP$26)^4-($GT15-$CR$26)^4)+($CS$26-$CQ$26)/(6*$BZ$13*$CP$19)*($GT15-$CR$26)^3,IF($GT15>=$CP$26,-1/(24*$BZ$13*$CP$19)*($CS$26-$CQ$26)/($CR$26-$CP$26)*($GT15-$CP$26)^4,0))))) -> --- | DT15: =IF($CP$26=$CR$26,"---",IF(AND($CP$26="",$CQ$26="",$CR$26="",$CS$26=""),"---",(IF($GT15>=$CR$26,$CQ$26/(24*$BZ$13*$CP$19)*(($GT15-$CP$26)^4-($GT15-$CR$26)^4),IF($GT15>=$CP$26,$CQ$26/(24*$BZ$13*$CP$19)*($GT15-$CP$26)^4,0)))+(IF($GT15>=$CR$26,1/(120*$BZ$13*$CP$19)*($CS$26-$CQ$26)/($CR$26-$CP$26)*(($GT15-$CP$26)^5-($GT15-$CR$26)^5)-($CS$26-$CQ$26)/(24*$BZ$13*$CP$19)*($GT15-$CR$26)^4,IF($GT15>=$CP$26,1/(120*$BZ$13*$CP$19)*($CS$26-$CQ$26)/($CR$26-$CP$26)*($GT15-$CP$26)^5,0))))) -> --- | DU15: =$DU$14 -> --- | DV15: =$DV$14 -> --- | DW15: =$DW$14 -> --- | DX15: =$DX$14 -> --- | DY15: =IF($CP$27=$CR$27,"---",IF(AND($CP$27="",$CQ$27="",$CR$27="",$CS$27=""),"---",(IF($GT15>=$CR$27,-$CQ$27*($GT15-$CP$27-($GT15-$CR$27)),IF($GT15>=$CP$27,-$CQ$27*($GT15-$CP$27),0)))+(IF($GT15>=$CR$27,-1/2*($CS$27-$CQ$27)/($CR$27-$CP$27)*(($GT15-$CP$27)^2-($GT15-$CR$27)^2)+($CS$27-$CQ$27)*($GT15-$CR$27),IF($GT15>=$CP$27,-1/2*($CS$27-$CQ$27)/($CR$27-$CP$27)*($GT15-$CP$27)^2,0))))) -> --- | DZ15: =IF($CP$27=$CR$27,"---",IF(AND($CP$27="",$CQ$27="",$CR$27="",$CS$27=""),"---",(IF($GT15>=$CR$27,-$CQ$27/2*(($GT15-$CP$27)^2-($GT15-$CR$27)^2),IF($GT15>=$CP$27,-$CQ$27/2*($GT15-$CP$27)^2,0)))+(IF($GT15>=$CR$27,-1/6*($CS$27-$CQ$27)/($CR$27-$CP$27)*(($GT15-$CP$27)^3-($GT15-$CR$27)^3)+($CS$27-$CQ$27)/2*($GT15-$CR$27)^2,IF($GT15>=$CP$27,-1/6*($CS$27-$CQ$27)/($CR$27-$CP$27)*($GT15-$CP$27)^3,0))))) -> --- | EA15: =IF($CP$27=$CR$27,"---",IF(AND($CP$27="",$CQ$27="",$CR$27="",$CS$27=""),"---",(IF($GT15>=$CR$27,-$CQ$27/(6*$BZ$13*$CP$19)*(($GT15-$CP$27)^3-($GT15-$CR$27)^3),IF($GT15>=$CP$27,-$CQ$27/(6*$BZ$13*$CP$19)*($GT15-$CP$27)^3,0)))+(IF($GT15>=$CR$27,-1/(24*$BZ$13*$CP$19)*($CS$27-$CQ$27)/($CR$27-$CP$27)*(($GT15-$CP$27)^4-($GT15-$CR$27)^4)+($CS$27-$CQ$27)/(6*$BZ$13*$CP$19)*($GT15-$CR$27)^3,IF($GT15>=$CP$27,-1/(24*$BZ$13*$CP$19)*($CS$27-$CQ$27)/($CR$27-$CP$27)*($GT15-$CP$27)^4,0))))) -> --- | EB15: =IF($CP$27=$CR$27,"---",IF(AND($CP$27="",$CQ$27="",$CR$27="",$CS$27=""),"---",(IF($GT15>=$CR$27,$CQ$27/(24*$BZ$13*$CP$19)*(($GT15-$CP$27)^4-($GT15-$CR$27)^4),IF($GT15>=$CP$27,$CQ$27/(24*$BZ$13*$CP$19)*($GT15-$CP$27)^4,0)))+(IF($GT15>=$CR$27,1/(120*$BZ$13*$CP$19)*($CS$27-$CQ$27)/($CR$27-$CP$27)*(($GT15-$CP$27)^5-($GT15-$CR$27)^5)-($CS$27-$CQ$27)/(24*$BZ$13*$CP$19)*($GT15-$CR$27)^4,IF($GT15>=$CP$27,1/(120*$BZ$13*$CP$19)*($CS$27-$CQ$27)/($CR$27-$CP$27)*($GT15-$CP$27)^5,0))))) -> --- | EC15: =$EC$14 -> --- | ED15: =$ED$14 -> --- | EE15: =$EE$14 -> --- | EF15: =$EF$14 -> --- | EG15: =IF($CP$28=$CR$28,"---",IF(AND($CP$28="",$CQ$28="",$CR$28="",$CS$28=""),"---",(IF($GT15>=$CR$28,-$CQ$28*($GT15-$CP$28-($GT15-$CR$28)),IF($GT15>=$CP$28,-$CQ$28*($GT15-$CP$28),0)))+(IF($GT15>=$CR$28,-1/2*($CS$28-$CQ$28)/($CR$28-$CP$28)*(($GT15-$CP$28)^2-($GT15-$CR$28)^2)+($CS$28-$CQ$28)*($GT15-$CR$28),IF($GT15>=$CP$28,-1/2*($CS$28-$CQ$28)/($CR$28-$CP$28)*($GT15-$CP$28)^2,0))))) -> --- | EH15: =IF($CP$28=$CR$28,"---",IF(AND($CP$28="",$CQ$28="",$CR$28="",$CS$28=""),"---",(IF($GT15>=$CR$28,-$CQ$28/2*(($GT15-$CP$28)^2-($GT15-$CR$28)^2),IF($GT15>=$CP$28,-$CQ$28/2*($GT15-$CP$28)^2,0)))+(IF($GT15>=$CR$28,-1/6*($CS$28-$CQ$28)/($CR$28-$CP$28)*(($GT15-$CP$28)^3-($GT15-$CR$28)^3)+($CS$28-$CQ$28)/2*($GT15-$CR$28)^2,IF($GT15>=$CP$28,-1/6*($CS$28-$CQ$28)/($CR$28-$CP$28)*($GT15-$CP$28)^3,0))))) -> --- | EI15: =IF($CP$28=$CR$28,"---",IF(AND($CP$28="",$CQ$28="",$CR$28="",$CS$28=""),"---",(IF($GT15>=$CR$28,-$CQ$28/(6*$BZ$13*$CP$19)*(($GT15-$CP$28)^3-($GT15-$CR$28)^3),IF($GT15>=$CP$28,-$CQ$28/(6*$BZ$13*$CP$19)*($GT15-$CP$28)^3,0)))+(IF($GT15>=$CR$28,-1/(24*$BZ$13*$CP$19)*($CS$28-$CQ$28)/($CR$28-$CP$28)*(($GT15-$CP$28)^4-($GT15-$CR$28)^4)+($CS$28-$CQ$28)/(6*$BZ$13*$CP$19)*($GT15-$CR$28)^3,IF($GT15>=$CP$28,-1/(24*$BZ$13*$CP$19)*($CS$28-$CQ$28)/($CR$28-$CP$28)*($GT15-$CP$28)^4,0))))) -> --- | EJ15: =IF($CP$28=$CR$28,"---",IF(AND($CP$28="",$CQ$28="",$CR$28="",$CS$28=""),"---",(IF($GT15>=$CR$28,$CQ$28/(24*$BZ$13*$CP$19)*(($GT15-$CP$28)^4-($GT15-$CR$28)^4),IF($GT15>=$CP$28,$CQ$28/(24*$BZ$13*$CP$19)*($GT15-$CP$28)^4,0)))+(IF($GT15>=$CR$28,1/(120*$BZ$13*$CP$19)*($CS$28-$CQ$28)/($CR$28-$CP$28)*(($GT15-$CP$28)^5-($GT15-$CR$28)^5)-($CS$28-$CQ$28)/(24*$BZ$13*$CP$19)*($GT15-$CR$28)^4,IF($GT15>=$CP$28,1/(120*$BZ$13*$CP$19)*($CS$28-$CQ$28)/($CR$28-$CP$28)*($GT15-$CP$28)^5,0))))) -> --- | EK15: =$EK$14 -> --- | EL15: =$EL$14 -> --- | EM15: =$EM$14 -> --- | EN15: =$EN$14 -> --- | EO15: =IF($CP$29=$CR$29,"---",IF(AND($CP$29="",$CQ$29="",$CR$29="",$CS$29=""),"---",(IF($GT15>=$CR$29,-$CQ$29*($GT15-$CP$29-($GT15-$CR$29)),IF($GT15>=$CP$29,-$CQ$29*($GT15-$CP$29),0)))+(IF($GT15>=$CR$29,-1/2*($CS$29-$CQ$29)/($CR$29-$CP$29)*(($GT15-$CP$29)^2-($GT15-$CR$29)^2)+($CS$29-$CQ$29)*($GT15-$CR$29),IF($GT15>=$CP$29,-1/2*($CS$29-$CQ$29)/($CR$29-$CP$29)*($GT15-$CP$29)^2,0))))) -> --- | EP15: =IF($CP$29=$CR$29,"---",IF(AND($CP$29="",$CQ$29="",$CR$29="",$CS$29=""),"---",(IF($GT15>=$CR$29,-$CQ$29/2*(($GT15-$CP$29)^2-($GT15-$CR$29)^2),IF($GT15>=$CP$29,-$CQ$29/2*($GT15-$CP$29)^2,0)))+(IF($GT15>=$CR$29,-1/6*($CS$29-$CQ$29)/($CR$29-$CP$29)*(($GT15-$CP$29)^3-($GT15-$CR$29)^3)+($CS$29-$CQ$29)/2*($GT15-$CR$29)^2,IF($GT15>=$CP$29,-1/6*($CS$29-$CQ$29)/($CR$29-$CP$29)*($GT15-$CP$29)^3,0))))) -> --- | EQ15: =IF($CP$29=$CR$29,"---",IF(AND($CP$29="",$CQ$29="",$CR$29="",$CS$29=""),"---",(IF($GT15>=$CR$29,-$CQ$29/(6*$BZ$13*$CP$19)*(($GT15-$CP$29)^3-($GT15-$CR$29)^3),IF($GT15>=$CP$29,-$CQ$29/(6*$BZ$13*$CP$19)*($GT15-$CP$29)^3,0)))+(IF($GT15>=$CR$29,-1/(24*$BZ$13*$CP$19)*($CS$29-$CQ$29)/($CR$29-$CP$29)*(($GT15-$CP$29)^4-($GT15-$CR$29)^4)+($CS$29-$CQ$29)/(6*$BZ$13*$CP$19)*($GT15-$CR$29)^3,IF($GT15>=$CP$29,-1/(24*$BZ$13*$CP$19)*($CS$29-$CQ$29)/($CR$29-$CP$29)*($GT15-$CP$29)^4,0))))) -> --- | ER15: =IF($CP$29=$CR$29,"---",IF(AND($CP$29="",$CQ$29="",$CR$29="",$CS$29=""),"---",(IF($GT15>=$CR$29,$CQ$29/(24*$BZ$13*$CP$19)*(($GT15-$CP$29)^4-($GT15-$CR$29)^4),IF($GT15>=$CP$29,$CQ$29/(24*$BZ$13*$CP$19)*($GT15-$CP$29)^4,0)))+(IF($GT15>=$CR$29,1/(120*$BZ$13*$CP$19)*($CS$29-$CQ$29)/($CR$29-$CP$29)*(($GT15-$CP$29)^5-($GT15-$CR$29)^5)-($CS$29-$CQ$29)/(24*$BZ$13*$CP$19)*($GT15-$CR$29)^4,IF($GT15>=$CP$29,1/(120*$BZ$13*$CP$19)*($CS$29-$CQ$29)/($CR$29-$CP$29)*($GT15-$CP$29)^5,0))))) -> --- | ES15: =$ES$14 -> --- | ET15: =$ET$14 -> --- | EU15: =$EU$14 -> --- | EV15: =$EV$14 -> --- | EW15: =IF($CP$30=$CR$30,"---",IF(AND($CP$30="",$CQ$30="",$CR$30="",$CS$30=""),"---",(IF($GT15>=$CR$30,-$CQ$30*($GT15-$CP$30-($GT15-$CR$30)),IF($GT15>=$CP$30,-$CQ$30*($GT15-$CP$30),0)))+(IF($GT15>=$CR$30,-1/2*($CS$30-$CQ$30)/($CR$30-$CP$30)*(($GT15-$CP$30)^2-($GT15-$CR$30)^2)+($CS$30-$CQ$30)*($GT15-$CR$30),IF($GT15>=$CP$30,-1/2*($CS$30-$CQ$30)/($CR$30-$CP$30)*($GT15-$CP$30)^2,0))))) -> --- | EX15: =IF($CP$30=$CR$30,"---",IF(AND($CP$30="",$CQ$30="",$CR$30="",$CS$30=""),"---",(IF($GT15>=$CR$30,-$CQ$30/2*(($GT15-$CP$30)^2-($GT15-$CR$30)^2),IF($GT15>=$CP$30,-$CQ$30/2*($GT15-$CP$30)^2,0)))+(IF($GT15>=$CR$30,-1/6*($CS$30-$CQ$30)/($CR$30-$CP$30)*(($GT15-$CP$30)^3-($GT15-$CR$30)^3)+($CS$30-$CQ$30)/2*($GT15-$CR$30)^2,IF($GT15>=$CP$30,-1/6*($CS$30-$CQ$30)/($CR$30-$CP$30)*($GT15-$CP$30)^3,0))))) -> --- | EY15: =IF($CP$30=$CR$30,"---",IF(AND($CP$30="",$CQ$30="",$CR$30="",$CS$30=""),"---",(IF($GT15>=$CR$30,-$CQ$30/(6*$BZ$13*$CP$19)*(($GT15-$CP$30)^3-($GT15-$CR$30)^3),IF($GT15>=$CP$30,-$CQ$30/(6*$BZ$13*$CP$19)*($GT15-$CP$30)^3,0)))+(IF($GT15>=$CR$30,-1/(24*$BZ$13*$CP$19)*($CS$30-$CQ$30)/($CR$30-$CP$30)*(($GT15-$CP$30)^4-($GT15-$CR$30)^4)+($CS$30-$CQ$30)/(6*$BZ$13*$CP$19)*($GT15-$CR$30)^3,IF($GT15>=$CP$30,-1/(24*$BZ$13*$CP$19)*($CS$30-$CQ$30)/($CR$30-$CP$30)*($GT15-$CP$30)^4,0))))) -> --- | EZ15: =IF($CP$30=$CR$30,"---",IF(AND($CP$30="",$CQ$30="",$CR$30="",$CS$30=""),"---",(IF($GT15>=$CR$30,$CQ$30/(24*$BZ$13*$CP$19)*(($GT15-$CP$30)^4-($GT15-$CR$30)^4),IF($GT15>=$CP$30,$CQ$30/(24*$BZ$13*$CP$19)*($GT15-$CP$30)^4,0)))+(IF($GT15>=$CR$30,1/(120*$BZ$13*$CP$19)*($CS$30-$CQ$30)/($CR$30-$CP$30)*(($GT15-$CP$30)^5-($GT15-$CR$30)^5)-($CS$30-$CQ$30)/(24*$BZ$13*$CP$19)*($GT15-$CR$30)^4,IF($GT15>=$CP$30,1/(120*$BZ$13*$CP$19)*($CS$30-$CQ$30)/($CR$30-$CP$30)*($GT15-$CP$30)^5,0))))) -> --- | FQ15: =$FQ$14 -> 0 | FR15: =$FR$14 -> 0 | FS15: =$FS$14 -> 0 | FT15: =$FT$14 -> 0 | FU15: =IF($GT15>$CP$35,-$CR$35,0)+IF($GT15>$CP$36,-$CR$36,0)+IF($GT15>$CP$37,-$CR$37,0)+IF($GT15>$CP$38,-$CR$38,0)+IF($GT15>$CP$39,-$CR$39,0)+IF($GT15>$CP$40,-$CR$40,0) -> 0 | FV15: =IF($GT15>$CP$35,-$CR$35*($GT15-$CP$35),0)+IF($GT15>$CP$36,-$CR$36*($GT15-$CP$36),0)+IF($GT15>$CP$37,-$CR$37*($GT15-$CP$37),0)+IF($GT15>$CP$38,-$CR$38*($GT15-$CP$38),0)+IF($GT15>$CP$39,-$CR$39*($GT15-$CP$39),0)+IF($GT15>$CP$40,-$CR$40*($GT15-$CP$40),0) -> 0 | FW15: =IF($GT15>$CP$35,-$CR$35*($GT15-$CP$35)^2/(2*$BZ$13*$CP$19),0)+IF($GT15>$CP$36,-$CR$36*($GT15-$CP$36)^2/(2*$BZ$13*$CP$19),0)+IF($GT15>$CP$37,-$CR$37*($GT15-$CP$37)^2/(2*$BZ$13*$CP$19),0)+IF($GT15>$CP$38,-$CR$38*($GT15-$CP$38)^2/(2*$BZ$13*$CP$19),0)+IF($GT15>$CP$39,-$CR$39*($GT15-$CP$39)^2/(2*$BZ$13*$CP$19),0)+IF($GT15>$CP$40,-$CR$40*($GT15-$CP$40)^2/(2*$BZ$13*$CP$19),0) -> 0 | FX15: =IF($GT15>$CP$35,$CR$35*($GT15-$CP$35)^3/(6*$BZ$13*$CP$19),0)+IF($GT15>$CP$36,$CR$36*($GT15-$CP$36)^3/(6*$BZ$13*$CP$19),0)+IF($GT15>$CP$37,$CR$37*($GT15-$CP$37)^3/(6*$BZ$13*$CP$19),0)+IF($GT15>$CP$38,$CR$38*($GT15-$CP$38)^3/(6*$BZ$13*$CP$19),0)+IF($GT15>$CP$39,$CR$39*($GT15-$CP$39)^3/(6*$BZ$13*$CP$19),0)+IF($GT15>$CP$40,$CR$40*($GT15-$CP$40)^3/(6*$BZ$13*$CP$19),0) -> 0 | FY15: =$FY$14 -> 0 | FZ15: =$FZ$14 -> -80 | GA15: =$GA$14 -> -6.25e-08 | GB15: =$GB$14 -> 7.8125e-08 | GC15: =IF($GT15>=IF($GD$19=$CP$18,$GD$19+0.000000001,$GD$19),0,0)+IF($GT15>=IF($GD$20=$CP$18,$GD$20+0.000000001,$GD$20),0,0)+IF($GT15>=IF($GD$21=$CP$18,$GD$21+0.000000001,$GD$21),0,0)+IF($GT15>=IF($GD$22=$CP$18,$GD$22+0.000000001,$GD$22),0,0)+IF($GT15>=IF($GD$23=$CP$18,$GD$23+0.000000001,$GD$23),0,0)+IF($GT15>=IF($GD$24=$CP$18,$GD$24+0.000000001,$GD$24),0,0) -> 0 | GD15: =IF($GT15>=IF($GD$19=$CP$18,$GD$19+0.000000001,$GD$19),-$CR$52,0)+IF($GT15>=IF($GD$20=$CP$18,$GD$20+0.000000001,$GD$20),-$CR$53,0)+IF($GT15>=IF($GD$21=$CP$18,$GD$21+0.000000001,$GD$21),-$CR$54,0)+IF($GT15>=IF($GD$22=$CP$18,$GD$22+0.000000001,$GD$22),-$CR$55,0)+IF($GT15>=IF($GD$23=$CP$18,$GD$23+0.000000001,$GD$23),-$CR$56,0)+IF($GT15>=IF($GD$24=$CP$18,$GD$24+0.000000001,$GD$24),-$CR$57,0) -> -80 | GE15: =IF($GT15>=IF($GD$19=$CP$18,$GD$19+0.000000001,$GD$19),-$CR$52*($GT15-$GD$19)/($BZ$13*$CP$19),0)+IF($GT15>=IF($GD$20=$CP$18,$GD$20+0.000000001,$GD$20),-$CR$53*($GT15-$GD$20)/($BZ$13*$CP$19),0)+IF($GT15>=IF($GD$21=$CP$18,$GD$21+0.000000001,$GD$21),-$CR$54*($GT15-$GD$21)/($BZ$13*$CP$19),0)+IF($GT15>=IF($GD$22=$CP$18,$GD$22+0.000000001,$GD$22),-$CR$55*($GT15-$GD$22)/($BZ$13*$CP$19),0)+IF($GT15>=IF($GD$23=$CP$18,$GD$23+0.000000001,$GD$23),-$CR$56*($GT15-$GD$23)/($BZ$13*$CP$19),0)+IF($GT15>=IF($GD$24=$CP$18,$GD$24+0.000000001,$GD$24),-$CR$57*($GT15-$GD$24)/($BZ$13*$CP$19),0) -> -6.25e-08 | GF15: =IF($GT15>=IF($GD$19=$CP$18,$GD$19+0.000000001,$GD$19),$CR$52*($GT15-$GD$19)^2/(2*$BZ$13*$CP$19),0)+IF($GT15>=IF($GD$20=$CP$18,$GD$20+0.000000001,$GD$20),$CR$53*($GT15-$GD$20)^2/(2*$BZ$13*$CP$19),0)+IF($GT15>=IF($GD$21=$CP$18,$GD$21+0.000000001,$GD$21),$CR$54*($GT15-$GD$21)^2/(2*$BZ$13*$CP$19),0)+IF($GT15>=IF($GD$22=$CP$18,$GD$22+0.000000001,$GD$22),$CR$55*($GT15-$GD$22)^2/(2*$BZ$13*$CP$19),0)+IF($GT15>=IF($GD$23=$CP$18,$GD$23+0.000000001,$GD$23),$CR$56*($GT15-$GD$23)^2/(2*$BZ$13*$CP$19),0)+IF($GT15>=IF($GD$24=$CP$18,$GD$24+0.000000001,$GD$24),$CR$57*($GT15-$GD$24)^2/(2*$BZ$13*$CP$19),0) -> 7.812500001e-08 | GG15: =$GG$14 -> -330 | GH15: =$GH$14 -> -905 | GI15: =$GI$14 -> -4.921875e-07 | GJ15: =$GJ$14 -> 6.15234375e-07 | GK15: -330 | GL15: -905 | GM15: -4.921875e-07 | GN15: 6.15234375e-07 | GO15: =$GO$14 -> 189 | GP15: =$GP$14 -> -157.5 | GQ15: =$GQ$14 -> 0 | GR15: =$GR$14 -> 0 | GS15: =IF($BZ$10<5,0,$GP15+$GO15*$GT15+$GL15) -> -117.5 | GT15: =$CP$18+0.0000000001 -> 5 | HE15: W44x262 | HF15: 24200 | HG15: 927 | HH15: 1007280.05 | HI15: 38584.65 | HL15: x1 (m) | HM15: x1 (m) | HN15: x1 (m) | HO15: x1 (m) | HP15: x1 (m)
H16: Span Length (m) | N16: 4 | Q16: 6 | T16: 4 | W16: 7 | Z16: 5 | BZ16: =IF($HL$10>$BZ$18,"ERROR: x1 > L1 !","") ->  | CB16: =IF($HL$11>$BZ$18,"ERROR: x2 > L1 !","") ->  | CD16: =IF($HM$10>$CD$18,"ERROR: x1 > L2 !","") ->  | CF16: =IF($HM$11>$CD$18,"ERROR: x2 > L2 !","") ->  | CH16: =IF($HN$10>$CH$18,"ERROR: x1 > L3 !","") ->  | CJ16: =IF($HN$11>$CH$18,"ERROR: x2 > L3 !","") ->  | CL16: =IF($HO$10>$CL$18,"ERROR: x1 > L4 !","") ->  | CN16: =IF($HO$11>$CL$18,"ERROR: x2 > L4 !","") ->  | CP16: =IF($HP$10>$CP$18,"ERROR: x1 > L5 !","") ->  | CR16: =IF($HP$11>$CP$18,"ERROR: x2 > L5 !","") ->  | HE16: W44x248 | HF16: 21400 | HG16: 435 | HH16: 890735.25 | HI16: 18106.07 | HK16: Vx1 = | HL16: =$GS$117 -> -221.3240804 | HM16: =$GS$288 -> 209.5306771 | HN16: =IF($BZ$10=2,"---",$GS$459) -> -11.0849428 | HO16: =IF($BZ$10=2,"---",IF($BZ$10=3,"---",$GS$630)) -> 85.5417632 | HP16: =IF($BZ$10=2,"---",IF($BZ$10=3,"---",IF($BZ$10=4,"---",$GS$801))) -> 176.2678093 | HQ16: kN
H17: Inertia (cm⁴) | N17: 16000 | Q17: 16000 | T17: 12000 | W17: 16000 | Z17: 16000 | BY17: Span Data: | BZ17: Span #1 | CD17: Span #2 | CH17: Span #3 | CL17: Span #4 | CP17: Span #5 | CV17: FEM's | CW17: Dummy Span | CX17: Span #1 | CY17: Span #2 | CZ17: =IF($BZ$10=2,"Dummy Span","Span #3") -> Span #3 | DA17: =IF($BZ$10=3,"Dummy Span",IF($BZ$10<3,"","Span #4")) -> Span #4 | DB17: =IF($BZ$10=4,"Dummy Span",IF($BZ$10<4,"","Span #5")) -> Span #5 | DC17: =IF($BZ$10=5,"Dummy Span","") -> Dummy Span | FZ17: Distances for Applied Moments for Each Span: | HE17: W44x230 | HF17: 20800 | HG17: 796 | HH17: 865761.37 | HI17: 33132.02 | HK17: Mx1 = | HL17: =$GT$117 -> -21.09779294 | HM17: =$GT$288 -> 270.4761429 | HN17: =IF($BZ$10=2,"---",$GT$459) -> -132.682146 | HO17: =IF($BZ$10=2,"---",IF($BZ$10=3,"---",$GT$630)) -> 374.7732575 | HP17: =IF($BZ$10=2,"---",IF($BZ$10=3,"---",IF($BZ$10=4,"---",$GT$801))) -> -111.6047572 | HQ17: kN-m
BY18: Span, L (m) = | BZ18: =N16 -> 4 | CA18: =20*0.3048 -> 6.096 | CB18: =20*0.3048 -> 6.096 | CC18: =20*0.3048 -> 6.096 | CD18: =Q16 -> 6 | CE18: =20*0.3048 -> 6.096 | CF18: =20*0.3048 -> 6.096 | CG18: =20*0.3048 -> 6.096 | CH18: =T16 -> 4 | CI18: =20*0.3048 -> 6.096 | CJ18: =20*0.3048 -> 6.096 | CK18: =20*0.3048 -> 6.096 | CL18: =W16 -> 7 | CP18: =Z16 -> 5 | CV18: ML: | CW18: =0 -> 0 | CX18: =-GS6 -> 168 | CY18: =-GS8 -> 493.8333333 | CZ18: =IF($BZ$10=2,0,-GS10) -> 88 | DA18: =IF($BZ$10=3,0,-GS12) -> 472.5 | DB18: =IF($BZ$10=4,0,-GS14) -> 157.5 | DC18: =0 -> 0 | FZ18: Span #1 | GA18: Span #2 | GB18: Span #3 | GC18: Span #4 | GD18: Span #5 | HE18: W44x224 | HF18: 19200 | HG18: 391 | HH18: 799164.34 | HI18: 16274.65 | HK18: qx1 = | HL18: =$GU$117 -> 0.002661839464 | HM18: =$GU$288 -> -0.01180672734 | HN18: =IF($BZ$10=2,"---",$GU$459) -> 0.000307915085 | HO18: =IF($BZ$10=2,"---",IF($BZ$10=3,"---",$GU$630)) -> -0.004889909873 | HP18: =IF($BZ$10=2,"---",IF($BZ$10=3,"---",IF($BZ$10=4,"---",$GU$801))) -> -0.0008507216535 | HQ18: rad.
BY19: Inertia, I (cm^4) = | BZ19: =N17 -> 16000 | CA19: =29000/145.037737731 -> 199.9479615 | CB19: =29000/145.037737731 -> 199.9479615 | CC19: =29000/145.037737731 -> 199.9479615 | CD19: =Q17 -> 16000 | CE19: =29000/145.037737731 -> 199.9479615 | CF19: =29000/145.037737731 -> 199.9479615 | CG19: =29000/145.037737731 -> 199.9479615 | CH19: =T17 -> 12000 | CI19: =29000/145.037737731 -> 199.9479615 | CJ19: =29000/145.037737731 -> 199.9479615 | CK19: =29000/145.037737731 -> 199.9479615 | CL19: =W17 -> 16000 | CP19: =Z17 -> 16000 | CV19: MR: | CW19: =0 -> 0 | CX19: =-GS7 -> 168 | CY19: =-GS9 -> 451.1666667 | CZ19: =IF($BZ$10=2,0,-GS11) -> 88.00000001 | DA19: =IF($BZ$10=3,0,-GS13) -> 472.5 | DB19: =IF($BZ$10=4,0,-GS15) -> 117.5 | DC19: =0 -> 0 | FY19: M1: | FZ19: =IF($BZ$52=0,$BZ$52+0.000000001,IF($BZ$52=$BZ$18,$BZ$52-0.000000001,$BZ$52)) -> 1e-09 | GA19: =IF($CD$52=0,$CD$52+0.000000001,IF($CD$52=$CD$18,$CD$52-0.000000001,$CD$52)) -> 1e-09 | GB19: =IF($CH$52=0,$CH$52+0.000000001,IF($CH$52=$CH$18,$CH$52-0.000000001,$CH$52)) -> 1e-09 | GC19: =IF($CL$52=0,$CL$52+0.000000001,IF($CL$52=$CL$18,$CL$52-0.000000001,$CL$52)) -> 1e-09 | GD19: =IF($CP$52=0,$CP$52+0.000000001,IF($CP$52=$CP$18,$CP$52-0.000000001,$CP$52)) -> 2.5 | HE19: W44x198 | HF19: 16700 | HG19: 336 | HH19: 695106.48 | HI19: 13985.38 | HK19: Dx1 = | HL19: =$GV$117 -> 1.869748966 | HM19: =$GV$288 -> -28.18012984 | HN19: =IF($BZ$10=2,"---",$GV$459) -> 12.89017883 | HO19: =IF($BZ$10=2,"---",IF($BZ$10=3,"---",$GV$630)) -> -45.85072099 | HP19: =IF($BZ$10=2,"---",IF($BZ$10=3,"---",IF($BZ$10=4,"---",$GV$801))) -> 5.07618364 | HQ19: mm
BY20: Full Uniform: | CW20: Moment Matrix: | FY20: M2: | FZ20: =IF($BZ$53=0,$BZ$53+0.000000001,IF($BZ$53=$BZ$18,$BZ$53-0.000000001,$BZ$53)) -> 1e-09 | GA20: =IF($CD$53=0,$CD$53+0.000000001,IF($CD$53=$CD$18,$CD$53-0.000000001,$CD$53)) -> 1e-09 | GB20: =IF($CH$53=0,$CH$53+0.000000001,IF($CH$53=$CH$18,$CH$53-0.000000001,$CH$53)) -> 1e-09 | GC20: =IF($CL$53=0,$CL$53+0.000000001,IF($CL$53=$CL$18,$CL$53-0.000000001,$CL$53)) -> 1e-09 | GD20: =IF($CP$53=0,$CP$53+0.000000001,IF($CP$53=$CP$18,$CP$53-0.000000001,$CP$53)) -> 1e-09 | HE20: W40x655 | HF20: 56500 | HG20: 2860 | HH20: 2351707.55 | HI20: 119042.19
BY21: w (kN/m) = | BZ21: =P64*$S$60+P65*$S$60+P66*$S$61 -> 66 | CD21: =S64*$S$60+S65*$S$60+S66*$S$61 -> 90 | CH21: =V64*$S$60+V65*$S$60+V66*$S$61 -> 66 | CL21: =Y64*$S$60+Y65*$S$60+Y66*$S$61 -> 90 | CP21: =AB64*$S$60+AB65*$S$60+AB66*$S$61 -> 66 | CW21: Dummy Span | CX21: Span #1 | CY21: Span #2 | CZ21: =IF($BZ$10=2,"Dummy Span","Span #3") -> Span #3 | DA21: =IF($BZ$10=3,"Dummy Span",IF($BZ$10<3,"","Span #4")) -> Span #4 | DB21: =IF($BZ$10=4,"Dummy Span",IF($BZ$10<4,"","Span #5")) -> Span #5 | DC21: =IF($BZ$10=5,"Dummy Span","") -> Dummy Span | FY21: M3: | FZ21: =IF($BZ$54=0,$BZ$54+0.000000001,IF($BZ$54=$BZ$18,$BZ$54-0.000000001,$BZ$54)) -> 1e-09 | GA21: =IF($CD$54=0,$CD$54+0.000000001,IF($CD$54=$CD$18,$CD$54-0.000000001,$CD$54)) -> 1e-09 | GB21: =IF($CH$54=0,$CH$54+0.000000001,IF($CH$54=$CH$18,$CH$54-0.000000001,$CH$54)) -> 1e-09 | GC21: =IF($CL$54=0,$CL$54+0.000000001,IF($CL$54=$CL$18,$CL$54-0.000000001,$CL$54)) -> 1e-09 | GD21: =IF($CP$54=0,$CP$54+0.000000001,IF($CP$54=$CP$18,$CP$54-0.000000001,$CP$54)) -> 1e-09 | HE21: W40x593 | HF21: 50400 | HG21: 2520 | HH21: 2097806.39 | HI21: 104890.32 | HL21: Span #1 | HM21: Span #2 | HN21: Span #3 | HO21: Span #4 | HP21: Span #5
CW22: a1 | CX22: a2 | CY22: a3 | CZ22: a4 | DA22: a5 | DB22: a6 | DC22: a7 | FY22: M4: | FZ22: =IF($BZ$55=0,$BZ$55+0.000000001,IF($BZ$55=$BZ$18,$BZ$55-0.000000001,$BZ$55)) -> 1e-09 | GA22: =IF($CD$55=0,$CD$55+0.000000001,IF($CD$55=$CD$18,$CD$55-0.000000001,$CD$55)) -> 1e-09 | GB22: =IF($CH$55=0,$CH$55+0.000000001,IF($CH$55=$CH$18,$CH$55-0.000000001,$CH$55)) -> 1e-09 | GC22: =IF($CL$55=0,$CL$55+0.000000001,IF($CL$55=$CL$18,$CL$55-0.000000001,$CL$55)) -> 1e-09 | GD22: =IF($CP$55=0,$CP$55+0.000000001,IF($CP$55=$CP$18,$CP$55-0.000000001,$CP$55)) -> 1e-09 | HE22: W40x531 | HF22: 44300 | HG22: 2200 | HH22: 1843905.22 | HI22: 91570.91 | HL22: x2 (m) | HM22: x2 (m) | HN22: x2 (m) | HO22: x2 (m) | HP22: x2 (m)
BZ23: Start | CB23: End | CD23: Start | CF23: End | CH23: Start | CJ23: End | CL23: Start | CN23: End | CP23: Start | CR23: End | CV23: Ln/In: | CW23: =IF($BZ$11="Pinned",10000000/0.00000001,0.00000001/1) -> 1000000000000000 | CX23: =$BZ$18/$BZ$19 -> 0.00025 | CY23: =$CD$18/$CD$19 -> 0.000375 | CZ23: =IF($BZ$10=2,IF($BZ$12="Pinned",10000000/0.00000001,0.00000001/1),$CH$18/$CH$19) -> 0.0003333333333 | DA23: =IF($BZ$10=3,IF($BZ$12="Pinned",10000000/0.00000001,0.00000001/1),$CL$18/$CL$19) -> 0.0004375 | DB23: =IF($BZ$10=4,IF($BZ$12="Pinned",10000000/0.00000001,0.00000001/1),$CP$18/$CP$19) -> 0.0003125 | DC23: =IF($BZ$10=5,IF($BZ$12="Pinned",10000000/0.00000001,0.00000001/1),$CP$18/$CP$19) -> 1e-08 | FY23: M5 | FZ23: =IF($BZ$56=0,$BZ$56+0.000000001,IF($BZ$56=$BZ$18,$BZ$56-0.000000001,$BZ$56)) -> 1e-09 | GA23: =IF($CD$56=0,$CD$56+0.000000001,IF($CD$56=$CD$18,$CD$56-0.000000001,$CD$56)) -> 1e-09 | GB23: =IF($CH$56=0,$CH$56+0.000000001,IF($CH$56=$CH$18,$CH$56-0.000000001,$CH$56)) -> 1e-09 | GC23: =IF($CL$56=0,$CL$56+0.000000001,IF($CL$56=$CL$18,$CL$56-0.000000001,$CL$56)) -> 1e-09 | GD23: =IF($CP$56=0,$CP$56+0.000000001,IF($CP$56=$CP$18,$CP$56-0.000000001,$CP$56)) -> 1e-09 | HE23: W40x503 | HF23: 41700 | HG23: 2050 | HH23: 1735685.04 | HI23: 85327.44 | HK23: Vx2 = | HL23: =$GS$118 -> 97.07591952 | HM23: =$GS$289 -> 476.1973436 | HN23: =IF($BZ$10=2,"---",$GS$460) -> 120.9150571 | HO23: =IF($BZ$10=2,"---",IF($BZ$10=3,"---",$GS$631)) -> 355.5417631 | HP23: =IF($BZ$10=2,"---",IF($BZ$10=3,"---",IF($BZ$10=4,"---",$GS$802))) -> 268.6678092 | HQ23: kN
BY24: Distributed: | BZ24: b (m) | CA24: wb (kN/m) | CB24: e (m) | CC24: we (kN/m) | CD24: b (m) | CE24: wb (kN/m) | CF24: e (m) | CG24: we (kN/m) | CH24: b (m) | CI24: wb (kN/m) | CJ24: e (ft.) | CK24: we (kN/m) | CL24: b (m) | CM24: wb (kN/m) | CN24: e (m) | CO24: we (kN/m) | CP24: b (m) | CQ24: wb (kN/m) | CR24: e (m) | CS24: we (kN/m) | CW24: b1 | CX24: b2 | CY24: b3 | CZ24: b4 | DA24: b5 | DB24: b6 | FY24: M6 | FZ24: =IF($BZ$57=0,$BZ$57+0.000000001,IF($BZ$57=$BZ$18,$BZ$57-0.000000001,$BZ$57)) -> 1e-09 | GA24: =IF($CD$57=0,$CD$57+0.000000001,IF($CD$57=$CD$18,$CD$57-0.000000001,$CD$57)) -> 1e-09 | GB24: =IF($CH$57=0,$CH$57+0.000000001,IF($CH$57=$CH$18,$CH$57-0.000000001,$CH$57)) -> 1e-09 | GC24: =IF($CL$57=0,$CL$57+0.000000001,IF($CL$57=$CL$18,$CL$57-0.000000001,$CL$57)) -> 1e-09 | GD24: =IF($CP$57=0,$CP$57+0.000000001,IF($CP$57=$CP$18,$CP$57-0.000000001,$CP$57)) -> 1e-09 | HE24: W40x480 | HF24: 39500 | HG24: 1940 | HH24: 1644114.13 | HI24: 80748.9 | HK24: Mx2 = | HL24: =$GT$118 -> -9.707591952e-08 | HM24: =$GT$289 -> -4.761973436e-07 | HN24: =IF($BZ$10=2,"---",$GT$460) -> -1.209150571e-07 | HO24: =IF($BZ$10=2,"---",IF($BZ$10=3,"---",$GT$631)) -> -3.555417631e-07 | HP24: =IF($BZ$10=2,"---",IF($BZ$10=3,"---",IF($BZ$10=4,"---",$GT$802))) -> -2.686678092e-07 | HQ24: kN-m
BY25: #1: | BZ25: =J115 -> 0 | CA25: =IF($F115="Dead",L115*$S$60,L115*$S$61) -> 0 | CB25: =O115 -> 0 | CC25: =IF($F115="Dead",O115*$S$60,O115*$S$61) -> 0 | CD25: =X115 -> 1 | CE25: =IF($T115="Dead",Z115*$S$60,Z115*$S$61) -> 80 | CF25: =AC115 -> 4 | CG25: =IF($T115="Dead",AE115*$S$60,AE115*$S$61) -> 120 | CH25: =J125 -> 0 | CI25: =IF($F125="Dead",L125*$S$60,L125*$S$61) -> 0 | CJ25: =O125 -> 0 | CK25: =IF($F125="Dead",Q125*$S$60,Q125*$S$61) -> 0 | CL25: =X125 -> 0 | CM25: =IF($T125="Dead",Z125*$S$60,Z125*$S$61) -> 0 | CN25: =AC125 -> 0 | CO25: =IF($T125="Dead",AE125*$S$60,AE125*$S$61) -> 0 | CP25: =M135 -> 0 | CQ25: =IF($I135="Dead",O135*$S$60,O135*$S$61) -> 0 | CR25: =R135 -> 0 | CS25: =IF($I135="Dead",T135*$S$60,T135*$S$61) -> 0 | CV25: 2*(Ln/In+L(n+1)/I(n+1)) | CW25: =2*(CW$23+CX$23) -> 2000000000000000 | CX25: 0.00125 | CY25: 0.001416666667 | CZ25: 0.001541666667 | DA25: 0.0015 | DB25: 0.00062502 | HE25: W40x466 | HF25: 36300 | HG25: 1010 | HH25: 1510920.07 | HI25: 42039.37 | HK25: qx2 = | HL25: =$GU$118 -> -0.000922993293 | HM25: =$GU$289 -> -0.008654013412 | HN25: =IF($BZ$10=2,"---",$GU$460) -> 0.01410768201 | HO25: =IF($BZ$10=2,"---",IF($BZ$10=3,"---",$GU$631)) -> -0.01533934232 | HP25: =IF($BZ$10=2,"---",IF($BZ$10=3,"---",IF($BZ$10=4,"---",$GU$802))) -> 0.01037343812 | HQ25: rad.
BY26: #2: | BZ26: =J116 -> 0 | CA26: =IF($F116="Dead",L116*$S$60,L116*$S$61) -> 0 | CB26: =O116 -> 0 | CC26: =IF($F116="Dead",O116*$S$60,O116*$S$61) -> 0 | CD26: =X116 -> 0 | CE26: =IF($T116="Dead",Z116*$S$60,Z116*$S$61) -> 0 | CF26: =AC116 -> 0 | CG26: =IF($T116="Dead",AE116*$S$60,AE116*$S$61) -> 0 | CH26: =J126 -> 0 | CI26: =IF($F126="Dead",L126*$S$60,L126*$S$61) -> 0 | CJ26: =O126 -> 0 | CK26: =IF($F126="Dead",Q126*$S$60,Q126*$S$61) -> 0 | CL26: =X126 -> 0 | CM26: =IF($T126="Dead",Z126*$S$60,Z126*$S$61) -> 0 | CN26: =AC126 -> 0 | CO26: =IF($T126="Dead",AE126*$S$60,AE126*$S$61) -> 0 | CP26: =M136 -> 0 | CQ26: =IF($I136="Dead",O136*$S$60,O136*$S$61) -> 0 | CR26: =R136 -> 0 | CS26: =IF($I136="Dead",T136*$S$60,T136*$S$61) -> 0 | CW26: Load Vector: | HE26: W40x436 | HF26: 35400 | HG26: 1720 | HH26: 1473459.25 | HI26: 71591.81 | HK26: Dx2 = | HL26: =$GV$118 -> 9.22993293e-10 | HM26: =$GV$289 -> 8.654013412e-09 | HN26: =IF($BZ$10=2,"---",$GV$460) -> -1.410768201e-08 | HO26: =IF($BZ$10=2,"---",IF($BZ$10=3,"---",$GV$631)) -> 1.533934232e-08 | HP26: =IF($BZ$10=2,"---",IF($BZ$10=3,"---",IF($BZ$10=4,"---",$GV$802))) -> -1.037343812e-08 | HQ26: mm
BY27: #3: | BZ27: 0 | CA27: 0 | CB27: 0 | CC27: 0 | CD27: 0 | CE27: 0 | CF27: 0 | CG27: 0 | CH27: 0 | CI27: 0 | CJ27: 0 | CK27: =IF($F127="Dead",Q127*$S$60,Q127*$S$61) -> 0 | CL27: 0 | CM27: 0 | CN27: 0 | CO27: 0 | CP27: 0 | CQ27: 0 | CR27: 0 | CS27: 0 | CW27: b1R | CX27: b2L | CY27: b2R | CZ27: b3L | DA27: b3R | DB27: b4L | DC27: b4R | DD27: b5L | DE27: b5R | DF27: b6L | DG27: b6R | DH27: b7L | HE27: W40x431 | HF27: 34800 | HG27: 1690 | HH27: 1448485.36 | HI27: 70343.11
BY28: #4: | BZ28: 0 | CA28: 0 | CB28: 0 | CC28: 0 | CD28: 0 | CE28: 0 | CF28: 0 | CG28: 0 | CH28: =J128 -> 0 | CI28: =IF($F128="Dead",L128*$S$60,L128*$S$61) -> 0 | CJ28: 0 | CK28: 0 | CL28: 0 | CM28: 0 | CN28: =AC128 -> 0 | CO28: 0 | CP28: =M138 -> 0 | CQ28: 0 | CR28: 0 | CS28: 0 | CV28: MnL+2*MnR, 2*MnL+MnR: | CW28: =CW18+2*CW19 -> 0 | CX28: =2*CX18+CX19 -> 504 | CY28: =CX18+2*CX19 -> 504 | CZ28: =2*CY18+CY19 -> 1438.833333 | DA28: =CY18+2*CY19 -> 1396.166667 | DB28: =2*CZ18+CZ19 -> 264 | DC28: =CZ18+2*CZ19 -> 264 | DD28: =2*DA18+DA19 -> 1417.5 | DE28: =DA18+2*DA19 -> 1417.5 | DF28: =2*DB18+DB19 -> 432.5 | DG28: =DB18+2*DB19 -> 392.5 | DH28: =2*DC18+DC19 -> 0 | HE28: W40x397 | HF28: 32000 | HG28: 1540 | HH28: 1331940.56 | HI28: 64099.64 | HL28: Tabulation of Shear, Moment, Slope, Deflection for Entire Beam
BY29: #5: | BZ29: 0 | CA29: 0 | CB29: 0 | CC29: =IF($F119="Dead",O119*$S$60,O119*$S$61) -> 0 | CD29: 0 | CE29: 0 | CF29: =AC119 -> 0 | CG29: 0 | CH29: 0 | CI29: 0 | CJ29: 0 | CK29: 0 | CL29: 0 | CM29: =IF($T129="Dead",Z129*$S$60,Z129*$S$61) -> 0 | CN29: 0 | CO29: =IF($T129="Dead",AE129*$S$60,AE129*$S$61) -> 0 | CP29: 0 | CQ29: 0 | CR29: 0 | CS29: 0 | CW29: c1 | CX29: c2 | CY29: c3 | CZ29: c4 | DA29: c5 | DB29: c6 | HE29: W40x392 | HF29: 29900 | HG29: 803 | HH29: 1244531.96 | HI29: 33423.38 | HL29: Dist. x (m) | HM29: Shear (kN) | HN29: Moment (kN-m) | HO29: Slope (rad.) | HP29: Deflection (mm) | HS29: =HL29 -> Dist. x (m) | HT29: =HM29 -> Shear (kN) | HU29: =HN29 -> Moment (kN-m) | HV29: =HO29 -> Slope (rad.)
BY30: #6: | BZ30: =J120 -> 0 | CA30: 0 | CB30: =O120 -> 0 | CC30: 0 | CD30: 0 | CE30: 0 | CF30: 0 | CG30: 0 | CH30: 0 | CI30: 0 | CJ30: 0 | CK30: 0 | CL30: 0 | CM30: 0 | CN30: 0 | CO30: 0 | CP30: 0 | CQ30: 0 | CR30: 0 | CS30: 0 | CW30: =-CW28*CW23-CX28*CX23 -> -0.126 | CX30: =-CY28*CX23-CZ28*CY23 -> -0.6655625 | CY30: =-DA28*CY23-DB28*CZ23 -> -0.6115625 | CZ30: =-DC28*CZ23-DD28*DA23 -> -0.70815625 | DA30: =-DE28*DA23-DF28*DB23 -> -0.7553125 | DB30: =-DG28*DB23-DH28*DC23 -> -0.12265625 | HE30: W40x372 | HF30: 29600 | HG30: 1420 | HH30: 1232045.02 | HI30: 59104.86 | HL30: =$GW66 -> 0 | HM30: =IF(ABS($GS$66)<0.00001,0,$GS66) -> 97.07591952 | HN30: =IF(ABS($GT$66)<0.00001,0,$GT66) -> 0 | HO30: =$GU66 -> -0.000922993293 | HP30: =$GV66 -> 0 | HQ30: =HL30 -> 0 | HS30: =$GW66 -> 0 | HT30: =HM30 -> 97.07591952 | HU30: 0 | HV30: -0.000922993293 | HW30: 0
HE31: W40x362 | HF31: 28900 | HG31: 1380 | HH31: 1202908.82 | HI31: 57439.94 | HL31: 0.08 | HM31: =$GS67 -> 91.79591952 | HN31: =$GT67 -> 7.554873561 | HO31: -0.000913461701 | HP31: -0.07358411432 | HQ31: =HL31 -> 0.08 | HS31: 0.08 | HT31: =HM31 -> 91.79591952 | HU31: =HN31 -> 7.554873561 | HV31: =HO31 -> -0.000913461701 | HW31: -0.07358411432
CV32: For 2 Spans: | CW32: =$CW$25 -> 2000000000000000 | CX32: =$CX$23 -> 0.00025 | CY32: 0 | DA32: For 3 Spans: | DB32: =$CW$25 -> 2000000000000000 | DC32: =$CX$23 -> 0.00025 | DD32: 0 | DE32: 0 | DG32: For 4 Spans: | DH32: =$CW$25 -> 2000000000000000 | DI32: =$CX$23 -> 0.00025 | DJ32: 0 | DK32: 0 | DL32: 0 | DN32: For 5 Spans: | DO32: =$CW$25 -> 2000000000000000 | DP32: =$CX$23 -> 0.00025 | DQ32: 0 | DR32: 0 | DS32: 0 | DT32: 0 | HE32: W40x331 | HF32: 24700 | HG32: 644 | HH32: 1028091.62 | HI32: 26805.3 | HL32: 0.16 | HM32: 86.51591952 | HN32: 14.68734712 | HO32: -0.0008855709252 | HP32: -0.1456642939 | HQ32: 0.16 | HS32: 0.16 | HT32: 86.51591952 | HU32: 14.68734712 | HV32: -0.0008855709252 | HW32: -0.1456642939
CW33: =$CX$23 -> 0.00025 | CX33: =$CX$25 -> 0.00125 | CY33: =$CY$23 -> 0.000375 | DB33: =$CX$23 -> 0.00025 | DC33: =$CX$25 -> 0.00125 | DD33: =$CY$23 -> 0.000375 | DE33: 0 | DH33: =$CX$23 -> 0.00025 | DI33: =$CX$25 -> 0.00125 | DJ33: =$CY$23 -> 0.000375 | DK33: 0 | DL33: 0 | DO33: =$CX$23 -> 0.00025 | DP33: =$CX$25 -> 0.00125 | DQ33: =$CY$23 -> 0.000375 | DR33: 0 | DS33: 0 | DT33: 0 | HE33: W40x328 | HF33: 26800 | HG33: 1660 | HH33: 1115500.22 | HI33: 69094.42 | HL33: 0.24 | HM33: 81.23591952 | HN33: 21.39742068 | HO33: -0.0008403769654 | HP33: -0.2148140441 | HQ33: 0.24 | HS33: 0.24 | HT33: 81.23591952 | HU33: 21.39742068 | HV33: -0.0008403769654 | HW33: -0.2148140441
BY34: Point Loads: | BZ34: a (m) | CB34: P (kN) | CD34: a (m) | CF34: P (kN) | CH34: a (m) | CJ34: P (kN) | CL34: a (m) | CN34: P (kN) | CP34: a (m) | CR34: P (kN) | CW34: 0 | CX34: =$CY$23 -> 0.000375 | CY34: =$CY$25 -> 0.001416666667 | DB34: 0 | DC34: =$CY$23 -> 0.000375 | DD34: =$CY$25 -> 0.001416666667 | DE34: =$CZ$23 -> 0.0003333333333 | DH34: 0 | DI34: =$CY$23 -> 0.000375 | DJ34: =$CY$25 -> 0.001416666667 | DK34: =$CZ$23 -> 0.0003333333333 | DL34: 0 | DO34: 0 | DP34: =$CY$23 -> 0.000375 | DQ34: =$CY$25 -> 0.001416666667 | DR34: =$CZ$23 -> 0.0003333333333 | DS34: 0 | DT34: 0 | HE34: W40x327 | HF34: 24500 | HG34: 640 | HH34: 1019766.99 | HI34: 26638.81 | HL34: 0.32 | HM34: 75.95591952 | HN34: 27.68509425 | HO34: -0.0007789358218 | HP34: -0.2796913502 | HQ34: 0.32 | HS34: 0.32 | HT34: 75.95591952 | HU34: 27.68509425 | HV34: -0.0007789358218 | HW34: -0.2796913502
BY35: #1: | BZ35: =I71 -> 2 | CB35: =IF($E71="Dead",L71*$S$60,L71*$S$61) -> 160 | CD35: =S71 -> 0 | CF35: =IF($O71="Dead",V71*$S$60,V71*$S$61) -> 0 | CH35: =AC71 -> 0 | CJ35: =IF($Y71="Dead",AF71*$S$60,AF71*$S$61) -> 0 | CL35: =N81 -> 3.5 | CN35: =IF($J81="Dead",Q81*$S$60,Q81*$S$61) -> 120 | CP35: =X81 -> 0 | CR35: =IF($T81="Dead",AA81*$S$60,AA81*$S$61) -> 0 | DB35: 0 | DC35: 0 | DD35: =$CZ$23 -> 0.0003333333333 | DE35: =$CZ$25 -> 0.001541666667 | DH35: 0 | DI35: 0 | DJ35: =$CZ$23 -> 0.0003333333333 | DK35: =$CZ$25 -> 0.001541666667 | DL35: =$DA$23 -> 0.0004375 | DO35: 0 | DP35: 0 | DQ35: =$CZ$23 -> 0.0003333333333 | DR35: =$CZ$25 -> 0.001541666667 | DS35: =$DA$23 -> 0.0004375 | DT35: 0 | HE35: W40x324 | HF35: 25600 | HG35: 1220 | HH35: 1065552.45 | HI35: 50780.23 | HL35: 0.4 | HM35: 70.67591952 | HN35: 33.55036781 | HO35: -0.0007023034942 | HP35: -0.3390386774 | HQ35: 0.4 | HS35: 0.4 | HT35: 70.67591952 | HU35: 33.55036781 | HV35: -0.0007023034942 | HW35: -0.3390386774
BY36: #2: | BZ36: =I72 -> 0 | CB36: =IF($E72="Dead",L72*$S$60,L72*$S$61) -> 0 | CD36: =S72 -> 0 | CF36: =IF($O72="Dead",V72*$S$60,V72*$S$61) -> 0 | CH36: =AC72 -> 0 | CJ36: =IF($Y72="Dead",AF72*$S$60,AF72*$S$61) -> 0 | CL36: =N82 -> 0 | CN36: =IF($J82="Dead",Q82*$S$60,Q82*$S$61) -> 0 | CP36: =X82 -> 0 | CR36: =IF($T82="Dead",AA82*$S$60,AA82*$S$61) -> 0 | CV36: For 2 Spans: | CW36: =$CW$30 -> -0.126 | DH36: 0 | DI36: 0 | DJ36: 0 | DK36: =$DA$23 -> 0.0004375 | DL36: =$DA$25 -> 0.0015 | DO36: 0 | DP36: 0 | DQ36: 0 | DR36: =$DA$23 -> 0.0004375 | DS36: =$DA$25 -> 0.0015 | DT36: =$DB$23 -> 0.0003125 | HE36: W40x321 | HF36: 25100 | HG36: 1190 | HH36: 1044740.88 | HI36: 49531.54 | HL36: 0.48 | HM36: 65.39591952 | HN36: 38.99324137 | HO36: -0.0006115359827 | HP36: -0.391682971 | HQ36: 0.48 | HS36: 0.48 | HT36: 65.39591952 | HU36: 38.99324137 | HV36: -0.0006115359827 | HW36: -0.391682971
BY37: #3: | BZ37: 0 | CB37: 0 | CD37: 0 | CF37: 0 | CH37: 0 | CJ37: 0 | CL37: 0 | CN37: 0 | CP37: 0 | CR37: 0 | CW37: =($CG$60*$CX$23)+$CX$30+(-$CR$60*CY$23) -> -0.6655625 | DA37: For 3 Spans: | DB37: =$CW$30 -> -0.126 | DO37: 0 | DP37: 0 | DQ37: 0 | DR37: 0 | DS37: =$DB$23 -> 0.0003125 | DT37: =$DB$25 -> 0.00062502 | HE37: W40x298 | HF37: 24200 | HG37: 1490 | HH37: 1007280.05 | HI37: 62018.48 | HL37: 0.56 | HM37: 60.11591952 | HN37: 44.01371493 | HO37: -0.0005076892874 | HP37: -0.4365356564 | HQ37: 0.56 | HS37: 0.56 | HT37: 60.11591952 | HU37: 44.01371493 | HV37: -0.0005076892874 | HW37: -0.4365356564
BY38: #4: | BZ38: 0 | CB38: 0 | CD38: 0 | CF38: =IF($O74="Dead",V74*$S$60,V74*$S$61) -> 0 | CH38: 0 | CJ38: 0 | CL38: 0 | CN38: 0 | CP38: 0 | CR38: =IF($T84="Dead",AA84*$S$60,AA84*$S$61) -> 0 | CW38: =$CY$30 -> -0.6115625 | DB38: =($CG$60*$CX$23)+$CX$30 -> -0.6655625 | DG38: For 4 Spans: | DH38: =$CW$30 -> -0.126 | HE38: W40x297 | HF38: 23200 | HG38: 1090 | HH38: 965656.91 | HI38: 45369.23 | HL38: 0.64 | HM38: 54.83591952 | HN38: 48.61178849 | HO38: -0.0003918194081 | HP38: -0.4725926387 | HQ38: 0.64 | HS38: 0.64 | HT38: 54.83591952 | HU38: 48.61178849 | HV38: -0.0003918194081 | HW38: -0.4725926387
BY39: #5: | BZ39: =I75 -> 0 | CB39: =IF($E75="Dead",L75*$S$60,L75*$S$61) -> 0 | CD39: 0 | CF39: 0 | CH39: 0 | CJ39: 0 | CL39: 0 | CN39: 0 | CP39: 0 | CR39: 0 | DB39: =$CY$30+(-$CR$60*CZ$23) -> -0.6115625 | DH39: =($CG$60*$CX$23)+$CX$30 -> -0.6655625 | DN39: For 5 Spans: | DO39: =$CW$30 -> -0.126 | HE39: W40x278 | HF39: 20500 | HG39: 521 | HH39: 853274.42 | HI39: 21685.66 | HL39: 0.72 | HM39: 49.55591952 | HN39: 52.78746205 | HO39: -0.0002649823449 | HP39: -0.4989343034 | HQ39: 0.72 | HS39: 0.72 | HT39: 49.55591952 | HU39: 52.78746205 | HV39: -0.0002649823449 | HW39: -0.4989343034
BY40: #6: | BZ40: 0 | CB40: 0 | CD40: 0 | CF40: 0 | CH40: 0 | CJ40: 0 | CL40: 0 | CN40: =IF($J86="Dead",Q86*$S$60,Q86*$S$61) -> 0 | CP40: 0 | CR40: 0 | CW40: 3x3 Matrix Inverse: | DB40: =$CZ$30 -> -0.70815625 | DH40: =$CY$30 -> -0.6115625 | DO40: =($CG$60*$CX$23)+$CX$30 -> -0.6655625 | HE40: W40x277 | HF40: 21900 | HG40: 1040 | HH40: 911546.82 | HI40: 43288.07 | HL40: 0.8 | HM40: 44.27591952 | HN40: 56.54073561 | HO40: -0.0001282340978 | HP40: -0.5147255157 | HQ40: 0.8 | HS40: 0.8 | HT40: 44.27591952 | HU40: 56.54073561 | HV40: -0.0001282340978 | HW40: -0.5147255157
CV41: 1: | CW41: =INDEX(MINVERSE($CW$32:$CY$34),1,1) -> 5e-16 | CX41: =INDEX(MINVERSE($CW$32:$CY$34),1,2) -> -1.086261981e-16 | CY41: =INDEX(MINVERSE($CW$32:$CY$34),1,3) -> 2.875399361e-17 | DH41: =$CZ$30+(-$CR$60*DA$23) -> -0.70815625 | DO41: =$CY$30 -> -0.6115625 | HE41: W40x268 | HF41: 21500 | HG41: 1320 | HH41: 894897.57 | HI41: 54942.55 | HL41: 0.88 | HM41: 38.99591952 | HN41: 59.87160917 | HO41: 1.736933314e-05 | HP41: -0.5192156208 | HQ41: 0.88 | HS41: 0.88 | HT41: 38.99591952 | HU41: 59.87160917 | HV41: 1.736933314e-05 | HW41: -0.5192156208
CV42: 2: | CW42: =INDEX(MINVERSE($CW$32:$CY$34),2,1) -> -1.086261981e-16 | CX42: =INDEX(MINVERSE($CW$32:$CY$34),2,2) -> 869.0095847 | CY42: =INDEX(MINVERSE($CW$32:$CY$34),2,3) -> -230.0319489 | DB42: 4x4 Matrix Inverse: | DH42: =$DA$30 -> -0.7553125 | DO42: =$CZ$30 -> -0.70815625 | HE42: W40x264 | HF42: 19400 | HG42: 493 | HH42: 807488.97 | HI42: 20520.21 | HL42: 0.96 | HM42: 33.71591952 | HN42: 62.78008274 | HO42: 0.000170771948 | HP42: -0.5117384442 | HQ42: 0.96 | HS42: 0.96 | HT42: 33.71591952 | HU42: 62.78008274 | HV42: 0.000170771948 | HW42: -0.5117384442
CV43: 3: | CW43: =INDEX(MINVERSE($CW$32:$CY$34),3,1) -> 2.875399361e-17 | CX43: =INDEX(MINVERSE($CW$32:$CY$34),3,2) -> -230.0319489 | CY43: =INDEX(MINVERSE($CW$32:$CY$34),3,3) -> 766.7731629 | DA43: 1: | DB43: =INDEX(MINVERSE($DB$32:$DE$35),1,1) -> 5e-16 | DC43: =INDEX(MINVERSE($DB$32:$DE$35),1,2) -> -1.091307924e-16 | DD43: =INDEX(MINVERSE($DB$32:$DE$35),1,3) -> 3.043597477e-17 | DE43: =INDEX(MINVERSE($DB$32:$DE$35),1,4) -> -6.580751302e-18 | DO43: =$DA$30+(-$CR$60*DB$23) -> -0.7553125 | HE43: W40x249 | HF43: 19600 | HG43: 926 | HH43: 815813.59 | HI43: 38543.03 | HL43: 1.04 | HM43: 28.43591952 | HN43: 65.2661563 | HO43: 0.0003309177468 | HP43: -0.4917122909 | HQ43: 1.04 | HS43: 1.04 | HT43: 28.43591952 | HU43: 65.2661563 | HV43: 0.0003309177468 | HW43: -0.4917122909
DA44: 2: | DB44: =INDEX(MINVERSE($DB$32:$DE$35),2,1) -> -1.091307924e-16 | DC44: =INDEX(MINVERSE($DB$32:$DE$35),2,2) -> 873.0463395 | DD44: =INDEX(MINVERSE($DB$32:$DE$35),2,3) -> -243.4877982 | DE44: =INDEX(MINVERSE($DB$32:$DE$35),2,4) -> 52.64601042 | DH44: 5x5 Matrix Inverse: | DO44: =$DB$30 -> -0.12265625 | HE44: W40x244 | HF44: 19200 | HG44: 1170 | HH44: 799164.34 | HI44: 48699.08 | HL44: 1.12 | HM44: 23.15591952 | HN44: 67.32982986 | HO44: 0.0004967507295 | HP44: -0.4586399464 | HQ44: 1.12 | HS44: 1.12 | HT44: 23.15591952 | HU44: 67.32982986 | HV44: 0.0004967507295 | HW44: -0.4586399464
CW45: Results of 3x3 Solution (Support Moments): | DA45: 3: | DB45: =INDEX(MINVERSE($DB$32:$DE$35),3,1) -> 3.043597477e-17 | DC45: =INDEX(MINVERSE($DB$32:$DE$35),3,2) -> -243.4877982 | DD45: =INDEX(MINVERSE($DB$32:$DE$35),3,3) -> 811.625994 | DE45: =INDEX(MINVERSE($DB$32:$DE$35),3,4) -> -175.4867014 | DG45: 1: | DH45: =INDEX(MINVERSE($DH$32:$DL$36),1,1) -> 5e-16 | DI45: =INDEX(MINVERSE($DH$32:$DL$36),1,2) -> -1.091792461e-16 | DJ45: =INDEX(MINVERSE($DH$32:$DL$36),1,3) -> 3.059748684e-17 | DK45: =INDEX(MINVERSE($DH$32:$DL$36),1,4) -> -7.212667247e-18 | DL45: =INDEX(MINVERSE($DH$32:$DL$36),1,5) -> 2.103694614e-18 | HE45: W40x235 | HF45: 17400 | HG45: 444 | HH45: 724242.68 | HI45: 18480.68 | HL45: 1.2 | HM45: 17.87591952 | HN45: 68.97110342 | HO45: 0.0006672148961 | HP45: -0.412108676 | HQ45: 1.2 | HS45: 1.2 | HT45: 17.87591952 | HU45: 68.97110342 | HV45: 0.0006672148961 | HW45: -0.412108676
CV46: M1 = | CW46: =INDEX(MMULT($CW$41:$CY$43,$CW$36:$CW$38),1,1) -> -8.287340256e-18 | CX46: kN-M | DA46: 4: | DB46: =INDEX(MINVERSE($DB$32:$DE$35),4,1) -> -6.580751302e-18 | DC46: =INDEX(MINVERSE($DB$32:$DE$35),4,2) -> 52.64601042 | DD46: =INDEX(MINVERSE($DB$32:$DE$35),4,3) -> -175.4867014 | DE46: =INDEX(MINVERSE($DB$32:$DE$35),4,4) -> 686.5917192 | DG46: 2: | DH46: =INDEX(MINVERSE($DH$32:$DL$36),2,1) -> -1.091792461e-16 | DI46: =INDEX(MINVERSE($DH$32:$DL$36),2,2) -> 873.4339684 | DJ46: =INDEX(MINVERSE($DH$32:$DL$36),2,3) -> -244.7798947 | DK46: =INDEX(MINVERSE($DH$32:$DL$36),2,4) -> 57.70133797 | DL46: =INDEX(MINVERSE($DH$32:$DL$36),2,5) -> -16.82955691 | DO46: 6x6 Matrix Inverse: | HE46: W40x221 | HF46: 16600 | HG46: 988 | HH46: 690944.17 | HI46: 41123.66 | HL46: 1.28 | HM46: 12.59591952 | HN46: 70.18997698 | HO46: 0.0008412542466 | HP46: -0.3517902248 | HQ46: 1.28 | HS46: 1.28 | HT46: 12.59591952 | HU46: 70.18997698 | HV46: 0.0008412542466 | HW46: -0.3517902248
CV47: M2 = | CW47: =INDEX(MMULT($CW$41:$CY$43,$CW$36:$CW$38),2,1) -> -437.701278 | CX47: kN-M | DG47: 3: | DH47: =INDEX(MINVERSE($DH$32:$DL$36),3,1) -> 3.059748684e-17 | DI47: =INDEX(MINVERSE($DH$32:$DL$36),3,2) -> -244.7798947 | DJ47: =INDEX(MINVERSE($DH$32:$DL$36),3,3) -> 815.9329823 | DK47: =INDEX(MINVERSE($DH$32:$DL$36),3,4) -> -192.3377932 | DL47: =INDEX(MINVERSE($DH$32:$DL$36),3,5) -> 56.09852303 | DN47: 1: | DO47: =INDEX(MINVERSE($DO$32:$DT$37),1,1) -> 5e-16 | DP47: =INDEX(MINVERSE($DO$32:$DT$37),1,2) -> -1.091854907e-16 | DQ47: =INDEX(MINVERSE($DO$32:$DT$37),1,3) -> 3.061830238e-17 | DR47: =INDEX(MINVERSE($DO$32:$DT$37),1,4) -> -7.294108053e-18 | DS47: =INDEX(MINVERSE($DO$32:$DT$37),1,5) -> 2.374817041e-18 | DT47: =INDEX(MINVERSE($DO$32:$DT$37),1,6) -> -1.187370525e-18 | HE47: W40x215 | HF47: 16700 | HG47: 796 | HH47: 695106.48 | HI47: 33132.02 | HL47: 1.36 | HM47: 7.315919516 | HN47: 70.98645054 | HO47: 0.001017812781 | HP47: -0.2774408183 | HQ47: 1.36 | HS47: 1.36 | HT47: 7.315919516 | HU47: 70.98645054 | HV47: 0.001017812781 | HW47: -0.2774408183
CV48: M3 = | CW48: =INDEX(MMULT($CW$41:$CY$43,$CW$36:$CW$38),3,1) -> -315.8290735 | CX48: kN-M | DB48: Results of 4x4 Solution (Support Moments): | DG48: 4: | DH48: =INDEX(MINVERSE($DH$32:$DL$36),4,1) -> -7.212667247e-18 | DI48: =INDEX(MINVERSE($DH$32:$DL$36),4,2) -> 57.70133797 | DJ48: =INDEX(MINVERSE($DH$32:$DL$36),4,3) -> -192.3377932 | DK48: =INDEX(MINVERSE($DH$32:$DL$36),4,4) -> 752.5216161 | DL48: =INDEX(MINVERSE($DH$32:$DL$36),4,5) -> -219.4854714 | DN48: 2: | DO48: =INDEX(MINVERSE($DO$32:$DT$37),2,1) -> -1.091854907e-16 | DP48: =INDEX(MINVERSE($DO$32:$DT$37),2,2) -> 873.4839257 | DQ48: =INDEX(MINVERSE($DO$32:$DT$37),2,3) -> -244.946419 | DR48: =INDEX(MINVERSE($DO$32:$DT$37),2,4) -> 58.35286442 | DS48: =INDEX(MINVERSE($DO$32:$DT$37),2,5) -> -18.99853633 | DT48: =INDEX(MINVERSE($DO$32:$DT$37),2,6) -> 9.498964199 | HE48: W40x211 | HF48: 15500 | HG48: 390 | HH48: 645158.71 | HI48: 16233.03 | HL48: 1.44 | HM48: 2.035919516 | HN48: 71.3605241 | HO48: 0.001195834499 | HP48: -0.1889011616 | HQ48: 1.44 | HS48: 1.44 | HT48: 2.035919516 | HU48: 71.3605241 | HV48: 0.001195834499 | HW48: -0.1889011616
DA49: M1 = | DB49: =INDEX(MMULT($DB$43:$DE$46,$DB$37:$DB$40),1,1) -> -4.319937621e-18 | DC49: kN-M | DG49: 5: | DH49: =INDEX(MINVERSE($DH$32:$DL$36),5,1) -> 2.103694614e-18 | DI49: =INDEX(MINVERSE($DH$32:$DL$36),5,2) -> -16.82955691 | DJ49: =INDEX(MINVERSE($DH$32:$DL$36),5,3) -> 56.09852303 | DK49: =INDEX(MINVERSE($DH$32:$DL$36),5,4) -> -219.4854714 | DL49: =INDEX(MINVERSE($DH$32:$DL$36),5,5) -> 730.6832625 | DN49: 3: | DO49: =INDEX(MINVERSE($DO$32:$DT$37),3,1) -> 3.061830238e-17 | DP49: =INDEX(MINVERSE($DO$32:$DT$37),3,2) -> -244.946419 | DQ49: =INDEX(MINVERSE($DO$32:$DT$37),3,3) -> 816.4880634 | DR49: =INDEX(MINVERSE($DO$32:$DT$37),3,4) -> -194.5095481 | DS49: =INDEX(MINVERSE($DO$32:$DT$37),3,5) -> 63.32845444 | DT49: =INDEX(MINVERSE($DO$32:$DT$37),3,6) -> -31.663214 | HE49: W40x199 | HF49: 14900 | HG49: 695 | HH49: 620184.82 | HI49: 28928.08 | HL49: 1.52 | HM49: -3.244080484 | HN49: 71.31219766 | HO49: 0.001374263402 | HP49: -0.08609644013 | HQ49: 1.52 | HS49: 1.52 | HT49: -3.244080484 | HU49: 71.31219766 | HV49: 0.001374263402 | HW49: -0.08609644013
DA50: M2 = | DB50: =INDEX(MMULT($DB$43:$DE$46,$DB$37:$DB$40),2,1) -> -469.4404991 | DC50: kN-M | DN50: 4: | DO50: =INDEX(MINVERSE($DO$32:$DT$37),4,1) -> -7.294108053e-18 | DP50: =INDEX(MINVERSE($DO$32:$DT$37),4,2) -> 58.35286442 | DQ50: =INDEX(MINVERSE($DO$32:$DT$37),4,3) -> -194.5095481 | DR50: =INDEX(MINVERSE($DO$32:$DT$37),4,4) -> 761.0186069 | DS50: =INDEX(MINVERSE($DO$32:$DT$37),4,5) -> -247.772578 | DT50: =INDEX(MINVERSE($DO$32:$DT$37),4,6) -> 123.8823248 | HE50: W40x192 | HF50: 13500 | HG50: 770 | HH50: 561912.42 | HI50: 32049.82 | HL50: 1.6 | HM50: -8.524080484 | HN50: 70.84147123 | HO50: 0.001552043488 | HP50: 0.03096368087 | HQ50: 1.6 | HS50: 1.6 | HT50: -8.524080484 | HU50: 70.84147123 | HV50: 0.001552043488 | HW50: 0.03096368087
BY51: Moments: | BZ51: c (m) | CB51: M (kN-m) | CD51: c (m) | CF51: M (kN-m) | CH51: c (m) | CJ51: M (kN-m) | CL51: c (m) | CN51: M (kN-m) | CP51: c (m) | CR51: M (kN-m) | DA51: M3 = | DB51: =INDEX(MMULT($DB$43:$DE$46,$DB$37:$DB$40),3,1) -> -210.0316699 | DC51: kN-M | DH51: Results of 5x5 Solution (Support Moments): | DN51: 5: | DO51: =INDEX(MINVERSE($DO$32:$DT$37),5,1) -> 2.374817041e-18 | DP51: =INDEX(MINVERSE($DO$32:$DT$37),5,2) -> -18.99853633 | DQ51: =INDEX(MINVERSE($DO$32:$DT$37),5,3) -> 63.32845444 | DR51: =INDEX(MINVERSE($DO$32:$DT$37),5,4) -> -247.772578 | DS51: =INDEX(MINVERSE($DO$32:$DT$37),5,5) -> 824.8531191 | DT51: =INDEX(MINVERSE($DO$32:$DT$37),5,6) -> -412.4133623 | HE51: W40x183 | HF51: 13300 | HG51: 336 | HH51: 553587.8 | HI51: 13985.38 | HL51: 1.68 | HM51: -13.80408048 | HN51: 69.94834479 | HO51: 0.001728118758 | HP51: 0.1621850561 | HQ51: 1.68 | HS51: 1.68 | HT51: -13.80408048 | HU51: 69.94834479 | HV51: 0.001728118758 | HW51: 0.1621850561
BY52: #1: | BZ52: =I91 -> 0 | CB52: =IF($E91="Dead",L91*$S$60,L91*$S$61) -> 0 | CD52: =S91 -> 0 | CF52: =IF($O91="Dead",V91*$S$60,V91*$S$61) -> 0 | CH52: =AC91 -> 0 | CJ52: =IF($Y91="Dead",AF91*$S$60,AF91*$S$61) -> 0 | CL52: =N101 -> 0 | CN52: =IF($J101="Dead",Q101*$S$60,Q101*$S$61) -> 0 | CP52: =X101 -> 2.5 | CR52: =IF($T101="Dead",AA101*$S$60,AA101*$S$61) -> 80 | DA52: M4 = | DB52: =INDEX(MMULT($DB$43:$DE$46,$DB$37:$DB$40),4,1) -> -413.9323417 | DC52: kN-M | DG52: M1 = | DH52: =INDEX(MMULT($DH$45:$DL$49,$DH$38:$DH$42),1,1) -> -5.527915042e-18 | DI52: kN-M | DN52: 6: | DO52: =INDEX(MINVERSE($DO$32:$DT$37),6,1) -> -1.187370525e-18 | DP52: =INDEX(MINVERSE($DO$32:$DT$37),6,2) -> 9.498964199 | DQ52: =INDEX(MINVERSE($DO$32:$DT$37),6,3) -> -31.663214 | DR52: =INDEX(MINVERSE($DO$32:$DT$37),6,4) -> 123.8823248 | DS52: =INDEX(MINVERSE($DO$32:$DT$37),6,5) -> -412.4133623 | DT52: =INDEX(MINVERSE($DO$32:$DT$37),6,6) -> 1806.148884 | HE52: W40x174 | HF52: 12200 | HG52: 541 | HH52: 507802.34 | HI52: 22518.12 | HL52: 1.76 | HM52: -19.08408048 | HN52: 68.63281835 | HO52: 0.001901433212 | HP52: 0.3073890603 | HQ52: 1.76 | HS52: 1.76 | HT52: -19.08408048 | HU52: 68.63281835 | HV52: 0.001901433212 | HW52: 0.3073890603
B53: Your Logo / Company Details Here | G53: Project: | M53: =IF(M2="","",M2) ->  | AF53: By: | BY53: #2: | BZ53: =I92 -> 0 | CB53: =IF($E92="Dead",L92*$S$60,L92*$S$61) -> 0 | CD53: =S92 -> 0 | CF53: =IF($O92="Dead",V92*$S$60,V92*$S$61) -> 0 | CH53: =AC92 -> 0 | CJ53: =IF($Y92="Dead",AF92*$S$60,AF92*$S$61) -> 0 | CL53: =N102 -> 0 | CN53: =IF($J102="Dead",Q102*$S$60,Q102*$S$61) -> 0 | CP53: =X102 -> 0 | CR53: =IF($T102="Dead",AA102*$S$60,AA102*$S$61) -> 0 | DG53: M2 = | DH53: =INDEX(MMULT($DH$45:$DL$49,$DH$38:$DH$42),2,1) -> -459.7766797 | DI53: kN-M | HE53: W40x167 | HF53: 11600 | HG53: 283 | HH53: 482828.45 | HI53: 11779.35 | HL53: 1.84 | HM53: -24.36408048 | HN53: 66.89489191 | HO53: 0.002070930849 | HP53: 0.4663125882 | HQ53: 1.84 | HS53: 1.84 | HT53: -24.36408048 | HU53: 66.89489191 | HV53: 0.002070930849 | HW53: 0.4663125882
G54: Calculation: | M54: =IF(M3="","",M3) -> Continuous Beam Analysis | BY54: #3: | BZ54: 0 | CB54: 0 | CD54: 0 | CF54: 0 | CH54: 0 | CJ54: 0 | CL54: 0 | CN54: 0 | CP54: 0 | CR54: 0 | DG54: M3 = | DH54: =INDEX(MMULT($DH$45:$DL$49,$DH$38:$DH$42),3,1) -> -242.2444011 | DI54: kN-M | DO54: Results of 6x6 Solution (Support Moments): | DW54: Support Moments: | DZ54: Support Reactions: | HE54: W40x149 | HF54: 9800 | HG54: 229 | HH54: 407906.8 | HI54: 9531.7 | HL54: 1.92 | HM54: -29.64408048 | HN54: 64.73456547 | HO54: 0.002235555671 | HP54: 0.6386080545 | HQ54: 1.92 | HS54: 1.92 | HT54: -29.64408048 | HU54: 64.73456547 | HV54: 0.002235555671 | HW54: 0.6386080545
AF55: Approved: | BY55: #4: | BZ55: 0 | CB55: 0 | CD55: 0 | CF55: =IF($O94="Dead",V94*$S$60,V94*$S$61) -> 0 | CH55: 0 | CJ55: 0 | CL55: 0 | CN55: 0 | CP55: =X104 -> 0 | CR55: =IF($T104="Dead",AA104*$S$60,AA104*$S$61) -> 0 | DG55: M4 = | DH55: =INDEX(MMULT($DH$45:$DL$49,$DH$38:$DH$42),4,1) -> -287.9000307 | DI55: kN-M | DN55: M1 = | DO55: =INDEX(MMULT($DO$47:$DT$52,$DO$39:$DO$44),1,1) -> -5.537959761e-18 | DP55: kN-M | DV55: M1 = | DW55: =IF($BZ$10=2,$CW$46,IF($BZ$10=3,$DB$49,IF($BZ$10=4,$DH$52,IF($BZ$10=5,$DO$55))))+(-$CG$60) -> -5.537959761e-18 | DX55: kN-M | DY55: R1 = | DZ55: =($GS$66)+$GY$82+($CB$60) -> 97.07591952 | EA55: kN | HE55: W36x848 | HF55: 67400 | HG55: 4550 | HH55: 2805399.81 | HI55: 189385.3 | HL55: 2 | HM55: -34.92408048 | HN55: 62.15183903 | HO55: 0.002394251677 | HP55: 0.8238433938 | HQ55: 2 | HS55: 2 | HT55: -34.92408048 | HU55: 62.15183903 | HV55: 0.002394251677 | HW55: 0.8238433938
G56: Sheet Number: | M56: 2 | T56: Date: | BY56: 5 | BZ56: 0 | CB56: =IF($E95="Dead",L95*$S$60,L95*$S$61) -> 0 | CD56: 0 | CF56: 0 | CH56: 0 | CJ56: 0 | CL56: 0 | CN56: 0 | CP56: 0 | CR56: 0 | DG56: M5 = | DH56: =INDEX(MMULT($DH$45:$DL$49,$DH$38:$DH$42),5,1) -> -419.5708244 | DI56: kN-M | DN56: M2 = | DO56: =INDEX(MMULT($DO$47:$DT$52,$DO$39:$DO$44),2,1) -> -459.6963219 | DP56: kN-M | DV56: M2 = | DW56: =IF($BZ$10=2,$CW$47,IF($BZ$10=3,$DB$50,IF($BZ$10=4,$DH$53,IF($BZ$10=5,$DO$56)))) -> -459.6963219 | DX56: kN-M | DY56: R2 = | DZ56: =(-$GS$116+$GS$237)+$GZ$82+$GY$253 -> 803.1214241 | EA56: kN | HE56: W36x798 | HF56: 62600 | HG56: 4200 | HH56: 2605608.72 | HI56: 174817.2 | HL56: 2.08 | HM56: -200.2040805 | HN56: 46.34671259 | HO56: 0.002529962866 | HP56: 1.021075394 | HQ56: 2.08 | HS56: 2.08 | HT56: -200.2040805 | HU56: 46.34671259 | HV56: 0.002529962866 | HW56: 1.021075394
H57: Loadings | BY57: 6 | BZ57: 0 | CB57: 0 | CD57: 0 | CF57: 0 | CH57: 0 | CJ57: =IF($Y96="Dead",AF96*$S$60,AF96*$S$61) -> 0 | CL57: 0 | CN57: 0 | CP57: 0 | CR57: =IF($T106="Dead",AA106*$S$60,AA106*$S$61) -> 0 | DN57: M3 = | DO57: =INDEX(MMULT($DO$47:$DT$52,$DO$39:$DO$44),3,1) -> -242.5122603 | DP57: kN-M | DV57: M3 = | DW57: =IF($BZ$10=2,$CW$48+($CR$60),IF($BZ$10=3,$DB$51,IF($BZ$10=4,$DH$54,IF($BZ$10=5,$DO$57)))) -> -242.5122603 | DX57: kN-M | DY57: R3 = | DZ57: =(IF($BZ$10=2,(-$GS$287)+$GZ$253+($CM$60),IF($BZ$10>2,(-$GS$287+$GS$408)+$GZ$253+$GY$424))) -> 484.7177135 | EA57: kN | HE57: W36x720 | HF57: 55300 | HG57: 3680 | HH57: 2301759.78 | HI57: 153173.16 | HL57: 2.16 | HM57: -205.4840805 | HN57: 30.11918615 | HO57: 0.00262563324 | HP57: 1.227569697 | HQ57: 2.16 | HS57: 2.16 | HT57: -205.4840805 | HU57: 30.11918615 | HV57: 0.00262563324 | HW57: 1.227569697
DN58: M4 = | DO58: =INDEX(MMULT($DO$47:$DT$52,$DO$39:$DO$44),4,1) -> -286.8520317 | DP58: kN-M | DV58: M4 = | DW58: =IF($BZ$10=2,"---",IF($BZ$10=3,$DB$52+($CR$60),IF($BZ$10=4,$DH$55,IF($BZ$10=5,$DO$58)))) -> -286.8520317 | DX58: kN-M | DY58: R4 = | DZ58: =(IF($BZ$10<3,"---",IF($BZ$10=3,(-$GS$458)+$GZ$424+($CM$60),IF($BZ$10>=4,(-$GS$458+$GS$579)+$GZ$424+$GY$595)))) -> 498.626706 | EA58: kN | HE58: W36x650 | HF58: 48900 | HG58: 3230 | HH58: 2035371.67 | HI58: 134442.75 | HL58: 2.24 | HM58: -210.7640805 | HN58: 13.46925972 | HO58: 0.002680206797 | HP58: 1.440080798 | HQ58: 2.24 | HS58: 2.24 | HT58: -210.7640805 | HU58: 13.46925972 | HV58: 0.002680206797 | HW58: 1.440080798
H59: Factor of Safety | DN59: M5 = | DO59: =INDEX(MMULT($DO$47:$DT$52,$DO$39:$DO$44),5,1) -> -423.0596899 | DP59: kN-M | DV59: M5 = | DW59: =IF($BZ$10=2,"---",IF($BZ$10=3,"---",IF($BZ$10=4,$DH$56+($CR$60),IF($BZ$10=5,$DO$59)))) -> -423.0596899 | DX59: kN-M | DY59: R5 = | DZ59: =(IF($BZ$10<4,"---",IF($BZ$10=4,(-$GS$629)+$GZ$595+($CM$60),IF($BZ$10=5,(-$GS$629+$GS$750)+$GZ$595+$GY$766)))) -> 663.1260461 | EA59: kN | HE59: W36x588 | HF59: 43500 | HG59: 2850 | HH59: 1810606.7 | HI59: 118625.96 | HL59: 2.32 | HM59: -216.0440805 | HN59: -3.603066723 | HO59: 0.002692627538 | HP59: 1.65527871 | HQ59: 2.32 | HS59: 2.32 | HT59: -216.0440805 | HU59: -3.603066723 | HV59: 0.002692627538 | HW59: 1.65527871
H60: Factor of Safety (Dead) | S60: 1.4 | CA60: Left End Cantilever Shear = | CB60: 0 | CC60: kN | CF60: Left End Cantilever Moment = | CG60: 0 | CH60: kN-m | CL60: Right End Cantilever Shear = | CM60: 0 | CN60: kN | CQ60: Right End Cantilever Moment = | CR60: 0 | CS60: kN-m | DN60: M6 = | DO60: =INDEX(MMULT($DO$47:$DT$52,$DO$39:$DO$44),6,1) -> 15.27935602 | DP60: kN-M | DV60: M6 = | DW60: =IF($BZ$10=2,"---",IF($BZ$10=3,"---",IF($BZ$10=4,"---",IF($BZ$10=5,$DO$60+($CR$60))))) -> 15.27935602 | DX60: kN-M | DY60: R6 = | DZ60: =(IF($BZ$10=5,(-$GS$800)+$GZ$766+($CM$60),"---")) -> 61.33219082 | EA60: kN | HE60: W36x527 | HF60: 38300 | HG60: 2490 | HH60: 1594166.36 | HI60: 103641.62 | HL60: 2.4 | HM60: -221.3240805 | HN60: -21.09779316 | HO60: 0.002661839463 | HP60: 1.869748969 | HQ60: 2.4 | HS60: 2.4 | HT60: -221.3240805 | HU60: -21.09779316 | HV60: 0.002661839463 | HW60: 1.869748969
H61: Factor of Safety (Imposed) | S61: 1.6 | BY61: Results: | HE61: W36x485 | HF61: 34700 | HG61: 2250 | HH61: 1444323.05 | HI61: 93652.07 | HL61: 2.48 | HM61: -226.6040805 | HN61: -39.0149196 | HO61: 0.002586786572 | HP61: 2.079992629 | HQ61: 2.48 | HS61: 2.48 | HT61: -226.6040805 | HU61: -39.0149196 | HV61: 0.002586786572 | HW61: 2.079992629
BY62: End Shears (kN): | BZ62: =$GS$66 -> 97.07591952 | CC62: =$GS$116 -> -326.9240805 | CD62: =$GS$237 -> 476.1973436 | CG62: =$GS$287 -> -363.8026564 | CH62: =IF($BZ$10<3,"---",$GS$408) -> 120.9150571 | CK62: =IF($BZ$10<3,"---",$GS$458) -> -143.0849429 | CL62: =IF($BZ$10<4,"---",$GS$579) -> 355.5417631 | CO62: =IF($BZ$10<4,"---",$GS$629) -> -394.4582369 | CP62: =IF($BZ$10<5,"---",$GS$750) -> 268.6678092 | CS62: =IF($BZ$10<5,"---",$GS$800) -> -61.33219082 | CW62: Calculations for Span #1: | GY62: Span #1: | HB62: Span #1: | HE62: W36x439 | HF62: 31000 | HG62: 1990 | HH62: 1290317.42 | HI62: 82830.05 | HL62: 2.56 | HM62: -231.8840805 | HN62: -57.35444604 | HO62: =$GU98 -> 0.002466412865 | HP62: =$GV98 -> 2.282426265 | HQ62: 2.56 | HS62: 2.56 | HT62: -231.8840805 | HU62: -57.35444604 | HV62: 0.002466412865 | HW62: 2.282426265
H63: UDL | P63: Span 1 | S63: Span 2 | V63: Span 3 | Y63: Span 4 | AB63: Span 5 | CW63: Span #1: For Full Uniform Load, w | DE63: Span #1: For Distributed Load #1 | DM63: Span #1: For Distributed Load #2 | DU63: Span #1: For Distributed Load #3 | EC63: Span #1: For Distributed Load #4 | EK63: Span #1: For Distributed Load #5 | ES63: Span #1: For Distributed Load #6 | FQ63: Span #1: For All 15 Point Loads | FY63: Span #1: For All 4 Applied Moments Plus Support Moments M1 and M2 | GG63: Span #1: Summations of Loading Functions for All Loads | GO63: Initial Beam Parameters at Left End | GS63: Span #1: Shear, Moment, Slope, & Deflection @ x | GW63: Dist. from | GY63: Corrections for P Loads at Supports: | HB63: Corrections for Applied M at Supports: | HE63: W36x393 | HF63: 27500 | HG63: 1750 | HH63: 1144636.42 | HI63: 72840.5 | HL63: 2.64 | HM63: =$GS99 -> -237.1640805 | HN63: =$GT99 -> -76.11637248 | HO63: 0.002299662342 | HP63: 2.473381972 | HQ63: 2.64 | HS63: 2.64 | HT63: -237.1640805 | HU63: -76.11637248 | HV63: 0.002299662342 | HW63: 2.473381972
H64: Self Weight (kN/m) | P64: 10 | S64: 10 | V64: 10 | Y64: 10 | AB64: 10 | CW64: Loading Functions Evaluated at x = L | DA64: Loading Functions Evaluated at x | DE64: Loading Functions Evaluated at x = L | DI64: Loading Functions Evaluated at x | DM64: Loading Functions Evaluated at x = L | DQ64: Loading Functions Evaluated at x | DU64: Loading Functions Evaluated at x = L | DY64: Loading Functions Evaluated at x | EC64: Loading Functions Evaluated at x = L | EG64: Loading Functions Evaluated at x | EK64: Loading Functions Evaluated at x = L | EO64: Loading Functions Evaluated at x | ES64: Loading Functions Evaluated at x = L | EW64: Loading Functions Evaluated at x | FQ64: Loading Functions Evaluated at x = L | FU64: Loading Functions Evaluated at x | FY64: Loading Functions Evaluated at x = L | GC64: Loading Functions Evaluated at x | GG64: For Loading Functions Evaluated at x = L | GK64: For Loading Functions Evaluated at x | GO64: with Loading Functions Evaluated at x = L | GS64: Vx | GT64: Mx | GU64: qx | GV64: Dx | GW64: Left End | GY64: S Reaction for | GZ64: S Reaction for | HB64: S Moment for | HC64: S Moment for | HE64: W36x359 | HF64: 24800 | HG64: 1570 | HH64: 1032253.94 | HI64: 65348.33 | HL64: 2.72 | HM64: -242.4440805 | HN64: -95.30069892 | HO64: 0.002085479003 | HP64: 2.649107365 | HQ64: 2.72 | HS64: 2.72 | HT64: -242.4440805 | HU64: -95.30069892 | HV64: 0.002085479003 | HW64: 2.649107365
H65: Dead Loads (kN/m) | P65: 20 | S65: 20 | V65: 20 | Y65: 20 | AB65: 20 | CA65: ="D1, "&$L$115&"kN/m" -> D1, kN/m | CB65: 0 | CC65: 0.4 | CD65: =$J$115/VLOOKUP($P$9,$BP$2:$BQ$5,2,FALSE)*10 -> 0 | CE65: =IF(L115="",100,0.4) -> 100 | CJ65: =IF($P$64=0,"","SW, "&$P$64&"kN/m") -> SW, 10kN/m | CK65: 0 | CL65: 0.4 | CM65: 0 | CN65: 0.4 | CV65: Points: | CW65: FvL | CX65: FmL | CY65: FqL | CZ65: FDL | DA65: Fvx | DB65: Fmx | DC65: Fqx | DD65: FDx | DE65: FvL | DF65: FmL | DG65: FqL | DH65: FDL | DI65: Fvx | DJ65: Fmx | DK65: Fqx | DL65: FDx | DM65: FvL | DN65: FmL | DO65: FqL | DP65: FDL | DQ65: Fvx | DR65: Fmx | DS65: Fqx | DT65: FDx | DU65: FvL | DV65: FmL | DW65: FqL | DX65: FDL | DY65: Fvx | DZ65: Fmx | EA65: Fqx | EB65: FDx | EC65: FvL | ED65: FmL | EE65: FqL | EF65: FDL | EG65: Fvx | EH65: Fmx | EI65: Fqx | EJ65: FDx | EK65: FvL | EL65: FmL | EM65: FqL | EN65: FDL | EO65: Fvx | EP65: Fmx | EQ65: Fqx | ER65: FDx | ES65: FvL | ET65: FmL | EU65: FqL | EV65: FDL | EW65: Fvx | EX65: Fmx | EY65: Fqx | EZ65: FDx | FQ65: FvL | FR65: FmL | FS65: FqL | FT65: FDL | FU65: Fvx | FV65: Fmx | FW65: Fqx | FX65: FDx | FY65: FvL | FZ65: FmL | GA65: FqL | GB65: FDL | GC65: Fvx | GD65: Fmx | GE65: Fqx | GF65: FDx | GG65: SFvL | GH65: SFmL | GI65: SFqL | GJ65: SFDL | GK65: SFvx | GL65: SFmx | GM65: SFqx | GN65: SFDx | GO65: Vo | GP65: Mo | GQ65: qo | GR65: Do | GS65: (kN) | GT65: (kN-m) | GU65: (rad.) | GV65: (mm) | GW65: x (m) | GX65: Index: | GY65: P Loads with | GZ65: P Loads with | HB65: Applied M with | HC65: Applied M with | HE65: W36x328 | HF65: 22500 | HG65: 1420 | HH65: 936520.71 | HI65: 59104.86 | HL65: 2.8 | HM65: -247.7240805 | HN65: -114.9074254 | HO65: 0.001822806848 | HP65: 2.805765578 | HQ65: 2.8 | HS65: 2.8 | HT65: -247.7240805 | HU65: -114.9074254 | HV65: 0.001822806848 | HW65: 2.805765578
H66: Imposed Loads (kN/m) | P66: 15 | S66: 30 | V66: 15 | Y66: 30 | AB66: 15 | CA66: ="D1, "&$Q$115&"kN/m" -> D1, kN/m | CB66: 10 | CC66: =CC65 -> 0.4 | CD66: =$O$115/VLOOKUP($P$9,$BP$2:$BQ$5,2,FALSE)*10 -> 0 | CE66: =IF(L115="",100,0.4) -> 100 | CK66: 10 | CL66: =CL65 -> 0.4 | CM66: =$CS$79 -> 1.538461538 | CN66: 0.4 | CV66: 1 | CW66: =IF($BZ$21=0,"---",-$BZ$21*$BZ$18) -> -264 | CX66: =IF($BZ$21=0,"---",-$BZ$21*$BZ$18^2/2) -> -528 | CY66: =IF($BZ$21=0,"---",-$BZ$21*$BZ$18^3/(6*$BZ$13*$BZ$19)) -> -2.2e-07 | CZ66: =IF($BZ$21=0,"---",$BZ$21*$BZ$18^4/(24*$BZ$13*$BZ$19)) -> 2.2e-07 | DA66: =IF($BZ$21=0,"---",IF($GW66=$BZ$18,-$BZ$21*($GW66-($GW66-$BZ$18)),IF($GW66>=0,-$BZ$21*$GW66,0))) -> 0 | DB66: =IF($BZ$21=0,"---",IF($GW66=$BZ$18,-$BZ$21*($GW66^2-($GW66-$BZ$18)^2)/2,IF($GW66>=0,-$BZ$21*$GW66^2/2,0))) -> 0 | DC66: =IF($BZ$21=0,"---",IF($GW66=$BZ$18,-$BZ$21*($GW66^3-($GW66-$BZ$18)^3)/(6*$BZ$13*$BZ$19),IF($GW66>=0,-$BZ$21*$GW66^3/(6*$BZ$13*$BZ$19),0))) -> 0 | DD66: =IF($BZ$21=0,"---",IF($GW66=$BZ$18,$BZ$21*($GW66^4-($GW66-$BZ$18)^4)/(24*$BZ$13*$BZ$19),IF($GW66>=0,$BZ$21*$GW66^4/(24*$BZ$13*$BZ$19),0))) -> 0 | DE66: =IF($BZ$25=$CB$25,"---",IF(AND($BZ$25="",$CA$25="",$CB$25="",$CC$25=""),"---",(-$CA$25*($BZ$18-$BZ$25-($BZ$18-$CB$25)))+(-1/2*($CC$25-$CA$25)/($CB$25-$BZ$25)*(($BZ$18-$BZ$25)^2-($BZ$18-$CB$25)^2)+($CC$25-$CA$25)*($BZ$18-$CB$25)))) -> --- | DF66: =IF($BZ$25=$CB$25,"---",IF(AND($BZ$25="",$CA$25="",$CB$25="",$CC$25=""),"---",(-$CA$25/2*(($BZ$18-$BZ$25)^2-($BZ$18-$CB$25)^2))+(-1/6*($CC$25-$CA$25)/($CB$25-$BZ$25)*(($BZ$18-$BZ$25)^3-($BZ$18-$CB$25)^3)+($CC$25-$CA$25)/2*($BZ$18-$CB$25)^2))) -> --- | DG66: =IF($BZ$25=$CB$25,"---",IF(AND($BZ$25="",$CA$25="",$CB$25="",$CC$25=""),"---",(-$CA$25/(6*$BZ$13*$BZ$19)*(($BZ$18-$BZ$25)^3-($BZ$18-$CB$25)^3))+(-1/(24*$BZ$13*$BZ$19)*($CC$25-$CA$25)/($CB$25-$BZ$25)*(($BZ$18-$BZ$25)^4-($BZ$18-$CB$25)^4)+($CC$25-$CA$25)/(6*$BZ$13*$BZ$19)*($BZ$18-$CB$25)^3))) -> --- | DH66: =IF($BZ$25=$CB$25,"---",IF(AND($BZ$25="",$CA$25="",$CB$25="",$CC$25=""),"---",($CA$25/(24*$BZ$13*$BZ$19)*(($BZ$18-$BZ$25)^4-($BZ$18-$CB$25)^4))+(1/(120*$BZ$13*$BZ$19)*($CC$25-$CA$25)/($CB$25-$BZ$25)*(($BZ$18-$BZ$25)^5-($BZ$18-$CB$25)^5)-($CC$25-$CA$25)/(24*$BZ$13*$BZ$19)*($BZ$18-$CB$25)^4))) -> --- | DI66: =IF($BZ$25=$CB$25,"---",IF(AND($BZ$25="",$CA$25="",$CB$25="",$CC$25=""),"---",(IF($GW66>=$CB$25,-$CA$25*($GW66-$BZ$25-($GW66-$CB$25)),IF($GW66>=$BZ$25,-$CA$25*($GW66-$BZ$25),0)))+(IF($GW66>=$CB$25,-1/2*($CC$25-$CA$25)/($CB$25-$BZ$25)*(($GW66-$BZ$25)^2-($GW66-$CB$25)^2)+($CC$25-$CA$25)*($GW66-$CB$25),IF($GW66>=$BZ$25,-1/2*($CC$25-$CA$25)/($CB$25-$BZ$25)*($GW66-$BZ$25)^2,0))))) -> --- | DJ66: =IF($BZ$25=$CB$25,"---",IF(AND($BZ$25="",$CA$25="",$CB$25="",$CC$25=""),"---",(IF($GW66>=$CB$25,-$CA$25/2*(($GW66-$BZ$25)^2-($GW66-$CB$25)^2),IF($GW66>=$BZ$25,-$CA$25/2*($GW66-$BZ$25)^2,0)))+(IF($GW66>=$CB$25,-1/6*($CC$25-$CA$25)/($CB$25-$BZ$25)*(($GW66-$BZ$25)^3-($GW66-$CB$25)^3)+($CC$25-$CA$25)/2*($GW66-$CB$25)^2,IF($GW66>=$BZ$25,-1/6*($CC$25-$CA$25)/($CB$25-$BZ$25)*($GW66-$BZ$25)^3,0))))) -> --- | DK66: =IF($BZ$25=$CB$25,"---",IF(AND($BZ$25="",$CA$25="",$CB$25="",$CC$25=""),"---",(IF($GW66>=$CB$25,-$CA$25/(6*$BZ$13*$BZ$19)*(($GW66-$BZ$25)^3-($GW66-$CB$25)^3),IF($GW66>=$BZ$25,-$CA$25/(6*$BZ$13*$BZ$19)*($GW66-$BZ$25)^3,0)))+(IF($GW66>=$CB$25,-1/(24*$BZ$13*$BZ$19)*($CC$25-$CA$25)/($CB$25-$BZ$25)*(($GW66-$BZ$25)^4-($GW66-$CB$25)^4)+($CC$25-$CA$25)/(6*$BZ$13*$BZ$19)*($GW66-$CB$25)^3,IF($GW66>=$BZ$25,-1/(24*$BZ$13*$BZ$19)*($CC$25-$CA$25)/($CB$25-$BZ$25)*($GW66-$BZ$25)^4,0))))) -> --- | DL66: =IF($BZ$25=$CB$25,"---",IF(AND($BZ$25="",$CA$25="",$CB$25="",$CC$25=""),"---",(IF($GW66>=$CB$25,$CA$25/(24*$BZ$13*$BZ$19)*(($GW66-$BZ$25)^4-($GW66-$CB$25)^4),IF($GW66>=$BZ$25,$CA$25/(24*$BZ$13*$BZ$19)*($GW66-$BZ$25)^4,0)))+(IF($GW66>=$CB$25,1/(120*$BZ$13*$BZ$19)*($CC$25-$CA$25)/($CB$25-$BZ$25)*(($GW66-$BZ$25)^5-($GW66-$CB$25)^5)-($CC$25-$CA$25)/(24*$BZ$13*$BZ$19)*($GW66-$CB$25)^4,IF($GW66>=$BZ$25,1/(120*$BZ$13*$BZ$19)*($CC$25-$CA$25)/($CB$25-$BZ$25)*($GW66-$BZ$25)^5,0))))) -> --- | DM66: =IF($BZ$26=$CB$26,"---",IF(AND($BZ$26="",$CA$26="",$CB$26="",$CC$26=""),"---",(-$CA$26*($BZ$18-$BZ$26-($BZ$18-$CB$26)))+(-1/2*($CC$26-$CA$26)/($CB$26-$BZ$26)*(($BZ$18-$BZ$26)^2-($BZ$18-$CB$26)^2)+($CC$26-$CA$26)*($BZ$18-$CB$26)))) -> --- | DN66: =IF($BZ$26=$CB$26,"---",IF(AND($BZ$26="",$CA$26="",$CB$26="",$CC$26=""),"---",(-$CA$26/2*(($BZ$18-$BZ$26)^2-($BZ$18-$CB$26)^2))+(-1/6*($CC$26-$CA$26)/($CB$26-$BZ$26)*(($BZ$18-$BZ$26)^3-($BZ$18-$CB$26)^3)+($CC$26-$CA$26)/2*($BZ$18-$CB$26)^2))) -> --- | DO66: =IF($BZ$26=$CB$26,"---",IF(AND($BZ$26="",$CA$26="",$CB$26="",$CC$26=""),"---",(-$CA$26/(6*$BZ$13*$BZ$19)*(($BZ$18-$BZ$26)^3-($BZ$18-$CB$26)^3))+(-1/(24*$BZ$13*$BZ$19)*($CC$26-$CA$26)/($CB$26-$BZ$26)*(($BZ$18-$BZ$26)^4-($BZ$18-$CB$26)^4)+($CC$26-$CA$26)/(6*$BZ$13*$BZ$19)*($BZ$18-$CB$26)^3))) -> --- | DP66: =IF($BZ$26=$CB$26,"---",IF(AND($BZ$26="",$CA$26="",$CB$26="",$CC$26=""),"---",($CA$26/(24*$BZ$13*$BZ$19)*(($BZ$18-$BZ$26)^4-($BZ$18-$CB$26)^4))+(1/(120*$BZ$13*$BZ$19)*($CC$26-$CA$26)/($CB$26-$BZ$26)*(($BZ$18-$BZ$26)^5-($BZ$18-$CB$26)^5)-($CC$26-$CA$26)/(24*$BZ$13*$BZ$19)*($BZ$18-$CB$26)^4))) -> --- | DQ66: =IF($BZ$26=$CB$26,"---",IF(AND($BZ$26="",$CA$26="",$CB$26="",$CC$26=""),"---",(IF($GW66>=$CB$26,-$CA$26*($GW66-$BZ$26-($GW66-$CB$26)),IF($GW66>=$BZ$26,-$CA$26*($GW66-$BZ$26),0)))+(IF($GW66>=$CB$26,-1/2*($CC$26-$CA$26)/($CB$26-$BZ$26)*(($GW66-$BZ$26)^2-($GW66-$CB$26)^2)+($CC$26-$CA$26)*($GW66-$CB$26),IF($GW66>=$BZ$26,-1/2*($CC$26-$CA$26)/($CB$26-$BZ$26)*($GW66-$BZ$26)^2,0))))) -> --- | DR66: =IF($BZ$26=$CB$26,"---",IF(AND($BZ$26="",$CA$26="",$CB$26="",$CC$26=""),"---",(IF($GW66>=$CB$26,-$CA$26/2*(($GW66-$BZ$26)^2-($GW66-$CB$26)^2),IF($GW66>=$BZ$26,-$CA$26/2*($GW66-$BZ$26)^2,0)))+(IF($GW66>=$CB$26,-1/6*($CC$26-$CA$26)/($CB$26-$BZ$26)*(($GW66-$BZ$26)^3-($GW66-$CB$26)^3)+($CC$26-$CA$26)/2*($GW66-$CB$26)^2,IF($GW66>=$BZ$26,-1/6*($CC$26-$CA$26)/($CB$26-$BZ$26)*($GW66-$BZ$26)^3,0))))) -> --- | DS66: =IF($BZ$26=$CB$26,"---",IF(AND($BZ$26="",$CA$26="",$CB$26="",$CC$26=""),"---",(IF($GW66>=$CB$26,-$CA$26/(6*$BZ$13*$BZ$19)*(($GW66-$BZ$26)^3-($GW66-$CB$26)^3),IF($GW66>=$BZ$26,-$CA$26/(6*$BZ$13*$BZ$19)*($GW66-$BZ$26)^3,0)))+(IF($GW66>=$CB$26,-1/(24*$BZ$13*$BZ$19)*($CC$26-$CA$26)/($CB$26-$BZ$26)*(($GW66-$BZ$26)^4-($GW66-$CB$26)^4)+($CC$26-$CA$26)/(6*$BZ$13*$BZ$19)*($GW66-$CB$26)^3,IF($GW66>=$BZ$26,-1/(24*$BZ$13*$BZ$19)*($CC$26-$CA$26)/($CB$26-$BZ$26)*($GW66-$BZ$26)^4,0))))) -> --- | DT66: =IF($BZ$26=$CB$26,"---",IF(AND($BZ$26="",$CA$26="",$CB$26="",$CC$26=""),"---",(IF($GW66>=$CB$26,$CA$26/(24*$BZ$13*$BZ$19)*(($GW66-$BZ$26)^4-($GW66-$CB$26)^4),IF($GW66>=$BZ$26,$CA$26/(24*$BZ$13*$BZ$19)*($GW66-$BZ$26)^4,0)))+(IF($GW66>=$CB$26,1/(120*$BZ$13*$BZ$19)*($CC$26-$CA$26)/($CB$26-$BZ$26)*(($GW66-$BZ$26)^5-($GW66-$CB$26)^5)-($CC$26-$CA$26)/(24*$BZ$13*$BZ$19)*($GW66-$CB$26)^4,IF($GW66>=$BZ$26,1/(120*$BZ$13*$BZ$19)*($CC$26-$CA$26)/($CB$26-$BZ$26)*($GW66-$BZ$26)^5,0))))) -> --- | DU66: =IF($BZ$27=$CB$27,"---",IF(AND($BZ$27="",$CA$27="",$CB$27="",$CC$27=""),"---",(-$CA$27*($BZ$18-$BZ$27-($BZ$18-$CB$27)))+(-1/2*($CC$27-$CA$27)/($CB$27-$BZ$27)*(($BZ$18-$BZ$27)^2-($BZ$18-$CB$27)^2)+($CC$27-$CA$27)*($BZ$18-$CB$27)))) -> --- | DV66: =IF($BZ$27=$CB$27,"---",IF(AND($BZ$27="",$CA$27="",$CB$27="",$CC$27=""),"---",(-$CA$27/2*(($BZ$18-$BZ$27)^2-($BZ$18-$CB$27)^2))+(-1/6*($CC$27-$CA$27)/($CB$27-$BZ$27)*(($BZ$18-$BZ$27)^3-($BZ$18-$CB$27)^3)+($CC$27-$CA$27)/2*($BZ$18-$CB$27)^2))) -> --- | DW66: =IF($BZ$27=$CB$27,"---",IF(AND($BZ$27="",$CA$27="",$CB$27="",$CC$27=""),"---",(-$CA$27/(6*$BZ$13*$BZ$19)*(($BZ$18-$BZ$27)^3-($BZ$18-$CB$27)^3))+(-1/(24*$BZ$13*$BZ$19)*($CC$27-$CA$27)/($CB$27-$BZ$27)*(($BZ$18-$BZ$27)^4-($BZ$18-$CB$27)^4)+($CC$27-$CA$27)/(6*$BZ$13*$BZ$19)*($BZ$18-$CB$27)^3))) -> --- | DX66: =IF($BZ$27=$CB$27,"---",IF(AND($BZ$27="",$CA$27="",$CB$27="",$CC$27=""),"---",($CA$27/(24*$BZ$13*$BZ$19)*(($BZ$18-$BZ$27)^4-($BZ$18-$CB$27)^4))+(1/(120*$BZ$13*$BZ$19)*($CC$27-$CA$27)/($CB$27-$BZ$27)*(($BZ$18-$BZ$27)^5-($BZ$18-$CB$27)^5)-($CC$27-$CA$27)/(24*$BZ$13*$BZ$19)*($BZ$18-$CB$27)^4))) -> --- | DY66: =IF($BZ$27=$CB$27,"---",IF(AND($BZ$27="",$CA$27="",$CB$27="",$CC$27=""),"---",(IF($GW66>=$CB$27,-$CA$27*($GW66-$BZ$27-($GW66-$CB$27)),IF($GW66>=$BZ$27,-$CA$27*($GW66-$BZ$27),0)))+(IF($GW66>=$CB$27,-1/2*($CC$27-$CA$27)/($CB$27-$BZ$27)*(($GW66-$BZ$27)^2-($GW66-$CB$27)^2)+($CC$27-$CA$27)*($GW66-$CB$27),IF($GW66>=$BZ$27,-1/2*($CC$27-$CA$27)/($CB$27-$BZ$27)*($GW66-$BZ$27)^2,0))))) -> --- | DZ66: =IF($BZ$27=$CB$27,"---",IF(AND($BZ$27="",$CA$27="",$CB$27="",$CC$27=""),"---",(IF($GW66>=$CB$27,-$CA$27/2*(($GW66-$BZ$27)^2-($GW66-$CB$27)^2),IF($GW66>=$BZ$27,-$CA$27/2*($GW66-$BZ$27)^2,0)))+(IF($GW66>=$CB$27,-1/6*($CC$27-$CA$27)/($CB$27-$BZ$27)*(($GW66-$BZ$27)^3-($GW66-$CB$27)^3)+($CC$27-$CA$27)/2*($GW66-$CB$27)^2,IF($GW66>=$BZ$27,-1/6*($CC$27-$CA$27)/($CB$27-$BZ$27)*($GW66-$BZ$27)^3,0))))) -> --- | EA66: =IF($BZ$27=$CB$27,"---",IF(AND($BZ$27="",$CA$27="",$CB$27="",$CC$27=""),"---",(IF($GW66>=$CB$27,-$CA$27/(6*$BZ$13*$BZ$19)*(($GW66-$BZ$27)^3-($GW66-$CB$27)^3),IF($GW66>=$BZ$27,-$CA$27/(6*$BZ$13*$BZ$19)*($GW66-$BZ$27)^3,0)))+(IF($GW66>=$CB$27,-1/(24*$BZ$13*$BZ$19)*($CC$27-$CA$27)/($CB$27-$BZ$27)*(($GW66-$BZ$27)^4-($GW66-$CB$27)^4)+($CC$27-$CA$27)/(6*$BZ$13*$BZ$19)*($GW66-$CB$27)^3,IF($GW66>=$BZ$27,-1/(24*$BZ$13*$BZ$19)*($CC$27-$CA$27)/($CB$27-$BZ$27)*($GW66-$BZ$27)^4,0))))) -> --- | EB66: =IF($BZ$27=$CB$27,"---",IF(AND($BZ$27="",$CA$27="",$CB$27="",$CC$27=""),"---",(IF($GW66>=$CB$27,$CA$27/(24*$BZ$13*$BZ$19)*(($GW66-$BZ$27)^4-($GW66-$CB$27)^4),IF($GW66>=$BZ$27,$CA$27/(24*$BZ$13*$BZ$19)*($GW66-$BZ$27)^4,0)))+(IF($GW66>=$CB$27,1/(120*$BZ$13*$BZ$19)*($CC$27-$CA$27)/($CB$27-$BZ$27)*(($GW66-$BZ$27)^5-($GW66-$CB$27)^5)-($CC$27-$CA$27)/(24*$BZ$13*$BZ$19)*($GW66-$CB$27)^4,IF($GW66>=$BZ$27,1/(120*$BZ$13*$BZ$19)*($CC$27-$CA$27)/($CB$27-$BZ$27)*($GW66-$BZ$27)^5,0))))) -> --- | EC66: =IF($BZ$28=$CB$28,"---",IF(AND($BZ$28="",$CA$28="",$CB$28="",$CC$28=""),"---",(-$CA$28*($BZ$18-$BZ$28-($BZ$18-$CB$28)))+(-1/2*($CC$28-$CA$28)/($CB$28-$BZ$28)*(($BZ$18-$BZ$28)^2-($BZ$18-$CB$28)^2)+($CC$28-$CA$28)*($BZ$18-$CB$28)))) -> --- | ED66: =IF($BZ$28=$CB$28,"---",IF(AND($BZ$28="",$CA$28="",$CB$28="",$CC$28=""),"---",(-$CA$28/2*(($BZ$18-$BZ$28)^2-($BZ$18-$CB$28)^2))+(-1/6*($CC$28-$CA$28)/($CB$28-$BZ$28)*(($BZ$18-$BZ$28)^3-($BZ$18-$CB$28)^3)+($CC$28-$CA$28)/2*($BZ$18-$CB$28)^2))) -> --- | EE66: =IF($BZ$28=$CB$28,"---",IF(AND($BZ$28="",$CA$28="",$CB$28="",$CC$28=""),"---",(-$CA$28/(6*$BZ$13*$BZ$19)*(($BZ$18-$BZ$28)^3-($BZ$18-$CB$28)^3))+(-1/(24*$BZ$13*$BZ$19)*($CC$28-$CA$28)/($CB$28-$BZ$28)*(($BZ$18-$BZ$28)^4-($BZ$18-$CB$28)^4)+($CC$28-$CA$28)/(6*$BZ$13*$BZ$19)*($BZ$18-$CB$28)^3))) -> --- | EF66: =IF($BZ$28=$CB$28,"---",IF(AND($BZ$28="",$CA$28="",$CB$28="",$CC$28=""),"---",($CA$28/(24*$BZ$13*$BZ$19)*(($BZ$18-$BZ$28)^4-($BZ$18-$CB$28)^4))+(1/(120*$BZ$13*$BZ$19)*($CC$28-$CA$28)/($CB$28-$BZ$28)*(($BZ$18-$BZ$28)^5-($BZ$18-$CB$28)^5)-($CC$28-$CA$28)/(24*$BZ$13*$BZ$19)*($BZ$18-$CB$28)^4))) -> --- | EG66: =IF($BZ$28=$CB$28,"---",IF(AND($BZ$28="",$CA$28="",$CB$28="",$CC$28=""),"---",(IF($GW66>=$CB$28,-$CA$28*($GW66-$BZ$28-($GW66-$CB$28)),IF($GW66>=$BZ$28,-$CA$28*($GW66-$BZ$28),0)))+(IF($GW66>=$CB$28,-1/2*($CC$28-$CA$28)/($CB$28-$BZ$28)*(($GW66-$BZ$28)^2-($GW66-$CB$28)^2)+($CC$28-$CA$28)*($GW66-$CB$28),IF($GW66>=$BZ$28,-1/2*($CC$28-$CA$28)/($CB$28-$BZ$28)*($GW66-$BZ$28)^2,0))))) -> --- | EH66: =IF($BZ$28=$CB$28,"---",IF(AND($BZ$28="",$CA$28="",$CB$28="",$CC$28=""),"---",(IF($GW66>=$CB$28,-$CA$28/2*(($GW66-$BZ$28)^2-($GW66-$CB$28)^2),IF($GW66>=$BZ$28,-$CA$28/2*($GW66-$BZ$28)^2,0)))+(IF($GW66>=$CB$28,-1/6*($CC$28-$CA$28)/($CB$28-$BZ$28)*(($GW66-$BZ$28)^3-($GW66-$CB$28)^3)+($CC$28-$CA$28)/2*($GW66-$CB$28)^2,IF($GW66>=$BZ$28,-1/6*($CC$28-$CA$28)/($CB$28-$BZ$28)*($GW66-$BZ$28)^3,0))))) -> --- | EI66: =IF($BZ$28=$CB$28,"---",IF(AND($BZ$28="",$CB$28="",$CB$28="",$CC$28=""),"---",(IF($GW66>=$CB$28,-$CA$28/(6*$BZ$13*$BZ$19)*(($GW66-$BZ$28)^3-($GW66-$CB$28)^3),IF($GW66>=$BZ$28,-$CA$28/(6*$BZ$13*$BZ$19)*($GW66-$BZ$28)^3,0)))+(IF($GW66>=$CB$28,-1/(24*$BZ$13*$BZ$19)*($CC$28-$CA$28)/($CB$28-$BZ$28)*(($GW66-$BZ$28)^4-($GW66-$CB$28)^4)+($CC$28-$CA$28)/(6*$BZ$13*$BZ$19)*($GW66-$CB$28)^3,IF($GW66>=$BZ$28,-1/(24*$BZ$13*$BZ$19)*($CC$28-$CA$28)/($CB$28-$BZ$28)*($GW66-$BZ$28)^4,0))))) -> --- | EJ66: =IF($BZ$28=$CB$28,"---",IF(AND($BZ$28="",$CA$28="",$CB$28="",$CC$28=""),"---",(IF($GW66>=$CB$28,$CA$28/(24*$BZ$13*$BZ$19)*(($GW66-$BZ$28)^4-($GW66-$CB$28)^4),IF($GW66>=$BZ$28,$CA$28/(24*$BZ$13*$BZ$19)*($GW66-$BZ$28)^4,0)))+(IF($GW66>=$CB$28,1/(120*$BZ$13*$BZ$19)*($CC$28-$CA$28)/($CB$28-$BZ$28)*(($GW66-$BZ$28)^5-($GW66-$CB$28)^5)-($CC$28-$CA$28)/(24*$BZ$13*$BZ$19)*($GW66-$CB$28)^4,IF($GW66>=$BZ$28,1/(120*$BZ$13*$BZ$19)*($CC$28-$CA$28)/($CB$28-$BZ$28)*($GW66-$BZ$28)^5,0))))) -> --- | EK66: =IF($BZ$29=$CB$29,"---",IF(AND($BZ$29="",$CA$29="",$CB$29="",$CC$29=""),"---",(-$CA$29*($BZ$18-$BZ$29-($BZ$18-$CB$29)))+(-1/2*($CC$29-$CA$29)/($CB$29-$BZ$29)*(($BZ$18-$BZ$29)^2-($BZ$18-$CB$29)^2)+($CC$29-$CA$29)*($BZ$18-$CB$29)))) -> --- | EL66: =IF($BZ$29=$CB$29,"---",IF(AND($BZ$29="",$CA$29="",$CB$29="",$CC$29=""),"---",(-$CA$29/2*(($BZ$18-$BZ$29)^2-($BZ$18-$CB$29)^2))+(-1/6*($CC$29-$CA$29)/($CB$29-$BZ$29)*(($BZ$18-$BZ$29)^3-($BZ$18-$CB$29)^3)+($CC$29-$CA$29)/2*($BZ$18-$CB$29)^2))) -> --- | EM66: =IF($BZ$29=$CB$29,"---",IF(AND($BZ$29="",$CA$29="",$CB$29="",$CC$29=""),"---",(-$CA$29/(6*$BZ$13*$BZ$19)*(($BZ$18-$BZ$29)^3-($BZ$18-$CB$29)^3))+(-1/(24*$BZ$13*$BZ$19)*($CC$29-$CA$29)/($CB$29-$BZ$29)*(($BZ$18-$BZ$29)^4-($BZ$18-$CB$29)^4)+($CC$29-$CA$29)/(6*$BZ$13*$BZ$19)*($BZ$18-$CB$29)^3))) -> --- | EN66: =IF($BZ$29=$CB$29,"---",IF(AND($BZ$29="",$CA$29="",$CB$29="",$CC$29=""),"---",($CA$29/(24*$BZ$13*$BZ$19)*(($BZ$18-$BZ$29)^4-($BZ$18-$CB$29)^4))+(1/(120*$BZ$13*$BZ$19)*($CC$29-$CA$29)/($CB$29-$BZ$29)*(($BZ$18-$BZ$29)^5-($BZ$18-$CB$29)^5)-($CC$29-$CA$29)/(24*$BZ$13*$BZ$19)*($BZ$18-$CB$29)^4))) -> --- | EO66: =IF($BZ$29=$CB$29,"---",IF(AND($BZ$29="",$CA$29="",$CB$29="",$CC$29=""),"---",(IF($GW66>=$CB$29,-$CA$29*($GW66-$BZ$29-($GW66-$CB$29)),IF($GW66>=$BZ$29,-$CA$29*($GW66-$BZ$29),0)))+(IF($GW66>=$CB$29,-1/2*($CC$29-$CA$29)/($CB$29-$BZ$29)*(($GW66-$BZ$29)^2-($GW66-$CB$29)^2)+($CC$29-$CA$29)*($GW66-$CB$29),IF($GW66>=$BZ$29,-1/2*($CC$29-$CA$29)/($CB$29-$BZ$29)*($GW66-$BZ$29)^2,0))))) -> --- | EP66: =IF($BZ$29=$CB$29,"---",IF(AND($BZ$29="",$CA$29="",$CB$29="",$CC$29=""),"---",(IF($GW66>=$CB$29,-$CA$29/2*(($GW66-$BZ$29)^2-($GW66-$CB$29)^2),IF($GW66>=$BZ$29,-$CA$29/2*($GW66-$BZ$29)^2,0)))+(IF($GW66>=$CB$29,-1/6*($CC$29-$CA$29)/($CB$29-$BZ$29)*(($GW66-$BZ$29)^3-($GW66-$CB$29)^3)+($CC$29-$CA$29)/2*($GW66-$CB$29)^2,IF($GW66>=$BZ$29,-1/6*($CC$29-$CA$29)/($CB$29-$BZ$29)*($GW66-$BZ$29)^3,0))))) -> --- | EQ66: =IF($BZ$29=$CB$29,"---",IF(AND($BZ$29="",$CA$29="",$CB$29="",$CC$29=""),"---",(IF($GW66>=$CB$29,-$CA$29/(6*$BZ$13*$BZ$19)*(($GW66-$BZ$29)^3-($GW66-$CB$29)^3),IF($GW66>=$BZ$29,-$CA$29/(6*$BZ$13*$BZ$19)*($GW66-$BZ$29)^3,0)))+(IF($GW66>=$CB$29,-1/(24*$BZ$13*$BZ$19)*($CC$29-$CA$29)/($CB$29-$BZ$29)*(($GW66-$BZ$29)^4-($GW66-$CB$29)^4)+($CC$29-$CA$29)/(6*$BZ$13*$BZ$19)*($GW66-$CB$29)^3,IF($GW66>=$BZ$29,-1/(24*$BZ$13*$BZ$19)*($CC$29-$CA$29)/($CB$29-$BZ$29)*($GW66-$BZ$29)^4,0))))) -> --- | ER66: =IF($BZ$29=$CB$29,"---",IF(AND($BZ$29="",$CA$29="",$CB$29="",$CC$29=""),"---",(IF($GW66>=$CB$29,$CA$29/(24*$BZ$13*$BZ$19)*(($GW66-$BZ$29)^4-($GW66-$CB$29)^4),IF($GW66>=$BZ$29,$CA$29/(24*$BZ$13*$BZ$19)*($GW66-$BZ$29)^4,0)))+(IF($GW66>=$CB$29,1/(120*$BZ$13*$BZ$19)*($CC$29-$CA$29)/($CB$29-$BZ$29)*(($GW66-$BZ$29)^5-($GW66-$CB$29)^5)-($CC$29-$CA$29)/(24*$BZ$13*$BZ$19)*($GW66-$CB$29)^4,IF($GW66>=$BZ$29,1/(120*$BZ$13*$BZ$19)*($CC$29-$CA$29)/($CB$29-$BZ$29)*($GW66-$BZ$29)^5,0))))) -> --- | ES66: =IF($BZ$30=$CB$30,"---",IF(AND($BZ$30="",$CA$30="",$CB$30="",$CC$30=""),"---",(-$CA$30*($BZ$18-$BZ$30-($BZ$18-$CB$30)))+(-1/2*($CC$30-$CA$30)/($CB$30-$BZ$30)*(($BZ$18-$BZ$30)^2-($BZ$18-$CB$30)^2)+($CC$30-$CA$30)*($BZ$18-$CB$30)))) -> --- | ET66: =IF($BZ$30=$CB$30,"---",IF(AND($BZ$30="",$CA$30="",$CB$30="",$CC$30=""),"---",(-$CA$30/2*(($BZ$18-$BZ$30)^2-($BZ$18-$CB$30)^2))+(-1/6*($CC$30-$CA$30)/($CB$30-$BZ$30)*(($BZ$18-$BZ$30)^3-($BZ$18-$CB$30)^3)+($CC$30-$CA$30)/2*($BZ$18-$CB$30)^2))) -> --- | EU66: =IF($BZ$30=$CB$30,"---",IF(AND($BZ$30="",$CA$30="",$CB$30="",$CC$30=""),"---",(-$CA$30/(6*$BZ$13*$BZ$19)*(($BZ$18-$BZ$30)^3-($BZ$18-$CB$30)^3))+(-1/(24*$BZ$13*$BZ$19)*($CC$30-$CA$30)/($CB$30-$BZ$30)*(($BZ$18-$BZ$30)^4-($BZ$18-$CB$30)^4)+($CC$30-$CA$30)/(6*$BZ$13*$BZ$19)*($BZ$18-$CB$30)^3))) -> --- | EV66: =IF($BZ$30=$CB$30,"---",IF(AND($BZ$30="",$CA$30="",$CB$30="",$CC$30=""),"---",($CA$30/(24*$BZ$13*$BZ$19)*(($BZ$18-$BZ$30)^4-($BZ$18-$CB$30)^4))+(1/(120*$BZ$13*$BZ$19)*($CC$30-$CA$30)/($CB$30-$BZ$30)*(($BZ$18-$BZ$30)^5-($BZ$18-$CB$30)^5)-($CC$30-$CA$30)/(24*$BZ$13*$BZ$19)*($BZ$18-$CB$30)^4))) -> --- | EW66: =IF($BZ$30=$CB$30,"---",IF(AND($BZ$30="",$CA$30="",$CB$30="",$CC$30=""),"---",(IF($GW66>=$CB$30,-$CA$30*($GW66-$BZ$30-($GW66-$CB$30)),IF($GW66>=$BZ$30,-$CA$30*($GW66-$BZ$30),0)))+(IF($GW66>=$CB$30,-1/2*($CC$30-$CA$30)/($CB$30-$BZ$30)*(($GW66-$BZ$30)^2-($GW66-$CB$30)^2)+($CC$30-$CA$30)*($GW66-$CB$30),IF($GW66>=$BZ$30,-1/2*($CC$30-$CA$30)/($CB$30-$BZ$30)*($GW66-$BZ$30)^2,0))))) -> --- | EX66: =IF($BZ$30=$CB$30,"---",IF(AND($BZ$30="",$CA$30="",$CB$30="",$CC$30=""),"---",(IF($GW66>=$CB$30,-$CA$30/2*(($GW66-$BZ$30)^2-($GW66-$CB$30)^2),IF($GW66>=$BZ$30,-$CA$30/2*($GW66-$BZ$30)^2,0)))+(IF($GW66>=$CB$30,-1/6*($CC$30-$CA$30)/($CB$30-$BZ$30)*(($GW66-$BZ$30)^3-($GW66-$CB$30)^3)+($CC$30-$CA$30)/2*($GW66-$CB$30)^2,IF($GW66>=$BZ$30,-1/6*($CC$30-$CA$30)/($CB$30-$BZ$30)*($GW66-$BZ$30)^3,0))))) -> --- | EY66: =IF($BZ$30=$CB$30,"---",IF(AND($BZ$30="",$CA$30="",$CB$30="",$CC$30=""),"---",(IF($GW66>=$CB$30,-$CA$30/(6*$BZ$13*$BZ$19)*(($GW66-$BZ$30)^3-($GW66-$CB$30)^3),IF($GW66>=$BZ$30,-$CA$30/(6*$BZ$13*$BZ$19)*($GW66-$BZ$30)^3,0)))+(IF($GW66>=$CB$30,-1/(24*$BZ$13*$BZ$19)*($CC$30-$CA$30)/($CB$30-$BZ$30)*(($GW66-$BZ$30)^4-($GW66-$CB$30)^4)+($CC$30-$CA$30)/(6*$BZ$13*$BZ$19)*($GW66-$CB$30)^3,IF($GW66>=$BZ$30,-1/(24*$BZ$13*$BZ$19)*($CC$30-$CA$30)/($CB$30-$BZ$30)*($GW66-$BZ$30)^4,0))))) -> --- | EZ66: =IF($BZ$30=$CB$30,"---",IF(AND($BZ$30="",$CA$30="",$CB$30="",$CC$30=""),"---",(IF($GW66>=$CB$30,$CA$30/(24*$BZ$13*$BZ$19)*(($GW66-$BZ$30)^4-($GW66-$CB$30)^4),IF($GW66>=$BZ$30,$CA$30/(24*$BZ$13*$BZ$19)*($GW66-$BZ$30)^4,0)))+(IF($GW66>=$CB$30,1/(120*$BZ$13*$BZ$19)*($CC$30-$CA$30)/($CB$30-$BZ$30)*(($GW66-$BZ$30)^5-($GW66-$CB$30)^5)-($CC$30-$CA$30)/(24*$BZ$13*$BZ$19)*($GW66-$CB$30)^4,IF($GW66>=$BZ$30,1/(120*$BZ$13*$BZ$19)*($CC$30-$CA$30)/($CB$30-$BZ$30)*($GW66-$BZ$30)^5,0))))) -> --- | FQ66: =-$CB$35+-$CB$36+-$CB$37+-$CB$38+-$CB$39+-$CB$40 -> -160 | FR66: =-$CB$35*($BZ$18-$BZ$35)+-$CB$36*($BZ$18-$BZ$36)+-$CB$37*($BZ$18-$BZ$37)+-$CB$38*($BZ$18-$BZ$38)+-$CB$39*($BZ$18-$BZ$39)+-$CB$40*($BZ$18-$BZ$40) -> -320 | FS66: =-$CB$35*($BZ$18-$BZ$35)^2/(2*$BZ$13*$BZ$19)+-$CB$36*($BZ$18-$BZ$36)^2/(2*$BZ$13*$BZ$19)+-$CB$37*($BZ$18-$BZ$37)^2/(2*$BZ$13*$BZ$19)+-$CB$38*($BZ$18-$BZ$38)^2/(2*$BZ$13*$BZ$19)+-$CB$39*($BZ$18-$BZ$39)^2/(2*$BZ$13*$BZ$19)+-$CB$40*($BZ$18-$BZ$40)^2/(2*$BZ$13*$BZ$19) -> -1e-07 | FT66: =$CB$35*($BZ$18-$BZ$35)^3/(6*$BZ$13*$BZ$19)+$CB$36*($BZ$18-$BZ$36)^3/(6*$BZ$13*$BZ$19)+$CB$37*($BZ$18-$BZ$37)^3/(6*$BZ$13*$BZ$19)+$CB$38*($BZ$18-$BZ$38)^3/(6*$BZ$13*$BZ$19)+$CB$39*($BZ$18-$BZ$39)^3/(6*$BZ$13*$BZ$19)+$CB$40*($BZ$18-$BZ$40)^3/(6*$BZ$13*$BZ$19) -> 6.666666667e-08 | FU66: =IF($GW66>$BZ$35,-$CB$35,0)+IF($GW66>$BZ$36,-$CB$36,0)+IF($GW66>$BZ$37,-$CB$37,0)+IF($GW66>$BZ$38,-$CB$38,0)+IF($GW66>$BZ$39,-$CB$39,0)+IF($GW66>$BZ$40,-$CB$40,0) -> 0 | FV66: =IF($GW66>$BZ$35,-$CB$35*($GW66-$BZ$35),0)+IF($GW66>$BZ$36,-$CB$36*($GW66-$BZ$36),0)+IF($GW66>$BZ$37,-$CB$37*($GW66-$BZ$37),0)+IF($GW66>$BZ$38,-$CB$38*($GW66-$BZ$38),0)+IF($GW66>$BZ$39,-$CB$39*($GW66-$BZ$39),0)+IF($GW66>$BZ$40,-$CB$40*($GW66-$BZ$40),0) -> 0 | FW66: =IF($GW66>$BZ$35,-$CB$35*($GW66-$BZ$35)^2/(2*$BZ$13*$BZ$19),0)+IF($GW66>$BZ$36,-$CB$36*($GW66-$BZ$36)^2/(2*$BZ$13*$BZ$19),0)+IF($GW66>$BZ$37,-$CB$37*($GW66-$BZ$37)^2/(2*$BZ$13*$BZ$19),0)+IF($GW66>$BZ$38,-$CB$38*($GW66-$BZ$38)^2/(2*$BZ$13*$BZ$19),0)+IF($GW66>$BZ$39,-$CB$39*($GW66-$BZ$39)^2/(2*$BZ$13*$BZ$19),0)+IF($GW66>$BZ$40,-$CB$40*($GW66-$BZ$40)^2/(2*$BZ$13*$BZ$19),0) -> 0 | FX66: =IF($GW66>$BZ$35,$CB$35*($GW66-$BZ$35)^3/(6*$BZ$13*$BZ$19),0)+IF($GW66>$BZ$36,$CB$36*($GW66-$BZ$36)^3/(6*$BZ$13*$BZ$19),0)+IF($GW66>$BZ$37,$CB$37*($GW66-$BZ$37)^3/(6*$BZ$13*$BZ$19),0)+IF($GW66>$BZ$38,$CB$38*($GW66-$BZ$38)^3/(6*$BZ$13*$BZ$19),0)+IF($GW66>$BZ$39,$CB$39*($GW66-$BZ$39)^3/(6*$BZ$13*$BZ$19),0)+IF($GW66>$BZ$40,$CB$40*($GW66-$BZ$40)^3/(6*$BZ$13*$BZ$19),0) -> 0 | FY66: =0+0+0+0 -> 0 | FZ66: =-$CB$52+-$CB$53+-$CB$54+-$CB$55+$DW$55+-$DW$56+-CB56+-CB57 -> 459.6963219 | GA66: =-$CB$52*($BZ$18-$FZ$19)/($BZ$13*$BZ$19)+-$CB$53*($BZ$18-$FZ$20)/($BZ$13*$BZ$19)+-$CB$54*($BZ$18-$FZ$21)/($BZ$13*$BZ$19)+-$CB$55*($BZ$18-$FZ$22)/($BZ$13*$BZ$19)+$DW$55*($BZ$18-0)/($BZ$13*$BZ$19)+-$DW$56*($BZ$18-$BZ$18)/($BZ$13*$BZ$19)+-$CB$56*($BZ$18-$FZ$23)/($BZ$13*$BZ$19)+-$CB$57*($BZ$18-$FZ$24)/($BZ$13*$BZ$19) -> -6.922449701e-27 | GB66: =$CB$52*($BZ$18-$FZ$19)^2/(2*$BZ$13*$BZ$19)+$CB$53*($BZ$18-$FZ$20)^2/(2*$BZ$13*$BZ$19)+$CB$54*($BZ$18-$FZ$21)^2/(2*$BZ$13*$BZ$19)+$CB$55*($BZ$18-$FZ$22)^2/(2*$BZ$13*$BZ$19)+-$DW$55*($BZ$18-0)^2/(2*$BZ$13*$BZ$19)+$DW$56*($BZ$18-$BZ$18)^2/(2*$BZ$13*$BZ$19)+$CB$56*($BZ$18-$FZ$23)^2/(2*$BZ$13*$BZ$19)+$CB$57*($BZ$18-$FZ$24)^2/(2*$BZ$13*$BZ$19) -> 1.38448994e-26 | GC66: =IF($GW66>=IF($FZ$19=$BZ$18,$FZ$19+0.000000001,$FZ$19),0,0)+IF($GW66>=IF($FZ$20=$BZ$18,$FZ$20+0.000000001,$FZ$20),0,0)+IF($GW66>=IF($FZ$21=$BZ$18,$FZ$21+0.000000001,$FZ$21),0,0)+IF($GW66>=IF($FZ$22=$BZ$18,$FZ$22+0.000000001,$FZ$22),0,0)+IF($GW66>=IF(0=$BZ$18,0+0.000000001,0),0,0)+IF($GW66>=IF($BZ$18=$BZ$18,$BZ$18+0.000000001,$BZ$18),0,0)+IF($GW66>=IF($FZ$23=$BZ$18,$FZ$23+0.000000001,$FZ$23),0,0)+IF($GW66>=IF($FZ$24=$BZ$18,$FZ$24+0.000000001,$FZ$24),0,0) -> 0 | GD66: =IF($GW66>=IF($FZ$19=$BZ$18,$FZ$19+0.000000001,$FZ$19),-$CB$52,0)+IF($GW66>=IF($FZ$20=$BZ$18,$FZ$20+0.000000001,$FZ$20),-$CB$53,0)+IF($GW66>=IF($FZ$21=$BZ$18,$FZ$21+0.000000001,$FZ$21),-$CB$54,0)+IF($GW66>=IF($FZ$22=$BZ$18,$FZ$22+0.000000001,$FZ$22),-$CB$55,0)+IF($GW66>=IF(0=$BZ$18,0+0.000000001,0),$DW$55,0)+IF($GW66>=IF($BZ$18=$BZ$18,$BZ$18+0.000000001,$BZ$18),-$DW$56,0)+IF($GW66>=IF($FZ$23=$BZ$18,$FZ$23+0.000000001,$FZ$23),-$CB$55,0)+IF($GW66>=IF($FZ$24=$BZ$18,$FZ$24+0.000000001,$FZ$24),-$CB$55,0) -> -5.537959761e-18 | GE66: =IF($GW66>=IF($FZ$19=$BZ$18,$FZ$19+0.000000001,$FZ$19),-$CB$52*($GW66-$FZ$19)/($BZ$13*$BZ$19),0)+IF($GW66>=IF($FZ$20=$BZ$18,$FZ$20+0.000000001,$FZ$20),-$CB$53*($GW66-$FZ$20)/($BZ$13*$BZ$19),0)+IF($GW66>=IF($FZ$21=$BZ$18,$FZ$21+0.000000001,$FZ$21),-$CB$54*($GW66-$FZ$21)/($BZ$13*$BZ$19),0)+IF($GW66>=IF($FZ$22=$BZ$18,$FZ$22+0.000000001,$FZ$22),-$CB$55*($GW66-$FZ$22)/($BZ$13*$BZ$19),0) + IF($GW66>=IF(0=$BZ$18,0+0.000000001,0),$DW$55*($GW66-0)/($BZ$13*$BZ$19),0) + IF($GW66>=IF($BZ$18=$BZ$18,$BZ$18+0.000000001,$BZ$18),-$DW$56*($GW66-$BZ$18)/($BZ$13*$BZ$19),0)+IF($GW66>=IF($FZ$23=$BZ$18,$FZ$23+0.000000001,$FZ$23),-$CB$55*($GW66-$FZ$23)/($BZ$13*$BZ$19),0)+IF($GW66>=IF($FZ$24=$BZ$18,$FZ$24+0.000000001,$FZ$24),-$CB$55*($GW66-$FZ$24)/($BZ$13*$BZ$19),0) -> 0 | GF66: =IF($GW66>=IF($FZ$19=$BZ$18,$FZ$19+0.000000001,$FZ$19),$CB$52*($GW66-$FZ$19)^2/(2*$BZ$13*$BZ$19),0)+IF($GW66>=IF($FZ$20=$BZ$18,$FZ$20+0.000000001,$FZ$20),$CB$53*($GW66-$FZ$20)^2/(2*$BZ$13*$BZ$19),0)+IF($GW66>=IF($FZ$21=$BZ$18,$FZ$21+0.000000001,$FZ$21),$CB$54*($GW66-$FZ$21)^2/(2*$BZ$13*$BZ$19),0)+IF($GW66>=IF($FZ$22=$BZ$18,$FZ$22+0.000000001,$FZ$22),$CB$55*($GW66-$FZ$22)^2/(2*$BZ$13*$BZ$19),0) + IF($GW66>=IF(0=$BZ$18,0+0.000000001,0),-$DW$55*($GW66-0)^2/(2*$BZ$13*$BZ$19),0) + IF($GW66>=IF($BZ$18=$BZ$18,$BZ$18+0.000000001,$BZ$18),$DW$56*($GW66-$BZ$18)^2/(2*$BZ$13*$BZ$19),0)+IF($GW66>=IF($FZ$23=$BZ$18,$FZ$23+0.000000001,$FZ$23),$CB$55*($GW66-$FZ$23)^2/(2*$BZ$13*$BZ$19),0)+IF($GW66>=IF($FZ$24=$BZ$18,$FZ$24+0.000000001,$FZ$24),$CB$55*($GW66-$FZ$24)^2/(2*$BZ$13*$BZ$19),0) -> 0 | GG66: =SUM(CW66,DE66,DM66,DU66,EC66,EK66,ES66,FA66,FI66,FQ66,FY66) -> -424 | GH66: -388.3036781 | GI66: -3.2e-07 | GJ66: 2.866666667e-07 | GK66: 0 | GL66: -5.537959761e-18 | GM66: 0 | GN66: 0 | GO66: =-1/$BZ$18*$GH66 -> 97.07591952 | GP66: =0 -> 0 | GQ66: =1/$BZ$18*$GJ66+$BZ$18/(6*$BZ$13*$BZ$19)*$GH66 -> -9.22993293e-09 | GR66: =0 -> 0 | GS66: =($GO66+$GK66)+$GY$84 -> 97.07591952 | GT66: =$GP66+$GO66*$GW66+$GL66+(-$HB$73) -> -5.537959761e-18 | GU66: =($GQ66+$GP66*$GW66/($BZ$13*$BZ$19)+$GO66*$GW66^2/(2*$BZ$13*$BZ$19)+$GM66)*100000 -> -0.000922993293 | GV66: =(-($GR66-$GQ66*$GW66-$GP66*$GW66^2/(2*$BZ$13*$BZ$19)-$GO66*$GW66^3/(6*$BZ$13*$BZ$19)+$GN66))*100000000 -> 0 | GW66: =0 -> 0 | GX66: 1 | GY66: Dist. a = 0 | GZ66: Dist. a = L | HB66: Dist. c = 0 | HC66: Dist. c = L | HE66: W36x300 | HF66: 20300 | HG66: 1300 | HH66: 844949.79 | HI66: 54110.09 | HL66: 2.88 | HM66: -253.0040805 | HN66: -134.9365518 | HO66: 0.001510589876 | HP66: 2.939435265 | HQ66: 2.88 | HS66: 2.88 | HT66: -253.0040805 | HU66: -134.9365518 | HV66: 0.001510589876 | HW66: 2.939435265
CB67: 10 | CC67: 10 | CD67: =CD66 -> 0 | CE67: =IF(L115="",100,IF(0.4/$BN$4*$Q$115<0.4,CC68/$BN$4*$Q$115+0.4-0.4/$BN$4*$Q$115,CC68/$BN$4*$Q$115)) -> 100 | CK67: 10 | CL67: 10 | CM67: =CM66 -> 1.538461538 | CN67: =IF(0.4/$BN$4*$P$64<0.4,CL67/$BN$4*$P$64+0.4-0.4/$BN$4*$P$64,CL67/$BN$4*$P$64) -> 1.36 | CV67: 2 | CW67: =$CW$66 -> -264 | CX67: =$CX$66 -> -528 | CY67: =$CY$66 -> -2.2e-07 | CZ67: =$CZ$66 -> 2.2e-07 | DA67: -5.28 | DB67: -0.2112 | DC67: -1.76e-12 | DD67: 3.52e-14 | DE67: =$DE$66 -> --- | DF67: =$DF$66 -> --- | DG67: =$DG$66 -> --- | DH67: =$DH$66 -> --- | DI67: --- | DJ67: --- | DK67: --- | DL67: --- | DM67: =$DM$66 -> --- | DN67: =$DN$66 -> --- | DO67: =$DO$66 -> --- | DP67: =$DP$66 -> --- | DQ67: --- | DR67: --- | DS67: --- | DT67: --- | DU67: =$DU$66 -> --- | DV67: =$DV$66 -> --- | DW67: =$DW$66 -> --- | DX67: =$DX$66 -> --- | DY67: --- | DZ67: --- | EA67: --- | EB67: --- | EC67: =$EC$66 -> --- | ED67: =$ED$66 -> --- | EE67: =$EE$66 -> --- | EF67: =$EF$66 -> --- | EG67: --- | EH67: --- | EI67: --- | EJ67: --- | EK67: =$EK$66 -> --- | EL67: =$EL$66 -> --- | EM67: =$EM$66 -> --- | EN67: =$EN$66 -> --- | EO67: --- | EP67: --- | EQ67: --- | ER67: --- | ES67: =$ES$66 -> --- | ET67: =$ET$66 -> --- | EU67: =$EU$66 -> --- | EV67: =$EV$66 -> --- | EW67: --- | EX67: --- | EY67: --- | EZ67: --- | FQ67: =$FQ$66 -> -160 | FR67: =$FR$66 -> -320 | FS67: =$FS$66 -> -1e-07 | FT67: =$FT$66 -> 6.666666667e-08 | FU67: 0 | FV67: 0 | FW67: 0 | FX67: 0 | FY67: =$FY$66 -> 0 | FZ67: =$FZ$66 -> 459.6963219 | GA67: =$GA$66 -> -6.922449701e-27 | GB67: =$GB$66 -> 1.38448994e-26 | GC67: 0 | GD67: -5.537959761e-18 | GE67: -1.38448994e-28 | GF67: 5.537959761e-30 | GG67: =$GG$66 -> -424 | GH67: =$GH$66 -> -388.3036781 | GI67: =$GI$66 -> -3.2e-07 | GJ67: =$GJ$66 -> 2.866666667e-07 | GK67: =SUM(DA67,DI67,DQ67,DY67,EG67,EO67,EW67,FE67,FM67,FU67,GC67) -> -5.28 | GL67: =SUM(DB67,DJ67,DR67,DZ67,EH67,EP67,EX67,FF67,FN67,FV67,GD67) -> -0.2112 | GM67: =SUM(DC67,DK67,DS67,EA67,EI67,EQ67,EY67,FG67,FO67,FW67,GE67) -> -1.76e-12 | GN67: =SUM(DD67,DL67,DT67,EB67,EJ67,ER67,EZ67,FH67,FP67,FX67,GF67) -> 3.52e-14 | GO67: =$GO$66 -> 97.07591952 | GP67: =$GP$66 -> 0 | GQ67: =$GQ$66 -> -9.22993293e-09 | GR67: =$GR$66 -> 0 | GS67: =$GO67+$GK67 -> 91.79591952 | GT67: =$GP67+$GO67*$GW67+$GL67 -> 7.554873561 | GU67: -0.000913461701 | GV67: -0.07358411432 | GW67: =$BZ$18/50*$GX66 -> 0.08 | GX67: 2 | GY67: =IF($BZ$35=0,$CB$35,0) -> 0 | GZ67: =IF($BZ$35=$BZ$18,$CB$35,0) -> 0 | HA67: P1 | HB67: =IF($BZ$52=0,$CB$52,0) -> 0 | HC67: =IF($BZ$52=$BZ$18,$CB$52,0) -> 0 | HD67: M1 | HE67: W36x280 | HF67: 18900 | HG67: 1200 | HH67: 786677.39 | HI67: 49947.77 | HL67: 2.96 | HM67: -258.2840805 | HN67: -155.3880782 | HO67: 0.001147772089 | HP67: 3.046110603 | HQ67: 2.96 | HS67: 2.96 | HT67: -258.2840805 | HU67: -155.3880782 | HV67: 0.001147772089 | HW67: 3.046110603
D68: Point Loads | CB68: 0 | CC68: =CC67 -> 10 | CD68: =CD65 -> 0 | CE68: =IF(L115="",100,IF(0.4/$BN$4*$L$115<0.4,CC67/$BN$4*$L$115+0.4-0.4/$BN$4*$L$115,CC67/$BN$4*$L$115)) -> 100 | CK68: 0 | CL68: =CL67 -> 10 | CM68: 0 | CN68: =CN67 -> 1.36 | CV68: 3 | CW68: -264 | CX68: -528 | CY68: -2.2e-07 | CZ68: 2.2e-07 | DA68: -10.56 | DB68: -0.8448 | DC68: -1.408e-11 | DD68: 5.632e-13 | DE68: --- | DF68: --- | DG68: --- | DH68: --- | DI68: --- | DJ68: --- | DK68: --- | DL68: --- | DM68: --- | DN68: --- | DO68: --- | DP68: --- | DQ68: --- | DR68: --- | DS68: --- | DT68: --- | DU68: --- | DV68: --- | DW68: --- | DX68: --- | DY68: --- | DZ68: --- | EA68: --- | EB68: --- | EC68: --- | ED68: --- | EE68: --- | EF68: --- | EG68: --- | EH68: --- | EI68: --- | EJ68: --- | EK68: --- | EL68: --- | EM68: --- | EN68: --- | EO68: --- | EP68: --- | EQ68: --- | ER68: --- | ES68: --- | ET68: --- | EU68: --- | EV68: --- | EW68: --- | EX68: --- | EY68: --- | EZ68: --- | FQ68: -160 | FR68: -320 | FS68: -1e-07 | FT68: 6.666666667e-08 | FU68: 0 | FV68: 0 | FW68: 0 | FX68: 0 | FY68: 0 | FZ68: 459.6963219 | GA68: -6.922449701e-27 | GB68: 1.38448994e-26 | GC68: 0 | GD68: -5.537959761e-18 | GE68: -2.76897988e-28 | GF68: 2.215183904e-29 | GG68: -424 | GH68: -388.3036781 | GI68: -3.2e-07 | GJ68: 2.866666667e-07 | GK68: -10.56 | GL68: -0.8448 | GM68: -1.408e-11 | GN68: 5.632e-13 | GO68: 97.07591952 | GP68: 0 | GQ68: -9.22993293e-09 | GR68: 0 | GS68: 86.51591952 | GT68: 14.68734712 | GU68: -0.0008855709252 | GV68: -0.1456642939 | GW68: 0.16 | GX68: 3 | GY68: =IF($BZ$36=0,$CB$36,0) -> 0 | GZ68: =IF($BZ$36=$BZ$18,$CB$36,0) -> 0 | HA68: P2 | HB68: =IF($BZ$53=0,$CB$53,0) -> 0 | HC68: =IF($BZ$53=$BZ$18,$CB$53,0) -> 0 | HD68: M2 | HE68: W36x260 | HF68: 17300 | HG68: 1090 | HH68: 720080.37 | HI68: 45369.23 | HL68: 3.04 | HM68: -263.5640805 | HN68: -176.2620047 | HO68: 0.0007332974851 | HP68: 3.121701284 | HQ68: 3.04 | HS68: 3.04 | HT68: -263.5640805 | HU68: -176.2620047 | HV68: 0.0007332974851 | HW68: 3.121701284
E69: Span 1 | O69: Span 2 | Y69: Span 3 | CB69: =CB65 -> 0 | CC69: =CC65 -> 0.4 | CD69: =CD65 -> 0 | CE69: =IF(L115="",100,0.4) -> 100 | CK69: =CK65 -> 0 | CL69: =CL65 -> 0.4 | CM69: 0 | CN69: 0.4 | CV69: 4 | CW69: -264 | CX69: -528 | CY69: -2.2e-07 | CZ69: 2.2e-07 | DA69: -15.84 | DB69: -1.9008 | DC69: -4.752e-11 | DD69: 2.8512e-12 | DE69: --- | DF69: --- | DG69: --- | DH69: --- | DI69: --- | DJ69: --- | DK69: --- | DL69: --- | DM69: --- | DN69: --- | DO69: --- | DP69: --- | DQ69: --- | DR69: --- | DS69: --- | DT69: --- | DU69: --- | DV69: --- | DW69: --- | DX69: --- | DY69: --- | DZ69: --- | EA69: --- | EB69: --- | EC69: --- | ED69: --- | EE69: --- | EF69: --- | EG69: --- | EH69: --- | EI69: --- | EJ69: --- | EK69: --- | EL69: --- | EM69: --- | EN69: --- | EO69: --- | EP69: --- | EQ69: --- | ER69: --- | ES69: --- | ET69: --- | EU69: --- | EV69: --- | EW69: --- | EX69: --- | EY69: --- | EZ69: --- | FQ69: -160 | FR69: -320 | FS69: -1e-07 | FT69: 6.666666667e-08 | FU69: 0 | FV69: 0 | FW69: 0 | FX69: 0 | FY69: 0 | FZ69: 459.6963219 | GA69: -6.922449701e-27 | GB69: 1.38448994e-26 | GC69: 0 | GD69: -5.537959761e-18 | GE69: -4.15346982e-28 | GF69: 4.984163785e-29 | GG69: -424 | GH69: -388.3036781 | GI69: -3.2e-07 | GJ69: 2.866666667e-07 | GK69: -15.84 | GL69: -1.9008 | GM69: -4.752e-11 | GN69: 2.8512e-12 | GO69: 97.07591952 | GP69: 0 | GQ69: -9.22993293e-09 | GR69: 0 | GS69: 81.23591952 | GT69: 21.39742068 | GU69: -0.0008403769654 | GV69: -0.2148140441 | GW69: 0.24 | GX69: 4 | GY69: =IF($BZ$37=0,$CB$37,0) -> 0 | GZ69: =IF($BZ$37=$BZ$18,$CB$37,0) -> 0 | HA69: P3 | HB69: =IF($BZ$54=0,$CB$54,0) -> 0 | HC69: =IF($BZ$54=$BZ$18,$CB$54,0) -> 0 | HD69: M3 | HE69: W36x256 | HF69: 16800 | HG69: 528 | HH69: 699268.8 | HI69: 21977.02 | HL69: 3.12 | HM69: -268.8440805 | HN69: -197.5583311 | HO69: 0.0002661100654 | HP69: 3.162032525 | HQ69: 3.12 | HS69: 3.12 | HT69: -268.8440805 | HU69: -197.5583311 | HV69: 0.0002661100654 | HW69: 3.162032525
E70: Type | I70: Position | L70: kN | O70: Type | S70: Position | V70: kN | Y70: Type | AC70: Position | AF70: kN | CB70: 0 | CC70: 0.4 | CD70: =CD65 -> 0 | CE70: =IF(L115="",100,0.4) -> 100 | CJ70: =IF($P$65=0,"","DL, "&$P$65&"kN/m") -> DL, 20kN/m | CK70: 0 | CL70: 0.4 | CM70: 0 | CN70: 0.4 | CV70: 5 | CW70: -264 | CX70: -528 | CY70: -2.2e-07 | CZ70: 2.2e-07 | DA70: -21.12 | DB70: -3.3792 | DC70: -1.1264e-10 | DD70: 9.0112e-12 | DE70: --- | DF70: --- | DG70: --- | DH70: --- | DI70: --- | DJ70: --- | DK70: --- | DL70: --- | DM70: --- | DN70: --- | DO70: --- | DP70: --- | DQ70: --- | DR70: --- | DS70: --- | DT70: --- | DU70: --- | DV70: --- | DW70: --- | DX70: --- | DY70: --- | DZ70: --- | EA70: --- | EB70: --- | EC70: --- | ED70: --- | EE70: --- | EF70: --- | EG70: --- | EH70: --- | EI70: --- | EJ70: --- | EK70: --- | EL70: --- | EM70: --- | EN70: --- | EO70: --- | EP70: --- | EQ70: --- | ER70: --- | ES70: --- | ET70: --- | EU70: --- | EV70: --- | EW70: --- | EX70: --- | EY70: --- | EZ70: --- | FQ70: -160 | FR70: -320 | FS70: -1e-07 | FT70: 6.666666667e-08 | FU70: 0 | FV70: 0 | FW70: 0 | FX70: 0 | FY70: 0 | FZ70: 459.6963219 | GA70: -6.922449701e-27 | GB70: 1.38448994e-26 | GC70: 0 | GD70: -5.537959761e-18 | GE70: -5.537959761e-28 | GF70: 8.860735617e-29 | GG70: -424 | GH70: -388.3036781 | GI70: -3.2e-07 | GJ70: 2.866666667e-07 | GK70: -21.12 | GL70: -3.3792 | GM70: -1.1264e-10 | GN70: 9.0112e-12 | GO70: 97.07591952 | GP70: 0 | GQ70: -9.22993293e-09 | GR70: 0 | GS70: 75.95591952 | GT70: 27.68509425 | GU70: -0.0007789358218 | GV70: -0.2796913502 | GW70: 0.32 | GX70: 5 | GY70: =IF($BZ$38=0,$CB$38,0) -> 0 | GZ70: =IF($BZ$38=$BZ$18,$CB$38,0) -> 0 | HA70: P4 | HB70: =IF($BZ$55=0,$CB$55,0) -> 0 | HC70: =IF($BZ$55=$BZ$18,$CB$55,0) -> 0 | HD70: M4 | HE70: W36x245 | HF70: 16100 | HG70: 1010 | HH70: 670132.6 | HI70: 42039.37 | HL70: 3.2 | HM70: -274.1240805 | HN70: -219.2770575 | HO70: -0.0002548461704 | HP70: 3.16284506 | HQ70: 3.2 | HS70: 3.2 | HT70: -274.1240805 | HU70: -219.2770575 | HV70: -0.0002548461704 | HW70: 3.16284506
D71: 1 | E71: Imposed | I71: 2 | L71: 100 | CA71: ="D2, "&$L$116&"kN/m" -> D2, kN/m | CB71: 0 | CC71: 0.4 | CD71: =$J$116/VLOOKUP($P$9,$BP$2:$BQ$5,2,FALSE)*10 -> 0 | CE71: =IF(L116="",100,0.4) -> 100 | CK71: 10 | CL71: =CL70 -> 0.4 | CM71: =$CS$79 -> 1.538461538 | CN71: 0.4 | CV71: 6 | CW71: -264 | CX71: -528 | CY71: -2.2e-07 | CZ71: 2.2e-07 | DA71: -26.4 | DB71: -5.28 | DC71: -2.2e-10 | DD71: 2.2e-11 | DE71: --- | DF71: --- | DG71: --- | DH71: --- | DI71: --- | DJ71: --- | DK71: --- | DL71: --- | DM71: --- | DN71: --- | DO71: --- | DP71: --- | DQ71: --- | DR71: --- | DS71: --- | DT71: --- | DU71: --- | DV71: --- | DW71: --- | DX71: --- | DY71: --- | DZ71: --- | EA71: --- | EB71: --- | EC71: --- | ED71: --- | EE71: --- | EF71: --- | EG71: --- | EH71: --- | EI71: --- | EJ71: --- | EK71: --- | EL71: --- | EM71: --- | EN71: --- | EO71: --- | EP71: --- | EQ71: --- | ER71: --- | ES71: --- | ET71: --- | EU71: --- | EV71: --- | EW71: --- | EX71: --- | EY71: --- | EZ71: --- | FQ71: -160 | FR71: -320 | FS71: -1e-07 | FT71: 6.666666667e-08 | FU71: 0 | FV71: 0 | FW71: 0 | FX71: 0 | FY71: 0 | FZ71: 459.6963219 | GA71: -6.922449701e-27 | GB71: 1.38448994e-26 | GC71: 0 | GD71: -5.537959761e-18 | GE71: -6.922449701e-28 | GF71: 1.38448994e-28 | GG71: -424 | GH71: -388.3036781 | GI71: -3.2e-07 | GJ71: 2.866666667e-07 | GK71: -26.4 | GL71: -5.28 | GM71: -2.2e-10 | GN71: 2.2e-11 | GO71: 97.07591952 | GP71: 0 | GQ71: -9.22993293e-09 | GR71: 0 | GS71: 70.67591952 | GT71: 33.55036781 | GU71: -0.0007023034942 | GV71: -0.3390386774 | GW71: 0.4 | GX71: 6 | GY71: =IF($BZ$39=0,$CB$39,0) -> 0 | GZ71: =IF($BZ$39=$BZ$18,$CB$39,0) -> 0 | HA71: P5 | HB71: =IF($BZ$56=0,$CB$56,0) -> 0 | HC71: =IF($BZ$56=$BZ$18,$CB$56,0) -> 0 | HD71: M5 | HE71: W36x232 | HF71: 15000 | HG71: 468 | HH71: 624347.14 | HI71: 19479.63 | HL71: 3.28 | HM71: -279.4040805 | HN71: -241.418184 | HO71: -0.0008306272224 | HP71: 3.119795143 | HQ71: 3.28 | HS71: 3.28 | HT71: -279.4040805 | HU71: -241.418184 | HV71: -0.0008306272224 | HW71: 3.119795143
D72: 2 | CA72: ="D2, "&$Q$116&"kN/m" -> D2, kN/m | CB72: 10 | CC72: =CC71 -> 0.4 | CD72: =$O$116/VLOOKUP($P$9,$BP$2:$BQ$5,2,FALSE)*10 -> 0 | CE72: =IF(L116="",100,0.4) -> 100 | CK72: 10 | CL72: 10 | CM72: =CM71 -> 1.538461538 | CN72: =IF(0.4/$BN$4*$P$65<0.4,CL72/$BN$4*$P$65+0.4-0.4/$BN$4*$P$65,CL72/$BN$4*$P$65) -> 2.32 | CV72: 7 | CW72: -264 | CX72: -528 | CY72: -2.2e-07 | CZ72: 2.2e-07 | DA72: -31.68 | DB72: -7.6032 | DC72: -3.8016e-10 | DD72: 4.56192e-11 | DE72: --- | DF72: --- | DG72: --- | DH72: --- | DI72: --- | DJ72: --- | DK72: --- | DL72: --- | DM72: --- | DN72: --- | DO72: --- | DP72: --- | DQ72: --- | DR72: --- | DS72: --- | DT72: --- | DU72: --- | DV72: --- | DW72: --- | DX72: --- | DY72: --- | DZ72: --- | EA72: --- | EB72: --- | EC72: --- | ED72: --- | EE72: --- | EF72: --- | EG72: --- | EH72: --- | EI72: --- | EJ72: --- | EK72: --- | EL72: --- | EM72: --- | EN72: --- | EO72: --- | EP72: --- | EQ72: --- | ER72: --- | ES72: --- | ET72: --- | EU72: --- | EV72: --- | EW72: --- | EX72: --- | EY72: --- | EZ72: --- | FQ72: -160 | FR72: -320 | FS72: -1e-07 | FT72: 6.666666667e-08 | FU72: 0 | FV72: 0 | FW72: 0 | FX72: 0 | FY72: 0 | FZ72: 459.6963219 | GA72: -6.922449701e-27 | GB72: 1.38448994e-26 | GC72: 0 | GD72: -5.537959761e-18 | GE72: -8.306939641e-28 | GF72: 1.993665514e-28 | GG72: -424 | GH72: -388.3036781 | GI72: -3.2e-07 | GJ72: 2.866666667e-07 | GK72: -31.68 | GL72: -7.6032 | GM72: -3.8016e-10 | GN72: 4.56192e-11 | GO72: 97.07591952 | GP72: 0 | GQ72: -9.22993293e-09 | GR72: 0 | GS72: 65.39591952 | GT72: 38.99324137 | GU72: -0.0006115359827 | GV72: -0.391682971 | GW72: 0.48 | GX72: 7 | GY72: =IF($BZ$40=0,$CB$40,0) -> 0 | GZ72: =IF($BZ$40=$BZ$18,$CB$40,0) -> 0 | HA72: P6 | HB72: =IF($BZ$57=0,$CB$57,0) -> 0 | HC72: =IF($BZ$57=$BZ$18,$CB$57,0) -> 0 | HD72: M6 | HE72: W36x230 | HF72: 15000 | HG72: 940 | HH72: 624347.14 | HI72: 39125.75 | HL72: 3.36 | HM72: -284.6840805 | HN72: -263.9817104 | HO72: -0.00146228909 | HP72: 3.028454549 | HQ72: 3.36 | HS72: 3.36 | HT72: -284.6840805 | HU72: -263.9817104 | HV72: -0.00146228909 | HW72: 3.028454549
D73: 3 | CB73: 10 | CC73: 10 | CD73: =CD72 -> 0 | CE73: =IF(L116="",100,IF(0.4/$BN$4*$Q$116<0.4,CC74/$BN$4*$Q$116+0.4-0.4/$BN$4*$Q$116,CC74/$BN$4*$Q$116)) -> 100 | CK73: 0 | CL73: =CL72 -> 10 | CM73: 0 | CN73: =CN72 -> 2.32 | CV73: 8 | CW73: -264 | CX73: -528 | CY73: -2.2e-07 | CZ73: 2.2e-07 | DA73: -36.96 | DB73: -10.3488 | DC73: -6.0368e-10 | DD73: 8.45152e-11 | DE73: --- | DF73: --- | DG73: --- | DH73: --- | DI73: --- | DJ73: --- | DK73: --- | DL73: --- | DM73: --- | DN73: --- | DO73: --- | DP73: --- | DQ73: --- | DR73: --- | DS73: --- | DT73: --- | DU73: --- | DV73: --- | DW73: --- | DX73: --- | DY73: --- | DZ73: --- | EA73: --- | EB73: --- | EC73: --- | ED73: --- | EE73: --- | EF73: --- | EG73: --- | EH73: --- | EI73: --- | EJ73: --- | EK73: --- | EL73: --- | EM73: --- | EN73: --- | EO73: --- | EP73: --- | EQ73: --- | ER73: --- | ES73: --- | ET73: --- | EU73: --- | EV73: --- | EW73: --- | EX73: --- | EY73: --- | EZ73: --- | FQ73: -160 | FR73: -320 | FS73: -1e-07 | FT73: 6.666666667e-08 | FU73: 0 | FV73: 0 | FW73: 0 | FX73: 0 | FY73: 0 | FZ73: 459.6963219 | GA73: -6.922449701e-27 | GB73: 1.38448994e-26 | GC73: 0 | GD73: -5.537959761e-18 | GE73: -9.691429581e-28 | GF73: 2.713600283e-28 | GG73: -424 | GH73: -388.3036781 | GI73: -3.2e-07 | GJ73: 2.866666667e-07 | GK73: -36.96 | GL73: -10.3488 | GM73: -6.0368e-10 | GN73: 8.45152e-11 | GO73: 97.07591952 | GP73: 0 | GQ73: -9.22993293e-09 | GR73: 0 | GS73: 60.11591952 | GT73: 44.01371493 | GU73: -0.0005076892874 | GV73: -0.4365356564 | GW73: 0.56 | GX73: 8 | HA73: P7 | HB73: =SUM($HB$67:$HB$72) -> 0 | HC73: =SUM($HC$67:$HC$72) -> 0 | HD73: S M | HE73: W36x210 | HF73: 13200 | HG73: 411 | HH73: 549425.48 | HI73: 17107.11 | HL73: 3.44 | HM73: -289.9640805 | HN73: -286.9676369 | HO73: -0.002150887774 | HP73: 2.884310573 | HQ73: 3.44 | HS73: 3.44 | HT73: -289.9640805 | HU73: -286.9676369 | HV73: -0.002150887774 | HW73: 2.884310573
D74: 4 | CB74: 0 | CC74: =CC73 -> 10 | CD74: =CD71 -> 0 | CE74: =IF(L116="",100,IF(0.4/$BN$4*$L$116<0.4,CC73/$BN$4*$L$116+0.4-0.4/$BN$4*$L$116,CC73/$BN$4*$L$116)) -> 100 | CK74: =CK70 -> 0 | CL74: =CL70 -> 0.4 | CM74: 0 | CN74: 0.4 | CV74: 9 | CW74: -264 | CX74: -528 | CY74: -2.2e-07 | CZ74: 2.2e-07 | DA74: -42.24 | DB74: -13.5168 | DC74: -9.0112e-10 | DD74: 1.441792e-10 | DE74: --- | DF74: --- | DG74: --- | DH74: --- | DI74: --- | DJ74: --- | DK74: --- | DL74: --- | DM74: --- | DN74: --- | DO74: --- | DP74: --- | DQ74: --- | DR74: --- | DS74: --- | DT74: --- | DU74: --- | DV74: --- | DW74: --- | DX74: --- | DY74: --- | DZ74: --- | EA74: --- | EB74: --- | EC74: --- | ED74: --- | EE74: --- | EF74: --- | EG74: --- | EH74: --- | EI74: --- | EJ74: --- | EK74: --- | EL74: --- | EM74: --- | EN74: --- | EO74: --- | EP74: --- | EQ74: --- | ER74: --- | ES74: --- | ET74: --- | EU74: --- | EV74: --- | EW74: --- | EX74: --- | EY74: --- | EZ74: --- | FQ74: -160 | FR74: -320 | FS74: -1e-07 | FT74: 6.666666667e-08 | FU74: 0 | FV74: 0 | FW74: 0 | FX74: 0 | FY74: 0 | FZ74: 459.6963219 | GA74: -6.922449701e-27 | GB74: 1.38448994e-26 | GC74: 0 | GD74: -5.537959761e-18 | GE74: -1.107591952e-27 | GF74: 3.544294247e-28 | GG74: -424 | GH74: -388.3036781 | GI74: -3.2e-07 | GJ74: 2.866666667e-07 | GK74: -42.24 | GL74: -13.5168 | GM74: -9.0112e-10 | GN74: 1.441792e-10 | GO74: 97.07591952 | GP74: 0 | GQ74: -9.22993293e-09 | GR74: 0 | GS74: 54.83591952 | GT74: 48.61178849 | GU74: -0.0003918194081 | GV74: -0.4725926387 | GW74: 0.64 | GX74: 9 | HA74: P8 | HE74: W36x194 | HF74: 12100 | HG74: 375 | HH74: 503640.02 | HI74: 15608.68 | HL74: 3.52 | HM74: -295.2440805 | HN74: -310.3759633 | HO74: -0.002897479275 | HP74: 2.68276603 | HQ74: 3.52 | HS74: 3.52 | HT74: -295.2440805 | HU74: -310.3759633 | HV74: -0.002897479275 | HW74: 2.68276603
D75: 5 | CB75: =CB71 -> 0 | CC75: =CC71 -> 0.4 | CD75: =CD71 -> 0 | CE75: =IF(L116="",100,0.4) -> 100 | CJ75: =IF($P$66=0,"","IL, "&$P$66&"kN/m") -> IL, 15kN/m | CK75: 0 | CL75: 0.4 | CM75: 0 | CN75: 0.4 | CV75: 10 | CW75: -264 | CX75: -528 | CY75: -2.2e-07 | CZ75: 2.2e-07 | DA75: -47.52 | DB75: -17.1072 | DC75: -1.28304e-09 | DD75: 2.309472e-10 | DE75: --- | DF75: --- | DG75: --- | DH75: --- | DI75: --- | DJ75: --- | DK75: --- | DL75: --- | DM75: --- | DN75: --- | DO75: --- | DP75: --- | DQ75: --- | DR75: --- | DS75: --- | DT75: --- | DU75: --- | DV75: --- | DW75: --- | DX75: --- | DY75: --- | DZ75: --- | EA75: --- | EB75: --- | EC75: --- | ED75: --- | EE75: --- | EF75: --- | EG75: --- | EH75: --- | EI75: --- | EJ75: --- | EK75: --- | EL75: --- | EM75: --- | EN75: --- | EO75: --- | EP75: --- | EQ75: --- | ER75: --- | ES75: --- | ET75: --- | EU75: --- | EV75: --- | EW75: --- | EX75: --- | EY75: --- | EZ75: --- | FQ75: -160 | FR75: -320 | FS75: -1e-07 | FT75: 6.666666667e-08 | FU75: 0 | FV75: 0 | FW75: 0 | FX75: 0 | FY75: 0 | FZ75: 459.6963219 | GA75: -6.922449701e-27 | GB75: 1.38448994e-26 | GC75: 0 | GD75: -5.537959761e-18 | GE75: -1.246040946e-27 | GF75: 4.485747406e-28 | GG75: -424 | GH75: -388.3036781 | GI75: -3.2e-07 | GJ75: 2.866666667e-07 | GK75: -47.52 | GL75: -17.1072 | GM75: -1.28304e-09 | GN75: 2.309472e-10 | GO75: 97.07591952 | GP75: 0 | GQ75: -9.22993293e-09 | GR75: 0 | GS75: 49.55591952 | GT75: 52.78746205 | GU75: -0.0002649823449 | GV75: -0.4989343034 | GW75: 0.72 | GX75: 10 | HA75: P9 | HE75: W36x182 | HF75: 11300 | HG75: 347 | HH75: 470341.51 | HI75: 14443.23 | HL75: 3.6 | HM75: -300.5240805 | HN75: -334.2066897 | HO75: -0.003703119591 | HP75: 2.419139254 | HQ75: 3.6 | HS75: 3.6 | HT75: -300.5240805 | HU75: -334.2066897 | HV75: -0.003703119591 | HW75: 2.419139254
D76: 6 | CB76: 0 | CC76: 0.4 | CD76: =CD71 -> 0 | CE76: =IF(L116="",100,0.4) -> 100 | CK76: 10 | CL76: =CL75 -> 0.4 | CM76: =$CS$79 -> 1.538461538 | CN76: 0.4 | CP76: 10.3 | CQ76: =IF(P11="Pinned",100,-1) -> -1 | CS76: =0+$N$16/VLOOKUP($P$9,$BP$2:$BQ$5,2,FALSE)*10 -> 1.538461538 | CT76: 0 | CV76: 11 | CW76: -264 | CX76: -528 | CY76: -2.2e-07 | CZ76: 2.2e-07 | DA76: -52.8 | DB76: -21.12 | DC76: -1.76e-09 | DD76: 3.52e-10 | DE76: --- | DF76: --- | DG76: --- | DH76: --- | DI76: --- | DJ76: --- | DK76: --- | DL76: --- | DM76: --- | DN76: --- | DO76: --- | DP76: --- | DQ76: --- | DR76: --- | DS76: --- | DT76: --- | DU76: --- | DV76: --- | DW76: --- | DX76: --- | DY76: --- | DZ76: --- | EA76: --- | EB76: --- | EC76: --- | ED76: --- | EE76: --- | EF76: --- | EG76: --- | EH76: --- | EI76: --- | EJ76: --- | EK76: --- | EL76: --- | EM76: --- | EN76: --- | EO76: --- | EP76: --- | EQ76: --- | ER76: --- | ES76: --- | ET76: --- | EU76: --- | EV76: --- | EW76: --- | EX76: --- | EY76: --- | EZ76: --- | FQ76: -160 | FR76: -320 | FS76: -1e-07 | FT76: 6.666666667e-08 | FU76: 0 | FV76: 0 | FW76: 0 | FX76: 0 | FY76: 0 | FZ76: 459.6963219 | GA76: -6.922449701e-27 | GB76: 1.38448994e-26 | GC76: 0 | GD76: -5.537959761e-18 | GE76: -1.38448994e-27 | GF76: 5.537959761e-28 | GG76: -424 | GH76: -388.3036781 | GI76: -3.2e-07 | GJ76: 2.866666667e-07 | GK76: -52.8 | GL76: -21.12 | GM76: -1.76e-09 | GN76: 3.52e-10 | GO76: 97.07591952 | GP76: 0 | GQ76: -9.22993293e-09 | GR76: 0 | GS76: 44.27591952 | GT76: 56.54073561 | GU76: -0.0001282340978 | GV76: -0.5147255157 | GW76: 0.8 | GX76: 11 | HA76: P10 | HE76: W36x170 | HF76: 10500 | HG76: 320 | HH76: =ROUND(HF76*(2.54^4),2) -> 437043 | HI76: =ROUND(HG76*(2.54^4),2) -> 13319.41 | HL76: 3.68 | HM76: -305.8040805 | HN76: -358.4598162 | HO76: -0.004568864723 | HP76: 2.0886641 | HQ76: 3.68 | HS76: 3.68 | HT76: -305.8040805 | HU76: -358.4598162 | HV76: -0.004568864723 | HW76: 2.0886641
CA77: ="D3, "&$L$117&"kN/m" -> D3, kN/m | CB77: 0 | CC77: 0.4 | CD77: =$J$117/VLOOKUP($P$9,$BP$2:$BQ$5,2,FALSE)*10 -> 0 | CE77: =IF(L117="",100,0.4) -> 100 | CK77: 10 | CL77: 10 | CM77: =CM76 -> 1.538461538 | CN77: =IF(0.4/$BN$4*$P$66<0.4,CL77/$BN$4*$P$66+0.4-0.4/$BN$4*$P$66,CL77/$BN$4*$P$66) -> 1.84 | CP77: 10.3 | CQ77: =IF(P11="Pinned",100,0) -> 0 | CS77: =0.25+$N$16/VLOOKUP($P$9,$BP$2:$BQ$5,2,FALSE)*10 -> 1.788461538 | CT77: -0.75 | CV77: 12 | CW77: -264 | CX77: -528 | CY77: -2.2e-07 | CZ77: 2.2e-07 | DA77: -58.08 | DB77: -25.5552 | DC77: -2.34256e-09 | DD77: 5.153632e-10 | DE77: --- | DF77: --- | DG77: --- | DH77: --- | DI77: --- | DJ77: --- | DK77: --- | DL77: --- | DM77: --- | DN77: --- | DO77: --- | DP77: --- | DQ77: --- | DR77: --- | DS77: --- | DT77: --- | DU77: --- | DV77: --- | DW77: --- | DX77: --- | DY77: --- | DZ77: --- | EA77: --- | EB77: --- | EC77: --- | ED77: --- | EE77: --- | EF77: --- | EG77: --- | EH77: --- | EI77: --- | EJ77: --- | EK77: --- | EL77: --- | EM77: --- | EN77: --- | EO77: --- | EP77: --- | EQ77: --- | ER77: --- | ES77: --- | ET77: --- | EU77: --- | EV77: --- | EW77: --- | EX77: --- | EY77: --- | EZ77: --- | FQ77: -160 | FR77: -320 | FS77: -1e-07 | FT77: 6.666666667e-08 | FU77: 0 | FV77: 0 | FW77: 0 | FX77: 0 | FY77: 0 | FZ77: 459.6963219 | GA77: -6.922449701e-27 | GB77: 1.38448994e-26 | GC77: 0 | GD77: -5.537959761e-18 | GE77: -1.522938934e-27 | GF77: 6.70093131e-28 | GG77: -424 | GH77: -388.3036781 | GI77: -3.2e-07 | GJ77: 2.866666667e-07 | GK77: -58.08 | GL77: -25.5552 | GM77: -2.34256e-09 | GN77: 5.153632e-10 | GO77: 97.07591952 | GP77: 0 | GQ77: -9.22993293e-09 | GR77: 0 | GS77: 38.99591952 | GT77: 59.87160917 | GU77: 1.736933314e-05 | GV77: -0.5192156208 | GW77: 0.88 | GX77: 12 | HA77: P11 | HE77: W36x160 | HF77: 9760 | HG77: 295 | HH77: 406241.87 | HI77: 12278.83 | HL77: 3.76 | HM77: -311.0840805 | HN77: -383.1353426 | HO77: -0.005495770672 | HP77: 1.686489943 | HQ77: 3.76 | HS77: 3.76 | HT77: -311.0840805 | HU77: -383.1353426 | HV77: -0.005495770672 | HW77: 1.686489943
I78: Point Loads | CA78: ="D3, "&$Q$117&"kN/m" -> D3, kN/m | CB78: 10 | CC78: =CC77 -> 0.4 | CD78: =$O$117/VLOOKUP($P$9,$BP$2:$BQ$5,2,FALSE)*10 -> 0 | CE78: =IF(L117="",100,0.4) -> 100 | CK78: 0 | CL78: =CL77 -> 10 | CM78: 0 | CN78: =CN77 -> 1.84 | CP78: 10.3 | CQ78: =IF(P11="Pinned",100,1) -> 1 | CS78: =-0.25+$N$16/VLOOKUP($P$9,$BP$2:$BQ$5,2,FALSE)*10 -> 1.288461538 | CT78: -0.75 | CV78: 13 | CW78: -264 | CX78: -528 | CY78: -2.2e-07 | CZ78: 2.2e-07 | DA78: -63.36 | DB78: -30.4128 | DC78: -3.04128e-09 | DD78: 7.299072e-10 | DE78: --- | DF78: --- | DG78: --- | DH78: --- | DI78: --- | DJ78: --- | DK78: --- | DL78: --- | DM78: --- | DN78: --- | DO78: --- | DP78: --- | DQ78: --- | DR78: --- | DS78: --- | DT78: --- | DU78: --- | DV78: --- | DW78: --- | DX78: --- | DY78: --- | DZ78: --- | EA78: --- | EB78: --- | EC78: --- | ED78: --- | EE78: --- | EF78: --- | EG78: --- | EH78: --- | EI78: --- | EJ78: --- | EK78: --- | EL78: --- | EM78: --- | EN78: --- | EO78: --- | EP78: --- | EQ78: --- | ER78: --- | ES78: --- | ET78: --- | EU78: --- | EV78: --- | EW78: --- | EX78: --- | EY78: --- | EZ78: --- | FQ78: -160 | FR78: -320 | FS78: -1e-07 | FT78: 6.666666667e-08 | FU78: 0 | FV78: 0 | FW78: 0 | FX78: 0 | FY78: 0 | FZ78: 459.6963219 | GA78: -6.922449701e-27 | GB78: 1.38448994e-26 | GC78: 0 | GD78: -5.537959761e-18 | GE78: -1.661387928e-27 | GF78: 7.974662055e-28 | GG78: -424 | GH78: -388.3036781 | GI78: -3.2e-07 | GJ78: 2.866666667e-07 | GK78: -63.36 | GL78: -30.4128 | GM78: -3.04128e-09 | GN78: 7.299072e-10 | GO78: 97.07591952 | GP78: 0 | GQ78: -9.22993293e-09 | GR78: 0 | GS78: 33.71591952 | GT78: 62.78008274 | GU78: 0.000170771948 | GV78: -0.5117384442 | GW78: 0.96 | GX78: 13 | HA78: P12 | HE78: W36x150 | HF78: 9040 | HG78: 270 | HH78: 376273.21 | HI78: 11238.25 | HL78: 3.84 | HM78: -316.3640805 | HN78: -408.2332691 | HO78: -0.006484893437 | HP78: 1.207681678 | HQ78: 3.84 | HS78: 3.84 | HT78: -316.3640805 | HU78: -408.2332691 | HV78: -0.006484893437 | HW78: 1.207681678
J79: Span 4 | T79: Span 5 | CB79: 10 | CC79: 10 | CD79: =CD78 -> 0 | CE79: =IF(L117="",100,IF(0.4/$BN$4*$Q$117<0.4,CC80/$BN$4*$Q$117+0.4-0.4/$BN$4*$Q$117,CC80/$BN$4*$Q$117)) -> 100 | CK79: =CK75 -> 0 | CL79: =CL75 -> 0.4 | CM79: 0 | CN79: 0.4 | CP79: 10.3 | CQ79: =IF(P11="Pinned",100,2) -> 2 | CS79: =0+$N$16/VLOOKUP($P$9,$BP$2:$BQ$5,2,FALSE)*10 -> 1.538461538 | CT79: 0 | CV79: 14 | CW79: -264 | CX79: -528 | CY79: -2.2e-07 | CZ79: 2.2e-07 | DA79: -68.64 | DB79: -35.6928 | DC79: -3.86672e-09 | DD79: 1.0053472e-09 | DE79: --- | DF79: --- | DG79: --- | DH79: --- | DI79: --- | DJ79: --- | DK79: --- | DL79: --- | DM79: --- | DN79: --- | DO79: --- | DP79: --- | DQ79: --- | DR79: --- | DS79: --- | DT79: --- | DU79: --- | DV79: --- | DW79: --- | DX79: --- | DY79: --- | DZ79: --- | EA79: --- | EB79: --- | EC79: --- | ED79: --- | EE79: --- | EF79: --- | EG79: --- | EH79: --- | EI79: --- | EJ79: --- | EK79: --- | EL79: --- | EM79: --- | EN79: --- | EO79: --- | EP79: --- | EQ79: --- | ER79: --- | ES79: --- | ET79: --- | EU79: --- | EV79: --- | EW79: --- | EX79: --- | EY79: --- | EZ79: --- | FQ79: -160 | FR79: -320 | FS79: -1e-07 | FT79: 6.666666667e-08 | FU79: 0 | FV79: 0 | FW79: 0 | FX79: 0 | FY79: 0 | FZ79: 459.6963219 | GA79: -6.922449701e-27 | GB79: 1.38448994e-26 | GC79: 0 | GD79: -5.537959761e-18 | GE79: -1.799836922e-27 | GF79: 9.359151996e-28 | GG79: -424 | GH79: -388.3036781 | GI79: -3.2e-07 | GJ79: 2.866666667e-07 | GK79: -68.64 | GL79: -35.6928 | GM79: -3.86672e-09 | GN79: 1.0053472e-09 | GO79: 97.07591952 | GP79: 0 | GQ79: -9.22993293e-09 | GR79: 0 | GS79: 28.43591952 | GT79: 65.2661563 | GU79: 0.0003309177468 | GV79: -0.4917122909 | GW79: 1.04 | GX79: 14 | HA79: P13 | HE79: W36x135 | HF79: 7800 | HG79: 225 | HH79: 324660.51 | HI79: 9365.21 | HL79: 3.92 | HM79: -321.6440805 | HN79: -433.7535955 | HO79: -0.007537289017 | HP79: 0.6472197185 | HQ79: 3.92 | HS79: 3.92 | HT79: -321.6440805 | HU79: -433.7535955 | HV79: -0.007537289017 | HW79: 0.6472197185
